Workbook

Sheet Regelkreis

Sheet Übergabetabelle VBA
A2: Fomelzeichen in Zeile 1 | B2: Formelzeichen in Excel | C2: Wert | D2: Einheit
A4: T Ende Simulation | B4: TE_SIM | C4: 0.1 | D4: [s]
A5: T Abtast Simulation | B5: TA_SIM | C5: =TE_SIM/SS_SIM -> 6.25e-05 | D5: [s]
A7: J Motor EMS | B7: JM_EMS | C7: 8.13e-05 | D7: [kgm2]
A8: J Last EMS | B8: JL_EMS | C8: 0.0004 | D8: [kgm2]
A9: CZMS1 | B9: C_ZMS1 | C9: 50
A10: DZMS1 | B10: D_ZMS1 | C10: 20
A12: φ Trajektorie | B12: FI_T | C12: 6.28 | D12: [rad]
A13: T Ende Trajektorie | B13: TE_T | C13: 0.06 | D13: [s]
A14: Typ Trajektorie | B14: TYP_T | C14: 1/3 Trapez | D14: -
A15: Stützstellen Trajektorie | B15: SS_T | C15: =ROUND(TE_T/TA_SIM,0) -> 960
A16: Stützstellen Simulation | B16: SS_SIM | C16: 1600
A18: KP Lageregler | B18: KP_LR | C18: 1133.201576
A19: TN Lageregler | B19: TN_LR | C19: 0.001764911064
A20: KP Drehzahlregler | B20: KP_DR | C20: 2.316030075
A21: TN Drehzahlregler | B21: TN_DR | C21: 0.00059375
A22: KP Stromregler | B22: KP_SR | C22: 70.19354839
A23: TN Stromregler | B23: TN_SR | C23: 0.002344827586
A26: U Zwischenkreis | B26: U_ZWK | C26: 565 | D26: [V]
A27: R Motor | B27: R_M | C27: 2.9 | D27: [Ω]
A28: L Motor | B28: L_M | C28: 6.8 | D28: [mH]
A29: T Motor | B29: T_M | C29: =C28/1000/C27 -> 0.002344827586 | D29: [s]
A30: KT Motor | B30: KT_M | C30: 0.7 | D30: [Nm/A]
A31: I Nenn Regler | B31: IN_R | C31: 3 | D31: [A]
A32: I Max Regler | B32: IM_R | C32: 9 | D32: [A]
A34: KP Vorsteuerung Stromregler | B34: KP_VSR | C34: 1 | D34: -
A35: KP Vorsteuerung Drehzahlregler | B35: KP_VDR | C35: 1 | D35: -
A37: KP Lageregler Optimum | B37: KP_LR_SO | C37: =Lageregelkreis!$W$25 -> 1133.201576
A38: TN Lageregler Optimum | B38: TN_LR_SO | C38: =Lageregelkreis!$Y$26 -> 0.001764911064 | D38: [s]
A39: KP Drehzahlregler Sym. Optimum | B39: KP_DR_SO | C39: =Drehzahlregelkreis!W25 -> 2.316030075
A40: TN Drehzahlregler Sym. Optimum | B40: TN_DR_SO | C40: =Drehzahlregelkreis!Y26 -> 0.00059375 | D40: [s]
A41: KP Stromregler Betragsoptimum | B41: KP_SR_BO | C41: =Stromregelkreis!$W$25 -> 70.19354839
A42: TN Stromregler Betragsoptimum | B42: TN_SR_BO | C42: =Stromregelkreis!$Y$26 -> 0.002344827586 | D42: [s]
A44: T Ersatz Stromregler | B44: TE_SR | C44: =Stromregelkreis!Y39 -> 0.0001 | D44: [s]
A45: T Ersatz Drehzahlregler | B45: TE_DR | C45: =Drehzahlregelkreis!Y39 -> 0.000316227766 | D45: [s]
A47: φ Fenster | B47: DF_LR | C47: =1/3437.74677 -> 0.0002908882087 | D47: [rad]
A48: φ Fenster | B48: DF_LR | C48: =DF_LR*360/(2*PI())*60 -> 1 | D48: [arcmin]

Sheet Parameter (hidden)
A1: ProfilAuswahl
A2: Nullprofil
A3: 1/2 Trapez
A4: 1/3 Trapez
A5: 1/4 Trapez
A6: 1/5 Trapez
A7: 1/6 Trapez
A8: 1/7 Trapez
A9: sym. Polynom 5. Ordnung
A10: unsym. Polynom 5. Ordnung
A11: sym. Polynom 7. Ordnung
A12: unsym. Polynom 7. Ordnung
A13: 1/3 Trapez Polynom 7
A14: sym. Polynom 9. Ordnung
A15: geneigte Sinuslinie
A16: modifizierte Sinuslinie
A17: modifiziertes Beschl. Trapez
A18: 1/2 ruckbegrenztes Trapez
A19: 1/3 ruckbegrenztes Trapez
A20: 1/4 ruckbegrenztes Trapez
A21: 1/2 mod. ruckbegrenztes Trapez
A22: 1/3 mod. ruckbegrenztes Trapez
A23: 1/4 mod. ruckbegrenztes Trapez
A24: 1/2 Profil für elastische Riemen
A25: 1/3 Profil für elastische Riemen
A26: 1/4 Profil für elastische Riemen
A27: 1/2 Sin^2-Trapez
A28: 1/3 Sin^2-Trapez
A29: 1/4 Sin^2-Trapez
A30: 1/5 Sin^2-Trapez
A31: 1/6 Sin^2-Trapez
A32: 1/7 Sin^2-Trapez
A33: 1/2 Sin-Trapez
A34: 1/3 Sin-Trapez
A35: 1/4 Sin-Trapez
A36: 1/5 Sin-Trapez
A37: 1/6 Sin-Trapez
A38: 1/7 Sin-Trapez
A39: Beschleunigung linear
A40: Beschleunigung Sin^2
A41: Beschleunigung quadratisch
A42: Beschleunigung konstante Leistung
A43: Konstantfahrt
A44: Bremsung linear
A45: Bremsung Sin^2
A46: Bremsung quadratisch
A47: Bremsung konstante Leistung
A48: EMK - Profil
A49: Polynom 7. Ordnung TYP A
A50: Polynom 7. Ordnung TYP B
A51: Polynom 7. Ordnung TYP C
A52: Polynom 7. Ordnung TYP D
A53: Polynom 7. Ordnung TYP E
A54: Polynom 7. Ordnung TYP F
A55: Polynom 7. Ordnung TYP G
A56: Polynom 7. Ordnung TYP H
A57: Polynom 7. Ordnung TYP I
A58: Polynom 7. Ordnung TYP J

Sheet Lageregelkreis
V2: Funktion | W2: gewählt | X2: [ ] | Y2: umgerechnet | Z2: [ ] | AA2: f | AB2: [ ] | AD2: ωx | AE2: ω | AF2: s=jω | AG2: Strecke H(jω) | AH2: Betrag Strecke [dB] | AI2: Phase Strecke [°] | AK2: Regler H(jw) | AL2: Betrag Regler [dB] | AM2: Phase Regler [°] | AO2: Regler+Strecke H(jw) | AP2: Betrag Regler+Strecke [dB] | AQ2: Phase Regler+Strecke [°] | AR2: Anzeigen? | AS2: Geschlossener Kreis | AT2: Betrag Kreis [dB] | AU2: Phase Kreis [°]
Y3: =LEFT(W3,3) ->  | AD3: =$W$34 -> 0 | AE3: =10^AD3 -> 1 | AF3: =COMPLEX(0,AE3,"j") -> j | AG3: =IMPRODUCT(VS_LR,Drehzahlregelkreis!AS3,IMEXP(IMPRODUCT(AF3,TT_LR,-1)),IMDIV(1,AF3)) -> -0,000125000100203192-1,000000168457j | AH3: =20*LOG10(IMABS(AG3)) -> 1.531057384e-06 | AI3: =IMARGUMENT(AG3)*180/PI() -> -90.00716198 | AK3: =IMPRODUCT(KP_LR,IMSUM(1,IMDIV(1,IMPRODUCT(TN_LR,AF3)))) -> 1133,20157639608-642072,906373283j | AL3: =20*LOG10(IMABS(AK3)) -> 116.1517004 | AM3: =IF(IMARGUMENT(AK3)*180/PI()>0,"",IMARGUMENT(AK3)*180/PI()) -> -89.89887815 | AO3: =IMPRODUCT(AK3,AG3) -> -642073,156185269-1052,9425896574j | AP3: =20*LOG10(IMABS(AO3)) -> 116.1517019 | AQ3: =AI3+AM3 -> -179.9060401 | AR3: 1 | AS3: =IMDIV(AO3,IMSUM(1,AO3)) -> 1,00000155745316-2,55408796547991E-09j | AT3: =20*LOG10(IMABS(AS3)) -> 1.352785573e-05 | AU3: =IMARGUMENT(AS3)*180/PI() -> -1.46338233e-07
AD4: =AD3+$W$36 -> 0.1 | AE4: 1.258925412 | AF4: 1,25892541179417j | AG4: =IMPRODUCT(VS_LR,Drehzahlregelkreis!AS4,IMEXP(IMPRODUCT(AF4,TT_LR,-1)),IMDIV(1,AF4)) -> -0,000125000158811356-0,794328446799063j | AH4: -1.999997573 | AI4: -90.0090164 | AK4: 1133,20157639608-510016,638283776j | AL4: 114.1517083 | AM4: =IF(AM3="","",IF(IMARGUMENT(AK4)*180/PI()>0,"",IMARGUMENT(AK4)*180/PI())) -> -89.87269521 | AO4: -405120,865780008-836,382087307042j | AP4: 112.1517108 | AQ4: -179.8817116 | AR4: 1 | AS4: 1,00000246839472-5,09607477399419E-09j | AT4: 2.144017766e-05 | AU4: -2.919828559e-07
V5: Abtastzeit | W5: 125 | X5: [µs] | Y5: =W5/1000000 -> 0.000125 | Z5: [s] | AA5: =1/Y5 -> 8000 | AB5: [1/s] | AD5: 0.2 | AE5: 1.584893192 | AF5: 1,58489319246111j | AG5: =IMPRODUCT(VS_LR,Drehzahlregelkreis!AS5,IMEXP(IMPRODUCT(AF5,TT_LR,-1)),IMDIV(1,AF5)) -> -0,000125000251699028-0,630957611466487j | AH5: -3.999996154 | AI5: -90.01135098 | AK5: 1133,20157639608-405120,615967967j | AL5: 112.1517209 | AM5: -89.83973292 | AO5: -255614,077857463-664,361980988467j | AP5: 108.1517247 | AQ5: -179.8510839 | AR5: 1 | AS5: 1,00000391213647-1,01680037602518E-08j | AT5: 3.398031916e-05 | AU5: -5.825814224e-07
V6: Totzeit Drehzahlregler | W6: =W5/2*2 -> 125 | X6: [µs] | Y6: =W6/1000000 -> 0.000125 | Z6: [s] | AA6: =1/TT_DR -> 20645.16129 | AB6: [1/s] | AD6: 0.3 | AE6: 1.995262315 | AF6: 1,99526231496888j | AG6: =IMPRODUCT(VS_LR,Drehzahlregelkreis!AS6,IMEXP(IMPRODUCT(AF6,TT_LR,-1)),IMDIV(1,AF6)) -> -0,000125000398916056-0,501187569743017j | AH6: -5.999993905 | AI6: -90.01429005 | AK6: 1133,20157639608-321798,743732248j | AL6: 110.1517407 | AM6: -89.79823601 | AO6: -161281,67196817-527,721572765691j | AP6: 104.1517468 | AQ6: -179.8125261 | AR6: 1 | AS6: 1,00000620030461-2,02878277955367E-08j | AT6: 5.385499461e-05 | AU6: -1.162399701e-06
AD7: 0.4 | AE7: 2.511886432 | AF7: 2,51188643150958j | AG7: =IMPRODUCT(VS_LR,Drehzahlregelkreis!AS7,IMEXP(IMPRODUCT(AF7,TT_LR,-1)),IMDIV(1,AF7)) -> -0,000125000632239292-0,398107593697987j | AH7: -7.99999034 | AI7: -90.01799013 | AK7: 1133,20157639608-255613,828045327j | AL7: 108.1517722 | AM7: -89.7459948 | AO7: -101761,94764997-419,184262639037j | AP7: 100.1517819 | AQ7: -179.7639849 | AR7: 1 | AS7: 1,00000982678576-4,04795163508654E-08j | AT7: 8.535395724e-05 | AU7: -2.319282653e-06
AD8: 0.5 | AE8: 3.16227766 | AF8: 3,16227766016838j | AG8: =IMPRODUCT(VS_LR,Drehzahlregelkreis!AS8,IMEXP(IMPRODUCT(AF8,TT_LR,-1)),IMDIV(1,AF8)) -> -0,000125001002031626-0,316228298723865j | AH8: -9.999984689 | AI8: -90.02264829 | AK8: 1133,20157639608-203041,280802361j | AL8: 106.1518222 | AM8: -89.68022762 | AO8: -64207,5404501777-332,970043060854j | AP8: 96.15183747 | AQ8: -179.7028759 | AR8: 1 | AS8: 1,00001557431844-8,07671842384517E-08j | AT8: 0.0001352757578 | AU8: -4.627546709e-06
AD9: 0.6 | AE9: 3.981071706 | AF9: 3,98107170553497j | AG9: =IMPRODUCT(VS_LR,Drehzahlregelkreis!AS9,IMEXP(IMPRODUCT(AF9,TT_LR,-1)),IMDIV(1,AF9)) -> -0,000125001588112793-0,251189313788726j | AH9: -11.99997573 | AI9: -90.02851261 | AK9: 1133,20157639608-161281,422155897j | AL9: 104.1519013 | AM9: -89.59743287 | AO9: -40512,3114102063-264,487692456657j | AP9: 92.15192555 | AQ9: -179.6259455 | AR9: 1 | AS9: 1,00002468341168-1,61151499940994E-07j | AT9: 0.0002143947439 | AU9: -9.233072905e-06
AD10: 0.7 | AE10: 5.011872336 | AF10: 5,01187233627272j | AG10: =IMPRODUCT(VS_LR,Drehzahlregelkreis!AS10,IMEXP(IMPRODUCT(AF10,TT_LR,-1)),IMDIV(1,AF10)) -> -0,000125002516988376-0,199527075778527j | AH10: -13.99996154 | AI10: -90.03589546 | AK10: 1133,20157639608-128110,387354916j | AL10: 102.1520267 | AM10: -89.49320289 | AO10: -25561,6326188301-210,090275934207j | AP10: 88.15206514 | AQ10: -179.5290983 | AR10: 1 | AS10: 1,00003912001955-3,21538822017955E-07j | AT10: 0.0003397855267 | AU10: -1.842209678e-05
AD11: 0.8 | AE11: 6.309573445 | AF11: 6,30957344480193j | AG11: =IMPRODUCT(VS_LR,Drehzahlregelkreis!AS11,IMEXP(IMPRODUCT(AF11,TT_LR,-1)),IMDIV(1,AF11)) -> -0,000125003989155781-0,158490382131145j | AH11: -15.99993905 | AI11: -90.04519012 | AK11: 1133,20157639608-101761,697837474j | AL11: 100.1522254 | AM11: -89.36198997 | AO11: -16128,3920312929-166,880932701681j | AP11: 84.15228636 | AQ11: -179.4071801 | AR11: 1 | AS11: 1,0000619996671-6,41552102988859E-07j | AT11: 0.0005385055744 | AU11: -3.675594898e-05
AD12: 0.9 | AE12: 7.943282347 | AF12: 7,94328234724281j | AG12: =IMPRODUCT(VS_LR,Drehzahlregelkreis!AS12,IMEXP(IMPRODUCT(AF12,TT_LR,-1)),IMDIV(1,AF12)) -> -0,000125006322380919-0,125893879267259j | AH12: -17.9999034 | AI12: -90.05689182 | AK12: 1133,20157639608-80832,1898057859j | AL12: 98.15254035 | AM12: -89.19681237 | AO12: -10176,4196016794-132,558607666658j | AP12: 80.15263696 | AQ12: -179.2537042 | AR12: 1 | AS12: 1,00009825936978-0,0000012800578018674j | AT12: 0.000853428121 | AU12: -7.333470376e-05
AD13: 1 | AE13: 10 | AF13: 10j | AG13: =IMPRODUCT(VS_LR,Drehzahlregelkreis!AS13,IMEXP(IMPRODUCT(AF13,TT_LR,-1)),IMDIV(1,AF13)) -> -0,000125010020286114-0,100001684542537j | AH13: -19.9998469 | AI13: -90.07162422 | AK13: 1133,20157639608-64207,2906373283j | AL13: 96.15303946 | AM13: -88.98888542 | AO13: -6420,97888519715-105,295511860778j | AP13: 76.15319257 | AQ13: -179.0605096 | AR13: 1 | AS13: 1,00015572186296-2,55402915833736E-06j | AT13: 0.001352477642 | AU13: -0.0001463123075
AD14: 1.1 | AE14: 12.58925412 | AF14: 12,5892541179417j | AG14: =IMPRODUCT(VS_LR,Drehzahlregelkreis!AS14,IMEXP(IMPRODUCT(AF14,TT_LR,-1)),IMDIV(1,AF14)) -> -0,000125015881052189-0,0794349441653837j | AH14: -21.99975735 | AI14: -90.09017286 | AK14: 1133,20157639608-51001,6638283777j | AL14: 94.15383038 | AM14: -88.72715944 | AO14: -4051,45598674233-83,6397860105152j | AP14: 72.15407303 | AQ14: -178.8173323 | AR14: 1 | AS14: 1,00024678055612-5,09588870320215E-06j | AT14: 0.002143244343 | AU14: -0.0002919008801
AD15: 1.2 | AE15: 15.84893192 | AF15: 15,8489319246111j | AG15: =IMPRODUCT(VS_LR,Drehzahlregelkreis!AS15,IMEXP(IMPRODUCT(AF15,TT_LR,-1)),IMDIV(1,AF15)) -> -0,000125025169693484-0,0630984042014656j | AH15: -23.99961543 | AI15: -90.11352752 | AK15: 1133,20157639608-40512,0615967967j | AL15: 92.15508361 | AM15: -88.39774281 | AO15: -2556,38811638874-66,4381837334055j | AP15: 68.15546818 | AQ15: -178.5112703 | AR15: 1 | AS15: 1,00039106564244-0,0000101674148196149j | AT15: 0.003396089456 | AU15: -0.0005823222315
V16: Verstärkung der Stecke | W16: 1 | AD16: 1.3 | AE16: 19.95262315 | AF16: 19,9526231496888j | AG16: =IMPRODUCT(VS_LR,Drehzahlregelkreis!AS16,IMEXP(IMPRODUCT(AF16,TT_LR,-1)),IMDIV(1,AF16)) -> -0,000125039891079876-0,0501220843017636j | AH16: -25.99939052 | AI16: -90.14293586 | AK16: 1133,20157639608-32179,8743732248j | AL16: 90.1570691 | AM16: -87.98318512 | AO16: -1613,06407155662-52,7746569564236j | AP16: 64.15767858 | AQ16: -178.126121 | AR16: 1 | AS16: 1,00061965863076-0,0000202859627265335j | AT16: 0.005380621363 | AU16: -0.001161580264
V17: Summenzeitkonstante TE_DR+TT_LR | W17: =TE_DR+TT_LR -> 0.000441227766 | X17: [s] | Y17: =W17*1000 -> 0.441227766 | Z17: [ms] | AA17: =1/W17 -> 2266.403153 | AB17: [1/s] | AD17: 1.4 | AE17: 25.11886432 | AF17: 25,1188643150958j | AG17: =IMPRODUCT(VS_LR,Drehzahlregelkreis!AS17,IMEXP(IMPRODUCT(AF17,TT_LR,-1)),IMDIV(1,AF17)) -> -0,000125063222608635-0,0398149480644537j | AH17: -27.99903408 | AI17: -90.17997189 | AK17: 1133,20157639608-25561,3828045327j | AL17: 88.16021403 | AM17: -87.46159343 | AO17: -1017,8668506591-41,9215730028992j | AP17: 60.16117995 | AQ17: -177.6415653 | AR17: 1 | AS17: 1,00098174434751-0,0000404736050819826j | AT17: 0.008523147068 | AU17: -0.002316692352
AD18: 1.5 | AE18: 31.6227766 | AF18: 31,6227766016838j | AG18: =IMPRODUCT(VS_LR,Drehzahlregelkreis!AS18,IMEXP(IMPRODUCT(AF18,TT_LR,-1)),IMDIV(1,AF18)) -> -0,000125100199845383-0,0316281028024167j | AH18: -29.99846922 | AI18: -90.22662365 | AK18: 1133,20157639608-20304,1280802361j | AL18: 86.16519375 | AM18: -86.80555705 | AO18: -642,322813978815-33,3009654735921j | AP18: 56.16672453 | AQ18: -177.0321807 | AR18: 1 | AS18: 1,00155508423805-0,0000807484240245606j | AT18: 0.01349682669 | AU18: -0.004619360394
V19: Reglereinstellung: | AD19: 1.6 | AE19: 39.81071706 | AF19: 39,8107170553498j | AG19: =IMPRODUCT(VS_LR,Drehzahlregelkreis!AS19,IMEXP(IMPRODUCT(AF19,TT_LR,-1)),IMDIV(1,AF19)) -> -0,000125158802946286-0,0251255689577804j | AH19: -31.99757414 | AI19: -90.28540694 | AK19: 1133,20157639608-16128,1422155897j | AL19: 84.17307439 | AM19: -85.98086766 | AO19: -405,370579551487-26,4537553773545j | AP19: 52.17550025 | AQ19: -176.2662746 | AR19: 1 | AS19: 1,00246244055888-0,000161091838699451j | AT19: 0.0213623083 | AU19: -0.009207210184
V20: P-Anteil | W20: =B7 -> 0 | X20: [1] | Y20: =W20 -> 0 | Z20: [1] | AD20: 1.7 | AE20: 50.11872336 | AF20: 50,1187233627273j | AG20: =IMPRODUCT(VS_LR,Drehzahlregelkreis!AS20,IMEXP(IMPRODUCT(AF20,TT_LR,-1)),IMDIV(1,AF20)) -> -0,000125251677904361-0,01996106250424j | AH20: -33.99615592 | AI20: -90.35951485 | AK20: 1133,20157639608-12811,0387354915j | AL20: 82.18553515 | AM20: -84.94505312 | AO20: -255,863880342233-21,0153033990274j | AP20: 48.18937924 | AQ20: -175.304568 | AR20: 1 | AS20: 1,00389716566741-0,000321348473494653j | AT20: 0.03378500655 | AU20: -0.01834043494
V21: Nachstellzeit Lageregler | W21: =TN_LR*1000 -> 1.764911064 | X21: [ms] | Y21: =TN_LR -> 0.001764911064 | Z21: [s] | AA21: =1/Y21 -> 566.6007882 | AB21: [1/s] | AD21: 1.8 | AE21: 63.09573445 | AF21: 63,0957344480194j | AG21: =IMPRODUCT(VS_LR,Drehzahlregelkreis!AS21,IMEXP(IMPRODUCT(AF21,TT_LR,-1)),IMDIV(1,AF21)) -> -0,000125398862990773-0,0158595538675227j | AH21: -35.99390917 | AI21: -90.45301879 | AK21: 1133,20157639608-10176,1697837473j | AL21: 80.20521119 | AM21: -83.64581509 | AO21: -161,531615039617-16,6959913231323j | AP21: 44.21130202 | AQ21: -174.0988339 | AR21: 1 | AS21: 1,00616264180656-0,000640941749103851j | AT21: 0.05336552642 | AU21: -0.03649832606
AD22: 1.9 | AE22: 79.43282347 | AF22: 79,4328234724283j | AG22: =IMPRODUCT(VS_LR,Drehzahlregelkreis!AS22,IMEXP(IMPRODUCT(AF22,TT_LR,-1)),IMDIV(1,AF22)) -> -0,000125632105975837-0,0126026212136836j | AH22: -37.99035077 | AI22: -90.57114714 | AK22: 1133,20157639608-8083,2189805786j | AL22: 78.23621414 | AM22: -82.01960793 | AO22: -102,012113500028-13,265798402475j | AP22: 40.24586336 | AQ22: -172.5907551 | AR22: 1 | AS22: 1,00973195332334-0,00127808563128131j | AT22: 0.0841289557 | AU22: -0.07252308217
AD23: 2 | AE23: 100 | AF23: 100j | AG23: =IMPRODUCT(VS_LR,Drehzahlregelkreis!AS23,IMEXP(IMPRODUCT(AF23,TT_LR,-1)),IMDIV(1,AF23)) -> -0,000126001696661036-0,0100168179235955j | AH23: -39.98471727 | AI23: -90.72068642 | AK23: 1133,20157639608-6420,72906373283j | AL23: 76.2849016 | AM23: -79.9908801 | AO23: -64,4580592894344-10,5420511056598j | AP23: 36.30018433 | AQ23: -170.7115665 | AR23: 1 | AS23: 1,01533521923107-0,00254758287064969j | AT23: 0.1322163603 | AU23: -0.1437608362
V24: errechnete Standardwerte: | AD24: 2.1 | AE24: 125.8925412 | AF24: 125,892541179417j | AG24: =IMPRODUCT(VS_LR,Drehzahlregelkreis!AS24,IMEXP(IMPRODUCT(AF24,TT_LR,-1)),IMDIV(1,AF24)) -> -0,000126587271039721-0,00796443439810281j | AH24: -41.97580423 | AI24: -90.91058641 | AK24: 1133,20157639608-5100,16638283777j | AL24: 74.36096511 | AM24: -77.47299864 | AO24: -40,7633894706146-8,37969347078131j | AP24: 32.38516088 | AQ24: -168.3835851 | AR24: 1 | AS24: 1,02407937508065-0,00507446132812566j | AT24: 0.2067790241 | AU24: -0.2839065456
V25: P-Anteil | W25: =1/(2*VS_LR*W17) -> 1133.201576 | X25: [1] | Y25: =W25 -> 1133.201576 | Z25: [1] | AD25: 2.2 | AE25: 158.4893192 | AF25: 158,489319246112j | AG25: =IMPRODUCT(VS_LR,Drehzahlregelkreis!AS25,IMEXP(IMPRODUCT(AF25,TT_LR,-1)),IMDIV(1,AF25)) -> -0,000127514872559547-0,00633616146467655j | AH25: -43.96171669 | AI25: -91.15291852 | AK25: 1133,20157639608-4051,20615967963j | AL25: 72.47885347 | AM25: -74.37265487 | AO25: -25,8135964090208-6,66355912290756j | AP25: 28.51713679 | AQ25: -165.5255734 | AR25: 1 | AS25: 1,03758966114547-0,0100945032442701j | AT25: 0.3209237515 | AU25: -0.5574016466
V26: Nachstellzeit Lageregler | W26: =4*Y17 -> 1.764911064 | X26: [ms] | Y26: =W26/1000 -> 0.001764911064 | Z26: [s] | AA26: =1/Y26 -> 566.6007882 | AB26: [1/s] | AD26: 2.3 | AE26: 199.5262315 | AF26: 199,526231496888j | AG26: =IMPRODUCT(VS_LR,Drehzahlregelkreis!AS26,IMEXP(IMPRODUCT(AF26,TT_LR,-1)),IMDIV(1,AF26)) -> -0,000128983835403014-0,00504526316196751j | AH26: -45.93948596 | AI26: -91.46446672 | AK26: 1133,20157639608-3217,98743732248j | AL26: 70.65937644 | AM26: -70.60048613 | AO26: -16,3817581588056-5,30223180653008j | AP26: 24.71989048 | AQ26: -162.0649528 | AR26: 1 | AS26: 1,05810748913648-0,0200301795097881j | AT26: 0.4921517906 | AU26: -1.084490662
AD27: 2.4 | AE27: 251.1886432 | AF27: 251,188643150959j | AG27: =IMPRODUCT(VS_LR,Drehzahlregelkreis!AS27,IMEXP(IMPRODUCT(AF27,TT_LR,-1)),IMDIV(1,AF27)) -> -0,000131308993987032-0,00402294553093761j | AH27: -47.90449257 | AI27: -91.86947128 | AK27: 1133,20157639608-2556,13828045326j | AL27: 68.9309504 | AM27: -66.09106354 | AO27: -10,4320046307891-4,223164271316j | AP27: 21.02645783 | AQ27: -157.9605348 | AR27: 1 | AS27: 1,08831644635025-0,0395435408903909j | AT27: 0.7408336308 | AU27: -2.080903716
AD28: 2.5 | AE28: 316.227766 | AF28: 316,227766016839j | AG28: =IMPRODUCT(VS_LR,Drehzahlregelkreis!AS28,IMEXP(IMPRODUCT(AF28,TT_LR,-1)),IMDIV(1,AF28)) -> -0,000134986568521572-0,00321466866009826j | AH28: -49.84962481 | AI28: -92.40448413 | AK28: 1133,20157639608-2030,4128080236j | AL28: 67.32934039 | AM28: -60.83350727 | AO28: -6,68007141325651-3,36878913557707j | AP28: 17.47971557 | AQ28: -153.2379914 | AR28: 1 | AS28: 1,13024116596339-0,0772446317978251j | AT28: 1.083660369 | AU28: -3.909714193
AD29: 2.6 | AE29: 398.1071706 | AF29: 398,107170553498j | AG29: =IMPRODUCT(VS_LR,Drehzahlregelkreis!AS29,IMEXP(IMPRODUCT(AF29,TT_LR,-1)),IMDIV(1,AF29)) -> -0,000140795990912456-0,00257719325463942j | AH29: -51.76411762 | AI29: -93.12704713 | AK29: 1133,20157639608-1612,81422155897j | AL29: 65.89426294 | AM29: -54.90721163 | AO29: -4,31608417164055-2,69340168235264j | AP29: 14.13014532 | AQ29: -148.0342588 | AR29: 1 | AS29: 1,18169501019444-0,147576967532361j | AT29: 1.517319868 | AU29: -7.118575694
V30: Bodediagramm: | AD30: 2.7 | AE30: 501.1872336 | AF30: 501,187233627274j | AG30: =IMPRODUCT(VS_LR,Drehzahlregelkreis!AS30,IMEXP(IMPRODUCT(AF30,TT_LR,-1)),IMDIV(1,AF30)) -> -0,000149954547147843-0,00207617948178822j | AH30: -53.63210549 | AI30: -94.13108276 | AK30: 1133,20157639608-1281,10387354915j | AL30: 64.66181241 | AM30: -48.50560462 | AO30: -2,82973030551785-2,1606225104362j | AP30: 11.02970692 | AQ30: -142.6366874 | AR30: 1 | AS30: 1,22825399898776-0,269531923269132j | AT30: 1.990020062 | AU30: -12.37698259
V31: untere Grenze von f | W31: 1 | X31: [1/s] | AD31: 2.8 | AE31: 630.9573445 | AF31: 630,957344480195j | AG31: =IMPRODUCT(VS_LR,Drehzahlregelkreis!AS31,IMEXP(IMPRODUCT(AF31,TT_LR,-1)),IMDIV(1,AF31)) -> -0,000164344614608119-0,00168415930405548j | AH31: -55.43117719 | AI31: -95.57342413 | AK31: 1133,20157639608-1017,61697837473j | AL31: 63.65429974 | AM31: -41.92389418 | AO31: -1,90006467844075-1,74125210812812j | AP31: 8.223122547 | AQ31: -137.4973183 | AR31: 1 | AS31: 1,23426523461022-0,453206134400064j | AT31: 2.377463791 | AU31: -20.16257816
C32: KP_LR | D32: TN_LR | G32: KP_VDR | H32: KP_DR | I32: TN_DR | O32: KP_VSR | P32: KP_SR | Q32: TN_SR | V32: obere Grenze von f | W32: 100000 | X32: [1/s] | AD32: 2.9 | AE32: 794.3282347 | AF32: 794,328234724284j | AG32: =IMPRODUCT(VS_LR,Drehzahlregelkreis!AS32,IMEXP(IMPRODUCT(AF32,TT_LR,-1)),IMDIV(1,AF32)) -> -0,000186825031508439-0,00137866948110393j | AH32: -57.13176953 | AI32: -97.7172061 | AK32: 1133,20157639608-808,32189805786j | AL32: 62.87248459 | AM32: -35.500572 | AO32: -1,32611915197598-1,41129566524252j | AP32: 5.740715058 | AQ32: -133.2177781 | AR32: 1 | AS32: 1,15543478805218-0,672651211303568j | AT32: 2.522434268 | AU32: -30.20637454
C33: =ROUND(KP_LR,1) -> 1133.2 | D33: =ROUND(TN_LR*1000,2)&" ms" -> 1,76 ms | E33: ="= "&ROUND(1/TN_LR,0)&" Hz" -> = 567 Hz | G33: =KP_VDR -> 1 | H33: =KP_DR -> 2.316030075 | I33: =ROUND(TN_DR*1000,2)&" ms" -> 0,59 ms | O33: =KP_VSR -> 1 | P33: =KP_SR -> 70.19354839 | Q33: =ROUND(TN_SR*1000,2)&" ms" -> 2,34 ms | V33: feste Anzahl der Intervalle von f | W33: 50 | X33: [1] | AD33: 3 | AE33: 1000 | AF33: 1000j | AG33: =IMPRODUCT(VS_LR,Drehzahlregelkreis!AS33,IMEXP(IMPRODUCT(AF33,TT_LR,-1)),IMDIV(1,AF33)) -> -0,000221584963981572-0,00114022829198273j | AH33: -58.69917084 | AI33: -100.9974355 | AK33: 1133,20157639608-642,072906373283j | AL33: 62.29529142 | AM33: -29.53592507 | AO33: -0,983210123851982-1,14983479609397j | AP33: 3.596120583 | AQ33: -130.5333605 | AR33: 1 | AS33: 0,987303500238125-0,869504759064342j | AT33: 2.382485746 | AU33: -41.36993348
V34: untere Grenze für Exponent von ω | W34: =LOG10(W31) -> 0 | X34: [1] | AD34: 3.1 | AE34: 1258.925412 | AF34: 1258,92541179417j | AG34: =IMPRODUCT(VS_LR,Drehzahlregelkreis!AS34,IMEXP(IMPRODUCT(AF34,TT_LR,-1)),IMDIV(1,AF34)) -> -0,000274278743060035-0,000949602895034111j | AH34: -60.10116777 | AI34: -106.110579 | AK34: 1133,20157639608-510,016638283777j | AL34: 61.88721205 | AM34: -24.23093779 | AO34: -0,795126380237407-0,936204775114757j | AP34: 1.786044279 | AQ34: -130.3415168 | AR34: 1 | AS34: 0,776936094474736-1,01932837302574j | AT34: 2.15547689 | AU34: -52.68520784
V35: obere Grenze für Exponent von ω | W35: =LOG10(W32) -> 5 | X35: [1] | AD35: 3.2 | AE35: =10^AD35 -> 1584.893192 | AF35: =COMPLEX(0,AE35,"j") -> 1584,89319246112j | AG35: =IMPRODUCT(VS_LR,Drehzahlregelkreis!AS35,IMEXP(IMPRODUCT(AF35,TT_LR,-1)),IMDIV(1,AF35)) -> -0,000350846907727381-0,00078341465114387j | AH35: =20*LOG10(IMABS(AG35)) -> -61.32631481 | AI35: =IMARGUMENT(AG35)*180/PI() -> -114.1248959 | AK35: =IMPRODUCT(KP_LR,IMSUM(1,IMDIV(1,IMPRODUCT(TN_LR,AF35)))) -> 1133,20157639608-405,120615967963j | AL35: =20*LOG10(IMABS(AK35)) -> 61.60849093 | AM35: -19.67201717 | AO35: =IMPRODUCT(AK35,AG35) -> -0,71495769494009-0,745631402279047j | AP35: =20*LOG10(IMABS(AO35)) -> 0.2821761159 | AQ35: =AI35+AM35 -> -133.7969131 | AR35: 1 | AS35: =IMDIV(AO35,IMSUM(1,AO35)) -> 0,552675048154694-1,1701404500245j | AT35: =20*LOG10(IMABS(AS35)) -> 2.239314141 | AU35: =IMARGUMENT(AS35)*180/PI() -> -64.71792493
V36: Schrittweite Exponent von ω | W36: =ABS((W35-W34)/W33) -> 0.1 | X36: [1] | AD36: =AD35+$W$36 -> 3.3 | AE36: 1995.262315 | AF36: 1995,26231496889j | AG36: =IMPRODUCT(VS_LR,Drehzahlregelkreis!AS36,IMEXP(IMPRODUCT(AF36,TT_LR,-1)),IMDIV(1,AF36)) -> -0,000450990737960018-0,000607351099566203j | AH36: -62.42400535 | AI36: -126.5958655 | AK36: 1133,20157639608-321,798743732245j | AL36: 61.42295665 | AM36: =IF(AM35="","",IF(IMARGUMENT(AK36)*180/PI()>0,"",IMARGUMENT(AK36)*180/PI())) -> -15.85311922 | AO36: -0,706508236041126-0,543122970543902j | AP36: -1.001048706 | AQ36: -142.4489848 | AR36: 1 | AS36: 0,229922906316385-1,42507085387196j | AT36: 3.188334162 | AU36: -80.83480146
AD37: 3.4 | AE37: 2511.886432 | AF37: 2511,88643150959j | AG37: =IMPRODUCT(VS_LR,Drehzahlregelkreis!AS37,IMEXP(IMPRODUCT(AF37,TT_LR,-1)),IMDIV(1,AF37)) -> -0,000545084336975159-0,000373980263847632j | AH37: -63.59540256 | AI37: -145.5461317 | AK37: 1133,20157639608-255,613828045326j | AL37: 61.30167818 | AM37: -12.71134666 | AO37: -0,713284956784557-0,28446393055139j | AP37: -2.293724387 | AQ37: -158.2574783 | AR37: 1 | AS37: -0,757637484871299-1,74383758111796j | AT37: 5.581063876 | AU37: -113.4832895
V38: Nulldurchgang Betrag Regler+Strecke | W38: =MATCH(-0.5,AP3:AP52,-1)+1 -> 34 | X38: [Zeile] | AD38: 3.5 | AE38: 3162.27766 | AF38: 3162,2776601684j | AG38: =IMPRODUCT(VS_LR,Drehzahlregelkreis!AS38,IMEXP(IMPRODUCT(AF38,TT_LR,-1)),IMDIV(1,AF38)) -> -0,000535657557241872-0,0000702053873465791j | AH38: -65.34828673 | AI38: -172.5331501 | AK38: 1133,20157639608-203,04128080236j | AL38: 61.22337652 | AM38: -10.15817611 | AO38: -0,621262580041038+0,0292037408812123j | AP38: -4.124910212 | AQ38: -182.6913262 | AR38: 1 | AS38: -1,62474586136079+0,202389291299815j | AT38: 4.282580221 | AU38: 172.8994272
V39: f der Zeile | W39: =INDEX(AD2:AU52,W38,2) -> 1584.893192 | X39: [1/s] | Y39: =1/W39 -> 0.0006309573445 | Z39: [s] | AD39: 3.6 | AE39: 3981.071706 | AF39: 3981,07170553499j | AG39: =IMPRODUCT(VS_LR,Drehzahlregelkreis!AS39,IMEXP(IMPRODUCT(AF39,TT_LR,-1)),IMDIV(1,AF39)) -> -0,000342279713173435+0,000164809034022097j | AH39: -68.40681244 | AI39: 154.2890011 | AK39: 1133,20157639608-161,281422155895j | AL39: 61.17323511 | AM39: -8.100146432 | AO39: -0,361291275145312+0,241965216073879j | AP39: -7.233577339 | AQ39: 146.1888547 | AR39: 1 | AS39: -0,369162272542797+0,518686581573459j | AT39: -3.92205659 | AU39: 125.4404137
V40: Phase Regler+Strecke | W40: =INDEX(AD2:AU52,W38,14) -> -133.7969131 | X40: [°] | AD40: 3.7 | AE40: 5011.872336 | AF40: 5011,87233627275j | AG40: =IMPRODUCT(VS_LR,Drehzahlregelkreis!AS40,IMEXP(IMPRODUCT(AF40,TT_LR,-1)),IMDIV(1,AF40)) -> -0,000114613311171311+0,000194454492856998j | AH40: -72.92866374 | AI40: 120.5154983 | AK40: 1133,20157639608-128,110387354915j | AL40: 61.14129753 | AM40: -6.450000964 | AO40: -0,104968344492491+0,235039293533036j | AP40: -11.78736621 | AQ40: 114.0654974 | AR40: 1 | AS40: -0,0452007305540435+0,27447436054129j | AT40: -11.11375312 | AU40: 99.35159498
V41: Punkt auf Nulldurchgang | W41: -90 | X41: [°] | AD41: 3.8 | AE41: 6309.573445 | AF41: 6309,57344480197j | AG41: =IMPRODUCT(VS_LR,Drehzahlregelkreis!AS41,IMEXP(IMPRODUCT(AF41,TT_LR,-1)),IMDIV(1,AF41)) -> 1,74163555132616E-06+0,000121196758578968j | AH41: -78.32928315 | AI41: 89.17669829 | AK41: 1133,20157639608-101,761697837473j | AL41: 61.12102476 | AM41: -5.131407117 | AO41: 0,0143068120776644+0,137163126085065j | AP41: -17.20825839 | AQ41: 84.04529117 | AR41: 1 | AS41: 0,0318100431097224+0,130926815781917j | AT41: -17.41034608 | AU41: 76.34398952
V42: 180°-Durchgang Phase Regler+Strecke | W42: =MATCH(0,AR55:AR104,-1) -> 37 | X42: [Zeile] | AD42: 3.9 | AE42: 7943.282347 | AF42: 7943,28234724286j | AG42: =IMPRODUCT(VS_LR,Drehzahlregelkreis!AS42,IMEXP(IMPRODUCT(AF42,TT_LR,-1)),IMDIV(1,AF42)) -> 0,0000319645475119279+0,0000536776368559574j | AH42: -84.08599112 | AI42: 59.22658387 | AK42: 1133,20157639608-80,8321898057854j | AL42: 61.10818465 | AM42: -4.080044032 | AO42: 0,0405611565599709+0,0582438183308471j | AP42: -22.97780648 | AQ42: 55.14653984 | AR42: 1 | AS42: 0,0419815792426966+0,0536236150123653j | AT42: -23.33674398 | AU42: 51.94283924
V43: f der Zeile | W43: =INDEX(AD3:AU52,W42,2) -> 3981.071706 | X43: [1/s] | AD43: 4 | AE43: 10000 | AF43: 10000j | AG43: =IMPRODUCT(VS_LR,Drehzahlregelkreis!AS43,IMEXP(IMPRODUCT(AF43,TT_LR,-1)),IMDIV(1,AF43)) -> 0,0000278816068681845+0,0000151383731747797j | AH43: -89.97162773 | AI43: 28.49983464 | AK43: 1133,20157639608-64,2072906373283j | AL43: 61.1000635 | AM43: -3.242916035 | AO43: 0,0325674747816919+0,0153646259101112j | AP43: -28.87156422 | AQ43: 25.25691861 | AR43: 1 | AS43: 0,0317546713406086+0,0144075110124978j | AT43: -29.15089453 | AU43: 24.40441911
V44: Maxwert ω | W44: =W32 -> 100000 | X44: [1/s] | AD44: 4.1 | AE44: 12589.25412 | AF44: 12589,2541179417j | AG44: =IMPRODUCT(VS_LR,Drehzahlregelkreis!AS44,IMEXP(IMPRODUCT(AF44,TT_LR,-1)),IMDIV(1,AF44)) -> 0,000015955119881559-1,42023408256398E-06j | AH44: -95.90772265 | AI44: -5.086737887 | AK44: 1133,20157639608-51,0016638283777j | AL44: 61.09493158 | AM44: -2.576954958 | AO44: 0,0180079327001346-0,00242314916175368j | AP44: -34.81279106 | AQ44: -7.663692845 | AR44: 1 | AS44: 0,0176949489751386-0,00233816612279626j | AT44: -34.96783891 | AU44: -7.52731281
AD45: 4.2 | AE45: 15848.93192 | AF45: 15848,9319246112j | AG45: =IMPRODUCT(VS_LR,Drehzahlregelkreis!AS45,IMEXP(IMPRODUCT(AF45,TT_LR,-1)),IMDIV(1,AF45)) -> 0,0000058463693408147-5,55772835414467E-06j | AH45: -101.8663001 | AI45: -43.55013692 | AK45: 1133,20157639608-40,5120615967963j | AL45: 61.09169044 | AM45: -2.047457472 | AO45: 0,00639995991978356-0,00653487500695064j | AP45: -40.77460969 | AQ45: -45.59759439 | AR45: 1 | AS45: 0,0064011541909247-0,00645175330186846j | AT45: -40.83020501 | AU45: -45.2255599
AD46: 4.3 | AE46: 19952.62315 | AF46: 19952,6231496889j | AG46: =IMPRODUCT(VS_LR,Drehzahlregelkreis!AS46,IMEXP(IMPRODUCT(AF46,TT_LR,-1)),IMDIV(1,AF46)) -> 6,75731575145575E-08-4,05680271849041E-06j | AH46: -107.8351175 | AI46: -89.04572665 | AK46: 1133,20157639608-32,1798743732245j | AL46: 61.08964417 | AM46: -1.626608765 | AO46: -0,0000539733932204198-0,00459934973144106j | AP46: -46.74547329 | AQ46: -90.67233541 | AR46: 1 | AS46: -0,0000328193105243506-0,00459974894298652j | AT46: -46.74509635 | AU46: -90.40879972
AD47: 4.4 | AE47: 25118.86432 | AF47: 25118,8643150959j | AG47: =IMPRODUCT(VS_LR,Drehzahlregelkreis!AS47,IMEXP(IMPRODUCT(AF47,TT_LR,-1)),IMDIV(1,AF47)) -> -1,65150346066236E-06-1,19771301062198E-06j | AH47: -113.807 | AI47: -144.0494069 | AK47: 1133,20157639608-25,5613828045326j | AL47: 61.08835257 | AM47: -1.292189374 | AO47: -0,00190210152580065-0,00131503555954592j | AP47: -52.7186474 | AQ47: -145.3415963 | AR47: 1 | AS47: -0,00190398718973339-0,00132005023998094j | AT47: -52.70211777 | AU47: -145.2661067
AD48: 4.5 | AE48: 31622.7766 | AF48: 31622,7766016838j | AG48: =IMPRODUCT(VS_LR,Drehzahlregelkreis!AS48,IMEXP(IMPRODUCT(AF48,TT_LR,-1)),IMDIV(1,AF48)) -> -8,74644622344498E-07+5,36484498696717E-07j | AH48: -119.7764636 | AI48: 148.4761188 | AK48: 1133,20157639608-20,3041280802361j | AL48: 61.08753742 | AM48: -1.026486728 | AO48: -0,00098025581485254+0,000625703976071953j | AP48: -58.68892613 | AQ48: 147.4496321 | AR48: 1 | AS48: -0,000980825000269524+0,000626932236144452j | AT48: -58.68040926 | AU48: 147.4137467
AD49: 4.6 | AE49: 39810.71706 | AF49: 39810,7170553497j | AG49: =IMPRODUCT(VS_LR,Drehzahlregelkreis!AS49,IMEXP(IMPRODUCT(AF49,TT_LR,-1)),IMDIV(1,AF49)) -> 2,19057466674314E-07+4,67744061528212E-07j | AH49: -125.738619 | AI49: 64.90500897 | AK49: 1133,20157639608-16,1281422155897j | AL49: 61.08702302 | AM49: -0.8153995843 | AO49: 0,000255780109301489+0,000526515317897765j | AP49: -64.65159601 | AQ49: 64.08960939 | AR49: 1 | AS49: 0,000255991708258077+0,000526245931100337j | AT49: -64.65381861 | AU49: 64.05945
AD50: 4.7 | AE50: 50118.72336 | AF50: 50118,7233627272j | AG50: =IMPRODUCT(VS_LR,Drehzahlregelkreis!AS50,IMEXP(IMPRODUCT(AF50,TT_LR,-1)),IMDIV(1,AF50)) -> 2,01581391344701E-07-0,0000001647421805172j | AH50: -131.689302 | AI50: -39.25737551 | AK50: 1133,20157639608-12,8110387354916j | AL50: 61.08669842 | AM50: -0.6477110494 | AO50: 0,000226321831987955-0,00018926856567389j | AP50: -70.60260354 | AQ50: -39.90508656 | AR50: 1 | AS50: 0,00022630642028363-0,000189182916758018j | AT50: -70.60456927 | AU50: -39.89424473
AD51: 4.8 | AE51: 63095.73445 | AF51: 63095,7344480192j | AG51: =IMPRODUCT(VS_LR,Drehzahlregelkreis!AS51,IMEXP(IMPRODUCT(AF51,TT_LR,-1)),IMDIV(1,AF51)) -> -1,29270100019316E-07-2,36737489379915E-08j | AH51: -137.6267736 | AI51: -169.6221928 | AK51: 1133,20157639608-10,1761697837474j | AL51: 61.0864936 | AM51: -0.5145032628 | AO51: -0,000146729989211379-0,0000255116551299784j | AP51: -76.54027997 | AQ51: -170.1366961 | AR51: 1 | AS51: -0,000146750870929501-0,000025519143411225j | AT51: -76.5390054 | AU51: -170.1352342
AD52: 4.9 | AE52: 79432.82347 | AF52: 79432,823472428j | AG52: =IMPRODUCT(VS_LR,Drehzahlregelkreis!AS52,IMEXP(IMPRODUCT(AF52,TT_LR,-1)),IMDIV(1,AF52)) -> 5,92798293924148E-08+2,99301881115015E-08j | AH52: -143.5556985 | AI52: 26.78905783 | AK52: 1133,20157639608-8,08321898057866j | AL52: 61.08636437 | AM52: -0.4086885224 | AO52: 0,0000674179283806103+0,0000334377645076745j | AP52: -82.4693341 | AQ52: 26.38036931 | AR52: 1 | AS52: 0,0000674145013679367+0,0000334332563165735j | AT52: -82.46991967 | AU52: 26.37845359
AR53: 1
AD54: ωx | AE54: ω | AF54: s=jω | AG54: Strecke H(jω) | AH54: Betrag Strecke [dB] | AI54: Phase Strecke [°] | AK54: Regler H(jw) | AL54: Betrag Regler [dB] | AM54: Phase Regler [°] | AO54: Regler+Strecke H(jw) | AP54: Betrag Regler+Strecke [dB] | AQ54: Phase Regler+Strecke [°] | AR54: 1 | AS54: Geschlossener Kreis | AT54: Betrag Kreis [dB] | AU54: Phase Kreis [°]
AE55: =10^AD3 -> 1 | AI55: =IMARGUMENT(AG3)*180/PI() -> -90.00716198 | AM55: =IF(IMARGUMENT(AK3)*180/PI()>0,"",IMARGUMENT(AK3)*180/PI()) -> -89.89887815 | AQ55: =AI3+AM3 -> -179.9060401 | AR55: =IF(AQ55<0,1,0) -> 1 | AU55: =IMARGUMENT(AS3)*180/PI() -> -1.46338233e-07
AE56: 1.258925412 | AI56: -90.0090164 | AM56: =IF(AM3="","",IF(IMARGUMENT(AK4)*180/PI()>0,"",IMARGUMENT(AK4)*180/PI())) -> -89.87269521 | AQ56: -179.8817116 | AR56: =IF(AR55=0,0,IF(AQ56<0,1,0)) -> 1 | AU56: -2.919828559e-07
AE57: 1.584893192 | AI57: -90.01135098 | AM57: -89.83973292 | AQ57: -179.8510839 | AR57: 1 | AU57: -5.825814224e-07
AE58: 1.995262315 | AI58: -90.01429005 | AM58: -89.79823601 | AQ58: -179.8125261 | AR58: 1 | AU58: -1.162399701e-06
AE59: 2.511886432 | AI59: -90.01799013 | AM59: -89.7459948 | AQ59: -179.7639849 | AR59: 1 | AU59: -2.319282653e-06
AE60: 3.16227766 | AI60: -90.02264829 | AM60: -89.68022762 | AQ60: -179.7028759 | AR60: 1 | AU60: -4.627546709e-06
AE61: 3.981071706 | AI61: -90.02851261 | AM61: -89.59743287 | AQ61: -179.6259455 | AR61: 1 | AU61: -9.233072905e-06
AE62: 5.011872336 | AI62: -90.03589546 | AM62: -89.49320289 | AQ62: -179.5290983 | AR62: 1 | AU62: -1.842209678e-05
AE63: 6.309573445 | AI63: -90.04519012 | AM63: -89.36198997 | AQ63: -179.4071801 | AR63: 1 | AU63: -3.675594898e-05
AE64: 7.943282347 | AI64: -90.05689182 | AM64: -89.19681237 | AQ64: -179.2537042 | AR64: 1 | AU64: -7.333470376e-05
AE65: 10 | AI65: -90.07162422 | AM65: -88.98888542 | AQ65: -179.0605096 | AR65: 1 | AU65: -0.0001463123075
AE66: 12.58925412 | AI66: -90.09017286 | AM66: -88.72715944 | AQ66: -178.8173323 | AR66: 1 | AU66: -0.0002919008801
AE67: 15.84893192 | AI67: -90.11352752 | AM67: -88.39774281 | AQ67: -178.5112703 | AR67: 1 | AU67: -0.0005823222315
AE68: 19.95262315 | AI68: -90.14293586 | AM68: -87.98318512 | AQ68: -178.126121 | AR68: 1 | AU68: -0.001161580264
AE69: 25.11886432 | AI69: -90.17997189 | AM69: -87.46159343 | AQ69: -177.6415653 | AR69: 1 | AU69: -0.002316692352
AE70: 31.6227766 | AI70: -90.22662365 | AM70: -86.80555705 | AQ70: -177.0321807 | AR70: 1 | AU70: -0.004619360394
AE71: 39.81071706 | AI71: -90.28540694 | AM71: -85.98086766 | AQ71: -176.2662746 | AR71: 1 | AU71: -0.009207210184
AE72: 50.11872336 | AI72: -90.35951485 | AM72: -84.94505312 | AQ72: -175.304568 | AR72: 1 | AU72: -0.01834043494
AE73: 63.09573445 | AI73: -90.45301879 | AM73: -83.64581509 | AQ73: -174.0988339 | AR73: 1 | AU73: -0.03649832606
AE74: 79.43282347 | AI74: -90.57114714 | AM74: -82.01960793 | AQ74: -172.5907551 | AR74: 1 | AU74: -0.07252308217
AE75: 100 | AI75: -90.72068642 | AM75: -79.9908801 | AQ75: -170.7115665 | AR75: 1 | AU75: -0.1437608362
AE76: 125.8925412 | AI76: -90.91058641 | AM76: -77.47299864 | AQ76: -168.3835851 | AR76: 1 | AU76: -0.2839065456
AE77: 158.4893192 | AI77: -91.15291852 | AM77: -74.37265487 | AQ77: -165.5255734 | AR77: 1 | AU77: -0.5574016466
AE78: 199.5262315 | AI78: -91.46446672 | AM78: -70.60048613 | AQ78: -162.0649528 | AR78: 1 | AU78: -1.084490662
AE79: 251.1886432 | AI79: -91.86947128 | AM79: -66.09106354 | AQ79: -157.9605348 | AR79: 1 | AU79: -2.080903716
AE80: 316.227766 | AI80: -92.40448413 | AM80: -60.83350727 | AQ80: -153.2379914 | AR80: 1 | AU80: -3.909714193
AE81: 398.1071706 | AI81: -93.12704713 | AM81: -54.90721163 | AQ81: -148.0342588 | AR81: 1 | AU81: -7.118575694
AE82: 501.1872336 | AI82: -94.13108276 | AM82: -48.50560462 | AQ82: -142.6366874 | AR82: 1 | AU82: -12.37698259
AE83: 630.9573445 | AI83: -95.57342413 | AM83: -41.92389418 | AQ83: -137.4973183 | AR83: 1 | AU83: -20.16257816
AE84: 794.3282347 | AI84: -97.7172061 | AM84: -35.500572 | AQ84: -133.2177781 | AR84: 1 | AU84: -30.20637454
AE85: 1000 | AI85: -100.9974355 | AM85: -29.53592507 | AQ85: -130.5333605 | AR85: 1 | AU85: -41.36993348
AE86: 1258.925412 | AI86: -106.110579 | AM86: -24.23093779 | AQ86: -130.3415168 | AR86: 1 | AU86: -52.68520784
AE87: =10^AD35 -> 1584.893192 | AI87: =IMARGUMENT(AG35)*180/PI() -> -114.1248959 | AM87: -19.67201717 | AQ87: =AI35+AM35 -> -133.7969131 | AR87: 1 | AU87: =IMARGUMENT(AS35)*180/PI() -> -64.71792493
AE88: 1995.262315 | AI88: -126.5958655 | AM88: =IF(AM35="","",IF(IMARGUMENT(AK36)*180/PI()>0,"",IMARGUMENT(AK36)*180/PI())) -> -15.85311922 | AQ88: -142.4489848 | AR88: =IF(AR87=0,0,IF(AQ88<0,1,0)) -> 1 | AU88: -80.83480146
AE89: 2511.886432 | AI89: -145.5461317 | AM89: -12.71134666 | AQ89: -158.2574783 | AR89: 1 | AU89: -113.4832895
AE90: 3162.27766 | AI90: -172.5331501 | AM90: -10.15817611 | AQ90: -182.6913262 | AR90: 1 | AU90: 172.8994272
AE91: 3981.071706 | AI91: 154.2890011 | AM91: -8.100146432 | AQ91: 146.1888547 | AR91: 0 | AU91: 125.4404137
AE92: 5011.872336 | AI92: 120.5154983 | AM92: -6.450000964 | AQ92: 114.0654974 | AR92: 0 | AU92: 99.35159498
AE93: 6309.573445 | AI93: 89.17669829 | AM93: -5.131407117 | AQ93: 84.04529117 | AR93: 0 | AU93: 76.34398952
AE94: 7943.282347 | AI94: 59.22658387 | AM94: -4.080044032 | AQ94: 55.14653984 | AR94: 0 | AU94: 51.94283924
AE95: 10000 | AI95: 28.49983464 | AM95: -3.242916035 | AQ95: 25.25691861 | AR95: 0 | AU95: 24.40441911
AE96: 12589.25412 | AI96: -5.086737887 | AM96: -2.576954958 | AQ96: -7.663692845 | AR96: 0 | AU96: -7.52731281
AE97: 15848.93192 | AI97: -43.55013692 | AM97: -2.047457472 | AQ97: -45.59759439 | AR97: 0 | AU97: -45.2255599
AE98: 19952.62315 | AI98: -89.04572665 | AM98: -1.626608765 | AQ98: -90.67233541 | AR98: 0 | AU98: -90.40879972
AE99: 25118.86432 | AI99: -144.0494069 | AM99: -1.292189374 | AQ99: -145.3415963 | AR99: 0 | AU99: -145.2661067
AE100: 31622.7766 | AI100: 148.4761188 | AM100: -1.026486728 | AQ100: 147.4496321 | AR100: 0 | AU100: 147.4137467
AE101: 39810.71706 | AI101: 64.90500897 | AM101: -0.8153995843 | AQ101: 64.08960939 | AR101: 0 | AU101: 64.05945
AE102: 50118.72336 | AI102: -39.25737551 | AM102: -0.6477110494 | AQ102: -39.90508656 | AR102: 0 | AU102: -39.89424473
AE103: 63095.73445 | AI103: -169.6221928 | AM103: -0.5145032628 | AQ103: -170.1366961 | AR103: 0 | AU103: -170.1352342
AE104: 79432.82347 | AI104: 26.78905783 | AM104: -0.4086885224 | AQ104: 26.38036931 | AR104: 0 | AU104: 26.37845359

Sheet Drehzahlregelkreis
V2: Funktion | W2: gewählt | X2: [ ] | Y2: umgerechnet | Z2: [ ] | AA2: ω | AB2: [ ] | AD2: ωx | AE2: ω | AF2: s=jω | AG2: Strecke H(jω) | AH2: Betrag Strecke [dB] | AI2: Phase Strecke [°] | AK2: Regler H(jw) | AL2: Betrag Regler [dB] | AM2: Phase Regler [°] | AO2: Regler+Strecke H(jw) | AP2: Betrag Regler+Strecke [dB] | AQ2: Phase Regler+Strecke [°] | AR2: Anzeigen? | AS2: Geschlossener Kreis | AT2: Betrag Kreis [dB] | AU2: Phase Kreis [°]
V3: Reglertyp: | Y3: =LEFT(W3,3) ->  | AD3: =$W$34 -> 0 | AE3: =10^AD3 -> 1 | AF3: =COMPLEX(0,AE3,"j") -> j | AG3: =IMPRODUCT(VS_DR,Stromregelkreis!AS3,IMDIV(1,IMPRODUCT(AF3,JM_EMS+JL_EMS)),IMEXP(IMPRODUCT(AF3,TT_DR,-1))) -> -0,215886658769088-1454,39432534429j | AH3: =20*LOG10(IMABS(AG3)) -> 63.25364352 | AI3: =IMARGUMENT(AG3)*180/PI() -> -90.00850484 | AK3: =IMPRODUCT(KP_DR,IMSUM(1,IMDIV(1,IMPRODUCT(TN_DR,AF3)))) -> 2,31603007518798-3900,68223189557j | AL3: =20*LOG10(IMABS(AK3)) -> 71.82281297 | AM3: =IF(IMARGUMENT(AK3)*180/PI()>0,"",IMARGUMENT(AK3)*180/PI()) -> -89.96598063 | AO3: =IMPRODUCT(AK3,AG3) -> -5673130,60304021-2526,31574471622j | AP3: =20*LOG10(IMABS(AO3)) -> 135.0764565 | AQ3: =AI3+AM3 -> -179.9744855 | AR3: 1 | AS3: =IMDIV(AO3,IMSUM(1,AO3)) -> 1,00000017626951-7,84950250186524E-11j | AT3: =20*LOG10(IMABS(AS3)) -> 1.531057376e-06 | AU3: =IMARGUMENT(AS3)*180/PI() -> -4.497432854e-09
V4: Motortyp: | AD4: =AD3+$W$36 -> 0.1 | AE4: 1.258925412 | AF4: 1,25892541179417j | AG4: =IMPRODUCT(VS_DR,Stromregelkreis!AS4,IMDIV(1,IMPRODUCT(AF4,JM_EMS+JL_EMS)),IMEXP(IMPRODUCT(AF4,TT_DR,-1))) -> -0,215886657390478-1155,26646622104j | AH4: 61.2536435 | AI4: -90.01070696 | AK4: 2,31603007518798-3098,42203148197j | AL4: 69.82281387 | AM4: =IF(AM3="","",IF(IMARGUMENT(AK4)*180/PI()>0,"",IMARGUMENT(AK4)*180/PI())) -> -89.95717216 | AO4: -3579503,57117158-2006,72390506241j | AP4: 131.0764574 | AQ4: -179.9678791 | AR4: 1 | AS4: 1,00000027936834-1,56618164653296E-10j | AT4: 2.426562231e-06 | AU4: -8.973557323e-09
V5: Abtastzeit | W5: 62.5 | X5: [µs] | Y5: =W5/1000000 -> 6.25e-05 | Z5: [s] | AA5: =1/Y5 -> 16000 | AB5: [1/s] | AD5: 0.2 | AE5: 1.584893192 | AF5: 1,58489319246111j | AG5: =IMPRODUCT(VS_DR,Stromregelkreis!AS5,IMDIV(1,IMPRODUCT(AF5,JM_EMS+JL_EMS)),IMEXP(IMPRODUCT(AF5,TT_DR,-1))) -> -0,215886655205528-917,660759124543j | AH5: 59.25364346 | AI5: -90.01347927 | AK5: 2,31603007518798-2461,16410269791j | AL5: 67.82281529 | AM5: -89.94608295 | AO5: -2258514,21881183-1593,99743090891j | AP5: 127.0764587 | AQ5: -179.9595622 | AR5: 1 | AS5: 1,00000044276894-3,12494319555038E-10j | AT5: 3.845841296e-06 | AU5: -1.79045977e-08
V6: Totzeit Drehzahlregler | W6: =W5/2*1.55 -> 48.4375 | X6: [µs] | Y6: =W6/1000000 -> 4.84375e-05 | Z6: [s] | AA6: =1/TT_DR -> 20645.16129 | AB6: [1/s] | AD6: 0.3 | AE6: 1.995262315 | AF6: 1,99526231496888j | AG6: =IMPRODUCT(VS_DR,Stromregelkreis!AS6,IMDIV(1,IMPRODUCT(AF6,JM_EMS+JL_EMS)),IMEXP(IMPRODUCT(AF6,TT_DR,-1))) -> -0,215886651742618-728,923833718315j | AH6: 57.25364339 | AI6: -90.01696939 | AK6: 2,31603007518798-1954,97213706278j | AL6: 65.82281754 | AM6: -89.93212247 | AO6: -1425026,28496027-1266,15713249235j | AP6: 123.0764609 | AQ6: -179.9490919 | AR6: 1 | AS6: 1,00000070174138-6,23508132255236E-10j | AT6: 6.095246042e-06 | AU6: -3.57243594e-08
V7: Reglernennstrom | X7: [A] | Y7: =W7 -> 0 | AD7: 0.4 | AE7: 2.511886432 | AF7: 2,51188643150958j | AG7: =IMPRODUCT(VS_DR,Stromregelkreis!AS7,IMDIV(1,IMPRODUCT(AF7,JM_EMS+JL_EMS)),IMEXP(IMPRODUCT(AF7,TT_DR,-1))) -> -0,215886646254276-579,004760491798j | AH7: 55.25364329 | AI7: -90.0213632 | AK7: 2,31603007518798-1552,88956656824j | AL7: 63.8228211 | AM7: -89.91454727 | AO7: -899130,951561022-1005,74431844634j | AP7: 119.0764644 | AQ7: -179.9359105 | AR7: 1 | AS7: 1,00000111218489-1,2440622571393E-09j | AT7: 9.660309839e-06 | AU7: -7.127943751e-08
V8: interner Faktor | W8: 1 | X8: [s/rad] | Z8: [1] | AD8: 0.5 | AE8: 3.16227766 | AF8: 3,16227766016838j | AG8: =IMPRODUCT(VS_DR,Stromregelkreis!AS8,IMDIV(1,IMPRODUCT(AF8,JM_EMS+JL_EMS)),IMEXP(IMPRODUCT(AF8,TT_DR,-1))) -> -0,215886637555838-459,919802113008j | AH8: 53.25364313 | AI8: -90.02689467 | AK8: 2,31603007518798-1233,5040281339j | AL8: 61.82282675 | AM8: -89.89242144 | AO8: -567313,428524887-798,891056822821j | AP8: 115.0764699 | AQ8: -179.9193161 | AR8: 1 | AS8: 1,00000176269365-2,48223046861244E-09j | AT8: 1.531054902e-05 | AU8: -1.422210789e-07
AD9: 0.6 | AE9: 3.981071706 | AF9: 3,98107170553497j | AG9: =IMPRODUCT(VS_DR,Stromregelkreis!AS9,IMDIV(1,IMPRODUCT(AF9,JM_EMS+JL_EMS)),IMEXP(IMPRODUCT(AF9,TT_DR,-1))) -> -0,215886623769744-365,327250302784j | AH9: 51.25364288 | AI9: -90.03385839 | AK9: 2,31603007518798-979,807077192896j | AL9: 59.82283571 | AM9: -89.8645667 | AO9: -357950,725338002-634,5816571461j | AP9: 111.0764786 | AQ9: -179.8984251 | AR9: 1 | AS9: 1,00000279367963-4,95270068723247E-09j | AT9: 2.426555906e-05 | AU9: -2.837680538e-07
V10: KT Faktor | W10: =KT_M -> 0.7 | X10: [Nm/A] | Y10: =W10 -> 0.7 | AD10: 0.7 | AE10: 5.011872336 | AF10: 5,01187233627272j | AG10: =IMPRODUCT(VS_DR,Stromregelkreis!AS10,IMDIV(1,IMPRODUCT(AF10,JM_EMS+JL_EMS)),IMEXP(IMPRODUCT(AF10,TT_DR,-1))) -> -0,215886601920262-290,189706743748j | AH10: 49.25364248 | AI10: -90.04262518 | AK10: 2,31603007518798-778,28842599699j | AL10: 57.8228499 | AM10: -89.82949977 | AO10: -225851,790101983-504,066044726141j | AP10: 107.0764924 | AQ10: -179.8721249 | AR10: 1 | AS10: 1,00000442767997-9,88193633145655E-09j | AT10: 3.845825443e-05 | AU10: -5.661907383e-07
V11: Trägheitsmoment Motor | W11: =JM_EMS*10000 -> 0.813 | X11: [kgcm^2] | Y11: =JM_EMS -> 8.13e-05 | Z11: [kgm^2] | AD11: 0.8 | AE11: 6.309573445 | AF11: 6,30957344480193j | AG11: =IMPRODUCT(VS_DR,Stromregelkreis!AS11,IMDIV(1,IMPRODUCT(AF11,JM_EMS+JL_EMS)),IMEXP(IMPRODUCT(AF11,TT_DR,-1))) -> -0,215886567291175-230,505823250949j | AH11: 47.25364184 | AI11: -90.05366192 | AK11: 2,31603007518798-618,21647152853j | AL11: 55.82287239 | AM11: -89.7853533 | AO11: -142502,996716763-400,393787274006j | AP11: 103.0765142 | AQ11: -179.8390152 | AR11: 1 | AS11: 1,00000701739013-1,97170529263882E-08j | AT11: 6.095206236e-05 | AU11: -1.12969599e-06
V12: Trägheitsmoment Last | W12: =JL_EMS*10000 -> 4 | X12: [kgcm^2] | Y12: =JL_EMS -> 0.0004 | Z12: [kgm^2] | AD12: 0.9 | AE12: 7.943282347 | AF12: 7,94328234724281j | AG12: =IMPRODUCT(VS_DR,Stromregelkreis!AS12,IMDIV(1,IMPRODUCT(AF12,JM_EMS+JL_EMS)),IMEXP(IMPRODUCT(AF12,TT_DR,-1))) -> -0,215886512407791-183,097215390026j | AH12: 45.25364083 | AI12: -90.06755635 | AK12: 2,31603007518798-491,066798506732j | AL12: 53.82290804 | AM12: -89.72977655 | AO12: -89913,4633767332-318,043959037594j | AP12: 99.07654887 | AQ12: -179.7973329 | AR12: 1 | AS12: 1,00001112178946-3,93406855968951E-08j | AT12: 9.660209864e-05 | AU12: -2.254030179e-06
AD13: 1 | AE13: 10 | AF13: 10j | AG13: =IMPRODUCT(VS_DR,Stromregelkreis!AS13,IMDIV(1,IMPRODUCT(AF13,JM_EMS+JL_EMS)),IMEXP(IMPRODUCT(AF13,TT_DR,-1))) -> -0,215886425423543-145,439201916048j | AH13: 43.25363922 | AI13: -90.0850484 | AK13: 2,31603007518798-390,068223189554j | AL13: 51.82296454 | AM13: -89.65981031 | AO13: -56731,7110729537-252,631131373199j | AP13: 95.07660377 | AQ13: -179.7448587 | AR13: 1 | AS13: 1,00001762678716-7,84949650621341E-08j | AT13: 0.0001531029786 | AU13: -4.497350937e-06
AD14: 1.1 | AE14: 12.58925412 | AF14: 12,5892541179417j | AG14: =IMPRODUCT(VS_DR,Stromregelkreis!AS14,IMDIV(1,IMPRODUCT(AF14,JM_EMS+JL_EMS)),IMEXP(IMPRODUCT(AF14,TT_DR,-1))) -> -0,215886287562929-115,526356290936j | AH14: 41.25363668 | AI14: -90.10706958 | AK14: 2,31603007518798-309,842203148197j | AL14: 49.82305409 | AM14: -89.57172949 | AO14: -35795,440754002-200,671832678707j | AP14: 91.07669077 | AQ14: -179.6787991 | AR14: 1 | AS14: 1,00002793642113-1,56617975012042E-07j | AT14: 0.0002426492816 | AU14: -8.973298282e-06
AD15: 1.2 | AE15: 15.84893192 | AF15: 15,8489319246111j | AG15: =IMPRODUCT(VS_DR,Stromregelkreis!AS15,IMDIV(1,IMPRODUCT(AF15,JM_EMS+JL_EMS)),IMEXP(IMPRODUCT(AF15,TT_DR,-1))) -> -0,215886069068914-91,7657104075165j | AH15: 39.25363266 | AI15: -90.13479259 | AK15: 2,31603007518798-246,116410269791j | AL15: 47.82319601 | AM15: -89.46084525 | AO15: -22585,5472299839-159,399040828302j | AP15: 87.07682867 | AQ15: -179.5956378 | AR15: 1 | AS15: 1,00004427585723-3,12493719831581E-07j | AT15: 0.0003845666965 | AU15: -1.790377857e-05
V16: Verstärkung der Stecke | W16: =W8*W10 -> 0.7 | X16: [Nm*s/rad] | AD16: 1.3 | AE16: 19.95262315 | AF16: 19,9526231496888j | AG16: =IMPRODUCT(VS_DR,Stromregelkreis!AS16,IMDIV(1,IMPRODUCT(AF16,JM_EMS+JL_EMS)),IMEXP(IMPRODUCT(AF16,TT_DR,-1))) -> -0,215885722780069-72,891923229069j | AH16: 37.25362628 | AI16: -90.16969376 | AK16: 2,31603007518798-195,497213706278j | AL16: 45.82342092 | AM16: -89.3212561 | AO16: -14250,6678908017-126,614829154348j | AP16: 83.0770472 | AQ16: -179.4909499 | AR16: 1 | AS16: 1,000070171534-6,23506235848686E-07j | AT16: 0.0006094808179 | AU16: -3.572176916e-05
V17: Summenzeitkonstante T_Ersatz_I+T_s | W17: =1/Stromregelkreis!W39+TT_DR -> 0.0001484375 | X17: [s] | Y17: =W17*1000 -> 0.1484375 | Z17: [ms] | AA17: =1/W17 -> 6736.842105 | AB17: [1/s] | AD17: 1.4 | AE17: 25.11886432 | AF17: 25,1188643150958j | AG17: =IMPRODUCT(VS_DR,Stromregelkreis!AS17,IMDIV(1,IMPRODUCT(AF17,JM_EMS+JL_EMS)),IMEXP(IMPRODUCT(AF17,TT_DR,-1))) -> -0,215885173951323-57,8998967651435j | AH17: 35.25361616 | AI17: -90.21363168 | AK17: 2,31603007518798-155,288956656824j | AL17: 43.82377737 | AM17: -89.14553543 | AO17: -8991,71455575261-100,573318837774j | AP17: 79.07739353 | AQ17: -179.3591671 | AR17: 1 | AS17: 1,00011121194816-1,24405625959055E-06j | AT17: 0.0009659210049 | AU17: -7.127124694e-05
AD18: 1.5 | AE18: 31.6227766 | AF18: 31,6227766016838j | AG18: =IMPRODUCT(VS_DR,Stromregelkreis!AS18,IMDIV(1,IMPRODUCT(AF18,JM_EMS+JL_EMS)),IMEXP(IMPRODUCT(AF18,TT_DR,-1))) -> -0,215884304121623-45,9912509386612j | AH18: 33.25360014 | AI18: -90.26894612 | AK18: 2,31603007518798-123,35040281339j | AL18: 41.82434223 | AM18: -88.92433948 | AO18: -5673,53932371667-79,8877044949662j | AP18: 75.07794237 | AQ18: -179.1932856 | AR18: 1 | AS18: 1,00017625293449-2,48221150060915E-06j | AT18: 0.001530778666 | AU18: -0.0001421951805
V19: Reglereinstellung: | AD19: 1.6 | AE19: 39.81071706 | AF19: 39,8107170553498j | AG19: =IMPRODUCT(VS_DR,Stromregelkreis!AS19,IMDIV(1,IMPRODUCT(AF19,JM_EMS+JL_EMS)),IMEXP(IMPRODUCT(AF19,TT_DR,-1))) -> -0,215882925547622-36,5318069359155j | AH19: 31.25357474 | AI19: -90.33858266 | AK19: 2,31603007518798-97,9807077192891j | AL19: 39.82523733 | AM19: -88.64591668 | AO19: -3579,91228919372-63,4564017348745j | AP19: 71.07881206 | AQ19: -178.9844993 | AR19: 1 | AS19: 1,00027932668992-4,95264069593076E-06j | AT19: 0.00242586212 | AU19: -0.0002836861682
V20: P-Anteil | W20: =B7 -> 0 | X20: [1] | Y20: =W20 -> 0 | Z20: [1] | AD20: 1.7 | AE20: 50.11872336 | AF20: 50,1187233627273j | AG20: =IMPRODUCT(VS_DR,Stromregelkreis!AS20,IMDIV(1,IMPRODUCT(AF20,JM_EMS+JL_EMS)),IMEXP(IMPRODUCT(AF20,TT_DR,-1))) -> -0,215880740688158-29,0178148730157j | AH20: 29.25353448 | AI20: -90.42624943 | AK20: 2,31603007518798-77,828842599699j | AL20: 37.82665558 | AM20: -88.29549567 | AO20: -2258,92293262723-50,4043837748163j | AP20: 67.08019006 | AQ20: -178.7217451 | AR20: 1 | AS20: 1,0004426643187-9,88174657375065E-06j | AT20: 0.003844083086 | AU20: -0.000565931855
V21: Nachstellzeit Drehzahlregler | W21: =TN_DR*1000 -> 0.59375 | X21: [ms] | Y21: =TN_DR -> 0.00059375 | Z21: [s] | AA21: =1/Y21 -> 1684.210526 | AB21: [1/s] | AD21: 1.8 | AE21: 63.09573445 | AF21: 63,0957344480194j | AG21: =IMPRODUCT(VS_DR,Stromregelkreis!AS21,IMDIV(1,IMPRODUCT(AF21,JM_EMS+JL_EMS)),IMEXP(IMPRODUCT(AF21,TT_DR,-1))) -> -0,215877278002367-23,0491272792698j | AH21: 27.25347067 | AI21: -90.53661447 | AK21: 2,31603007518798-61,8216471528528j | AL21: 35.82890242 | AM21: -87.85452626 | AO21: -1425,43499210862-40,0365830766439j | AP21: 63.08237309 | AQ21: -178.3911407 | AR21: 1 | AS21: 1,0007014785695-0,0000197164526143879j | AT21: 0.006090831081 | AU21: -0.001128877638
AD22: 1.9 | AE22: 79.43282347 | AF22: 79,4328234724283j | AG22: =IMPRODUCT(VS_DR,Stromregelkreis!AS22,IMDIV(1,IMPRODUCT(AF22,JM_EMS+JL_EMS)),IMEXP(IMPRODUCT(AF22,TT_DR,-1))) -> -0,215871790223954-18,3078897884863j | AH22: 25.25336955 | AI22: -90.67555406 | AK22: 2,31603007518798-49,1066798506729j | AL22: 33.83246103 | AM22: -87.2997464 | AO22: -899,539648143144-31,8008764720418j | AP22: 59.08583059 | AQ22: -177.9753005 | AR22: 1 | AS22: 1,00111152467695-0,0000393387860182061j | AT22: 0.0096492257 | AU22: -0.002251443873
AD23: 2 | AE23: 100 | AF23: 100j | AG23: =IMPRODUCT(VS_DR,Stromregelkreis!AS23,IMDIV(1,IMPRODUCT(AF23,JM_EMS+JL_EMS)),IMEXP(IMPRODUCT(AF23,TT_DR,-1))) -> -0,215863093205565-14,5416142414164j | AH23: 23.25320929 | AI23: -90.85046513 | AK23: 2,31603007518798-39,0068223189556j | AL23: 31.83809509 | AM23: -86.60205238 | AO23: -567,722108361711-25,2586826030126j | AP23: 55.09130439 | AQ23: -177.4525175 | AR23: 1 | AS23: 1,00176103500772-0,0000784889519158892j | AT23: 0.01528272965 | AU23: -0.004489180071
V24: errechnete Standardwerte: | AD24: 2.1 | AE24: 125.8925412 | AF24: 125,892541179417j | AG24: =IMPRODUCT(VS_DR,Stromregelkreis!AS24,IMDIV(1,IMPRODUCT(AF24,JM_EMS+JL_EMS)),IMEXP(IMPRODUCT(AF24,TT_DR,-1))) -> -0,215849310677049-11,5497327835432j | AH24: 21.25295531 | AI24: -91.0706581 | AK24: 2,31603007518798-30,9842203148197j | AL24: 29.84700953 | AM24: -85.72516504 | AO24: -358,359378637835-20,061605890251j | AP24: 51.09996484 | AQ24: -176.7958231 | AR24: 1 | AS24: 1,00278951227698-0,000156598928899482j | AT24: 0.02419577031 | AU24: -0.008947498472
V25: P-Anteil | W25: =(JM_EMS+JL_EMS)/(2*VS_DR*(W17)) -> 2.316030075 | X25: [1] | Y25: =W25 -> 2.316030075 | Z25: [1] | AD25: 2.2 | AE25: 158.4893192 | AF25: 158,489319246112j | AG25: =IMPRODUCT(VS_DR,Stromregelkreis!AS25,IMDIV(1,IMPRODUCT(AF25,JM_EMS+JL_EMS)),IMEXP(IMPRODUCT(AF25,TT_DR,-1))) -> -0,215827470148269-9,17291692132622j | AH25: 19.25255281 | AI25: -91.34785064 | AK25: 2,31603007518798-24,6116410269789j | AL25: 27.86110059 | AM25: -84.62412453 | AO25: -226,260401349897-15,9328832479421j | AP25: 47.11365339 | AQ25: -175.9719752 | AR25: 1 | AS25: 1,00441720795212-0,000312433335647308j | AT25: 0.03828331136 | AU25: -0.01782238575
V26: Nachstellzeit Drehzahlregler | W26: =4*Y17 -> 0.59375 | X26: [ms] | Y26: =W26/1000 -> 0.00059375 | Z26: [s] | AA26: =1/Y26 -> 1684.210526 | AB26: [1/s] | AD26: 2.3 | AE26: 199.5262315 | AF26: 199,526231496888j | AG26: =IMPRODUCT(VS_DR,Stromregelkreis!AS26,IMDIV(1,IMPRODUCT(AF26,JM_EMS+JL_EMS)),IMEXP(IMPRODUCT(AF26,TT_DR,-1))) -> -0,215792863546807-7,28459275050561j | AH26: 17.25191495 | AI26: -91.69678746 | AK26: 2,31603007518798-19,5497213706278j | AL26: 25.88334018 | AM26: -83.24373374 | AO26: -142,911541332865-12,6526455395573j | AP26: 43.13525513 | AQ26: -174.9405212 | AR26: 1 | AS26: 1,00699106931826-0,000623314504201556j | AT26: 0.06051404301 | AU26: -0.03546534515
AD27: 2.4 | AE27: 251.1886432 | AF27: 251,188643150959j | AG27: =IMPRODUCT(VS_DR,Stromregelkreis!AS27,IMDIV(1,IMPRODUCT(AF27,JM_EMS+JL_EMS)),IMEXP(IMPRODUCT(AF27,TT_DR,-1))) -> -0,215738036628403-5,78420053693786j | AH27: 15.25090422 | AI27: -92.13601721 | AK27: 2,31603007518798-15,5288956656824j | AL27: 23.91835592 | AM27: -81.51724801 | AO27: -90,3219024286855-10,0462089425449j | AP27: 39.16926013 | AQ27: -173.6532652 | AR27: 1 | AS27: 1,01105560959446-0,00124344601887297j | AT27: 0.09550743091 | AU27: -0.07046513796
AD28: 2.5 | AE28: 316.227766 | AF28: 316,227766016839j | AG28: =IMPRODUCT(VS_DR,Stromregelkreis!AS28,IMDIV(1,IMPRODUCT(AF28,JM_EMS+JL_EMS)),IMEXP(IMPRODUCT(AF28,TT_DR,-1))) -> -0,215651194148966-4,59183974875862j | AH28: 13.24930279 | AI28: -92.68886368 | AK28: 2,31603007518798-12,335040281339j | AL28: 21.97328022 | AM28: -79.36594137 | AO28: -57,1399829177903-7,97477279202223j | AP28: 35.22258301 | AQ28: -172.054805 | AR28: 1 | AS28: 1,01746029165319-0,00248026186649488j | AT28: 0.1503751883 | AU28: -0.1396695839
AD29: 2.6 | AE29: 398.1071706 | AF29: 398,107170553498j | AG29: =IMPRODUCT(VS_DR,Stromregelkreis!AS29,IMDIV(1,IMPRODUCT(AF29,JM_EMS+JL_EMS)),IMEXP(IMPRODUCT(AF29,TT_DR,-1))) -> -0,215513689386519-3,64401446888288j | AH29: 11.24676591 | AI29: -93.3846348 | AK29: 2,31603007518798-9,79807077192891j | AL29: 20.05893107 | AM29: -76.70075158 | AO29: -36,2034478462813-6,32802872342428j | AP29: 31.30569698 | AQ29: -170.0853864 | AR29: 1 | AS29: 1,0275171683529-0,00494637435755689j | AT29: 0.2358823821 | AU29: -0.27581455
V30: Bodediagramm: | AD30: 2.7 | AE30: 501.1872336 | AF30: 501,187233627274j | AG30: =IMPRODUCT(VS_DR,Stromregelkreis!AS30,IMDIV(1,IMPRODUCT(AF30,JM_EMS+JL_EMS)),IMEXP(IMPRODUCT(AF30,TT_DR,-1))) -> -0,215296088196483-2,89025281438034j | AH30: 9.242748261 | AI30: -94.26011762 | AK30: 2,31603007518798-7,78288425996988j | AL30: 18.19131046 | AM30: -73.4280517 | AO30: -22,9931353517078-5,01828790694407j | AP30: 27.43405872 | AQ30: -167.6881693 | AR30: 1 | AS30: 1,04321860319308-0,00986141313143865j | AT30: 0.3678945146 | AU30: -0.5415936049
V31: untere Grenze von f | W31: 1 | X31: [1/s] | AD31: 2.8 | AE31: 630.9573445 | AF31: 630,957344480195j | AG31: =IMPRODUCT(VS_DR,Stromregelkreis!AS31,IMDIV(1,IMPRODUCT(AF31,JM_EMS+JL_EMS)),IMEXP(IMPRODUCT(AF31,TT_DR,-1))) -> -0,214952037939015-2,29042072545887j | AH31: 7.236388316 | AI31: -95.36140677 | AK31: 2,31603007518798-6,18216471528526j | AL31: 16.39318675 | AM31: -69.46249646 | AO31: -14,6575935766796-3,97581438057138j | AP31: 23.62957506 | AQ31: -164.8239032 | AR31: 1 | AS31: 1,06749925185098-0,019649471532464j | AT31: 0.5688228055 | AU31: -1.054525014
C32: KP_LR | D32: TN_LR | G32: KP_VDR | H32: KP_DR | I32: TN_DR | O32: KP_VSR | P32: KP_SR | Q32: TN_SR | V32: obere Grenze von f | W32: 100000 | X32: [1/s] | AD32: 2.9 | AE32: 794.3282347 | AF32: 794,328234724284j | AG32: =IMPRODUCT(VS_DR,Stromregelkreis!AS32,IMDIV(1,IMPRODUCT(AF32,JM_EMS+JL_EMS)),IMEXP(IMPRODUCT(AF32,TT_DR,-1))) -> -0,21440881607286-1,81258783564859j | AH32: 5.226327523 | AI32: -96.74610045 | AK32: 2,31603007518798-4,91066798506729j | AL32: 14.6950767 | AM32: -64.74991701 | AO32: -9,39759432105213-3,14511743247685j | AP32: 19.92140422 | AQ32: -161.4960175 | AR32: 1 | AS32: 1,104432942596-0,0391128525296979j | AT32: 0.8682304694 | AU32: -2.028249175
C33: =KP_LR -> 1133.201576 | D33: =ROUND(TN_LR*1000,2)&" ms" -> 1,76 ms | G33: =KP_VDR -> 1 | H33: =KP_DR -> 2.316030075 | I33: =ROUND(TN_DR*1000,2)&" ms" -> 0,59 ms | J33: ="= "&ROUND(1/TN_DR,0)&" Hz" -> = 1684 Hz | O33: =KP_VSR -> 1 | P33: =KP_SR -> 70.19354839 | Q33: =ROUND(TN_SR*1000,2)&" ms" -> 2,34 ms | V33: feste Anzahl der Intervalle von f | W33: 50 | X33: [1] | AD33: 3 | AE33: 1000 | AF33: 1000j | AG33: =IMPRODUCT(VS_DR,Stromregelkreis!AS33,IMDIV(1,IMPRODUCT(AF33,JM_EMS+JL_EMS)),IMEXP(IMPRODUCT(AF33,TT_DR,-1))) -> -0,213553006162165-1,43133323781408j | AH33: 3.210429829 | AI33: -98.48585746 | AK33: 2,31603007518798-3,90068223189557j | AL33: 13.13430961 | AM33: -59.30027745 | AO33: -6,07777131358132-2,48200840968896j | AP33: 16.34473944 | AQ33: -157.7861349 | AR33: 1 | AS33: 1,15895789772072-0,0776984260543703j | AT33: 1.300829164 | AU33: -3.835463031
V34: untere Grenze für Exponent von ω | W34: =LOG10(W31) -> 0 | X34: [1] | AD34: 3.1 | AE34: 1258.925412 | AF34: 1258,92541179417j | AG34: =IMPRODUCT(VS_DR,Stromregelkreis!AS34,IMDIV(1,IMPRODUCT(AF34,JM_EMS+JL_EMS)),IMEXP(IMPRODUCT(AF34,TT_DR,-1))) -> -0,212209395958268-1,12640367318494j | AH34: 1.185352284 | AI34: -100.6692137 | AK34: 2,31603007518798-3,09842203148197j | AL34: 11.75053922 | AM34: -53.22236486 | AO34: -3,98155730061526-1,95127051617396j | AP34: 12.9358915 | AQ34: -153.8915785 | AR34: 1 | AS34: 1,2348211619422-0,153677948693783j | AT34: 1.898832226 | AU34: -7.094189947
V35: obere Grenze für Exponent von ω | W35: =LOG10(W32) -> 5 | X35: [1] | AD35: 3.2 | AE35: =10^AD35 -> 1584.893192 | AF35: =COMPLEX(0,AE35,"j") -> 1584,89319246112j | AG35: =IMPRODUCT(VS_DR,Stromregelkreis!AS35,IMDIV(1,IMPRODUCT(AF35,JM_EMS+JL_EMS)),IMEXP(IMPRODUCT(AF35,TT_DR,-1))) -> -0,210111373702895-0,881657659566418j | AH35: =20*LOG10(IMABS(AG35)) -> -0.8540986884 | AI35: =IMARGUMENT(AG35)*180/PI() -> -103.4043595 | AK35: =IMPRODUCT(KP_DR,IMSUM(1,IMDIV(1,IMPRODUCT(TN_DR,AF35)))) -> 2,31603007518798-2,46116410269789j | AL35: =20*LOG10(IMABS(AK35)) -> 10.57716454 | AM35: -46.74014494 | AO35: =IMPRODUCT(AK35,AG35) -> -2,65652844322847-1,52482708504956j | AP35: =20*LOG10(IMABS(AO35)) -> 9.723065848 | AQ35: =AI35+AM35 -> -150.1445044 | AR35: 1 | AS35: =IMDIV(AO35,IMSUM(1,AO35)) -> 1,32678403529819-0,300803255157721j | AT35: =20*LOG10(IMABS(AS35)) -> 2.673685189 | AU35: =IMARGUMENT(AS35)*180/PI() -> -12.77393453
V36: Schrittweite Exponent von ω | W36: =ABS((W35-W34)/W33) -> 0.1 | X36: [1] | AD36: =AD35+$W$36 -> 3.3 | AE36: 1995.262315 | AF36: 1995,26231496889j | AG36: =IMPRODUCT(VS_DR,Stromregelkreis!AS36,IMDIV(1,IMPRODUCT(AF36,JM_EMS+JL_EMS)),IMEXP(IMPRODUCT(AF36,TT_DR,-1))) -> -0,206862982106128-0,684247733473345j | AH36: -2.915899326 | AI36: -106.8212095 | AK36: 2,31603007518798-1,95497213706278j | AL36: 9.631222506 | AM36: =IF(AM35="","",IF(IMARGUMENT(AK36)*180/PI()>0,"",IMARGUMENT(AK36)*180/PI())) -> -40.16787278 | AO36: -1,81678614178961-1,18032696339628j | AP36: 6.71532318 | AQ36: -146.9890823 | AR36: 1 | AS36: 1,39643821065441-0,572887669630052j | AT36: 3.575994647 | AU36: -22.30585183
AD37: 3.4 | AE37: 2511.886432 | AF37: 2511,88643150959j | AG37: =IMPRODUCT(VS_DR,Stromregelkreis!AS37,IMDIV(1,IMPRODUCT(AF37,JM_EMS+JL_EMS)),IMEXP(IMPRODUCT(AF37,TT_DR,-1))) -> -0,201898846596357-0,524009766563833j | AH37: -5.012080189 | AI37: -111.0714724 | AK37: 2,31603007518798-1,55288956656824j | AL37: 8.90726165 | AM37: -33.84170606 | AO37: -1,28133310013976-0,900095766672425j | AP37: 3.895181461 | AQ37: -144.9131785 | AR37: 1 | AS37: 1,31634605983591-1,01211606142451j | AT37: 4.404597437 | AU37: -37.55607028
V38: Nulldurchgang Betrag Regler+Strecke | W38: =MATCH(-0.5,AP3:AP52,-1)+1 -> 37 | X38: [Zeile] | AD38: 3.5 | AE38: 3162.27766 | AF38: 3162,2776601684j | AG38: =IMPRODUCT(VS_DR,Stromregelkreis!AS38,IMDIV(1,IMPRODUCT(AF38,JM_EMS+JL_EMS)),IMEXP(IMPRODUCT(AF38,TT_DR,-1))) -> -0,194462456714563-0,393040687642483j | AH38: -7.160283285 | AI38: -116.324557 | AK38: 2,31603007518798-1,2335040281339j | AL38: 8.379372169 | AM38: -28.03950295 | AO38: -0,935198169673389-0,670423829674328j | AP38: 1.219088885 | AQ38: -144.3640599 | AR38: 1 | AS38: 0,857160042899888-1,47778713327868j | AT38: 4.651713269 | AU38: -59.88500469
V39: ω der Zeile | W39: =INDEX(AD2:AU52,W38,2) -> 3162.27766 | X39: [1/s] | Y39: =1/W39 -> 0.000316227766 | Z39: [s] | AD39: 3.6 | AE39: 3981.071706 | AF39: 3981,07170553499j | AG39: =IMPRODUCT(VS_DR,Stromregelkreis!AS39,IMDIV(1,IMPRODUCT(AF39,JM_EMS+JL_EMS)),IMEXP(IMPRODUCT(AF39,TT_DR,-1))) -> -0,183648816938768-0,285444172799849j | AH39: -9.385276775 | AI39: -122.7563824 | AK39: 2,31603007518798-0,979807077192891j | AL39: 8.009930437 | AM39: -22.9310135 | AO39: -0,705016403955641-0,481156878436898j | AP39: -1.375346338 | AQ39: -145.6873959 | AR39: 1 | AS39: 0,0739141362399375-1,51056733101973j | AT39: 3.593187555 | AU39: -87.19867303
V40: Phase Regler+Strecke | W40: =INDEX(AD2:AU52,W38,14) -> -144.3640599 | X40: [°] | AD40: 3.7 | AE40: 5011.872336 | AF40: 5011,87233627275j | AG40: =IMPRODUCT(VS_DR,Stromregelkreis!AS40,IMDIV(1,IMPRODUCT(AF40,JM_EMS+JL_EMS)),IMEXP(IMPRODUCT(AF40,TT_DR,-1))) -> -0,168585379110807-0,197187921601824j | AH40: -11.71958437 | AI40: -130.5287146 | AK40: 2,31603007518798-0,778288425996983j | AL40: 7.759545571 | AM40: -18.57462299 | AO40: -0,543917885386696-0,325485107539379j | AP40: -3.9600388 | AQ40: -149.1033376 | AR40: 1 | AS40: -0,45271542426975-1,03673707199296j | AT40: 1.071336261 | AU40: -113.5896101
V41: Punkt auf Nulldurchgang | W41: -90 | X41: [°] | AD41: 3.8 | AE41: 6309.573445 | AF41: 6309,57344480197j | AG41: =IMPRODUCT(VS_DR,Stromregelkreis!AS41,IMDIV(1,IMPRODUCT(AF41,JM_EMS+JL_EMS)),IMEXP(IMPRODUCT(AF41,TT_DR,-1))) -> -0,148812286413626-0,125930256442498j | AH41: -14.20176106 | AI41: -139.7609116 | AK41: 2,31603007518798-0,618216471528523j | AL41: 7.593797488 | AM41: -14.94546929 | AO41: -0,422505889688009-0,199660054670236j | AP41: -6.607963576 | AQ41: -154.7063809 | AR41: 1 | AS41: -0,546733890783292-0,534760385741871j | AT41: -2.329283154 | AU41: -135.6343106
V42: 180°-Durchgang Phase Regler+Strecke | W42: =MATCH(0,AR55:AR104,-1) -> 43 | X42: [Zeile] | AD42: 3.9 | AE42: 7943.282347 | AF42: 7943,28234724286j | AG42: =IMPRODUCT(VS_DR,Stromregelkreis!AS42,IMDIV(1,IMPRODUCT(AF42,JM_EMS+JL_EMS)),IMEXP(IMPRODUCT(AF42,TT_DR,-1))) -> -0,124790806592345-0,0705865200966207j | AH42: -16.87078246 | AI42: -150.505816 | AK42: 2,31603007518798-0,491066798506727j | AL42: 7.485866124 | AM42: -11.97110625 | AO42: -0,323681957616416-0,102199881570259j | AP42: -9.384916337 | AQ42: -162.4769223 | AR42: 1 | AS42: -0,445584538944665-0,218445405003923j | AT42: -6.085991124 | AU42: -153.8838469
V43: f der Zeile | W43: =INDEX(AD3:AU52,W42,2) -> 15848.93192 | X43: [1/s] | AD43: 4 | AE43: 10000 | AF43: 10000j | AG43: =IMPRODUCT(VS_DR,Stromregelkreis!AS43,IMDIV(1,IMPRODUCT(AF43,JM_EMS+JL_EMS)),IMEXP(IMPRODUCT(AF43,TT_DR,-1))) -> -0,0982168140637768-0,0304921636150728j | AH43: -19.75665639 | AI43: -162.7526432 | AK43: 2,31603007518798-0,390068223189556j | AL43: 7.416359515 | AM43: -9.560096481 | AO43: -0,23936711934339-0,0323095098408648j | AP43: -12.34029688 | AQ43: -172.3127397 | AR43: 1 | AS43: -0,312326836731189-0,0557438915987898j | AT43: -9.971627726 | AU43: -169.880441
V44: Maxwert f | W44: =W32 -> 100000 | X44: [1/s] | AD44: 4.1 | AE44: 12589.25412 | AF44: 12589,2541179417j | AG44: =IMPRODUCT(VS_DR,Stromregelkreis!AS44,IMDIV(1,IMPRODUCT(AF44,JM_EMS+JL_EMS)),IMEXP(IMPRODUCT(AF44,TT_DR,-1))) -> -0,0717198813368258-0,00441497210725143j | AH44: -22.87078246 | AI44: -176.4773998 | AK44: 2,31603007518798-0,309842203148197j | AL44: 7.371924439 | AM44: -7.619876903 | AO44: -0,16747334684955+0,011996637861419j | AP44: -15.49885802 | AQ44: -184.0972767 | AR44: 1 | AS44: -0,200913380598042+0,0173050590938421j | AT44: -13.90772265 | AU44: 175.0771531
AD45: 4.2 | AE45: 15848.93192 | AF45: 15848,9319246112j | AG45: =IMPRODUCT(VS_DR,Stromregelkreis!AS45,IMDIV(1,IMPRODUCT(AF45,JM_EMS+JL_EMS)),IMEXP(IMPRODUCT(AF45,TT_DR,-1))) -> -0,0479444965271475+0,0099591988681526j | AH45: -26.20176106 | AI45: 168.2652023 | AK45: 2,31603007518798-0,246116410269789j | AL45: 7.343652055 | AM45: -6.065857278 | AO45: -0,108589773622027+0,0348657314808734j | AP45: -18.85810901 | AQ45: 162.199345 | AR45: 1 | AS45: -0,120104392109896+0,0438106472308871j | AT45: -17.86630013 | AU45: 159.9594767
AD46: 4.3 | AE46: 19952.62315 | AF46: 19952,6231496889j | AG46: =IMPRODUCT(VS_DR,Stromregelkreis!AS46,IMDIV(1,IMPRODUCT(AF46,JM_EMS+JL_EMS)),IMEXP(IMPRODUCT(AF46,TT_DR,-1))) -> -0,0286330039725642+0,0157114380400203j | AH46: -29.71958437 | AI46: 151.245641 | AK46: 2,31603007518798-0,195497213706277j | AL46: 7.325718218 | AM46: -4.824926618 | AO46: -0,0632433559832928+0,0419858355218166j | AP46: -22.39386615 | AQ46: 146.4207144 | AR46: 1 | AS46: -0,0653729150546981+0,0477504720853489j | AT46: -21.83511746 | AU46: 143.8544104
AD47: 4.4 | AE47: 25118.86432 | AF47: 25118,8643150959j | AG47: =IMPRODUCT(VS_DR,Stromregelkreis!AS47,IMDIV(1,IMPRODUCT(AF47,JM_EMS+JL_EMS)),IMEXP(IMPRODUCT(AF47,TT_DR,-1))) -> -0,0143290197520573+0,0159160173656162j | AH47: -33.38527677 | AI47: 131.9963682 | AK47: 2,31603007518798-0,155288956656824j | AL47: 7.314364509 | AM47: -3.835919299 | AO47: -0,0307148589628889+0,0390871134231933j | AP47: -26.07091227 | AQ47: 128.160449 | AR47: 1 | AS47: -0,0300131868297615+0,0415360151068882j | AT47: -25.80699997 | AU47: 125.851207
AD48: 4.5 | AE48: 31622.7766 | AF48: 31622,7766016838j | AG48: =IMPRODUCT(VS_DR,Stromregelkreis!AS48,IMDIV(1,IMPRODUCT(AF48,JM_EMS+JL_EMS)),IMEXP(IMPRODUCT(AF48,TT_DR,-1))) -> -0,00469431707366554+0,0130483721753265j | AH48: -37.16028328 | AI48: 109.786837 | AK48: 2,31603007518798-0,12335040281339j | AL48: 7.307185501 | AM48: -3.048659201 | AO48: -0,00926265756119226+0,0307994682922726j | AP48: -29.85309778 | AQ48: 106.7381778 | AR48: 1 | AS48: -0,00837473523812874+0,0313477693373749j | AT48: -29.77646355 | AU48: 104.9575733
AD49: 4.6 | AE49: 39810.71706 | AF49: 39810,7170553497j | AG49: =IMPRODUCT(VS_DR,Stromregelkreis!AS49,IMDIV(1,IMPRODUCT(AF49,JM_EMS+JL_EMS)),IMEXP(IMPRODUCT(AF49,TT_DR,-1))) -> 0,000989762186564285+0,00884491682392819j | AH49: -41.01208019 | AI49: 83.61506102 | AK49: 2,31603007518798-0,0979807077192896j | AL49: 7.302649739 | AM49: -2.422479538 | AO49: 0,00315895020149344+0,0203881157772405j | AP49: -33.70943045 | AQ49: 81.19258148 | AR49: 1 | AS49: 0,0035605933768478+0,0202515483544828j | AT49: -33.73861903 | AU49: 80.02826731
AD50: 4.7 | AE50: 50118.72336 | AF50: 50118,7233627272j | AG50: =IMPRODUCT(VS_DR,Stromregelkreis!AS50,IMDIV(1,IMPRODUCT(AF50,JM_EMS+JL_EMS)),IMEXP(IMPRODUCT(AF50,TT_DR,-1))) -> 0,00348085850722505+0,00448606064889245j | AH50: -44.91589933 | AI50: 52.19112448 | AK50: 2,31603007518798-0,077828842599699j | AL50: 7.299785427 | AM50: -1.924667058 | AO50: 0,00841091789834251+0,0101189401930816j | AP50: -37.6161139 | AQ50: 50.26645742 | AR50: 1 | AS50: 0,00844060651505574+0,00994984288892231j | AT50: -37.68930196 | AU50: 49.6915399
AD51: 4.8 | AE51: 63095.73445 | AF51: 63095,7344480192j | AG51: =IMPRODUCT(VS_DR,Stromregelkreis!AS51,IMDIV(1,IMPRODUCT(AF51,JM_EMS+JL_EMS)),IMEXP(IMPRODUCT(AF51,TT_DR,-1))) -> 0,00350259757371002+0,000866709342129599j | AH51: -48.85409869 | AI51: 13.8985214 | AK51: 2,31603007518798-0,061821647152853j | AL51: 7.297977196 | AM51: -1.529029607 | AO51: 0,00816570272112607+0,0017907885514982j | AP51: -41.55612149 | AQ51: 12.3694918 | AR51: 1 | AS51: 0,00810269370776568+0,001761891260113j | AT51: -41.62677357 | AU51: 12.26771833
AD52: 4.9 | AE52: 79432.82347 | AF52: 79432,823472428j | AG52: =IMPRODUCT(VS_DR,Stromregelkreis!AS52,IMDIV(1,IMPRODUCT(AF52,JM_EMS+JL_EMS)),IMEXP(IMPRODUCT(AF52,TT_DR,-1))) -> 0,001912117375393-0,00125467567855049j | AH52: -52.81464772 | AI52: -33.27171794 | AK52: 2,31603007518798-0,0491066798506732j | AL52: 7.296835892 | AM52: -1.214657794 | AO52: 0,00436690839183669-0,00299976434192015j | AP52: -45.51781182 | AQ52: -34.48637573 | AR52: 1 | AS52: 0,00435680305835444-0,0029737090444797j | AT52: -45.55569847 | AU52: -34.3152497
AR53: 1
AD54: ωx | AE54: ω | AF54: s=jω | AG54: Strecke H(jω) | AH54: Betrag Strecke [dB] | AI54: Phase Strecke [°] | AK54: Regler H(jw) | AL54: Betrag Regler [dB] | AM54: Phase Regler [°] | AO54: Regler+Strecke H(jw) | AP54: Betrag Regler+Strecke [dB] | AQ54: Phase Regler+Strecke [°] | AR54: 1 | AS54: Geschlossener Kreis | AT54: Betrag Kreis [dB] | AU54: Phase Kreis [°]
AE55: =10^AD3 -> 1 | AI55: =IMARGUMENT(AG3)*180/PI() -> -90.00850484 | AM55: =IF(IMARGUMENT(AK3)*180/PI()>0,"",IMARGUMENT(AK3)*180/PI()) -> -89.96598063 | AQ55: =AI3+AM3 -> -179.9744855 | AR55: =IF(AQ55<0,1,0) -> 1 | AU55: =IMARGUMENT(AS3)*180/PI() -> -4.497432854e-09
AE56: 1.258925412 | AI56: -90.01070696 | AM56: =IF(AM3="","",IF(IMARGUMENT(AK4)*180/PI()>0,"",IMARGUMENT(AK4)*180/PI())) -> -89.95717216 | AQ56: -179.9678791 | AR56: =IF(AR55=0,0,IF(AQ56<0,1,0)) -> 1 | AU56: -8.973557323e-09
AE57: 1.584893192 | AI57: -90.01347927 | AM57: -89.94608295 | AQ57: -179.9595622 | AR57: 1 | AU57: -1.79045977e-08
AE58: 1.995262315 | AI58: -90.01696939 | AM58: -89.93212247 | AQ58: -179.9490919 | AR58: 1 | AU58: -3.57243594e-08
AE59: 2.511886432 | AI59: -90.0213632 | AM59: -89.91454727 | AQ59: -179.9359105 | AR59: 1 | AU59: -7.127943751e-08
AE60: 3.16227766 | AI60: -90.02689467 | AM60: -89.89242144 | AQ60: -179.9193161 | AR60: 1 | AU60: -1.422210789e-07
AE61: 3.981071706 | AI61: -90.03385839 | AM61: -89.8645667 | AQ61: -179.8984251 | AR61: 1 | AU61: -2.837680538e-07
AE62: 5.011872336 | AI62: -90.04262518 | AM62: -89.82949977 | AQ62: -179.8721249 | AR62: 1 | AU62: -5.661907383e-07
AE63: 6.309573445 | AI63: -90.05366192 | AM63: -89.7853533 | AQ63: -179.8390152 | AR63: 1 | AU63: -1.12969599e-06
AE64: 7.943282347 | AI64: -90.06755635 | AM64: -89.72977655 | AQ64: -179.7973329 | AR64: 1 | AU64: -2.254030179e-06
AE65: 10 | AI65: -90.0850484 | AM65: -89.65981031 | AQ65: -179.7448587 | AR65: 1 | AU65: -4.497350937e-06
AE66: 12.58925412 | AI66: -90.10706958 | AM66: -89.57172949 | AQ66: -179.6787991 | AR66: 1 | AU66: -8.973298282e-06
AE67: 15.84893192 | AI67: -90.13479259 | AM67: -89.46084525 | AQ67: -179.5956378 | AR67: 1 | AU67: -1.790377857e-05
AE68: 19.95262315 | AI68: -90.16969376 | AM68: -89.3212561 | AQ68: -179.4909499 | AR68: 1 | AU68: -3.572176916e-05
AE69: 25.11886432 | AI69: -90.21363168 | AM69: -89.14553543 | AQ69: -179.3591671 | AR69: 1 | AU69: -7.127124694e-05
AE70: 31.6227766 | AI70: -90.26894612 | AM70: -88.92433948 | AQ70: -179.1932856 | AR70: 1 | AU70: -0.0001421951805
AE71: 39.81071706 | AI71: -90.33858266 | AM71: -88.64591668 | AQ71: -178.9844993 | AR71: 1 | AU71: -0.0002836861682
AE72: 50.11872336 | AI72: -90.42624943 | AM72: -88.29549567 | AQ72: -178.7217451 | AR72: 1 | AU72: -0.000565931855
AE73: 63.09573445 | AI73: -90.53661447 | AM73: -87.85452626 | AQ73: -178.3911407 | AR73: 1 | AU73: -0.001128877638
AE74: 79.43282347 | AI74: -90.67555406 | AM74: -87.2997464 | AQ74: -177.9753005 | AR74: 1 | AU74: -0.002251443873
AE75: 100 | AI75: -90.85046513 | AM75: -86.60205238 | AQ75: -177.4525175 | AR75: 1 | AU75: -0.004489180071
AE76: 125.8925412 | AI76: -91.0706581 | AM76: -85.72516504 | AQ76: -176.7958231 | AR76: 1 | AU76: -0.008947498472
AE77: 158.4893192 | AI77: -91.34785064 | AM77: -84.62412453 | AQ77: -175.9719752 | AR77: 1 | AU77: -0.01782238575
AE78: 199.5262315 | AI78: -91.69678746 | AM78: -83.24373374 | AQ78: -174.9405212 | AR78: 1 | AU78: -0.03546534515
AE79: 251.1886432 | AI79: -92.13601721 | AM79: -81.51724801 | AQ79: -173.6532652 | AR79: 1 | AU79: -0.07046513796
AE80: 316.227766 | AI80: -92.68886368 | AM80: -79.36594137 | AQ80: -172.054805 | AR80: 1 | AU80: -0.1396695839
AE81: 398.1071706 | AI81: -93.3846348 | AM81: -76.70075158 | AQ81: -170.0853864 | AR81: 1 | AU81: -0.27581455
AE82: 501.1872336 | AI82: -94.26011762 | AM82: -73.4280517 | AQ82: -167.6881693 | AR82: 1 | AU82: -0.5415936049
AE83: 630.9573445 | AI83: -95.36140677 | AM83: -69.46249646 | AQ83: -164.8239032 | AR83: 1 | AU83: -1.054525014
AE84: 794.3282347 | AI84: -96.74610045 | AM84: -64.74991701 | AQ84: -161.4960175 | AR84: 1 | AU84: -2.028249175
AE85: 1000 | AI85: -98.48585746 | AM85: -59.30027745 | AQ85: -157.7861349 | AR85: 1 | AU85: -3.835463031
AE86: 1258.925412 | AI86: -100.6692137 | AM86: -53.22236486 | AQ86: -153.8915785 | AR86: 1 | AU86: -7.094189947
AE87: =10^AD35 -> 1584.893192 | AI87: =IMARGUMENT(AG35)*180/PI() -> -103.4043595 | AM87: -46.74014494 | AQ87: =AI35+AM35 -> -150.1445044 | AR87: 1 | AU87: =IMARGUMENT(AS35)*180/PI() -> -12.77393453
AE88: 1995.262315 | AI88: -106.8212095 | AM88: =IF(AM35="","",IF(IMARGUMENT(AK36)*180/PI()>0,"",IMARGUMENT(AK36)*180/PI())) -> -40.16787278 | AQ88: -146.9890823 | AR88: =IF(AR87=0,0,IF(AQ88<0,1,0)) -> 1 | AU88: -22.30585183
AE89: 2511.886432 | AI89: -111.0714724 | AM89: -33.84170606 | AQ89: -144.9131785 | AR89: 1 | AU89: -37.55607028
AE90: 3162.27766 | AI90: -116.324557 | AM90: -28.03950295 | AQ90: -144.3640599 | AR90: 1 | AU90: -59.88500469
AE91: 3981.071706 | AI91: -122.7563824 | AM91: -22.9310135 | AQ91: -145.6873959 | AR91: 1 | AU91: -87.19867303
AE92: 5011.872336 | AI92: -130.5287146 | AM92: -18.57462299 | AQ92: -149.1033376 | AR92: 1 | AU92: -113.5896101
AE93: 6309.573445 | AI93: -139.7609116 | AM93: -14.94546929 | AQ93: -154.7063809 | AR93: 1 | AU93: -135.6343106
AE94: 7943.282347 | AI94: -150.505816 | AM94: -11.97110625 | AQ94: -162.4769223 | AR94: 1 | AU94: -153.8838469
AE95: 10000 | AI95: -162.7526432 | AM95: -9.560096481 | AQ95: -172.3127397 | AR95: 1 | AU95: -169.880441
AE96: 12589.25412 | AI96: -176.4773998 | AM96: -7.619876903 | AQ96: -184.0972767 | AR96: 1 | AU96: 175.0771531
AE97: 15848.93192 | AI97: 168.2652023 | AM97: -6.065857278 | AQ97: 162.199345 | AR97: 0 | AU97: 159.9594767
AE98: 19952.62315 | AI98: 151.245641 | AM98: -4.824926618 | AQ98: 146.4207144 | AR98: 0 | AU98: 143.8544104
AE99: 25118.86432 | AI99: 131.9963682 | AM99: -3.835919299 | AQ99: 128.160449 | AR99: 0 | AU99: 125.851207
AE100: 31622.7766 | AI100: 109.786837 | AM100: -3.048659201 | AQ100: 106.7381778 | AR100: 0 | AU100: 104.9575733
AE101: 39810.71706 | AI101: 83.61506102 | AM101: -2.422479538 | AQ101: 81.19258148 | AR101: 0 | AU101: 80.02826731
AE102: 50118.72336 | AI102: 52.19112448 | AM102: -1.924667058 | AQ102: 50.26645742 | AR102: 0 | AU102: 49.6915399
AE103: 63095.73445 | AI103: 13.8985214 | AM103: -1.529029607 | AQ103: 12.3694918 | AR103: 0 | AU103: 12.26771833
AE104: 79432.82347 | AI104: -33.27171794 | AM104: -1.214657794 | AQ104: -34.48637573 | AR104: 0 | AU104: -34.3152497

Sheet Stromregelkreis
V2: Funktion | W2: gewählt | X2: [ ] | Y2: umgerechnet | Z2: [ ] | AA2: f | AB2: [ ] | AD2: ωx | AE2: ω | AF2: s=jω | AG2: Strecke H(jω) | AH2: Betrag Strecke [dB] | AI2: Phase Strecke [°] | AK2: Regler H(jw) | AL2: Betrag Regler [dB] | AM2: Phase Regler [°] | AO2: Regler+Strecke H(jw) | AP2: Betrag Regler+Strecke [dB] | AQ2: Phase Regler+Strecke [°] | AR2: Anzeigen? | AS2: Geschlossener Kreis | AT2: Betrag Kreis [dB] | AU2: Phase Kreis [°]
AD3: =$W$34 -> 0 | AE3: =10^AD3 -> 1 | AF3: =COMPLEX(0,AE3,"j") -> j | AG3: =IMPRODUCT(VS_SR,IMDIV(1,(IMSUM(1,IMPRODUCT(AF3,T_M)))),IMEXP(IMPRODUCT(AF3,TT_SR,-1))) -> 0,344825650711645-0,000825259284420774j | AH3: =20*LOG10(IMABS(AG3)) -> -9.247983836 | AI3: =IMARGUMENT(AG3)*180/PI() -> -0.1371237425 | AK3: =IMPRODUCT(KP_SR,IMSUM(1,IMDIV(1,IMPRODUCT(TN_SR,AF3)))) -> 70,1935483870968-29935,4838709677j | AL3: =20*LOG10(IMABS(AK3)) -> 89.52374953 | AM3: =IF(IMARGUMENT(AK3)*180/PI()>0,"",IMARGUMENT(AK3)*180/PI()) -> -89.86565152 | AO3: =IMPRODUCT(AK3,AG3) -> -0,499999999804434-10322,5806330519j | AP3: =20*LOG10(IMABS(AO3)) -> 80.27576569 | AQ3: =AI3+AM3 -> -90.00277526 | AR3: 1 | AS3: =IMDIV(1,IMSUM(1,IMPRODUCT(AF3,TE_SR))) -> 0,99999999-0,0000999999989999996j | AT3: =20*LOG10(IMABS(AS3)) -> -4.3429449e-08 | AU3: =IMARGUMENT(AS3)*180/PI() -> -0.005729577932
AD4: =AD3+$W$36 -> 0.1 | AE4: 1.258925412 | AF4: 1,25892541179417j | AG4: 0,344824518663513-0,00103893654270734j | AH4: -9.247997803 | AI4: -0.1726283827 | AK4: 70,1935483870968-23778,6000588429j | AL4: 87.52376349 | AM4: =IF(AM3="","",IF(IMARGUMENT(AK4)*180/PI()>0,"",IMARGUMENT(AK4)*180/PI())) -> -89.83086547 | AO4: -0,499999999690136-8199,51724642517j | AP4: 78.27576569 | AQ4: -90.00349385 | AR4: 1 | AS4: 0,999999984151068-0,000125892539184154j | AT4: -6.883103811e-08 | AU4: -0.007213111244
AD5: =AD4+$W$36 -> 0.2 | AE5: 1.584893192 | AF5: 1,58489319246111j | AG5: 0,344822724503049-0,00130793694720542j | AH5: -9.248019938 | AI5: -0.217325896 | AK5: 70,1935483870968-18888,0134089555j | AL5: 85.52378563 | AM5: -89.7870726 | AO5: -0,499999999508976-6513,10805286155j | AP5: 76.27576569 | AQ5: -90.0043985 | AR5: 1 | AS5: 0,999999974881136-0,000158489315265038j | AT5: -1.090898424e-07 | AU5: -0.009080769015
AD6: 0.3 | AE6: 1.995262315 | AF6: 1,99526231496888j | AG6: 0,344819880987807-0,00164658175632504j | AH6: -9.248055019 | AI6: -0.2735963713 | AK6: 70,1935483870968-15003,2823485842j | AL6: 83.52382071 | AM6: -89.73194101 | AO6: -0,49999999922165-5173,54561328146j | AP6: 74.27576569 | AQ6: -90.00553738 | AR6: 1 | AS6: 0,999999960189285-0,000199526223553605j | AT6: -1.728957399e-07 | AU6: -0.01143201082
V7: Reglernennstrom | W7: =IN_R -> 3 | X7: [A] | Y7: =W7 -> 3 | Z7: [A] | AD7: 0.4 | AE7: 2.511886432 | AF7: 2,51188643150958j | AG7: 0,344815374413954-0,00207289707214377j | AH7: -9.248110618 | AI7: -0.3444359843 | AK7: 70,1935483870968-11917,5307830209j | AL7: 81.52387631 | AM7: -89.66253516 | AO7: -0,499999998766494-4109,49334303811j | AP7: 72.27576569 | AQ7: -90.00697115 | AR7: 1 | AS7: 0,99999993690427-0,000251188627302026j | AT7: -2.740212798e-07 | AU7: -0.01439204881
V8: Abtastzeit Tt | W8: 62.5 | X8: [µs] | Y8: =W8/1000000 -> 6.25e-05 | Z8: [s] | AA8: =1/Y8 -> 16000 | AB8: [1/s] | AD8: 0.5 | AE8: 3.16227766 | AF8: 3,16227766016838j | AG8: 0,344808232212088-0,00260956984068181j | AH8: -9.248198736 | AI8: -0.43361634 | AK8: 70,1935483870968-9466,43118914922j | AL8: 79.52396443 | AM8: -89.57515982 | AO8: -0,499999998044938-3264,2865786548j | AP8: 70.27576569 | AQ8: -90.00877616 | AR8: 1 | AS8: 0,99999990000001-0,000316227734394064j | AT8: -4.342944593e-07 | AU8: -0.01811851575
V9: Totzeit Stromregler | W9: =W8/2*1.55 -> 48.4375 | X9: [µs] | Y9: =W9/1000000 -> 4.84375e-05 | Z9: [s] | AA9: =1/TT_SR -> 20645.16129 | AB9: [1/s] | AD9: 0.6 | AE9: 3.981071706 | AF9: 3,98107170553497j | AG9: 0,34479691317863-0,00328514812378559j | AH9: -9.248338389 | AI9: -0.5458848965 | AK9: 70,1935483870968-7519,45357561574j | AL9: 77.52410408 | AM9: -89.46516363 | AO9: -0,499999996901117-2592,9149778661j | AP9: 68.27576569 | AQ9: -90.01104853 | AR9: 1 | AS9: 0,999999841510706-0,000398107107457771j | AT9: -6.883103131e-07 | AU9: -0.02280985946
V10: UCC | W10: =U_ZWK -> 565 | X10: [V] | Y10: =U_ZWK -> 565 | Z10: [V] | AD10: 0.7 | AE10: 5.011872336 | AF10: 5,01187233627272j | AG10: 0,344778975210602-0,00413554564765924j | AH10: -9.248559716 | AI10: -0.6872169301 | AK10: 70,1935483870968-5972,91428481006j | AL10: 75.52432541 | AM10: -89.32669234 | AO10: -0,499999995088906-2059,6255547611j | AP10: 66.27576569 | AQ10: -90.01390927 | AR10: 1 | AS10: 0,99999974881142-0,00050118710773476j | AT10: -1.09089828e-06 | AU10: -0.02871591083
AD11: 0.8 | AE11: 6.309573445 | AF11: 6,30957344480193j | AG11: 0,344750549191912-0,00520592294784745j | AH11: -9.248910472 | AI11: -0.8651320366 | AK11: 70,1935483870968-4744,45446001264j | AL11: 73.52467616 | AM11: -89.1523787 | AO11: -0,499999992216313-1636,01870290971j | AP11: 64.27576569 | AQ11: -90.01751073 | AR11: 1 | AS11: 0,999999601892988-0,000630957093291647j | AT11: -1.72895713e-06 | AU11: -0.03615118809
V12: Verstärkung der Stecke | Y12: =1/R_M -> 0.3448275862 | Z12: [1] | AD12: 0.9 | AE12: 7.943282347 | AF12: 7,94328234724281j | AG12: 0,34470550639228-0,00655302973926879j | AH12: -9.249466325 | AI12: -1.089091179 | AK12: 70,1935483870968-3768,65413595158j | AL12: 71.52523201 | AM12: -88.93295353 | AO12: -0,499999987663823-1299,53581276064j | AP12: 62.27576569 | AQ12: -90.02204471 | AR12: 1 | AS12: 0,999999369043054-0,00079432773353736j | AT12: -2.740212064e-06 | AU12: -0.04551164583
AD13: 1 | AE13: 10 | AF13: 10j | AG13: 0,344634141977531-0,00824810228811431j | AH13: -9.250347147 | AI13: -1.370993742 | AK13: 70,1935483870968-2993,54838709677j | AL13: 69.52611284 | AM13: -88.6567589 | AO13: -0,499999980448361-1032,25794342238j | AP13: 60.27576569 | AQ13: -90.02775264 | AR13: 1 | AS13: 0,999999000001-0,000999999000000996j | AT13: -4.342942648e-06 | AU13: -0.05729576041
V14: Motortyp: | AD14: 1.1 | AE14: 12.58925412 | AF14: 12,5892541179417j | AG14: 0,344521096273793-0,0103804084973891j | AH14: -9.251742789 | AI14: -1.72579771 | AK14: 70,1935483870968-2377,86000588429j | AL14: 67.52750848 | AM14: -88.3091408 | AO14: -0,499999969012851-819,951573719003j | AP14: 58.27576569 | AQ14: -90.03493851 | AR14: 1 | AS14: 0,999998415109319-0,00125892341653501j | AT14: -6.88309823e-06 | AU14: -0.07213107471
V15: R ph-ph | W15: =R_M -> 2.9 | X15: [Ω] | Y15: =R_M -> 2.9 | Z15: [Ω] | AD15: 1.2 | AE15: 15.84893192 | AF15: 15,8489319246111j | AG15: 0,344342079636722-0,0130615072349987j | AH15: -9.253953815 | AI15: -2.17228933 | AK15: 70,1935483870968-1888,80134089555j | AL15: 65.52971951 | AM15: -87.87169565 | AO15: -0,499999950888689-651,310615284711j | AP15: 56.27576569 | AQ15: -90.04398498 | AR15: 1 | AS15: 0,999997488119878-0,00158488921139939j | AT15: -1.090897046e-05 | AU15: -0.09080761487
V16: L ph-ph | W16: =L_M -> 6.8 | X16: [mH] | Y16: =L_M/1000 -> 0.0068 | Z16: [H] | AD16: 1.3 | AE16: 19.95262315 | AF16: 19,9526231496888j | AG16: 0,344058730367205-0,0164302067290785j | AH16: -9.257455752 | AI16: -2.734029992 | AK16: 70,1935483870968-1500,32823485842j | AL16: 63.53322144 | AM16: -87.32134381 | AO16: -0,499999922163788-517,354322130505j | AP16: 54.27576569 | AQ16: -90.0553738 | AR16: 1 | AS16: 0,999996018944143-0,00199525437171815j | AT16: -1.728954032e-05 | AU16: -0.114319958
V17: Zeitkonstante Anker | W17: =T_M*1000 -> 2.344827586 | X17: [ms] | Y17: =T_M -> 0.002344827586 | Z17: [s] | AA17: =1/T_M -> 426.4705882 | AB17: [1/s] | AD17: 1.4 | AE17: 25.11886432 | AF17: 25,1188643150958j | AG17: 0,343610586496686-0,0206580093263004j | AH17: -9.263000168 | AI17: -3.440504548 | AK17: 70,1935483870968-1191,75307830209j | AL17: 61.53876586 | AM17: -86.62920694 | AO17: -0,499999876637947-410,949033171839j | AP17: 52.27576569 | AQ17: -90.06971149 | AR17: 1 | AS17: 0,999993690466366-0,00251187058267764j | AT17: -2.740204285e-05 | AU17: -0.1439201885
AD18: 1.5 | AE18: 31.6227766 | AF18: 31,6227766016838j | AG18: 0,342902663967901-0,0259544003953062j | AH18: -9.271773004 | AI18: -4.328480494 | AK18: 70,1935483870968-946,643118914922j | AL18: 59.54753869 | AM18: -85.75928107 | AO18: -0,499999804484091-326,428278762815j | AP18: 50.27576569 | AQ18: -90.08776156 | AR18: 1 | AS18: 0,999990000099999-0,00316224603770799j | AT18: -4.342923104e-05 | AU18: -0.1811845596
V19: Reglereinstellung: | AD19: 1.6 | AE19: 39.81071706 | AF19: 39,8107170553498j | AG19: 0,341786516275277-0,0325704624838361j | AH19: -9.285640812 | AI19: -5.443549224 | AK19: 70,1935483870968-751,945357561574j | AL19: 57.5614065 | AM19: -84.66693604 | AO19: -0,499999690128064-259,291020524687j | AP19: 48.27576569 | AQ19: -90.11048526 | AR19: 1 | AS19: 0,99998415131926-0,0039810086108005j | AT19: -6.883049135e-05 | AU19: -0.2280974016
V20: P-Anteil | W20: =KP_SR -> 70.19354839 | X20: [1] | Y20: =KP_SR -> 70.19354839 | Z20: [1] | AD20: 1.7 | AE20: 50.11872336 | AF20: 50,1187233627273j | AG20: 0,340032046015203-0,0407975976584651j | AH20: -9.3075295 | AI20: -6.841735583 | AK20: 70,1935483870968-597,291428481006j | AL20: 55.58329519 | AM20: -83.29735712 | AO20: -0,499999508886294-205,961954639057j | AP20: 46.27576569 | AQ20: -90.1390927 | AR20: 1 | AS20: 0,999974881766627-0,00501174644689373j | AT20: -0.0001090884715 | AU20: -0.287156728
V21: Nachstellzeit Stromregler | W21: =TN_SR*1000 -> 2.344827586 | X21: [ms] | Y21: =TN_SR -> 0.002344827586 | Z21: [s] | AA21: =1/Y21 -> 426.4705882 | AB21: [1/s] | AD21: 1.8 | AE21: 63.09573445 | AF21: 63,0957344480194j | AG21: 0,337287247618999-0,0509550426956106j | AH21: -9.341996324 | AI21: -8.590889367 | AK21: 70,1935483870968-474,445446001261j | AL21: 53.61776201 | AM21: -81.58421797 | AO21: -0,499999221637367-163,601113882155j | AP21: 44.27576569 | AQ21: -90.17510734 | AR21: 1 | AS21: 0,999960190867775-0,00630932226615836j | AT21: -0.0001728923059 | AU21: -0.3615071317
AD22: 1.9 | AE22: 79.43282347 | AF22: 79,4328234724283j | AG22: 0,333024824560594-0,0633546938561096j | AH22: -9.396068353 | AI22: -10.77124688 | AK22: 70,1935483870968-376,865413595155j | AL22: 51.67183404 | AM22: -79.4492002 | AO22: -0,499998766378695-129,952629014221j | AP22: 42.27576569 | AQ22: -90.22044708 | AR22: 1 | AS22: 0,999936908246372-0,00794278119162994j | AT22: -0.0002740126486 | AU22: -0.4551069824
AD23: 2 | AE23: 100 | AF23: 100j | AG23: 0,326481250075596-0,0782244762451104j | AH23: -9.480411132 | AI23: -13.47398962 | AK23: 70,1935483870968-299,354838709677j | AL23: 49.75617682 | AM23: -76.80353681 | AO23: -0,499998044842791-103,22459551648j | AP23: 40.27576569 | AQ23: -90.27752643 | AR23: 1 | AS23: 0,999900009999-0,00999900009998996j | AT23: -0.0004342727686 | AU23: -0.5729386977
V24: errechnete Standardwerte: | AD24: 2.1 | AE24: 125.8925412 | AF24: 125,892541179417j | AG24: 0,316610729978719-0,0955650351142993j | AH24: -9.610818138 | AI24: -16.79579067 | AK24: 70,1935483870968-237,786000588429j | AL24: 47.88658383 | AM24: -73.55359441 | AO24: -0,499996901286764-81,9936481414328j | AP24: 38.27576569 | AQ24: -90.34938508 | AR24: 1 | AS24: 0,999841535795638-0,0125872591718043j | AT24: -0.0006882558287 | AU24: -0.7212730251
V25: P-Anteil | W25: =T_M/(2*VS_SR*TT_SR) -> 70.19354839 | X25: [1] | Y25: =W25 -> 70.19354839 | Z25: [1] | AD25: 2.2 | AE25: 158.4893192 | AF25: 158,489319246112j | AG25: 0,302109619599287-0,114920192084014j | AH25: -9.809798352 | AI25: -20.82643258 | AK25: 70,1935483870968-188,880134089554j | AL25: 46.08556404 | AM25: -69.61341717 | AO25: -0,499995088875906-65,1291615233612j | AP25: 36.27576569 | AQ25: -90.43984975 | AR25: 1 | AS25: 0,999748874436739-0,0158449518526544j | AT25: -0.001090761429 | AU25: -0.9080008877
V26: Nachstellzeit Stromregler | W26: =T_M*1000 -> 2.344827586 | X26: [ms] | Y26: =T_M -> 0.002344827586 | Z26: [s] | AA26: =1/Y26 -> 426.4705882 | AB26: [1/s] | AD26: 2.3 | AE26: 199.5262315 | AF26: 199,526231496888j | AG26: 0,281611066707969-0,135085588492084j | AH26: -10.10759775 | AI26: -25.62649823 | AK26: 70,1935483870968-150,032823485842j | AL26: 44.38336344 | AM26: -64.9272398 | AO26: -0,499992216406163-51,7330402552749j | AP26: 34.27576569 | AQ26: -90.55373803 | AR26: 1 | AS26: 0,999602051255695-0,0199446830283607j | AT26: -0.00172861341 | AU26: -1.143049427
AD27: 2.4 | AE27: 251.1886432 | AF27: 251,188643150959j | AG27: 0,254159507646369-0,153893836699922j | AH27: -10.54135864 | AI27: -31.19494731 | AK27: 70,1935483870968-119,175307830208j | AL27: 42.81712433 | AM27: -59.50216757 | AO27: -0,499987663868861-41,0918920346021j | AP27: 32.27576569 | AQ27: -90.69711488 | AR27: 1 | AS27: 0,99936944051166-0,0251030253768656j | AT27: -0.002739348815 | AU27: -1.438902334
AD28: 2.5 | AE28: 316.227766 | AF28: 316,227766016839j | AG28: 0,219941966920643-0,168368493126544j | AH28: -11.15077717 | AI28: -37.43453527 | AK28: 70,1935483870968-94,6643118914916j | AL28: 41.42654286 | AM28: -53.44308037 | AO28: -0,499980448634224-32,6390369237445j | AP28: 30.27576569 | AQ28: -90.87761564 | AR28: 1 | AS28: 0,999000999000999-0,0315911854162675j | AT28: -0.004340774793 | AU28: -1.811248047
AD29: 2.6 | AE29: 398.1071706 | AF29: 398,107170553498j | AG29: 0,180910081094444-0,175527242926317j | AH29: -11.96964611 | AI29: -44.13479749 | AK29: 70,1935483870968-75,1945357561574j | AL29: 40.2454118 | AM29: -46.97005513 | AO29: -0,49996901338621-25,9243295811076j | AP29: 28.27576569 | AQ29: -91.10485263 | AR29: 1 | AS29: 0,998417614719198-0,0397477211626631j | AT29: -0.006877654943 | AU29: -2.279782172
V30: Bodediagramm: | AD30: 2.7 | AE30: 501.1872336 | AF30: 501,187233627274j | AG30: 0,140645373004818-0,173656412781179j | AH30: -13.01571719 | AI30: -50.99577923 | AK30: 70,1935483870968-59,7291428481006j | AL30: 39.29148288 | AM30: -40.39514782 | AO30: -0,499950890060795-20,5901873884145j | AP30: 26.27576569 | AQ30: -91.39092705 | AR30: 1 | AS30: 0,997494407332714-0,0499931462569758j | AT30: -0.010895306 | AU30: -2.86919057
V31: untere Grenze von f | W31: 1 | AD31: 2.8 | AE31: 630.9573445 | AF31: 630,957344480195j | AG31: 0,10319526214186-0,163212943849952j | AH31: -14.28434088 | AI31: -57.69590638 | AK31: 70,1935483870968-47,4445446001261j | AL31: 38.56010657 | AM31: -34.05516702 | AO31: -0,499922167333136-16,3525478887433j | AP31: 24.27576569 | AQ31: -91.75107341 | AR31: 1 | AS31: 0,996034714380848-0,0628455418395826j | AT31: -0.01725525029 | AU31: -3.610333366
C32: KP_LR | D32: TN_LR | G32: KP_VDR | H32: KP_DR | I32: TN_DR | O32: KP_VSR | P32: KP_SR | Q32: TN_SR | V32: obere Grenze von f | W32: 100000 | AD32: 2.9 | AE32: 794.3282347 | AF32: 794,328234724284j | AG32: 0,0715724355381858-0,146572215564774j | AH32: -15.75019958 | AI32: -63.97335714 | AK32: 70,1935483870968-37,6865413595156j | AL32: 38.02596527 | AM32: -28.23111367 | AO32: -0,499876646905681-12,985741457561j | AP32: 22.27576569 | AQ32: -92.20447081 | AR32: 1 | AS32: 0,993729987658566-0,078934778688941j | AT32: -0.02731604335 | AU32: -4.541629643
C33: =KP_LR -> 1133.201576 | D33: =ROUND(TN_LR*1000,2)&" ms" -> 1,76 ms | G33: =KP_VDR -> 1 | H33: =KP_DR -> 2.316030075 | I33: =ROUND(TN_DR*1000,2)&" ms" -> 0,59 ms | O33: =KP_VSR -> 1 | P33: =KP_SR -> 70.19354839 | Q33: =ROUND(TN_SR*1000,2)&" ms" -> 2,34 ms | R33: ="= "&ROUND(1/TN_SR,0)&" Hz" -> = 426 Hz | V33: feste Anzahl der Intervalle von f | W33: 50 | AD33: 3 | AE33: 1000 | AF33: 1000j | AG33: 0,0469780872566151-0,12685157067554j | AH33: -17.37590166 | AI33: -69.6784424 | AK33: 70,1935483870968-29,9354838709677j | AL33: 37.65166735 | AM33: -23.09682192 | AO33: -0,49980450698408-10,3104736375521j | AP33: 20.27576569 | AQ33: -92.77526432 | AR33: 1 | AS33: 0,99009900990099-0,0990099009900986j | AT33: -0.04321373783 | AU33: -5.710593137
M34: f Ersatz SR = | N34: =ROUND(W39,0)&" Hz" -> 10000 Hz | V34: untere Grenze für Exponent von ω | W34: =LOG10(W31) -> 0 | AD34: 3.1 | AE34: 1258.925412 | AF34: 1258,92541179417j | AG34: 0,0290457894470019-0,106756377853025j | AH34: -19.12197929 | AI34: -74.77964825 | AK34: 70,1935483870968-23,7786000588429j | AL34: 37.39774498 | AM34: -18.71420253 | AO34: -0,499690185708242-8,18427718511112j | AP34: 18.27576569 | AQ34: -93.49385078 | AR34: 1 | AS34: 0,984398337758171-0,123928408273169j | AT34: -0.06829128312 | AU34: -7.175362897
M35: T Ersatz SR = | N35: =ROUND(TE_SR*1000000,0)&" µs" -> 100 µs | V35: obere Grenze für Exponent von ω | W35: =LOG10(W32) -> 5 | AD35: 3.2 | AE35: 1584.893192 | AF35: =COMPLEX(0,AE35,"j") -> 1584,89319246112j | AG35: =IMPRODUCT(VS_SR,IMDIV(1,(IMSUM(1,IMPRODUCT(AF35,T_M)))),IMEXP(IMPRODUCT(AF35,TT_SR,-1))) -> 0,0165777519882255-0,0880537424003721j | AH35: =20*LOG10(IMABS(AG35)) -> -20.95377305 | AI35: =IMARGUMENT(AG35)*180/PI() -> -79.3378105 | AK35: =IMPRODUCT(KP_SR,IMSUM(1,IMDIV(1,IMPRODUCT(TN_SR,AF35)))) -> 70,1935483870968-18,8880134089554j | AL35: =20*LOG10(IMABS(AK35)) -> 37.22953874 | AM35: -15.06068703 | AO35: =IMPRODUCT(AK35,AG35) -> -0,499509030832136-6,49392542968942j | AP35: =20*LOG10(IMABS(AO35)) -> 16.27576569 | AQ35: -94.39849753 | AR35: 1 | AS35: =IMDIV(1,IMSUM(1,IMPRODUCT(AF35,TE_SR))) -> 0,975496632449664-0,154605797203821j | AT35: =20*LOG10(IMABS(AS35)) -> -0.1077422551 | AU35: =IMARGUMENT(AS35)*180/PI() -> -9.005861971
R36: HILFE | V36: Schrittweite Exponent von ω | W36: =ABS((W35-W34)/W33) -> 0.1 | AD36: 3.3 | AE36: 1995.262315 | AF36: 1995,26231496889j | AG36: 0,0081936874152673-0,0716087299765888j | AH36: -22.84418902 | AI36: -83.47243254 | AK36: 70,1935483870968-15,003282348584j | AL36: 37.11995471 | AM36: =IF(AM35="","",IF(IMARGUMENT(AK36)*180/PI()>0,"",IMARGUMENT(AK36)*180/PI())) -> -12.06494777 | AO36: -0,499222000409961-5,14940305831753j | AP36: 14.27576569 | AQ36: -95.53738031 | AR36: 1 | AS36: 0,961713496117745-0,191887069660071j | AT36: -0.1695428928 | AU36: -11.2838292
M37: TM Anker = | N37: =ROUND(T_M*1000,2)&" ms" -> 2,34 ms | AD37: 3.4 | AE37: 2511.886432 | AF37: 2511,88643150959j | AG37: 0,00268342487582864-0,057656776130731j | AH37: -24.77359582 | AI37: -87.33529929 | AK37: 70,1935483870968-11,9175307830208j | AL37: 37.04936151 | AM37: -9.6358495 | AO37: -0,498767290523109-4,07911350373809j | AP37: 12.27576569 | AQ37: -96.97114879 | AR37: 1 | AS37: 0,940649056897232-0,236280360283244j | AT37: -0.265723756 | AU37: -14.10032362
V38: Nulldurchgang Betrag Regler+Strecke | W38: =MATCH(-0.5,AP3:AP52,-1)+1 -> 42 | X38: [Zeile] | AD38: 3.5 | AE38: 3162.27766 | AF38: 3162,2776601684j | AG38: -0,00088111722486973-0,0460784407057838j | AH38: -26.72845679 | AI38: -91.09548295 | AK38: 70,1935483870968-9,46643118914916j | AL38: 37.00422248 | AM38: -7.680673407 | AO38: -0,49804713280319-3,2260682217046j | AP38: 10.27576569 | AQ38: -98.77615636 | AR38: 1 | AS38: 0,909090909090909-0,287479787288035j | AT38: -0.4139268516 | AU38: -17.54840061
V39: f der Zeile | W39: =INDEX(AD2:AU52,W38,2) -> 10000 | X39: [1/s] | Y39: =1/W39 -> 0.0001 | Z39: [s] | AD39: 3.6 | AE39: 3981.071706 | AF39: 3981,07170553499j | AG39: -0,00315906186105484-0,0365932541212957j | AH39: -28.69973267 | AI39: -94.93405867 | AK39: 70,1935483870968-7,51945357561574j | AL39: 36.97549836 | AM39: -6.114467589 | AO39: -0,496907037147577-2,5448559347978j | AP39: 8.27576569 | AQ39: -101.0485263 | AR39: 1 | AS39: 0,86319311139679-0,343643367219446j | AT39: -0.6389203414 | AU39: -21.70785615
V40: Phase Regler+Strecke | W40: =INDEX(AD2:AU52,W38,14) -> -117.7526432 | X40: [°] | AD40: 3.7 | AE40: 5011.872336 | AF40: 5011,87233627275j | AG40: -0,00459655206499036-0,0288728424076427j | AH40: -30.68151074 | AI40: -99.04557025 | AK40: 70,1935483870968-5,97291428481001j | AL40: 36.95727643 | AM40: -4.863700222 | AO40: -0,495103312647388-1,99923244912403j | AP40: 6.27576569 | AQ40: -103.9092705 | AR40: 1 | AS40: 0,799239991086898-0,400568880137129j | AT40: -0.9732279371 | AU40: -26.61944411
V41: Punkt auf Nulldurchgang | W41: -90 | X41: [°] | AD41: 3.8 | AE41: 6309.573445 | AF41: 6309,57344480197j | AG41: -0,00548537019205542-0,0225979705198817j | AH41: -32.66997402 | AI41: -103.6439345 | AK41: 70,1935483870968-4,74445446001261j | AL41: 36.94573971 | AM41: -3.86679954 | AO41: -0,492252640017467-1,56020664806499j | AP41: 4.27576569 | AQ41: -107.5107341 | AR41: 1 | AS41: 0,715252751049198-0,451293976434155j | AT41: -1.455404631 | AU41: -32.25017757
AD42: 3.9 | AE42: 7943.282347 | AF42: 7943,28234724286j | AG42: -0,00601007107314427-0,0174827799808057j | AH42: -34.66267904 | AI42: -108.9714789 | AK42: 70,1935483870968-3,76865413595155j | AL42: 36.93844473 | AM42: -3.073229157 | AO42: -0,487754765765237-1,20452848331648j | AP42: 2.27576569 | AQ42: -112.0447081 | AR42: 1 | AS42: 0,613136820153143-0,487031887996705j | AT42: -2.124426028 | AU42: -38.46110795
V43: Maxwert f | W43: =W32 -> 100000 | X43: [1/s] | AD43: 4 | AE43: 10000 | AF43: 10000j | AG43: -0,00628143055426119-0,0132820927225515j | AH43: -36.6580699 | AI43: -115.3106265 | AK43: 70,1935483870968-2,99354838709677j | AL43: 36.93383559 | AM43: -2.442016706 | AO43: -0,480676486797585-0,913513451897956j | AP43: 0.2757656897 | AQ43: -117.7526432 | AR43: 1 | AS43: 0,500000000000002-0,5j | AT43: -3.010299957 | AU43: -45
AD44: 4.1 | AE44: 12589.25412 | AF44: 12589,2541179417j | AG44: -0,00635815475903199-0,00979133146121773j | AH44: -38.65515922 | AI44: -122.9983115 | AK44: 70,1935483870968-2,37786000588429j | AL44: 36.93092491 | AM44: -1.940196303 | AO44: -0,469583859216748-0,672169496784365j | AP44: -1.72423431 | AQ44: -124.9385078 | AR44: 1 | AS44: 0,38686317984686-0,487031887996706j | AT44: -4.124426028 | AU44: -51.53889205
AD45: 4.2 | AE45: 15848.93192 | AF45: 15848,9319246112j | AG45: -0,00625965364078934-0,00684472670829504j | AH45: -40.6533217 | AI45: -132.4436052 | AK45: 70,1935483870968-1,88880134089554j | AL45: 36.92908738 | AM45: -1.541370104 | AO45: -0,452315629705904-0,468632413204897j | AP45: -3.72423431 | AQ45: -133.9849753 | AR45: 1 | AS45: 0,284747248950802-0,451293976434156j | AT45: -5.455404631 | AU45: -57.74982243
AD46: 4.3 | AE46: 19952.62315 | AF46: 19952,6231496889j | AG46: -0,00597268664584104-0,00431567044395339j | AH46: -42.6521619 | AI46: -144.1493403 | AK46: 70,1935483870968-1,5003282348584j | AL46: 36.92792759 | AM46: -1.224462796 | AO46: -0,425718991295217-0,293971231717689j | AP46: -5.72423431 | AQ46: -145.3738031 | AR46: 1 | AS46: 0,200760008913102-0,400568880137128j | AT46: -6.973227937 | AU46: -63.38055589
AD47: 4.4 | AE47: 25118.86432 | AF47: 25118,8643150959j | AG47: -0,00545525532167459-0,00212265964168378j | AH47: -44.65142995 | AI47: -158.7388079 | AK47: 70,1935483870968-1,19175307830208j | AL47: 36.92719564 | AM47: -0.9726800165 | AO47: -0,385453414548097-0,142495694945338j | AP47: -7.72423431 | AQ47: -159.7114879 | AR47: 1 | AS47: 0,13680688860321-0,343643367219446j | AT47: -8.638920341 | AU47: -68.29214385
AD48: 4.5 | AE48: 31622.7766 | AF48: 31622,7766016838j | AG48: -0,00464356564093013-0,000244260315726504j | AH48: -46.65096806 | AI48: -176.988909 | AK48: 70,1935483870968-0,946643118914922j | AL48: 36.92673375 | AM48: -0.7726545924 | AO48: -0,326179576852396-0,0127496988297796j | AP48: -9.72423431 | AQ48: -177.7615636 | AR48: 1 | AS48: 0,0909090909090914-0,287479787288035j | AT48: -10.41392685 | AU48: -72.45159939
AD49: 4.6 | AE49: 39810.71706 | AF49: 39810,7170553497j | AG49: -0,00347380344079253+0,00125554579300815j | AH49: -48.65067661 | AI49: 160.1284925 | AK49: 70,1935483870968-0,751945357561574j | AL49: 36.9264423 | AM49: -0.6137550884 | AO49: -0,242894488078275+0,0907433247441188j | AP49: -11.72423431 | AQ49: 159.5147374 | AR49: 1 | AS49: 0,0593509431027682-0,236280360283245j | AT49: -12.26572376 | AU49: -75.89967638
AD50: 4.7 | AE50: 50118.72336 | AF50: 50118,7233627272j | AG50: -0,00194015838138437+0,00220107842836385j | AH50: -50.6504927 | AI50: 131.3948252 | AK50: 70,1935483870968-0,597291428481006j | AL50: 36.92625839 | AM50: -0.4875298776 | AO50: -0,134871915943659+0,155660345136249j | AP50: -13.72423431 | AQ50: 130.9072953 | AR50: 1 | AS50: 0,0382865038822551-0,191887069660072j | AT50: -14.16954289 | AU50: -78.7161708
AD51: 4.8 | AE51: 63095.73445 | AF51: 63095,7344480192j | AG51: -0,000214472278522068+0,00232078301909522j | AH51: -52.65037666 | AI51: 95.27992163 | AK51: 70,1935483870968-0,474445446001264j | AL51: 36.92614235 | AM51: -0.3872621962 | AO51: -0,0139534853255629+0,163005750542651j | AP51: -15.72423431 | AQ51: 94.89265943 | AR51: 1 | AS51: 0,0245033675503363-0,154605797203822j | AT51: -16.10774226 | AU51: -80.99413803
AD52: 4.9 | AE52: 79432.82347 | AF52: 79432,823472428j | AG52: 0,00119346327152378+0,00141530343125639j | AH52: -54.65030344 | AI52: 49.86053419 | AK52: 70,1935483870968-0,376865413595158j | AL52: 36.92606913 | AM52: -0.3076150254 | AO52: 0,0843068008109104+0,0988953948548861j | AP52: -17.72423431 | AQ52: 49.55291917 | AR52: 1 | AS52: 0,0156016622418298-0,123928408273171j | AT52: -18.06829128 | AU52: -82.8246371
AR53: 1
AD54: ωx | AE54: ω | AF54: s=jω | AG54: Strecke H(jω) | AH54: Betrag Strecke [dB] | AI54: Phase Strecke [°] | AK54: Regler H(jw) | AL54: Betrag Regler [dB] | AM54: Phase Regler [°] | AO54: Regler+Strecke H(jw) | AP54: Betrag Regler+Strecke [dB] | AQ54: Phase Regler+Strecke [°] | AR54: 1 | AS54: Geschlossener Kreis | AT54: Betrag Kreis [dB] | AU54: Phase Kreis [°]
AE55: =10^AD3 -> 1 | AI55: =IMARGUMENT(AG3)*180/PI() -> -0.1371237425 | AM55: =IF(IMARGUMENT(AK3)*180/PI()>0,"",IMARGUMENT(AK3)*180/PI()) -> -89.86565152 | AQ55: =AI55+AM55 -> -90.00277526 | AR55: =IF(AQ55<0,1,0) -> 1
AE56: 1.258925412 | AI56: -0.1726283827 | AM56: -89.83086547 | AQ56: -90.00349385 | AR56: =IF(AR55=0,0,IF(AQ56<0,1,0)) -> 1
AE57: 1.584893192 | AI57: -0.217325896 | AM57: -89.7870726 | AQ57: -90.0043985 | AR57: 1
AE58: 1.995262315 | AI58: -0.2735963713 | AM58: -89.73194101 | AQ58: -90.00553738 | AR58: 1
AE59: 2.511886432 | AI59: -0.3444359843 | AM59: -89.66253516 | AQ59: -90.00697115 | AR59: 1
AE60: 3.16227766 | AI60: -0.43361634 | AM60: -89.57515982 | AQ60: -90.00877616 | AR60: 1
AE61: 3.981071706 | AI61: -0.5458848965 | AM61: -89.46516363 | AQ61: -90.01104853 | AR61: 1
AE62: 5.011872336 | AI62: -0.6872169301 | AM62: -89.32669234 | AQ62: -90.01390927 | AR62: 1
AE63: 6.309573445 | AI63: -0.8651320366 | AM63: -89.1523787 | AQ63: -90.01751073 | AR63: 1
AE64: 7.943282347 | AI64: -1.089091179 | AM64: -88.93295353 | AQ64: -90.02204471 | AR64: 1
AE65: 10 | AI65: -1.370993742 | AM65: -88.6567589 | AQ65: -90.02775264 | AR65: 1
AE66: 12.58925412 | AI66: -1.72579771 | AM66: -88.3091408 | AQ66: -90.03493851 | AR66: 1
AE67: 15.84893192 | AI67: -2.17228933 | AM67: -87.87169565 | AQ67: -90.04398498 | AR67: 1
AE68: 19.95262315 | AI68: -2.734029992 | AM68: -87.32134381 | AQ68: -90.0553738 | AR68: 1
AE69: 25.11886432 | AI69: -3.440504548 | AM69: -86.62920694 | AQ69: -90.06971149 | AR69: 1
AE70: 31.6227766 | AI70: -4.328480494 | AM70: -85.75928107 | AQ70: -90.08776156 | AR70: 1
AE71: 39.81071706 | AI71: -5.443549224 | AM71: -84.66693604 | AQ71: -90.11048526 | AR71: 1
AE72: 50.11872336 | AI72: -6.841735583 | AM72: -83.29735712 | AQ72: -90.1390927 | AR72: 1
AE73: 63.09573445 | AI73: -8.590889367 | AM73: -81.58421797 | AQ73: -90.17510734 | AR73: 1
AE74: 79.43282347 | AI74: -10.77124688 | AM74: -79.4492002 | AQ74: -90.22044708 | AR74: 1
AE75: 100 | AI75: -13.47398962 | AM75: -76.80353681 | AQ75: -90.27752643 | AR75: 1
AE76: 125.8925412 | AI76: -16.79579067 | AM76: -73.55359441 | AQ76: -90.34938508 | AR76: 1
AE77: 158.4893192 | AI77: -20.82643258 | AM77: -69.61341717 | AQ77: -90.43984975 | AR77: 1
AE78: 199.5262315 | AI78: -25.62649823 | AM78: -64.9272398 | AQ78: -90.55373803 | AR78: 1
AE79: 251.1886432 | AI79: -31.19494731 | AM79: -59.50216757 | AQ79: -90.69711488 | AR79: 1
AE80: 316.227766 | AI80: -37.43453527 | AM80: -53.44308037 | AQ80: -90.87761564 | AR80: 1
AE81: 398.1071706 | AI81: -44.13479749 | AM81: -46.97005513 | AQ81: -91.10485263 | AR81: 1
AE82: 501.1872336 | AI82: -50.99577923 | AM82: -40.39514782 | AQ82: -91.39092705 | AR82: 1
AE83: 630.9573445 | AI83: -57.69590638 | AM83: -34.05516702 | AQ83: -91.75107341 | AR83: 1
AE84: 794.3282347 | AI84: -63.97335714 | AM84: -28.23111367 | AQ84: -92.20447081 | AR84: 1
AE85: 1000 | AI85: -69.6784424 | AM85: -23.09682192 | AQ85: -92.77526432 | AR85: 1
AE86: 1258.925412 | AI86: -74.77964825 | AM86: -18.71420253 | AQ86: -93.49385078 | AR86: 1
AE87: 1584.893192 | AI87: =IMARGUMENT(AG35)*180/PI() -> -79.3378105 | AM87: =IF(IMARGUMENT(AK35)*180/PI()>0,"",IMARGUMENT(AK35)*180/PI()) -> -15.06068703 | AQ87: -94.39849753 | AR87: 1
AE88: 1995.262315 | AI88: -83.47243254 | AM88: -12.06494777 | AQ88: -95.53738031 | AR88: =IF(AR87=0,0,IF(AQ88<0,1,0)) -> 1
AE89: 2511.886432 | AI89: -87.33529929 | AM89: -9.6358495 | AQ89: -96.97114879 | AR89: 1
AE90: 3162.27766 | AI90: -91.09548295 | AM90: -7.680673407 | AQ90: -98.77615636 | AR90: 1
AE91: 3981.071706 | AI91: -94.93405867 | AM91: -6.114467589 | AQ91: -101.0485263 | AR91: 1
AE92: 5011.872336 | AI92: -99.04557025 | AM92: -4.863700222 | AQ92: -103.9092705 | AR92: 1
AE93: 6309.573445 | AI93: -103.6439345 | AM93: -3.86679954 | AQ93: -107.5107341 | AR93: 1
AE94: 7943.282347 | AI94: -108.9714789 | AM94: -3.073229157 | AQ94: -112.0447081 | AR94: 1
AE95: 10000 | AI95: -115.3106265 | AM95: -2.442016706 | AQ95: -117.7526432 | AR95: 1
AE96: 12589.25412 | AI96: -122.9983115 | AM96: -1.940196303 | AQ96: -124.9385078 | AR96: 1
AE97: 15848.93192 | AI97: -132.4436052 | AM97: -1.541370104 | AQ97: -133.9849753 | AR97: 1
AE98: 19952.62315 | AI98: -144.1493403 | AM98: -1.224462796 | AQ98: -145.3738031 | AR98: 1
AE99: 25118.86432 | AI99: -158.7388079 | AM99: -0.9726800165 | AQ99: -159.7114879 | AR99: 1
AE100: 31622.7766 | AI100: -176.988909 | AM100: -0.7726545924 | AQ100: -177.7615636 | AR100: 1
AE101: 39810.71706 | AI101: 160.1284925 | AM101: -0.6137550884 | AQ101: 159.5147374 | AR101: 0
AE102: 50118.72336 | AI102: 131.3948252 | AM102: -0.4875298776 | AQ102: 130.9072953 | AR102: 0
AE103: 63095.73445 | AI103: 95.27992163 | AM103: -0.3872621962 | AQ103: 94.89265943 | AR103: 0
AE104: 79432.82347 | AI104: 49.86053419 | AM104: -0.3076150254 | AQ104: 49.55291917 | AR104: 0

Sheet Rechentabelle
A1: t [s] | B1: dt [s] | C1: φ Trajektorie [rad] | D1: ω Trajektorie [rad/s] | E1: α Trajektorie [mrad/s2] | G1: α Trajektorie [rad/s2] | I1: φ Soll [rad] | J1: φ Ist [rad] | K1: φ Diff [rad] | L1: LR ua(t) | N1: ω Soll [rad/s] | O1: ω Ist [rad/s] | P1: ω Vorsteuerung [rad/s] | Q1: ω Diff [rad/s] | R1: DR ua(t) | T1: I Soll DR [A] | U1: I Vorsteuerung [A] | V1: I Add [A] | W1: I Lim [A] | X1: I Ist [A] | Y1: I Diff [A] | Z1: SR ua(t) | AA1: U Lim [V] | AD1: Wicklung ua(t) | AE1: Totzeit | AF1: I Ist [A] | AH1: M Motor [Nm] | AI1: α Motor+Last [rad/s2] | AJ1: ω Motor+Last [rad/s] | AK1: n Motor+Last [1/min] | AL1: φ Motor+Last [rad] | AM1: φ Fenster- [rad] | AN1: φ Fenster+ [rad] | AO1: dφ Zielpos [rad] | AP1: =K1 -> φ Diff [rad]
A2: 0 | B2: 6.249999569e-05 | C2: 0 | D2: 0 | E2: 7850001.5 | F2: 5.887501414e+12 | G2: =E2/1000 -> 7850.0015 | I2: =C2 -> 0 | J2: 0 | K2: =I2-J2 -> 0 | L2: =0+KP_LR*(1+2*TA_SIM/TN_LR)*K2-KP_LR*0 -> 0 | M2: - | N2: =L2 -> 0 | O2: 0 | P2: =D2*KP_VDR -> 0 | Q2: =N2-O2+P2 -> 0 | R2: =0+KP_DR*(1+2*TA_SIM/TN_DR)*Q2-KP_DR*0 -> 0 | S2: - | T2: =R2 -> 0 | U2: =G2*(JM_EMS+JL_EMS)/KT_M*KP_VSR -> 5.397436746 | V2: =T2+U2 -> 5.397436746 | W2: =IF(V2<-IM_R,-IM_R,IF(V2>IM_R,IM_R,V2)) -> 5.397436746 | X2: 0 | Y2: =W2-X2 -> 5.397436746 | Z2: =0+KP_SR*(1+TA_SIM/TN_SR)*Y2-KP_SR*0 -> 388.9636674 | AA2: =IF(Z2<-U_ZWK,-U_ZWK,IF(Z2>U_ZWK,U_ZWK,Z2)) -> 388.9636674 | AB2: =AA2 -> 388.9636674 | AC2: - | AD2: =(1/R_M*AB2+0*T_M/TA_SIM)/(1+T_M/TA_SIM) -> 3.482217255 | AE2: =AD2 -> 3.482217255 | AF2: =AE2 -> 3.482217255 | AG2: - | AH2: =AF2*KT_M -> 2.437552079 | AI2: =AH2/(JM_EMS+JL_EMS) -> 5064.517097 | AJ2: =0+AI2*TA_SIM -> 0.3165323185 | AK2: =AJ2/(2*PI())*60 -> 3.022660989 | AL2: =0+AJ2*TA_SIM -> 1.978326991e-05 | AM2: =-DF_LR -> -0.0002908882087 | AN2: =DF_LR -> 0.0002908882087 | AO2: =FI_T-Rechentabelle!AL2 -> 6.279980217 | AP2: =K2 -> 0
A3: 6.249999569e-05 | B3: 6.249999569e-05 | C3: 1.533203168e-05 | D3: 0.4906250536 | E3: 7850001.5 | F3: 5.795509204e+12 | G3: =E3/1000 -> 7850.0015 | M3: - | N3: =N2+(L4-L2)/2 -> 0.02520652531 | O3: =AJ2 -> 0.3165323185 | P3: =D3*KP_VDR -> 0.4906250536 | Q3: =N3-O3+P3 -> 0.1992992604 | R3: =R2+KP_DR*(1+TA_SIM/TN_DR)*Q3-KP_DR*Q2 -> 0.5101707738 | S3: - | T3: =R3 -> 0.5101707738 | U3: 5.397436746 | V3: =T3+U3 -> 5.907607519 | W3: 5.907607519 | X3: =AF2 -> 3.482217255 | Y3: =W3-X3 -> 2.425390264 | Z3: =Z2+KP_SR*(1+TA_SIM/TN_SR)*Y3-KP_SR*Y2 -> 184.8830059 | AA3: 184.8830059 | AB3: =AA3 -> 184.8830059 | AC3: - | AD3: =(1/R_M*AB3+AD2*T_M/TA_SIM)/(1+T_M/TA_SIM) -> 5.046985168 | AE3: =AD3 -> 5.046985168 | AF3: =AE3 -> 5.046985168 | AG3: - | AH3: 3.532889617 | AI3: 7340.306705 | AJ3: =AJ2+AI3*TA_SIM -> 0.7753014876 | AK3: 7.403583849 | AL3: =AL2+AJ3*TA_SIM -> 6.823961289e-05 | AM3: -0.0002908882087 | AN3: 0.0002908882087 | AO3: =FI_T-Rechentabelle!AL3 -> 6.27993176 | AP3: =AP2 -> 0
A4: 0.0001249999914 | B4: 6.249999569e-05 | C4: 6.132812673e-05 | D4: 0.9812501073 | E4: 7850001.5 | F4: 5.703516995e+12 | G4: 7850.0015 | I4: =C4 -> 6.132812673e-05 | J4: =AL2 -> 1.978326991e-05 | K4: =I4-J4 -> 4.154485682e-05 | L4: =L2+KP_LR*(1+2*TA_SIM/TN_LR)*K4-KP_LR*K2 -> 0.05041305062 | M4: - | N4: =L4 -> 0.05041305062 | O4: =AJ3 -> 0.7753014876 | P4: =D4*KP_VDR -> 0.9812501073 | Q4: =N4-O4+P4 -> 0.2563616703 | R4: 0.7048281195 | S4: - | T4: 0.7048281195 | U4: 5.397436746 | V4: 6.102264865 | W4: 6.102264865 | X4: =AF3 -> 5.046985168 | Y4: 1.055279697 | Z4: 90.68447776 | AA4: 90.68447776 | AB4: 90.68447776 | AC4: - | AD4: 5.727810779 | AE4: 5.727810779 | AF4: 5.727810779 | AG4: - | AH4: 4.009467545 | AI4: 8330.495627 | AJ4: 1.295957464 | AK4: 12.37548219 | AL4: 0.0001492369544 | AM4: -0.0002908882087 | AN4: 0.0002908882087 | AO4: =FI_T-Rechentabelle!AL4 -> 6.279850763 | AP4: =K4 -> 4.154485682e-05
A5: 0.0001874999871 | B5: 6.249999569e-05 | C5: 0.0001379882852 | D5: 1.471875191 | E5: 7850001.5 | F5: 5.611524785e+12 | G5: 7850.0015 | M5: - | N5: =N4+(L6-L4)/2 -> 0.08516565511 | O5: 1.295957464 | P5: 1.471875191 | Q5: 0.2610833815 | R5: 0.7794139514 | S5: - | T5: 0.7794139514 | U5: 5.397436746 | V5: 6.176850697 | W5: 6.176850697 | X5: 5.727810779 | Y5: 0.4490399182 | Z5: 48.97049569 | AA5: 48.97049569 | AB5: 48.97049569 | AC5: - | AD5: 6.017513952 | AE5: 6.017513952 | AF5: 6.017513952 | AG5: - | AH5: 4.212259766 | AI5: 8751.838285 | AJ5: 1.842947357 | AK5: 17.5988509 | AL5: 0.0002644211642 | AM5: -0.0002908882087 | AN5: 0.0002908882087 | AO5: =FI_T-Rechentabelle!AL5 -> 6.279735579 | AP5: =AP4 -> 4.154485682e-05
A6: 0.0002499999828 | B6: 6.249999569e-05 | C6: 0.0002453125069 | D6: 1.962500215 | E6: 7850001.5 | F6: 5.519532576e+12 | G6: 7850.0015 | I6: =C6 -> 0.0002453125069 | J6: =AL4 -> 0.0001492369544 | K6: =I6-J6 -> 9.607555253e-05 | L6: =L4+KP_LR*(1+2*TA_SIM/TN_LR)*K6-KP_LR*K4 -> 0.1199182596 | M6: - | N6: =L6 -> 0.1199182596 | O6: 1.842947357 | P6: 1.962500215 | Q6: 0.2394711171 | R6: 0.7877405927 | S6: - | T6: 0.7877405927 | U6: 5.397436746 | V6: 6.185177338 | W6: 6.185177338 | X6: 6.017513952 | Y6: 0.1676633864 | Z6: 29.53337128 | AA6: 29.53337128 | AB6: 29.53337128 | AC6: - | AD6: 6.125683879 | AE6: 6.125683879 | AF6: 6.125683879 | AG6: - | AH6: 4.287978715 | AI6: 8909.160015 | AJ6: 2.399769858 | AK6: 22.91611411 | AL6: 0.0004144067804 | AM6: -0.0002908882087 | AN6: 0.0002908882087 | AO6: =FI_T-Rechentabelle!AL6 -> 6.279585593 | AP6: =K6 -> 9.607555253e-05
A7: 0.000312499993 | B7: 6.249999569e-05 | C7: 0.0003833007921 | D7: 2.453125238 | E7: 7850001.5 | F7: 5.427540366e+12 | G7: 7850.0015 | M7: - | N7: =N6+(L8-L6)/2 -> 0.1489353264 | O7: 2.399769858 | P7: 2.453125238 | Q7: 0.2022907068 | R7: 0.7509466297 | S7: - | T7: 0.7509466297 | U7: 5.397436746 | V7: 6.148383375 | W7: 6.148383375 | X7: 6.125683879 | Y7: 0.02269949665 | Z7: 19.40031149 | AA7: 19.40031149 | AB7: 19.40031149 | AC7: - | AD7: 6.140328715 | AE7: 6.140328715 | AF7: 6.140328715 | AG7: - | AH7: 4.298230101 | AI7: 8930.459382 | AJ7: 2.957923569 | AK7: 28.24608944 | AL7: 0.0005992770034 | AM7: -0.0002908882087 | AN7: 0.0002908882087 | AO7: =FI_T-Rechentabelle!AL7 -> 6.279400723 | AP7: =AP6 -> 9.607555253e-05
A8: 0.0003749999742 | B8: 6.249999569e-05 | C8: 0.0005519531406 | D8: 2.943750381 | E8: 7850001.5 | F8: 5.335548156e+12 | G8: 7850.0015 | I8: =C8 -> 0.0005519531406 | J8: =AL6 -> 0.0004144067804 | K8: =I8-J8 -> 0.0001375463603 | L8: =L6+KP_LR*(1+2*TA_SIM/TN_LR)*K8-KP_LR*K6 -> 0.1779523932 | M8: - | N8: =L8 -> 0.1779523932 | O8: 2.957923569 | P8: 2.943750381 | Q8: 0.1637792053 | R8: 0.7016809986 | S8: - | T8: 0.7016809986 | U8: 5.397436746 | V8: 6.099117744 | W8: 6.099117744 | X8: 6.140328715 | Y8: -0.04121097095 | Z8: 14.83710459 | AA8: 14.83710459 | AB8: 14.83710459 | AC8: - | AD8: 6.113740992 | AE8: 6.113740992 | AF8: 6.113740992 | AG8: - | AH8: 4.279618694 | AI8: 8891.790348 | AJ8: 3.513660466 | AK8: 33.55298589 | AL8: 0.0008188807826 | AM8: -0.0002908882087 | AN8: 0.0002908882087 | AO8: =FI_T-Rechentabelle!AL8 -> 6.279181119 | AP8: =K8 -> 0.0001375463603
A9: 0.0004374999553 | B9: 6.249999569e-05 | C9: 0.0007512695525 | D9: 3.434375286 | E9: 7850001.5 | F9: 5.243555947e+12 | G9: 7850.0015 | M9: - | N9: =N8+(L10-L8)/2 -> 0.1985328652 | O9: 3.513660466 | P9: 3.434375286 | Q9: 0.1192476851 | R9: 0.6276163666 | S9: - | T9: 0.6276163666 | U9: 5.397436746 | V9: 6.025053112 | W9: 6.025053112 | X9: 6.113740992 | Y9: -0.08868787975 | Z9: 11.33859974 | AA9: 11.33859974 | AB9: 11.33859974 | AC9: - | AD9: 6.056523005 | AE9: 6.056523005 | AF9: 6.056523005 | AG9: - | AH9: 4.239566104 | AI9: 8808.572831 | AJ9: 4.064196268 | AK9: 38.81021555 | AL9: 0.001072893049 | AM9: -0.0002908882087 | AN9: 0.0002908882087 | AO9: =FI_T-Rechentabelle!AL9 -> 6.278927107 | AP9: =AP8 -> 0.0001375463603
A10: 0.0004999999655 | B10: 6.249999569e-05 | C10: 0.0009812500277 | D10: 3.925000429 | E10: 7850001.5 | F10: 5.151563737e+12 | G10: 7850.0015 | I10: =C10 -> 0.0009812500277 | J10: =AL8 -> 0.0008188807826 | K10: =I10-J10 -> 0.0001623692452 | L10: =L8+KP_LR*(1+2*TA_SIM/TN_LR)*K10-KP_LR*K8 -> 0.2191133372 | M10: - | N10: =L10 -> 0.2191133372 | O10: 4.064196268 | P10: 3.925000429 | Q10: 0.07991749823 | R10: 0.5560097687 | S10: - | T10: 0.5560097687 | U10: 5.397436746 | V10: 5.953446514 | W10: 5.953446514 | X10: 6.056523005 | Y10: -0.1030764907 | Z10: 10.13575929 | AA10: 10.13575929 | AB10: 10.13575929 | AC10: - | AD10: 5.990022043 | AE10: 5.990022043 | AF10: 5.990022043 | AG10: - | AH10: 4.19301543 | AI10: 8711.854208 | AJ10: 4.608687156 | AK10: 44.00972052 | AL10: 0.001360935997 | AM10: -0.0002908882087 | AN10: 0.0002908882087 | AO10: =FI_T-Rechentabelle!AL10 -> 6.278639064 | AP10: =K10 -> 0.0001623692452
A11: 0.0005624999758 | B11: 6.249999569e-05 | C11: 0.001241894566 | D11: 4.415625572 | E11: 7850001.5 | F11: 5.059571528e+12 | G11: 7850.0015 | M11: - | N11: =N10+(L12-L10)/2 -> 0.2316345154 | O11: 4.608687156 | P11: 4.415625572 | Q11: 0.03857293152 | R11: 0.4696583056 | S11: - | T11: 0.4696583056 | U11: 5.397436746 | V11: 5.867095051 | W11: 5.867095051 | X11: 5.990022043 | Y11: -0.1229269921 | Z11: 8.512389719 | AA11: 8.512389719 | AB11: 8.512389719 | AC11: - | AD11: 5.910714306 | AE11: 5.910714306 | AF11: 5.910714306 | AG11: - | AH11: 4.137500015 | AI11: 8596.509484 | AJ11: 5.145968999 | AK11: 49.14038419 | AL11: 0.001682559059 | AM11: -0.0002908882087 | AN11: 0.0002908882087 | AO11: =FI_T-Rechentabelle!AL11 -> 6.278317441 | AP11: =AP10 -> 0.0001623692452
A12: 0.000624999986 | B12: 6.249999569e-05 | C12: 0.001533203168 | D12: 4.906250477 | E12: 7850001.5 | F12: 4.967579318e+12 | G12: 7850.0015 | I12: =C12 -> 0.001533203168 | J12: =AL10 -> 0.001360935997 | K12: =I12-J12 -> 0.0001722671718 | L12: =L10+KP_LR*(1+2*TA_SIM/TN_LR)*K12-KP_LR*K10 -> 0.2441556936 | M12: - | N12: =L12 -> 0.2441556936 | O12: 5.145968999 | P12: 4.906250477 | Q12: 0.004437171656 | R12: 0.3916806089 | S12: - | T12: 0.3916806089 | U12: 5.397436746 | V12: 5.789117354 | W12: 5.789117354 | X12: 5.910714306 | Y12: -0.121596952 | Z12: 8.378245983 | AA12: 8.378245983 | AB12: 8.378245983 | AC12: - | AD12: 5.83226466 | AE12: 5.83226466 | AF12: 5.83226466 | AG12: - | AH12: 4.082585262 | AI12: 8482.412761 | AJ12: 5.676119796 | AK12: 54.20295139 | AL12: 0.002037316546 | AM12: -0.0002908882087 | AN12: 0.0002908882087 | AO12: =FI_T-Rechentabelle!AL12 -> 6.277962683 | AP12: =K12 -> 0.0001722671718
A13: 0.0006874999381 | B13: 6.249999569e-05 | C13: 0.001855175834 | D13: 5.396875381 | E13: 7850001.5 | F13: 4.875587108e+12 | G13: 7850.0015 | M13: - | N13: =N12+(L14-L12)/2 -> 0.249994085 | O13: 5.676119796 | P13: 5.396875381 | Q13: -0.02925032993 | R13: 0.3065283269 | S13: - | T13: 0.3065283269 | U13: 5.397436746 | V13: 5.703965073 | W13: 5.703965073 | X13: 5.83226466 | Y13: -0.1282995875 | Z13: 7.667719821 | AA13: 7.667719821 | AB13: 7.667719821 | AC13: - | AD13: 5.749490733 | AE13: 5.749490733 | AF13: 5.749490733 | AG13: - | AH13: 4.024643513 | AI13: 8362.026829 | AJ13: 6.198746473 | AK13: 59.19366853 | AL13: 0.002424738201 | AM13: -0.0002908882087 | AN13: 0.0002908882087 | AO13: =FI_T-Rechentabelle!AL13 -> 6.277575262 | AP13: =AP12 -> 0.0001722671718
A14: 0.0007499999483 | B14: 6.249999569e-05 | C14: 0.002207812562 | D14: 5.887500763 | E14: 7850001.5 | F14: 4.783594899e+12 | G14: 7850.0015 | I14: =C14 -> 0.002207812562 | J14: =AL12 -> 0.002037316546 | K14: =I14-J14 -> 0.0001704960161 | L14: =L12+KP_LR*(1+2*TA_SIM/TN_LR)*K14-KP_LR*K12 -> 0.2558324764 | M14: - | N14: =L14 -> 0.2558324764 | O14: 6.198746473 | P14: 5.887500763 | Q14: -0.05541323392 | R14: 0.2324249158 | S14: - | T14: 0.2324249158 | U14: 5.397436746 | V14: 5.629861661 | W14: 5.629861661 | X14: 5.749490733 | Y14: -0.1196290711 | Z14: 8.052511999 | AA14: 8.052511999 | AB14: 8.052511999 | AC14: - | AD14: 5.672310687 | AE14: 5.672310687 | AF14: 5.672310687 | AG14: - | AH14: 3.970617481 | AI14: 8249.776606 | AJ14: 6.714357511 | AK14: 64.11739125 | AL14: 0.002844385545 | AM14: -0.0002908882087 | AN14: 0.0002908882087 | AO14: =FI_T-Rechentabelle!AL14 -> 6.277155614 | AP14: =K14 -> 0.0001704960161
A15: 0.0008124999586 | B15: 6.249999569e-05 | C15: 0.002591113355 | D15: 6.378125668 | E15: 7850001.5 | F15: 4.691602689e+12 | G15: 7850.0015 | M15: - | N15: =N14+(L16-L14)/2 -> 0.2567264151 | O15: 6.714357511 | P15: 6.378125668 | Q15: -0.07950542848 | R15: 0.1572438304 | S15: - | T15: 0.1572438304 | U15: 5.397436746 | V15: 5.554680576 | W15: 5.554680576 | X15: 5.672310687 | Y15: -0.1176301107 | Z15: 7.972743983 | AA15: 7.972743983 | AB15: 7.972743983 | AC15: - | AD15: 5.596420293 | AE15: 5.596420293 | AF15: 5.596420293 | AG15: - | AH15: 3.917494205 | AI15: 8139.402046 | AJ15: 7.223070139 | AK15: 68.97523902 | AL15: 0.003295827429 | AM15: -0.0002908882087 | AN15: 0.0002908882087 | AO15: =FI_T-Rechentabelle!AL15 -> 6.276704173 | AP15: =AP14 -> 0.0001704960161
A16: 0.0008749999106 | B16: 6.249999569e-05 | C16: 0.00300507821 | D16: 6.868750572 | E16: 7850001.5 | F16: 4.59961048e+12 | G16: 7850.0015 | I16: =C16 -> 0.00300507821 | J16: =AL14 -> 0.002844385545 | K16: =I16-J16 -> 0.0001606926647 | L16: =L14+KP_LR*(1+2*TA_SIM/TN_LR)*K16-KP_LR*K14 -> 0.2576203538 | M16: - | N16: =L16 -> 0.2576203538 | O16: 7.223070139 | P16: 6.868750572 | Q16: -0.09669921303 | R16: 0.09384795189 | S16: - | T16: 0.09384795189 | U16: 5.397436746 | V16: 5.491284698 | W16: 5.491284698 | X16: 5.596420293 | Y16: -0.1051355952 | Z16: 8.653073053 | AA16: 8.653073053 | AB16: 8.653073053 | AC16: - | AD16: 5.528590876 | AE16: 5.528590876 | AF16: 5.528590876 | AG16: - | AH16: 3.870013614 | AI16: 8040.751327 | AJ16: 7.725617097 | AK16: 73.77420896 | AL16: 0.003778678498 | AM16: -0.0002908882087 | AN16: 0.0002908882087 | AO16: =FI_T-Rechentabelle!AL16 -> 6.276221322 | AP16: =K16 -> 0.0001606926647
A17: 0.0009374999208 | B17: 6.249999569e-05 | C17: 0.003449707129 | D17: 7.359375954 | E17: 7850001.5 | F17: 4.50761827e+12 | G17: 7850.0015 | M17: - | N17: =N16+(L18-L16)/2 -> 0.2553495263 | O17: 7.725617097 | P17: 7.359375954 | Q17: -0.110891617 | R17: 0.03394335754 | S17: - | T17: 0.03394335754 | U17: 5.397436746 | V17: 5.431380103 | W17: 5.431380103 | X17: 5.528590876 | Y17: -0.09721077329 | Z17: 9.027466202 | AA17: 9.027466202 | AB17: 9.027466202 | AC17: - | AD17: 5.465874249 | AE17: 5.465874249 | AF17: 5.465874249 | AG17: - | AH17: 3.826111974 | AI17: 7949.536617 | AJ17: 8.222463136 | AK17: 78.51873914 | AL17: 0.004292582444 | AM17: -0.0002908882087 | AN17: 0.0002908882087 | AO17: =FI_T-Rechentabelle!AL17 -> 6.275707418 | AP17: =AP16 -> 0.0001606926647
A18: 0.0009999999311 | B18: 6.249999569e-05 | C18: 0.003925000111 | D18: 7.850000858 | E18: 7850001.5 | F18: 4.41562606e+12 | G18: 7850.0015 | I18: =C18 -> 0.003925000111 | J18: =AL16 -> 0.003778678498 | K18: =I18-J18 -> 0.0001463216134 | L18: =L16+KP_LR*(1+2*TA_SIM/TN_LR)*K18-KP_LR*K16 -> 0.2530786988 | M18: - | N18: =L18 -> 0.2530786988 | O18: 8.222463136 | P18: 7.850000858 | Q18: -0.1193835784 | R18: -0.01482911825 | S18: - | T18: -0.01482911825 | U18: 5.397436746 | V18: 5.382607627 | W18: 5.382607627 | X18: 5.465874249 | Y18: -0.08326662115 | Z18: 9.850466558 | AA18: 9.850466558 | AB18: 9.850466558 | AC18: - | AD18: 5.412153848 | AE18: 5.412153848 | AF18: 5.412153848 | AG18: - | AH18: 3.788507693 | AI18: 7871.40597 | AJ18: 8.714426009 | AK18: 83.21663853 | AL18: 0.004837234069 | AM18: -0.0002908882087 | AN18: 0.0002908882087 | AO18: =FI_T-Rechentabelle!AL18 -> 6.275162766 | AP18: =K18 -> 0.0001463216134
A19: 0.001062499941 | B19: 6.249999569e-05 | C19: 0.004430957157 | D19: 8.340625763 | E19: 7850001.5 | F19: 4.323633851e+12 | G19: 7850.0015 | M19: - | N19: =N18+(L20-L18)/2 -> 0.2492565365 | O19: 8.714426009 | P19: 8.340625763 | Q19: -0.1245437092 | R19: -0.05714297592 | S19: - | T19: -0.05714297592 | U19: 5.397436746 | V19: 5.34029377 | W19: 5.34029377 | X19: 5.412153848 | Y19: -0.07186007808 | Z19: 10.5166844 | AA19: 10.5166844 | AB19: 10.5166844 | AC19: - | AD19: 5.365792507 | AE19: 5.365792507 | AF19: 5.365792507 | AG19: - | AH19: 3.756054755 | AI19: 7803.978298 | AJ19: 9.202174652 | AK19: 87.87429499 | AL19: 0.005412369985 | AM19: -0.0002908882087 | AN19: 0.0002908882087 | AO19: =FI_T-Rechentabelle!AL19 -> 6.27458763 | AP19: =AP18 -> 0.0001463216134
A20: 0.001124999952 | B20: 6.249999569e-05 | C20: 0.004967578265 | D20: 8.831251144 | E20: 7850001.5 | F20: 4.231641641e+12 | G20: 7850.0015 | I20: =C20 -> 0.004967578265 | J20: =AL18 -> 0.004837234069 | K20: =I20-J20 -> 0.0001303441964 | L20: =L18+KP_LR*(1+2*TA_SIM/TN_LR)*K20-KP_LR*K18 -> 0.2454343743 | M20: - | N20: =L20 -> 0.2454343743 | O20: 9.202174652 | P20: 8.831251144 | Q20: -0.1254891336 | R20: -0.08992593449 | S20: - | T20: -0.08992593449 | U20: 5.397436746 | V20: 5.307510811 | W20: 5.307510811 | X20: 5.365792507 | Y20: -0.05828169596 | Z20: 11.36075605 | AA20: 11.36075605 | AB20: 11.36075605 | AC20: - | AD20: 5.328191413 | AE20: 5.328191413 | AF20: 5.328191413 | AG20: - | AH20: 3.729733989 | AI20: 7749.291479 | AJ20: 9.68650537 | AK20: 92.49931265 | AL20: 0.00601777657 | AM20: -0.0002908882087 | AN20: 0.0002908882087 | AO20: =FI_T-Rechentabelle!AL20 -> 6.273982223 | AP20: =K20 -> 0.0001303441964
A21: 0.001187499962 | B21: 6.249999569e-05 | C21: 0.005534863438 | D21: 9.321875572 | E21: 7850001.5 | F21: 4.139649432e+12 | G21: 7850.0015 | M21: - | N21: =N20+(L22-L20)/2 -> 0.2413771443 | O21: 9.68650537 | P21: 9.321875572 | Q21: -0.1232526533 | R21: -0.1147942685 | S21: - | T21: -0.1147942685 | U21: 5.397436746 | V21: 5.282642477 | W21: 5.282642477 | X21: 5.328191413 | Y21: -0.04554893575 | Z21: 12.16929308 | AA21: 12.16929308 | AB21: 12.16929308 | AC21: - | AD21: 5.298805003 | AE21: 5.298805003 | AF21: 5.298805003 | AG21: - | AH21: 3.709163502 | AI21: 7706.552051 | AJ21: 10.16816487 | AK21: 97.0988221 | AL21: 0.006653286875 | AM21: -0.0002908882087 | AN21: 0.0002908882087 | AO21: =FI_T-Rechentabelle!AL21 -> 6.273346713 | AP21: =AP20 -> 0.0001303441964
A22: 0.001249999972 | B22: 6.249999569e-05 | C22: 0.006132812673 | D22: 9.812500954 | E22: 7850001.5 | F22: 4.047657222e+12 | G22: 7850.0015 | I22: =C22 -> 0.006132812673 | J22: =AL20 -> 0.00601777657 | K22: =I22-J22 -> 0.0001150361029 | L22: =L20+KP_LR*(1+2*TA_SIM/TN_LR)*K22-KP_LR*K20 -> 0.2373199143 | M22: - | N22: =L22 -> 0.2373199143 | O22: 10.16816487 | P22: 9.812500954 | Q22: -0.118344005 | R22: -0.1322770887 | S22: - | T22: -0.1322770887 | U22: 5.397436746 | V22: 5.265159657 | W22: 5.265159657 | X22: 5.298805003 | Y22: -0.03364534582 | Z22: 12.94189894 | AA22: 12.94189894 | AB22: 12.94189894 | AC22: - | AD22: 5.277098328 | AE22: 5.277098328 | AF22: 5.277098328 | AG22: - | AH22: 3.69396883 | AI22: 7674.981986 | AJ22: 10.64785125 | AK22: 101.6794896 | AL22: 0.007318777578 | AM22: -0.0002908882087 | AN22: 0.0002908882087 | AO22: =FI_T-Rechentabelle!AL22 -> 6.272681222 | AP22: =K22 -> 0.0001150361029
A23: 0.001312499866 | B23: 6.249999569e-05 | C23: 0.006761425972 | D23: 10.30312634 | E23: 7850001.5 | F23: 3.955665013e+12 | G23: 7850.0015 | M23: - | N23: =N22+(L24-L22)/2 -> 0.2339818173 | O23: 10.64785125 | P23: 10.30312634 | Q23: -0.1107430946 | R23: -0.141671503 | S23: - | T23: -0.141671503 | U23: 5.397436746 | V23: 5.255765243 | W23: 5.255765243 | X23: 5.277098328 | Y23: -0.0213330854 | Z23: 13.76622667 | AA23: 13.76622667 | AB23: 13.76622667 | AC23: - | AD23: 5.263335047 | AE23: 5.263335047 | AF23: 5.263335047 | AG23: - | AH23: 3.684334533 | AI23: 7654.964748 | AJ23: 11.12628654 | AK23: 106.2482101 | AL23: 0.008014170487 | AM23: -0.0002908882087 | AN23: 0.0002908882087 | AO23: =FI_T-Rechentabelle!AL23 -> 6.27198583 | AP23: =AP22 -> 0.0001150361029
A24: 0.001374999876 | B24: 6.249999569e-05 | C24: 0.007420703335 | D24: 10.79375076 | E24: 7850001.5 | F24: 3.863672803e+12 | G24: 7850.0015 | I24: =C24 -> 0.007420703335 | J24: =AL22 -> 0.007318777578 | K24: =I24-J24 -> 0.0001019257569 | L24: =L22+KP_LR*(1+2*TA_SIM/TN_LR)*K24-KP_LR*K22 -> 0.2306437203 | M24: - | N24: =L24 -> 0.2306437203 | O24: 11.12628654 | P24: 10.79375076 | Q24: -0.1018920605 | R24: -0.1460127762 | S24: - | T24: -0.1460127762 | U24: 5.397436746 | V24: 5.251423969 | W24: 5.251423969 | X24: 5.263335047 | Y24: -0.01191107775 | Z24: 14.40530558 | AA24: 14.40530558 | AB24: 14.40530558 | AC24: - | AD24: 5.255650481 | AE24: 5.255650481 | AF24: 5.255650481 | AG24: - | AH24: 3.678955337 | AI24: 7643.788358 | AJ24: 11.60402332 | AK24: 110.8102602 | AL24: 0.008739421944 | AM24: -0.0002908882087 | AN24: 0.0002908882087 | AO24: =FI_T-Rechentabelle!AL24 -> 6.271260578 | AP24: =K24 -> 0.0001019257569
A25: 0.001437499886 | B25: 6.249999569e-05 | C25: 0.008110644761 | D25: 11.28437614 | E25: 7850001.5 | F25: 3.771680593e+12 | G25: 7850.0015 | M25: - | N25: =N24+(L26-L24)/2 -> 0.2286075256 | O25: 11.60402332 | P25: 11.28437614 | Q25: -0.09103964614 | R25: -0.1430730537 | S25: - | T25: -0.1430730537 | U25: 5.397436746 | V25: 5.254363692 | W25: 5.254363692 | X25: 5.255650481 | Y25: -0.001286788967 | Z25: 15.14865457 | AA25: 15.14865457 | AB25: 15.14865457 | AC25: - | AD25: 5.254820294 | AE25: 5.254820294 | AF25: 5.254820294 | AG25: - | AH25: 3.678374206 | AI25: 7642.580939 | AJ25: 12.08168462 | AK25: 115.3715897 | AL25: 0.009494527233 | AM25: -0.0002908882087 | AN25: 0.0002908882087 | AO25: =FI_T-Rechentabelle!AL25 -> 6.270505473 | AP25: =AP24 -> 0.0001019257569
A26: 0.001499999897 | B26: 6.249999569e-05 | C26: 0.00883125025 | D26: 11.77500153 | E26: 7850001.5 | F26: 3.679688384e+12 | G26: 7850.0015 | I26: =C26 -> 0.00883125025 | J26: =AL24 -> 0.008739421944 | K26: =I26-J26 -> 9.182830549e-05 | L26: =L24+KP_LR*(1+2*TA_SIM/TN_LR)*K26-KP_LR*K24 -> 0.2265713309 | M26: - | N26: =L26 -> 0.2265713309 | O26: 12.08168462 | P26: 11.77500153 | Q26: -0.08011176809 | R26: -0.1372944189 | S26: - | T26: -0.1372944189 | U26: 5.397436746 | V26: 5.260142327 | W26: 5.260142327 | X26: 5.254820294 | Y26: 0.005322032281 | Z26: 15.62250853 | AA26: 15.62250853 | AB26: 15.62250853 | AC26: - | AD26: 5.258253864 | AE26: 5.258253864 | AF26: 5.258253864 | AG26: - | AH26: 3.680777705 | AI26: 7647.574703 | AJ26: 12.55965804 | AK26: 119.9358997 | AL26: 0.01027950586 | AM26: -0.0002908882087 | AN26: 0.0002908882087 | AO26: =FI_T-Rechentabelle!AL26 -> 6.269720494 | AP26: =K26 -> 9.182830549e-05
A27: 0.001562499907 | B27: 6.249999569e-05 | C27: 0.009582519802 | D27: 12.26562595 | E27: 7850001.5 | F27: 3.587696174e+12 | G27: 7850.0015 | M27: - | N27: =N26+(L28-L26)/2 -> 0.2260816012 | O27: 12.55965804 | P27: 12.26562595 | Q27: -0.06795048892 | R27: -0.1256943597 | S27: - | T27: -0.1256943597 | U27: 5.397436746 | V27: 5.271742386 | W27: 5.271742386 | X27: 5.258253864 | Y27: 0.01348852233 | Z27: 16.22098004 | AA27: 16.22098004 | AB27: 16.22098004 | AC27: - | AD27: 5.266956136 | AE27: 5.266956136 | AF27: 5.266956136 | AG27: - | AH27: 3.686869295 | AI27: 7660.231239 | AJ27: 13.0384225 | AK27: 124.5077634 | AL27: 0.01109440727 | AM27: -0.0002908882087 | AN27: 0.0002908882087 | AO27: =FI_T-Rechentabelle!AL27 -> 6.268905593 | AP27: =AP26 -> 9.182830549e-05
A28: 0.001624999917 | B28: 6.249999569e-05 | C28: 0.01036445342 | D28: 12.75625134 | E28: 7850001.5 | F28: 3.495703965e+12 | G28: 7850.0015 | I28: =C28 -> 0.01036445342 | J28: =AL26 -> 0.01027950586 | K28: =I28-J28 -> 8.494755705e-05 | L28: =L26+KP_LR*(1+2*TA_SIM/TN_LR)*K28-KP_LR*K26 -> 0.2255918715 | M28: - | N28: =L28 -> 0.2255918715 | O28: 13.0384225 | P28: 12.75625134 | Q28: -0.05657928957 | R28: -0.1131519343 | S28: - | T28: -0.1131519343 | U28: 5.397436746 | V28: 5.284284811 | W28: 5.284284811 | X28: 5.266956136 | Y28: 0.0173286752 | Z28: 16.52295539 | AA28: 16.52295539 | AB28: 16.52295539 | AC28: - | AD28: 5.278135927 | AE28: 5.278135927 | AF28: 5.278135927 | AG28: - | AH28: 3.694695149 | AI28: 7676.491063 | AJ28: 13.51820319 | AK28: 129.0893315 | AL28: 0.01193929497 | AM28: -0.0002908882087 | AN28: 0.0002908882087 | AO28: =FI_T-Rechentabelle!AL28 -> 6.268060705 | AP28: =K28 -> 8.494755705e-05
A29: 0.001687499927 | B29: 6.249999569e-05 | C29: 0.0111770511 | D29: 13.24687672 | E29: 7850001.5 | F29: 3.403711755e+12 | G29: 7850.0015 | M29: - | N29: =N28+(L30-L28)/2 -> 0.2266165211 | O29: 13.51820319 | P29: 13.24687672 | Q29: -0.04470994991 | R29: -0.0965621434 | S29: - | T29: -0.0965621434 | U29: 5.397436746 | V29: 5.300874602 | W29: 5.300874602 | X29: 5.278135927 | Y29: 0.02273867567 | Z29: 16.94524585 | AA29: 16.94524585 | AB29: 16.94524585 | AC29: - | AD29: 5.29280604 | AE29: 5.29280604 | AF29: 5.29280604 | AG29: - | AH29: 3.704964228 | AI29: 7697.827193 | AJ29: 13.99931739 | AK29: 133.6836337 | AL29: 0.0128142523 | AM29: -0.0002908882087 | AN29: 0.0002908882087 | AO29: =FI_T-Rechentabelle!AL29 -> 6.267185748 | AP29: =AP28 -> 8.494755705e-05
A30: 0.001749999821 | B30: 6.249999569e-05 | C30: 0.01202031284 | D30: 13.73750114 | E30: 7850001.5 | F30: 3.311719545e+12 | G30: 7850.0015 | I30: =C30 -> 0.01202031284 | J30: =AL28 -> 0.01193929497 | K30: =I30-J30 -> 8.101787362e-05 | L30: =L28+KP_LR*(1+2*TA_SIM/TN_LR)*K30-KP_LR*K28 -> 0.2276411707 | M30: - | N30: =L30 -> 0.2276411707 | O30: 13.99931739 | P30: 13.73750114 | Q30: -0.03417507205 | R30: -0.08049468045 | S30: - | T30: -0.08049468045 | U30: 5.397436746 | V30: 5.316942065 | W30: 5.316942065 | X30: 5.29280604 | Y30: 0.02413602529 | Z30: 17.0884885 | AA30: 17.0884885 | AB30: 17.0884885 | AC30: - | AD30: 5.308377669 | AE30: 5.308377669 | AF30: 5.308377669 | AG30: - | AH30: 3.715864368 | AI30: 7720.474482 | AJ30: 14.48184704 | AK30: 138.2914525 | AL30: 0.01371936774 | AM30: -0.0002908882087 | AN30: 0.0002908882087 | AO30: =FI_T-Rechentabelle!AL30 -> 6.266280632 | AP30: =K30 -> 8.101787362e-05
A31: 0.001812499831 | B31: 6.249999569e-05 | C31: 0.01289423865 | D31: 14.22812653 | E31: 7850001.5 | F31: 3.219727336e+12 | G31: 7850.0015 | M31: - | N31: =N30+(L32-L30)/2 -> 0.2299476413 | O31: 14.48184704 | P31: 14.22812653 | Q31: -0.02377287515 | R31: -0.06219853156 | S31: - | T31: -0.06219853156 | U31: 5.397436746 | V31: 5.335238214 | W31: 5.335238214 | X31: 5.308377669 | Y31: 0.02686054496 | Z31: 17.32998742 | AA31: 17.32998742 | AB31: 17.32998742 | AC31: - | AD31: 5.325707053 | AE31: 5.325707053 | AF31: 5.325707053 | AG31: - | AH31: 3.727994937 | AI31: 7745.67824 | AJ31: 14.96595193 | AK31: 142.9143137 | AL31: 0.01465473974 | AM31: -0.0002908882087 | AN31: 0.0002908882087 | AO31: =FI_T-Rechentabelle!AL31 -> 6.26534526 | AP31: =AP30 -> 8.101787362e-05
A32: 0.001874999842 | B32: 6.249999569e-05 | C32: 0.01379882852 | D32: 14.71875191 | E32: 7850001.5 | F32: 3.127735126e+12 | G32: 7850.0015 | I32: =C32 -> 0.01379882852 | J32: =AL30 -> 0.01371936774 | K32: =I32-J32 -> 7.946077206e-05 | L32: =L30+KP_LR*(1+2*TA_SIM/TN_LR)*K32-KP_LR*K30 -> 0.2322541119 | M32: - | N32: =L32 -> 0.2322541119 | O32: 14.96595193 | P32: 14.71875191 | Q32: -0.01494591312 | R32: -0.04539872564 | S32: - | T32: -0.04539872564 | U32: 5.397436746 | V32: 5.35203802 | W32: 5.35203802 | X32: 5.325707053 | Y32: 0.02633096704 | Z32: 17.34207885 | AA32: 17.34207885 | AB32: 17.34207885 | AC32: - | AD32: 5.342694774 | AE32: 5.342694774 | AF32: 5.342694774 | AG32: - | AH32: 3.739886342 | AI32: 7770.385085 | AJ32: 15.451601 | AK32: 147.5519207 | AL32: 0.0156204648 | AM32: -0.0002908882087 | AN32: 0.0002908882087 | AO32: =FI_T-Rechentabelle!AL32 -> 6.264379535 | AP32: =K32 -> 7.946077206e-05
A33: 0.001937499852 | B33: 6.249999569e-05 | C33: 0.01473408245 | D33: 15.20937634 | E33: 7850001.5 | F33: 3.035742917e+12 | G33: 7850.0015 | M33: - | N33: =N32+(L34-L32)/2 -> 0.2354882636 | O33: 15.451601 | P33: 15.20937634 | Q33: -0.006736401416 | R33: -0.02802753472 | S33: - | T33: -0.02802753472 | U33: 5.397436746 | V33: 5.369409211 | W33: 5.369409211 | X33: 5.342694774 | Y33: 0.02671443729 | Z33: 17.41897784 | AA33: 17.41897784 | AB33: 17.41897784 | AC33: - | AD33: 5.359929894 | AE33: 5.359929894 | AF33: 5.359929894 | AG33: - | AH33: 3.751950926 | AI33: 7795.451748 | AJ33: 15.93881673 | AK33: 152.2044882 | AL33: 0.01661664085 | AM33: -0.0002908882087 | AN33: 0.0002908882087 | AO33: =FI_T-Rechentabelle!AL33 -> 6.263383359 | AP33: =AP32 -> 7.946077206e-05
A34: 0.001999999862 | B34: 6.249999569e-05 | C34: 0.01570000044 | D34: 15.70000172 | E34: 7850001.5 | F34: 2.943750707e+12 | G34: 7850.0015 | I34: =C34 -> 0.01570000044 | J34: =AL32 -> 0.0156204648 | K34: =I34-J34 -> 7.953564252e-05 | L34: =L32+KP_LR*(1+2*TA_SIM/TN_LR)*K34-KP_LR*K32 -> 0.2387224154 | M34: - | N34: =L34 -> 0.2387224154 | O34: 15.93881673 | P34: 15.70000172 | Q34: -9.260243474e-05 | R34: -0.01266287226 | S34: - | T34: -0.01266287226 | U34: 5.397436746 | V34: 5.384773873 | W34: 5.384773873 | X34: 5.359929894 | Y34: 0.02484397892 | Z34: 17.33416601 | AA34: 17.33416601 | AB34: 17.33416601 | AC34: - | AD34: 5.375958268 | AE34: 5.375958268 | AF34: 5.375958268 | AG34: - | AH34: 3.763170788 | AI34: 7818.763323 | AJ34: 16.42748944 | AK34: 156.8709688 | AL34: 0.01764335894 | AM34: -0.0002908882087 | AN34: 0.0002908882087 | AO34: =FI_T-Rechentabelle!AL34 -> 6.262356641 | AP34: =K34 -> 7.953564252e-05
A35: 0.002062499756 | B35: 6.249999569e-05 | C35: 0.0166965825 | D35: 16.19062614 | E35: 7850001.5 | F35: 2.851758497e+12 | G35: 7850.0015 | M35: - | N35: =N34+(L36-L34)/2 -> 0.2424808596 | O35: 16.42748944 | P35: 16.19062614 | Q35: 0.005617561881 | R35: 0.001931560271 | S35: - | T35: 0.001931560271 | U35: 5.397436746 | V35: 5.399368306 | W35: 5.399368306 | X35: 5.375958268 | Y35: 0.02341003795 | Z35: 17.27731203 | AA35: 17.27731203 | AB35: 17.27731203 | AC35: - | AD35: 5.391061518 | AE35: 5.391061518 | AF35: 5.391061518 | AG35: - | AH35: 3.773743063 | AI35: 7840.729405 | AJ35: 16.91753503 | AK35: 161.5505595 | AL35: 0.01870070488 | AM35: -0.0002908882087 | AN35: 0.0002908882087 | AO35: =FI_T-Rechentabelle!AL35 -> 6.261299295 | AP35: =AP34 -> 7.953564252e-05
A36: 0.002124999883 | B36: 6.249999569e-05 | C36: 0.01772382863 | D36: 16.68125153 | E36: 7850001.5 | F36: 2.759766288e+12 | G36: 7850.0015 | I36: =C36 -> 0.01772382863 | J36: =AL34 -> 0.01764335894 | K36: =I36-J36 -> 8.046968871e-05 | L36: =L34+KP_LR*(1+2*TA_SIM/TN_LR)*K36-KP_LR*K34 -> 0.2462393038 | M36: - | N36: =L36 -> 0.2462393038 | O36: 16.91753503 | P36: 16.68125153 | Q36: 0.009955799753 | R36: 0.01440620036 | S36: - | T36: 0.01440620036 | U36: 5.397436746 | V36: 5.411842946 | W36: 5.411842946 | X36: 5.391061518 | Y36: 0.02078142775 | Z36: 17.13168194 | AA36: 17.13168194 | AB36: 17.13168194 | AC36: - | AD36: 5.404468891 | AE36: 5.404468891 | AF36: 5.404468891 | AG36: - | AH36: 3.783128224 | AI36: 7860.229012 | AJ36: 17.40879934 | AK36: 166.2417881 | AL36: 0.01978875484 | AM36: -0.0002908882087 | AN36: 0.0002908882087 | AO36: =FI_T-Rechentabelle!AL36 -> 6.260211245 | AP36: =K36 -> 8.046968871e-05
A37: 0.002187499776 | B37: 6.249999569e-05 | C37: 0.01878173881 | D37: 17.17187691 | E37: 7850001.5 | F37: 2.667774078e+12 | G37: 7850.0015 | M37: - | N37: =N36+(L38-L36)/2 -> 0.2501289654 | O37: 17.40879934 | P37: 17.17187691 | Q37: 0.01320652952 | R37: 0.02515464296 | S37: - | T37: 0.02515464296 | U37: 5.397436746 | V37: 5.422591389 | W37: 5.422591389 | X37: 5.404468891 | Y37: 0.01812249761 | Z37: 16.97894881 | AA37: 16.97894881 | AB37: 16.97894881 | AC37: - | AD37: 5.416160825 | AE37: 5.416160825 | AF37: 5.416160825 | AG37: - | AH37: 3.791312577 | AI37: 7877.233695 | AJ37: 17.90112645 | AK37: 170.9431657 | AL37: 0.02090757524 | AM37: -0.0002908882087 | AN37: 0.0002908882087 | AO37: =FI_T-Rechentabelle!AL37 -> 6.259092425 | AP37: =AP36 -> 8.046968871e-05
A38: 0.002249999903 | B38: 6.249999569e-05 | C38: 0.01987031306 | D38: 17.66250229 | E38: 7850001.5 | F38: 2.575781869e+12 | G38: 7850.0015 | I38: =C38 -> 0.01987031306 | J38: =AL36 -> 0.01978875484 | K38: =I38-J38 -> 8.155822607e-05 | L38: =L36+KP_LR*(1+2*TA_SIM/TN_LR)*K38-KP_LR*K36 -> 0.254018627 | M38: - | N38: =L38 -> 0.254018627 | O38: 17.90112645 | P38: 17.66250229 | Q38: 0.01539446663 | R38: 0.03397502875 | S38: - | T38: 0.03397502875 | U38: 5.397436746 | V38: 5.431411774 | W38: 5.431411774 | X38: 5.416160825 | Y38: 0.01525094946 | Z38: 16.80591869 | AA38: 16.80591869 | AB38: 16.80591869 | AC38: - | AD38: 5.426000147 | AE38: 5.426000147 | AF38: 5.426000147 | AG38: - | AH38: 3.798200103 | AI38: 7891.54395 | AJ38: 18.39434795 | AK38: 175.653084 | AL38: 0.02205722199 | AM38: -0.0002908882087 | AN38: 0.0002908882087 | AO38: =FI_T-Rechentabelle!AL38 -> 6.257942778 | AP38: =K38 -> 8.155822607e-05
A39: 0.002312499797 | B39: 6.249999569e-05 | C39: 0.02098955137 | D39: 18.15312767 | E39: 7850001.5 | F39: 2.483789659e+12 | G39: 7850.0015 | M39: - | N39: =N38+(L40-L38)/2 -> 0.2577001793 | O39: 18.39434795 | P39: 18.15312767 | Q39: 0.01647990351 | R39: 0.0405066124 | S39: - | T39: 0.0405066124 | U39: 5.397436746 | V39: 5.437943358 | W39: 5.437943358 | X39: 5.426000147 | Y39: 0.01194321088 | Z39: 16.59608214 | AA39: 16.59608214 | AB39: 16.59608214 | AC39: - | AD39: 5.433705445 | AE39: 5.433705445 | AF39: 5.433705445 | AG39: - | AH39: 3.803593811 | AI39: 7902.750491 | AJ39: 18.88826985 | AK39: 180.3696908 | AL39: 0.02323773885 | AM39: -0.0002908882087 | AN39: 0.0002908882087 | AO39: =FI_T-Rechentabelle!AL39 -> 6.256762261 | AP39: =AP38 -> 8.155822607e-05
A40: 0.002374999924 | B40: 6.249999569e-05 | C40: 0.02213945375 | D40: 18.64375114 | E40: 7850001.5 | F40: 2.391797449e+12 | G40: 7850.0015 | I40: =C40 -> 0.02213945375 | J40: =AL38 -> 0.02205722199 | K40: =I40-J40 -> 8.223176552e-05 | L40: =L38+KP_LR*(1+2*TA_SIM/TN_LR)*K40-KP_LR*K38 -> 0.2613817315 | M40: - | N40: =L40 -> 0.2613817315 | O40: 18.88826985 | P40: 18.64375114 | Q40: 0.01686302425 | R40: 0.04550501273 | S40: - | T40: 0.04550501273 | U40: 5.397436746 | V40: 5.442941758 | W40: 5.442941758 | X40: 5.433705445 | Y40: 0.009236313864 | Z40: 16.42335628 | AA40: 16.42335628 | AB40: 16.42335628 | AC40: - | AD40: 5.439664357 | AE40: 5.439664357 | AF40: 5.439664357 | AG40: - | AH40: 3.80776505 | AI40: 7911.417099 | AJ40: 19.38273342 | AK40: 185.0914701 | AL40: 0.02444915969 | AM40: -0.0002908882087 | AN40: 0.0002908882087 | AO40: =FI_T-Rechentabelle!AL40 -> 6.25555084 | AP40: =K40 -> 8.223176552e-05
A41: 0.002437499817 | B41: 6.249999569e-05 | C41: 0.02332002019 | D41: 19.13437653 | E41: 7850001.5 | F41: 2.29980524e+12 | G41: 7850.0015 | M41: - | N41: =N40+(L42-L40)/2 -> 0.2645962513 | O41: 19.38273342 | P41: 19.13437653 | Q41: 0.01623935682 | R41: 0.04801961589 | S41: - | T41: 0.04801961589 | U41: 5.397436746 | V41: 5.445456362 | W41: 5.445456362 | X41: 5.439664357 | Y41: 0.005792004849 | Z41: =Z40+KP_SR*(1+TA_SIM/TN_SR)*Y41-KP_SR*Y40 -> 16.19242466 | AA41: 16.19242466 | AB41: 16.19242466 | AC41: - | AD41: 5.443401134 | AE41: 5.443401134 | AF41: 5.443401134 | AG41: - | AH41: 3.810380794 | AI41: 7916.851847 | AJ41: 19.87753666 | AK41: 189.816493 | AL41: 0.02569150573 | AM41: -0.0002908882087 | AN41: 0.0002908882087 | AO41: =FI_T-Rechentabelle!AL41 -> 6.254308494 | AP41: =AP40 -> 8.223176552e-05
A42: 0.002499999944 | B42: 6.249999569e-05 | C42: 0.02453125069 | D42: 19.62500191 | E42: 7850001.5 | F42: 2.20781303e+12 | G42: 7850.0015 | I42: =C42 -> 0.02453125069 | J42: =AL40 -> 0.02444915969 | K42: =I42-J42 -> 8.209100363e-05 | L42: =L40+KP_LR*(1+2*TA_SIM/TN_LR)*K42-KP_LR*K40 -> 0.2678107711 | M42: - | N42: =L42 -> 0.2678107711 | O42: 19.87753666 | P42: 19.62500191 | Q42: 0.01527601766 | R42: 0.04951267408 | S42: - | T42: 0.04951267408 | U42: 5.397436746 | V42: 5.44694942 | W42: 5.44694942 | X42: 5.443401134 | Y42: 0.003548285722 | Z42: =Z41+KP_SR*(1+TA_SIM/TN_SR)*Y42-KP_SR*Y41 -> 16.04156878 | AA42: 16.04156878 | AB42: 16.04156878 | AC42: - | AD42: 5.445690351 | AE42: 5.445690351 | AF42: 5.445690351 | AG42: - | AH42: 3.811983245 | AI42: 7920.18127 | AJ42: 20.37254799 | AK42: 194.543503 | AL42: 0.02696478998 | AM42: -0.0002908882087 | AN42: 0.0002908882087 | AO42: =FI_T-Rechentabelle!AL42 -> 6.25303521 | AP42: =K42 -> 8.209100363e-05
A43: 0.002562499838 | B43: 6.249999569e-05 | C43: 0.02577314526 | D43: 20.11562729 | E43: 7850001.5 | F43: 2.115820821e+12 | G43: 7850.0015 | M43: - | N43: =N42+(L44-L42)/2 -> 0.2703908677 | O43: 20.37254799 | P43: 20.11562729 | Q43: 0.0134701663 | R43: 0.04861419542 | S43: - | T43: 0.04861419542 | U43: 5.397436746 | V43: 5.446050941 | W43: 5.446050941 | X43: 5.445690351 | Y43: 0.0003605904668 | Z43: =Z42+KP_SR*(1+TA_SIM/TN_SR)*Y43-KP_SR*Y42 -> 15.81848779 | AA43: 15.81848779 | AB43: 15.81848779 | AC43: - | AD43: 5.44592299 | AE43: 5.44592299 | AF43: 5.44592299 | AG43: - | AH43: 3.812146093 | AI43: 7920.519619 | AJ43: 20.86758047 | AK43: 199.2707149 | AL43: 0.02826901376 | AM43: -0.0002908882087 | AN43: 0.0002908882087 | AO43: =FI_T-Rechentabelle!AL43 -> 6.251730986 | AP43: =AP42 -> 8.209100363e-05
A44: 0.002624999732 | B44: 6.249999569e-05 | C44: 0.02704570389 | D44: 20.60625267 | E44: 7850001.5 | F44: 2.023828611e+12 | G44: 7850.0015 | I44: =C44 -> 0.02704570389 | J44: =AL42 -> 0.02696478998 | K44: =I44-J44 -> 8.091390903e-05 | L44: =L42+KP_LR*(1+2*TA_SIM/TN_LR)*K44-KP_LR*K42 -> 0.2729709643 | M44: - | N44: =L44 -> 0.2729709643 | O44: 20.86758047 | P44: 20.60625267 | Q44: 0.01164316814 | R44: 0.04722133142 | S44: - | T44: 0.04722133142 | U44: 5.397436746 | V44: 5.444658077 | W44: 5.444658077 | X44: 5.44592299 | Y44: -0.001264912543 | Z44: 15.70202136 | AA44: 15.70202136 | AB44: 15.70202136 | AC44: - | AD44: 5.445106917 | AE44: 5.445106917 | AF44: 5.445106917 | AG44: - | AH44: 3.811574842 | AI44: 7919.332728 | AJ44: 21.36253876 | AK44: 203.9972185 | AL44: 0.02960417243 | AM44: -0.0002908882087 | AN44: 0.0002908882087 | AO44: =FI_T-Rechentabelle!AL44 -> 6.250395828 | AP44: =K44 -> 8.091390903e-05
A45: 0.002687499858 | B45: 6.249999569e-05 | C45: 0.02834892658 | D45: 21.09687614 | E45: 7850001.5 | F45: 1.931836401e+12 | G45: 7850.0015 | M45: - | N45: =N44+(L46-L44)/2 -> 0.2748389041 | O45: 21.36253876 | P45: 21.09687614 | Q45: 0.009176286653 | R45: 0.04374507085 | S45: - | T45: 0.04374507085 | U45: 5.397436746 | V45: 5.441181816 | W45: 5.441181816 | X45: 5.445106917 | Y45: -0.003925100508 | Z45: 15.50794959 | AA45: 15.50794959 | AB45: 15.50794959 | AC45: - | AD45: 5.442574594 | AE45: 5.442574594 | AF45: 5.442574594 | AG45: - | AH45: 3.809802216 | AI45: 7915.649732 | AJ45: 21.85726687 | AK45: 208.7215239 | AL45: 0.03097025161 | AM45: -0.0002908882087 | AN45: 0.0002908882087 | AO45: =FI_T-Rechentabelle!AL45 -> 6.249029748 | AP45: =AP44 -> 8.091390903e-05
A46: 0.002749999752 | B46: 6.249999569e-05 | C46: 0.02968281334 | D46: 21.58750153 | E46: 7850001.5 | F46: 1.839844192e+12 | G46: 7850.0015 | I46: =C46 -> 0.02968281334 | J46: =AL44 -> 0.02960417243 | K46: =I46-J46 -> 7.864090682e-05 | L46: =L44+KP_LR*(1+2*TA_SIM/TN_LR)*K46-KP_LR*K44 -> 0.276706844 | M46: - | N46: =L46 -> 0.276706844 | O46: 21.85726687 | P46: 21.58750153 | Q46: 0.006941499772 | R46: 0.04026152377 | S46: - | T46: 0.04026152377 | U46: 5.397436746 | V46: 5.437698269 | W46: 5.437698269 | X46: 5.442574594 | Y46: -0.004876324676 | Z46: 15.43205634 | AA46: 15.43205634 | AB46: 15.43205634 | AC46: - | AD46: 5.439428578 | AE46: 5.439428578 | AF46: 5.439428578 | AG46: - | AH46: 3.807600005 | AI46: 7911.074184 | AJ46: 22.35170901 | AK46: 213.4430985 | AL46: 0.03236723342 | AM46: -0.0002908882087 | AN46: 0.0002908882087 | AO46: =FI_T-Rechentabelle!AL46 -> 6.247632767 | AP46: =K46 -> 7.864090682e-05
A47: 0.002812499879 | B47: 6.249999569e-05 | C47: 0.03104736416 | D47: 22.07812691 | E47: 7850001.5 | F47: 1.747851982e+12 | G47: 7850.0015 | M47: - | N47: =N46+(L48-L46)/2 -> 0.2778633167 | O47: 22.35170901 | P47: 22.07812691 | Q47: 0.004281217475 | R47: 0.03514395927 | S47: - | T47: 0.03514395927 | U47: 5.397436746 | V47: 5.432580705 | W47: 5.432580705 | X47: 5.439428578 | Y47: -0.006847873255 | Z47: 15.2808542 | AA47: 15.2808542 | AB47: 15.2808542 | AC47: - | AD47: 5.435010595 | AE47: 5.435010595 | AF47: 5.435010595 | AG47: - | AH47: 3.804507417 | AI47: 7904.648695 | AJ47: 22.84574955 | AK47: 218.1608382 | AL47: 0.03379509277 | AM47: -0.0002908882087 | AN47: 0.0002908882087 | AO47: =FI_T-Rechentabelle!AL47 -> 6.246204907 | AP47: =AP46 -> 7.864090682e-05
A48: 0.002874999773 | B48: 6.249999569e-05 | C48: 0.03244257904 | D48: 22.56875229 | E48: 7850001.5 | F48: 1.655859773e+12 | G48: 7850.0015 | I48: =C48 -> 0.03244257904 | J48: =AL46 -> 0.03236723342 | K48: =I48-J48 -> 7.534561755e-05 | L48: =L46+KP_LR*(1+2*TA_SIM/TN_LR)*K48-KP_LR*K46 -> 0.2790197895 | M48: - | N48: =L48 -> 0.2790197895 | O48: 22.84574955 | P48: 22.56875229 | Q48: 0.00202252825 | R48: 0.0304058446 | S48: - | T48: 0.0304058446 | U48: 5.397436746 | V48: 5.42784259 | W48: 5.42784259 | X48: 5.435010595 | Y48: -0.007168005186 | Z48: 15.2449719 | AA48: 15.2449719 | AB48: 15.2449719 | AC48: - | AD48: 5.430386076 | AE48: 5.430386076 | AF48: 5.430386076 | AG48: - | AH48: 3.801270253 | AI48: 7897.92282 | AJ48: 23.33936973 | AK48: 222.8745636 | AL48: 0.03525380338 | AM48: -0.0002908882087 | AN48: 0.0002908882087 | AO48: =FI_T-Rechentabelle!AL48 -> 6.244746197 | AP48: =K48 -> 7.534561755e-05
A49: 0.002937499899 | B49: 6.249999569e-05 | C49: 0.03386845799 | D49: 23.05937767 | E49: 7850001.5 | F49: 1.563867563e+12 | G49: 7850.0015 | M49: - | N49: =N48+(L50-L48)/2 -> 0.2795266593 | O49: 23.33936973 | P49: 23.05937767 | Q49: -0.0004653967158 | R49: 0.02453027526 | S49: - | T49: 0.02453027526 | U49: 5.397436746 | V49: 5.421967021 | W49: 5.421967021 | X49: 5.430386076 | Y49: -0.00841905505 | Z49: 15.14140449 | AA49: 15.14140449 | AB49: 15.14140449 | AC49: - | AD49: 5.424954428 | AE49: 5.424954428 | AF49: 5.424954428 | AG49: - | AH49: 3.797468099 | AI49: 7890.023061 | AJ49: 23.83249617 | AK49: 227.5835743 | AL49: 0.03674333439 | AM49: -0.0002908882087 | AN49: 0.0002908882087 | AO49: =FI_T-Rechentabelle!AL49 -> 6.243256666 | AP49: =AP48 -> 7.534561755e-05
A50: 0.002999999793 | B50: 6.249999569e-05 | C50: 0.035325001 | D50: 23.55000305 | E50: 7850001.5 | F50: 1.471875353e+12 | G50: 7850.0015 | I50: =C50 -> 0.035325001 | J50: =AL48 -> 0.03525380338 | K50: =I50-J50 -> 7.119761927e-05 | L50: =L48+KP_LR*(1+2*TA_SIM/TN_LR)*K50-KP_LR*K48 -> 0.2800335291 | M50: - | N50: =L50 -> 0.2800335291 | O50: 23.83249617 | P50: 23.55000305 | Q50: -0.002459586758 | R50: 0.019312042 | S50: - | T50: 0.019312042 | U50: 5.397436746 | V50: 5.416748788 | W50: 5.416748788 | X50: 5.424954428 | Y50: -0.008205639893 | Z50: 15.14103237 | AA50: 15.14103237 | AB50: 15.14103237 | AC50: - | AD50: 5.419660466 | AE50: 5.419660466 | AF50: 5.419660466 | AG50: - | AH50: 3.793762326 | AI50: 7882.323554 | AJ50: 24.32514139 | AK50: 232.2879896 | AL50: 0.03826365573 | AM50: -0.0002908882087 | AN50: 0.0002908882087 | AO50: =FI_T-Rechentabelle!AL50 -> 6.241736344 | AP50: =K50 -> 7.119761927e-05
A51: 0.003062499687 | B51: 6.249999569e-05 | C51: 0.03681220807 | D51: 24.04062653 | E51: 7850001.5 | F51: 1.379883144e+12 | G51: 7850.0015 | M51: - | N51: =N50+(L52-L50)/2 -> 0.279994044 | O51: 24.32514139 | P51: 24.04062653 | Q51: -0.004520819864 | R51: 0.01343602152 | S51: - | T51: 0.01343602152 | U51: 5.397436746 | V51: 5.410872767 | W51: 5.410872767 | X51: 5.419660466 | Y51: -0.008787699145 | Z51: 15.08373407 | AA51: 15.08373407 | AB51: 15.08373407 | AC51: - | AD51: 5.413990983 | AE51: 5.413990983 | AF51: 5.413990983 | AG51: - | AH51: 3.789793688 | AI51: 7874.077889 | AJ51: 24.81727126 | AK51: 236.9874837 | AL51: 0.03981473518 | AM51: -0.0002908882087 | AN51: 0.0002908882087 | AO51: =FI_T-Rechentabelle!AL51 -> 6.240185265 | AP51: =AP50 -> 7.119761927e-05
A52: 0.003124999814 | B52: 6.249999569e-05 | C52: 0.03833007921 | D52: 24.53125191 | E52: 7850001.5 | F52: 1.287890934e+12 | G52: 7850.0015 | I52: =C52 -> 0.03833007921 | J52: =AL50 -> 0.03826365573 | K52: =I52-J52 -> 6.64234819e-05 | L52: =L50+KP_LR*(1+2*TA_SIM/TN_LR)*K52-KP_LR*K50 -> 0.2799545588 | M52: - | N52: =L52 -> 0.2799545588 | O52: 24.81727126 | P52: 24.53125191 | Q52: -0.006064791591 | R52: 0.00838158502 | S52: - | T52: 0.00838158502 | U52: 5.397436746 | V52: 5.405818331 | W52: 5.405818331 | X52: 5.413990983 | Y52: -0.008172652328 | Z52: 15.11161562 | AA52: 15.11161562 | AB52: 15.11161562 | AC52: - | AD52: 5.408718304 | AE52: 5.408718304 | AF52: 5.408718304 | AG52: - | AH52: 3.786102813 | AI52: 7866.409335 | AJ52: 25.30892184 | AK52: 241.6824009 | AL52: 0.0413965428 | AM52: -0.0002908882087 | AN52: 0.0002908882087 | AO52: =FI_T-Rechentabelle!AL52 -> 6.238603457 | AP52: =K52 -> 6.64234819e-05
A53: 0.003187499708 | B53: 6.249999569e-05 | C53: 0.03987861441 | D53: 25.02187729 | E53: 7850001.5 | F53: 1.195898725e+12 | G53: 7850.0015 | M53: - | N53: =N52+(L54-L52)/2 -> 0.2794938618 | O53: 25.30892184 | P53: 25.02187729 | Q53: -0.007550690633 | R53: 0.003099395348 | S53: - | T53: 0.003099395348 | U53: 5.397436746 | V53: 5.400536141 | W53: 5.400536141 | X53: 5.408718304 | Y53: -0.008182163078 | Z53: 15.09563946 | AA53: 15.09563946 | AB53: 15.09563946 | AC53: - | AD53: 5.403439489 | AE53: 5.403439489 | AF53: 5.403439489 | AG53: - | AH53: 3.782407642 | AI53: 7858.731856 | AJ53: 25.80009258 | AK53: 246.372736 | AL53: 0.04300904858 | AM53: -0.0002908882087 | AN53: 0.0002908882087 | AO53: =FI_T-Rechentabelle!AL53 -> 6.236990951 | AP53: =AP52 -> 6.64234819e-05
A54: 0.003249999834 | B54: 6.249999569e-05 | C54: 0.04145781367 | D54: 25.51250267 | E54: 7850001.5 | F54: 1.103906515e+12 | G54: 7850.0015 | I54: =C54 -> 0.04145781367 | J54: =AL52 -> 0.0413965428 | K54: =I54-J54 -> 6.127087664e-05 | L54: =L52+KP_LR*(1+2*TA_SIM/TN_LR)*K54-KP_LR*K52 -> 0.2790331647 | M54: - | N54: =L54 -> 0.2790331647 | O54: 25.80009258 | P54: 25.51250267 | Q54: -0.008556747267 | R54: -0.001316734075 | S54: - | T54: -0.001316734075 | U54: 5.397436746 | V54: 5.396120012 | W54: 5.396120012 | X54: 5.403439489 | Y54: -0.007319477612 | Z54: 15.14249991 | AA54: 15.14249991 | AB54: 15.14249991 | AC54: - | AD54: 5.398717246 | AE54: 5.398717246 | AF54: 5.398717246 | AG54: - | AH54: 3.779102072 | AI54: 7851.863852 | AJ54: 26.29083407 | AK54: 251.058972 | AL54: 0.04465222571 | AM54: -0.0002908882087 | AN54: 0.0002908882087 | AO54: =FI_T-Rechentabelle!AL54 -> 6.235347774 | AP54: =K54 -> 6.127087664e-05
A55: 0.003312499728 | B55: 6.249999569e-05 | C55: 0.043067677 | D55: 26.00312805 | E55: 7850001.5 | F55: 1.011914306e+12 | G55: 7850.0015 | M55: - | N55: =N54+(L56-L54)/2 -> 0.278281 | O55: 26.29083407 | P55: 26.00312805 | Q55: -0.00942502118 | R55: -0.005625433361 | S55: - | T55: -0.005625433361 | U55: 5.397436746 | V55: 5.391811312 | W55: 5.391811312 | X55: 5.398717246 | Y55: -0.006905933277 | Z55: 15.15860727 | AA55: 15.15860727 | AB55: 15.15860727 | AC55: - | AD55: 5.394261805 | AE55: 5.394261805 | AF55: 5.394261805 | AG55: - | AH55: 3.775983263 | AI55: 7845.383884 | AJ55: 26.78117057 | AK55: 255.7413406 | AL55: 0.04632604887 | AM55: -0.0002908882087 | AN55: 0.0002908882087 | AO55: =FI_T-Rechentabelle!AL55 -> 6.233673951 | AP55: =AP54 -> 6.127087664e-05
A56: 0.003374999855 | B56: 6.249999569e-05 | C56: 0.04470820439 | D56: 26.49375343 | E56: 7850001.5 | F56: 9.199220959e+11 | G56: 7850.0015 | I56: =C56 -> 0.04470820439 | J56: =AL54 -> 0.04465222571 | K56: =I56-J56 -> 5.597867758e-05 | L56: =L54+KP_LR*(1+2*TA_SIM/TN_LR)*K56-KP_LR*K54 -> 0.2775288354 | M56: - | N56: =L56 -> 0.2775288354 | O56: 26.78117057 | P56: 26.49375343 | Q56: -0.009888297095 | R56: -0.009109088363 | S56: - | T56: -0.009109088363 | U56: 5.397436746 | V56: 5.388327657 | W56: 5.388327657 | X56: 5.394261805 | Y56: -0.005934147456 | Z56: 15.21571777 | AA56: 15.21571777 | AB56: 15.21571777 | AC56: - | AD56: 5.390433323 | AE56: 5.390433323 | AF56: 5.390433323 | AG56: - | AH56: 3.773303326 | AI56: 7839.815761 | AJ56: 27.27115905 | AK56: 260.420386 | AL56: 0.04803049631 | AM56: -0.0002908882087 | AN56: 0.0002908882087 | AO56: =FI_T-Rechentabelle!AL56 -> 6.231969504 | AP56: =K56 -> 5.597867758e-05
A57: 0.003437499749 | B57: 6.249999569e-05 | C57: 0.04637939584 | D57: 26.98437691 | E57: 7850001.5 | F57: 8.279298863e+11 | G57: 7850.0015 | M57: - | N57: =N56+(L58-L56)/2 -> 0.2766058997 | O57: 27.27115905 | P57: 26.98437691 | Q57: -0.01017624376 | R57: -0.01225687482 | S57: - | T57: -0.01225687482 | U57: 5.397436746 | V57: 5.385179871 | W57: 5.385179871 | X57: 5.390433323 | Y57: -0.005253451682 | Z57: 15.25366918 | AA57: 15.25366918 | AB57: 15.25366918 | AC57: - | AD57: 5.387043999 | AE57: 5.387043999 | AF57: 5.387043999 | AG57: - | AH57: 3.770930799 | AI57: 7834.886348 | AJ57: 27.76083945 | AK57: 265.0964893 | AL57: 0.04976554878 | AM57: -0.0002908882087 | AN57: 0.0002908882087 | AO57: =FI_T-Rechentabelle!AL57 -> 6.230234451 | AP57: =AP56 -> 5.597867758e-05
A58: 0.003499999642 | B58: 6.249999569e-05 | C58: 0.04808125136 | D58: 27.47500229 | E58: 7850001.5 | F58: 7.359376767e+11 | G58: 7850.0015 | I58: =C58 -> 0.04808125136 | J58: =AL56 -> 0.04803049631 | K58: =I58-J58 -> 5.075504692e-05 | L58: =L56+KP_LR*(1+2*TA_SIM/TN_LR)*K58-KP_LR*K56 -> 0.2756829639 | M58: - | N58: =L58 -> 0.2756829639 | O58: 27.76083945 | P58: 27.47500229 | Q58: -0.01015419475 | R58: -0.01468132659 | S58: - | T58: -0.01468132659 | U58: 5.397436746 | V58: 5.382755419 | W58: 5.382755419 | X58: 5.387043999 | Y58: -0.004288579784 | Z58: 15.31337317 | AA58: 15.31337317 | AB58: 15.31337317 | AC58: - | AD58: 5.384277173 | AE58: 5.384277173 | AF58: 5.384277173 | AG58: - | AH58: 3.768994021 | AI58: 7830.862292 | AJ58: 28.25026834 | AK58: 269.770191 | AL58: 0.05153119055 | AM58: -0.0002908882087 | AN58: 0.0002908882087 | AO58: =FI_T-Rechentabelle!AL58 -> 6.228468809 | AP58: =K58 -> 5.075504692e-05
A59: 0.003562499769 | B59: 6.249999569e-05 | C59: 0.04981377094 | D59: 27.96562767 | E59: 7850001.5 | F59: 6.439454672e+11 | G59: 7850.0015 | M59: - | N59: =N58+(L60-L58)/2 -> 0.2746915425 | O59: 28.25026834 | P59: 27.96562767 | Q59: -0.009949128008 | R59: -0.01663191003 | S59: - | T59: -0.01663191003 | U59: 5.397436746 | V59: 5.380804836 | W59: 5.380804836 | X59: 5.384277173 | Y59: -0.003472337558 | Z59: 15.36417148 | AA59: 15.36417148 | AB59: 15.36417148 | AC59: - | AD59: 5.382036955 | AE59: 5.382036955 | AF59: 5.382036955 | AG59: - | AH59: 3.767425869 | AI59: 7827.604132 | AJ59: 28.7394936 | AK59: 274.4419481 | AL59: 0.0533274089 | AM59: -0.0002908882087 | AN59: 0.0002908882087 | AO59: =FI_T-Rechentabelle!AL59 -> 6.226672591 | AP59: =AP58 -> 5.075504692e-05
A60: 0.003624999663 | B60: 6.249999569e-05 | C60: 0.05157695458 | D60: 28.45625305 | E60: 7850001.5 | F60: 5.519532576e+11 | G60: 7850.0015 | I60: =C60 -> 0.05157695458 | J60: =AL58 -> 0.05153119055 | K60: =I60-J60 -> 4.576403398e-05 | L60: =L58+KP_LR*(1+2*TA_SIM/TN_LR)*K60-KP_LR*K58 -> 0.273700121 | M60: - | N60: =L60 -> 0.273700121 | O60: 28.7394936 | P60: 28.45625305 | Q60: -0.009540426263 | R60: -0.0180112302 | S60: - | T60: -0.0180112302 | U60: 5.397436746 | V60: 5.379425515 | W60: 5.379425515 | X60: 5.382036955 | Y60: -0.002611439947 | Z60: 15.41971501 | AA60: 15.41971501 | AB60: 15.41971501 | AC60: - | AD60: 5.380352155 | AE60: 5.380352155 | AF60: 5.380352155 | AG60: - | AH60: 3.766246509 | AI60: 7825.153769 | AJ60: 29.22856571 | AK60: 279.1122427 | AL60: 0.05515419426 | AM60: -0.0002908882087 | AN60: 0.0002908882087 | AO60: =FI_T-Rechentabelle!AL60 -> 6.224845806 | AP60: =K60 -> 4.576403398e-05
A61: 0.00368749979 | B61: 6.249999569e-05 | C61: 0.05337080229 | D61: 28.94687843 | E61: 7850001.5 | F61: 4.59961048e+11 | G61: 7850.0015 | M61: - | N61: =N60+(L62-L60)/2 -> 0.2727188164 | O61: 29.22856571 | P61: 28.94687843 | Q61: -0.008968459892 | R61: -0.01887298339 | S61: - | T61: -0.01887298339 | U61: 5.397436746 | V61: 5.378563762 | W61: 5.378563762 | X61: 5.380352155 | Y61: -0.001788393173 | Z61: 15.47414156 | AA61: 15.47414156 | AB61: 15.47414156 | AC61: - | AD61: 5.379198353 | AE61: 5.379198353 | AF61: 5.379198353 | AG61: - | AH61: 3.765438847 | AI61: 7823.475685 | AJ61: 29.71753294 | AK61: 283.7815358 | AL61: 0.05701154006 | AM61: -0.0002908882087 | AN61: 0.0002908882087 | AO61: =FI_T-Rechentabelle!AL61 -> 6.22298846 | AP61: =AP60 -> 4.576403398e-05
A62: 0.003749999683 | B62: 6.249999569e-05 | C62: 0.05519531406 | D62: 29.43750381 | E62: 7850001.5 | F62: 3.679688384e+11 | G62: 7850.0015 | I62: =C62 -> 0.05519531406 | J62: =AL60 -> 0.05515419426 | K62: =I62-J62 -> 4.111980449e-05 | L62: =L60+KP_LR*(1+2*TA_SIM/TN_LR)*K62-KP_LR*K60 -> 0.2717375119 | M62: - | N62: =L62 -> 0.2717375119 | O62: 29.71753294 | P62: 29.43750381 | Q62: -0.008291613322 | R62: -0.01932682067 | S62: - | T62: -0.01932682067 | U62: 5.397436746 | V62: 5.378109925 | W62: 5.378109925 | X62: 5.379198353 | Y62: -0.001088428411 | Z62: 15.52123816 | AA62: 15.52123816 | AB62: 15.52123816 | AC62: - | AD62: 5.378496142 | AE62: 5.378496142 | AF62: 5.378496142 | AG62: - | AH62: 3.764947299 | AI62: 7822.454392 | AJ62: 30.20643634 | AK62: 288.4502194 | AL62: 0.05889944234 | AM62: -0.0002908882087 | AN62: 0.0002908882087 | AO62: =FI_T-Rechentabelle!AL62 -> 6.221100558 | AP62: =K62 -> 4.111980449e-05
A63: 0.00381249981 | B63: 6.249999569e-05 | C63: 0.05705048989 | D63: 29.92812729 | E63: 7850001.5 | F63: 2.759766288e+11 | G63: 7850.0015 | M63: - | N63: =N62+(L64-L62)/2 -> 0.2708197367 | O63: 30.20643634 | P63: 29.92812729 | Q63: -0.007489313885 | R63: -0.01929451065 | S63: - | T63: -0.01929451065 | U63: 5.397436746 | V63: 5.378142235 | W63: 5.378142235 | X63: 5.378496142 | Y63: -0.000353906507 | Z63: 15.57213471 | AA63: 15.57213471 | AB63: 15.57213471 | AC63: - | AD63: 5.378267815 | AE63: 5.378267815 | AF63: 5.378267815 | AG63: - | AH63: 3.76478747 | AI63: 7822.122315 | AJ63: 30.69531898 | AK63: 293.1187048 | AL63: 0.06081789977 | AM63: -0.0002908882087 | AN63: 0.0002908882087 | AO63: =FI_T-Rechentabelle!AL63 -> 6.2191821 | AP63: =AP62 -> 4.111980449e-05
A64: 0.003874999704 | B64: 6.249999569e-05 | C64: 0.05893632979 | D64: 30.41875267 | E64: 7850001.5 | F64: 1.839844192e+11 | G64: 7850.0015 | I64: =C64 -> 0.05893632979 | J64: =AL62 -> 0.05889944234 | K64: =I64-J64 -> 3.68874553e-05 | L64: =L62+KP_LR*(1+2*TA_SIM/TN_LR)*K64-KP_LR*K62 -> 0.2699019615 | M64: - | N64: =L64 -> 0.2699019615 | O64: 30.69531898 | P64: 30.41875267 | Q64: -0.006664352275 | R64: -0.01900859478 | S64: - | T64: -0.01900859478 | U64: 5.397436746 | V64: 5.378428151 | W64: 5.378428151 | X64: 5.378267815 | Y64: 0.0001603361384 | Z64: 15.60853121 | AA64: 15.60853121 | AB64: 15.60853121 | AC64: - | AD64: 5.378371257 | AE64: 5.378371257 | AF64: 5.378371257 | AG64: - | AH64: 3.76485988 | AI64: 7822.272762 | AJ64: 31.18421103 | AK64: 297.7872799 | AL64: 0.06276691296 | AM64: -0.0002908882087 | AN64: 0.0002908882087 | AO64: =FI_T-Rechentabelle!AL64 -> 6.217233087 | AP64: =K64 -> 3.68874553e-05
A65: 0.003937499598 | B65: 6.249999569e-05 | C65: 0.06085283375 | D65: 30.90937805 | E65: 7850001.5 | F65: 9.199220959e+10 | G65: 7850.0015 | M65: - | N65: =N64+(L66-L64)/2 -> 0.2690774876 | O65: 31.18421103 | P65: 30.90937805 | Q65: -0.005755492403 | R65: -0.01830679467 | S65: - | T65: -0.01830679467 | U65: 5.397436746 | V65: 5.379129951 | W65: 5.379129951 | X65: 5.378371257 | Y65: 0.0007586935821 | Z65: 15.65195153 | AA65: 15.65195153 | AB65: 15.65195153 | AC65: - | AD65: 5.378860737 | AE65: 5.378860737 | AF65: 5.378860737 | AG65: - | AH65: 3.765202516 | AI65: 7822.984658 | AJ65: 31.67314757 | AK65: 302.45628 | AL65: 0.06474648469 | AM65: -0.0002908882087 | AN65: 0.0002908882087 | AO65: =FI_T-Rechentabelle!AL65 -> 6.215253515 | AP65: =AP64 -> 3.68874553e-05
A66: 0.003999999724 | B66: 6.249999569e-05 | C66: 0.06280000178 | D66: 31.40000343 | E66: 7850001.5 | F66: 0 | G66: 7850.0015 | I66: =C66 -> 0.06280000178 | J66: =AL64 -> 0.06276691296 | K66: =I66-J66 -> 3.308881355e-05 | L66: =L64+KP_LR*(1+2*TA_SIM/TN_LR)*K66-KP_LR*K64 -> 0.2682530136 | M66: - | N66: =L66 -> 0.2682530136 | O66: 31.67314757 | P66: 31.40000343 | Q66: -0.004891126066 | R66: -0.01749731677 | S66: - | T66: -0.01749731677 | U66: =G66*(JM_EMS+JL_EMS)/KT_M*KP_VSR -> 5.397436746 | V66: 5.379939429 | W66: =IF(V66<-IM_R,-IM_R,IF(V66>IM_R,IM_R,V66)) -> 5.379939429 | X66: 5.378860737 | Y66: 0.001078691752 | Z66: 15.67643154 | AA66: =IF(Z66<-U_ZWK,-U_ZWK,IF(Z66>U_ZWK,U_ZWK,Z66)) -> 15.67643154 | AB66: 15.67643154 | AC66: - | AD66: 5.379556667 | AE66: 5.379556667 | AF66: 5.379556667 | AG66: - | AH66: =AF66*KT_M -> 3.765689667 | AI66: =AH66/(JM_EMS+JL_EMS) -> 7823.996815 | AJ66: 32.16214737 | AK66: =AJ66/(2*PI())*60 -> 307.1258841 | AL66: 0.0667566189 | AM66: =-DF_LR -> -0.0002908882087 | AN66: =DF_LR -> 0.0002908882087 | AO66: =FI_T-Rechentabelle!AL66 -> 6.213243381 | AP66: =K66 -> 3.308881355e-05
A67: 0.004062499851 | B67: 6.249999569e-05 | C67: 0.06477783386 | D67: 31.89062881 | E67: 7850001.5 | G67: =E67/1000 -> 7850.0015 | M67: - | N67: =N66+(L68-L66)/2 -> 0.267531502 | O67: 32.16214737 | P67: 31.89062881 | Q67: -0.003987057062 | R67: =R66+KP_DR*(1+TA_SIM/TN_DR)*Q67-KP_DR*Q66 -> -0.01637548093 | S67: - | T67: =R67 -> -0.01637548093 | U67: 5.397436746 | V67: =T67+U67 -> 5.381061265 | W67: 5.381061265 | X67: 5.379556667 | Y67: =W67-X67 -> 0.001504597428 | Z67: 15.70914242 | AA67: 15.70914242 | AB67: =AA67 -> 15.70914242 | AC67: - | AD67: =(1/R_M*AB67+AD66*T_M/TA_SIM)/(1+T_M/TA_SIM) -> 5.380527375 | AE67: =AD67 -> 5.380527375 | AF67: =AE67 -> 5.380527375 | AG67: - | AH67: 3.766369163 | AI67: 7825.408607 | AJ67: =AJ66+AI67*TA_SIM -> 32.65123541 | AK67: 311.7963308 | AL67: =AL66+AJ67*TA_SIM -> 0.06879732111 | AM67: -0.0002908882087 | AN67: 0.0002908882087 | AO67: =FI_T-Rechentabelle!AL67 -> 6.211202679 | AP67: =AP66 -> 3.308881355e-05
A68: 0.004124999512 | B68: 6.249999569e-05 | C68: 0.06678633001 | D68: 32.38125229 | E68: 7850001.5 | G68: 7850.0015 | I68: =C68 -> 0.06678633001 | J68: =AL66 -> 0.0667566189 | K68: =I68-J68 -> 2.971111708e-05 | L68: =L66+KP_LR*(1+2*TA_SIM/TN_LR)*K68-KP_LR*K66 -> 0.2668099905 | M68: - | N68: =L68 -> 0.2668099905 | O68: =AJ67 -> 32.65123541 | P68: =D68*KP_VDR -> 32.38125229 | Q68: =N68-O68+P68 -> -0.003173132422 | R68: -0.01526399331 | S68: - | T68: -0.01526399331 | U68: 5.397436746 | V68: 5.382172752 | W68: 5.382172752 | X68: =AF67 -> 5.380527375 | Y68: 0.001645377025 | Z68: 15.72210269 | AA68: 15.72210269 | AB68: 15.72210269 | AC68: - | AD68: 5.381588909 | AE68: 5.381588909 | AF68: 5.381588909 | AG68: - | AH68: 3.767112236 | AI68: 7826.952496 | AJ68: 33.14041994 | AK68: 316.467699 | AL68: 0.07086859736 | AM68: -0.0002908882087 | AN68: 0.0002908882087 | AO68: =FI_T-Rechentabelle!AL68 -> 6.209131403 | AP68: =K68 -> 2.971111708e-05
A69: 0.004187499639 | B69: 6.249999569e-05 | C69: 0.06882549023 | D69: 32.87187958 | E69: 7850001.5 | G69: 7850.0015 | M69: - | N69: =N68+(L70-L68)/2 -> 0.2661857529 | O69: 33.14041994 | P69: 32.87187958 | Q69: -0.002354612165 | R69: -0.0139423129 | S69: - | T69: -0.0139423129 | U69: 5.397436746 | V69: 5.383494433 | W69: 5.383494433 | X69: 5.381588909 | Y69: 0.001905523878 | Z69: 15.74392849 | AA69: 15.74392849 | AB69: 15.74392849 | AC69: - | AD69: 5.382818279 | AE69: 5.382818279 | AF69: 5.382818279 | AG69: - | AH69: 3.767972795 | AI69: 7828.740485 | AJ69: 33.62971622 | AK69: 321.1401343 | AL69: 0.07297045462 | AM69: -0.0002908882087 | AN69: 0.0002908882087 | AO69: =FI_T-Rechentabelle!AL69 -> 6.207029545 | AP69: =AP68 -> 2.971111708e-05
A70: 0.004249999765 | B70: 6.249999569e-05 | C70: 0.0708953145 | D70: 33.36250305 | E70: 7850001.5 | G70: 7850.0015 | I70: =C70 -> 0.0708953145 | J70: =AL68 -> 0.07086859736 | K70: =I70-J70 -> 2.67171486e-05 | L70: =L68+KP_LR*(1+2*TA_SIM/TN_LR)*K70-KP_LR*K68 -> 0.2655615154 | M70: - | N70: =L70 -> 0.2655615154 | O70: 33.62971622 | P70: 33.36250305 | Q70: -0.001651655926 | R70: -0.01271690666 | S70: - | T70: -0.01271690666 | U70: 5.397436746 | V70: 5.384719839 | W70: 5.384719839 | X70: 5.382818279 | Y70: 0.001901559867 | Z70: 15.747208 | AA70: 15.747208 | AB70: 15.747208 | AC70: - | AD70: 5.384045092 | AE70: 5.384045092 | AF70: 5.384045092 | AG70: - | AH70: 3.768831564 | AI70: 7830.524755 | AJ70: 34.11912402 | AK70: 325.8136345 | AL70: 0.07510289987 | AM70: -0.0002908882087 | AN70: 0.0002908882087 | AO70: =FI_T-Rechentabelle!AL70 -> 6.2048971 | AP70: =K70 -> 2.67171486e-05
A71: 0.004312499892 | B71: 6.249999569e-05 | C71: 0.07299580284 | D71: 33.85312653 | E71: 7850001.5 | G71: 7850.0015 | M71: - | N71: =N70+(L72-L70)/2 -> 0.2650186857 | O71: 34.11912402 | P71: 33.85312653 | Q71: -0.0009788086083 | R71: -0.01139719837 | S71: - | T71: -0.01139719837 | U71: 5.397436746 | V71: 5.386039547 | W71: 5.386039547 | X71: 5.384045092 | Y71: 0.00199445534 | Z71: 15.75746023 | AA71: 15.75746023 | AB71: 15.75746023 | AC71: - | AD71: 5.385331837 | AE71: 5.385331837 | AF71: 5.385331837 | AG71: - | AH71: 3.769732286 | AI71: 7832.39619 | AJ71: 34.60864878 | AK71: 330.4882516 | AL71: 0.07726594042 | AM71: -0.0002908882087 | AN71: 0.0002908882087 | AO71: =FI_T-Rechentabelle!AL71 -> 6.20273406 | AP71: =AP70 -> 2.67171486e-05
A72: 0.004374999553 | B72: 6.249999569e-05 | C72: 0.07512695525 | D72: 34.34375381 | E72: 7850001.5 | G72: 7850.0015 | I72: =C72 -> 0.07512695525 | J72: =AL70 -> 0.07510289987 | K72: =I72-J72 -> 2.405537803e-05 | L72: =L70+KP_LR*(1+2*TA_SIM/TN_LR)*K72-KP_LR*K70 -> 0.2644758561 | M72: - | N72: =L72 -> 0.2644758561 | O72: 34.60864878 | P72: 34.34375381 | Q72: -0.0004191112937 | R72: -0.01020309881 | S72: - | T72: -0.01020309881 | U72: 5.397436746 | V72: 5.387233647 | W72: 5.387233647 | X72: 5.385331837 | Y72: 0.001901809524 | Z72: 15.75451531 | AA72: 15.75451531 | AB72: 15.75451531 | AC72: - | AD72: 5.386558811 | AE72: 5.386558811 | AF72: 5.386558811 | AG72: - | AH72: 3.770591168 | AI72: 7834.180694 | AJ72: 35.09828508 | AK72: 335.1639338 | AL72: 0.07945958324 | AM72: -0.0002908882087 | AN72: 0.0002908882087 | AO72: =FI_T-Rechentabelle!AL72 -> 6.200540417 | AP72: =K72 -> 2.405537803e-05
A73: 0.00443749968 | B73: 6.249999569e-05 | C73: 0.07728877172 | D73: 34.83437729 | E73: 7850001.5 | G73: 7850.0015 | M73: - | N73: =N72+(L74-L72)/2 -> 0.2639933059 | O73: 35.09828508 | P73: 34.83437729 | Q73: 8.551925956e-05 | R73: -0.009013510303 | S73: - | T73: -0.009013510303 | U73: 5.397436746 | V73: 5.388423235 | W73: 5.388423235 | X73: 5.386558811 | Y73: 0.001864424142 | Z73: 15.75537938 | AA73: 15.75537938 | AB73: 15.75537938 | AC73: - | AD73: 5.387761665 | AE73: 5.387761665 | AF73: 5.387761665 | AG73: - | AH73: 3.771433166 | AI73: 7835.930118 | AJ73: 35.58803071 | AK73: 339.8406601 | AL73: 0.08168383516 | AM73: -0.0002908882087 | AN73: 0.0002908882087 | AO73: =FI_T-Rechentabelle!AL73 -> 6.198316165 | AP73: =AP72 -> 2.405537803e-05
A74: 0.004499999806 | B74: 6.249999569e-05 | C74: 0.07948125225 | D74: 35.32500458 | E74: 7850001.5 | G74: 7850.0015 | I74: =C74 -> 0.07948125225 | J74: =AL72 -> 0.07945958324 | K74: =I74-J74 -> 2.166901004e-05 | L74: =L72+KP_LR*(1+2*TA_SIM/TN_LR)*K74-KP_LR*K72 -> 0.2635107556 | M74: - | N74: =L74 -> 0.2635107556 | O74: 35.58803071 | P74: 35.32500458 | Q74: 0.0004846254804 | R74: -0.007971020167 | S74: - | T74: -0.007971020167 | U74: 5.397436746 | V74: 5.389465725 | W74: 5.389465725 | X74: 5.387761665 | Y74: 0.001704059992 | Z74: 15.74731109 | AA74: 15.74731109 | AB74: 15.74731109 | AC74: - | AD74: 5.388861059 | AE74: 5.388861059 | AF74: 5.388861059 | AG74: - | AH74: 3.772202741 | AI74: 7837.52907 | AJ74: 36.07787627 | AK74: 344.5183407 | AL74: 0.08393870242 | AM74: -0.0002908882087 | AN74: 0.0002908882087 | AO74: =FI_T-Rechentabelle!AL74 -> 6.196061298 | AP74: =K74 -> 2.166901004e-05
A75: 0.004562499467 | B75: 6.249999569e-05 | C75: 0.08170439684 | D75: 35.81562805 | E75: 7850001.5 | G75: 7850.0015 | M75: - | N75: =N74+(L76-L74)/2 -> 0.263066185 | O75: 36.07787627 | P75: 35.81562805 | Q75: 0.0008179621149 | R75: -0.006999589354 | S75: - | T75: -0.006999589354 | U75: 5.397436746 | V75: 5.390437156 | W75: 5.390437156 | X75: 5.388861059 | Y75: 0.001576097263 | Z75: 15.74127776 | AA75: 15.74127776 | AB75: 15.74127776 | AC75: - | AD75: 5.389877896 | AE75: 5.389877896 | AF75: 5.389877896 | AG75: - | AH75: 3.772914527 | AI75: 7839.007952 | AJ75: 36.56781427 | AK75: 349.196904 | AL75: 0.08622419082 | AM75: -0.0002908882087 | AN75: 0.0002908882087 | AO75: =FI_T-Rechentabelle!AL75 -> 6.193775809 | AP75: =AP74 -> 2.166901004e-05
A76: 0.004624999594 | B76: 6.249999569e-05 | C76: 0.0839582055 | D76: 36.30625534 | E76: 7850001.5 | G76: 7850.0015 | I76: =C76 -> 0.0839582055 | J76: =AL74 -> 0.08393870242 | K76: =I76-J76 -> 1.950307521e-05 | L76: =L74+KP_LR*(1+2*TA_SIM/TN_LR)*K76-KP_LR*K74 -> 0.2626216144 | M76: - | N76: =L76 -> 0.2626216144 | O76: 36.56781427 | P76: 36.30625534 | Q76: 0.001062683328 | R76: -0.006173733292 | S76: - | T76: -0.006173733292 | U76: 5.397436746 | V76: 5.391263012 | W76: 5.391263012 | X76: 5.389877896 | Y76: 0.001385116381 | Z76: 15.73046364 | AA76: 15.73046364 | AB76: 15.73046364 | AC76: - | AD76: 5.390771519 | AE76: 5.390771519 | AF76: 5.390771519 | AG76: - | AH76: 3.773540064 | AI76: 7840.307633 | AJ76: 37.0578335 | AK76: 353.8762429 | AL76: 0.08854030541 | AM76: -0.0002908882087 | AN76: 0.0002908882087 | AO76: =FI_T-Rechentabelle!AL76 -> 6.191459695 | AP76: =K76 -> 1.950307521e-05
A77: 0.004687499721 | B77: 6.249999569e-05 | C77: 0.08624267822 | D77: 36.79687881 | E77: 7850001.5 | G77: 7850.0015 | M77: - | N77: =N76+(L78-L76)/2 -> 0.262194759 | O77: 37.0578335 | P77: 36.79687881 | Q77: 0.001240074992 | R77: -0.005460567705 | S77: - | T77: -0.005460567705 | U77: 5.397436746 | V77: 5.391976178 | W77: 5.391976178 | X77: 5.390771519 | Y77: 0.001204658496 | Z77: 15.72005054 | AA77: 15.72005054 | AB77: 15.72005054 | AC77: - | AD77: 5.391548718 | AE77: 5.391548718 | AF77: 5.391548718 | AG77: - | AH77: 3.774084103 | AI77: 7841.437987 | AJ77: 37.54792337 | AK77: 358.5562565 | AL77: 0.09088705062 | AM77: -0.0002908882087 | AN77: 0.0002908882087 | AO77: =FI_T-Rechentabelle!AL77 -> 6.189112949 | AP77: =AP76 -> 1.950307521e-05
A78: 0.004749999847 | B78: 6.249999569e-05 | C78: 0.088557815 | D78: 37.28750229 | E78: 7850001.5 | G78: 7850.0015 | I78: =C78 -> 0.088557815 | J78: =AL76 -> 0.08854030541 | K78: =I78-J78 -> 1.750959461e-05 | L78: =L76+KP_LR*(1+2*TA_SIM/TN_LR)*K78-KP_LR*K76 -> 0.2617679036 | M78: - | N78: =L78 -> 0.2617679036 | O78: 37.54792337 | P78: 37.28750229 | Q78: 0.00134681954 | R78: -0.004884999433 | S78: - | T78: -0.004884999433 | U78: 5.397436746 | V78: 5.392551746 | W78: 5.392551746 | X78: 5.391548718 | Y78: 0.001003027739 | Z78: 15.70777399 | AA78: 15.70777399 | AB78: 15.70777399 | AC78: - | AD78: 5.392195833 | AE78: 5.392195833 | AF78: 5.392195833 | AG78: - | AH78: 3.774537083 | AI78: 7842.379146 | AJ78: 38.03807207 | AK78: 363.2368317 | AL78: 0.09326443012 | AM78: -0.0002908882087 | AN78: 0.0002908882087 | AO78: =FI_T-Rechentabelle!AL78 -> 6.18673557 | AP78: =K78 -> 1.750959461e-05
A79: 0.004812499508 | B79: 6.249999569e-05 | C79: 0.09090361585 | D79: 37.77812958 | E79: 7850001.5 | G79: 7850.0015 | M79: - | N79: =N78+(L80-L78)/2 -> 0.2613426704 | O79: 38.03807207 | P79: 37.77812958 | Q79: 0.001400178569 | R79: -0.004420065086 | S79: - | T79: -0.004420065086 | U79: 5.397436746 | V79: 5.393016681 | W79: 5.393016681 | X79: 5.392195833 | Y79: 0.0008208474151 | Z79: 15.69652189 | AA79: 15.69652189 | AB79: 15.69652189 | AC79: - | AD79: 5.392725412 | AE79: 5.392725412 | AF79: 5.392725412 | AG79: - | AH79: 3.774907788 | AI79: 7843.149363 | AJ79: 38.5282689 | AK79: 367.9178667 | AL79: 0.09567244693 | AM79: -0.0002908882087 | AN79: 0.0002908882087 | AO79: =FI_T-Rechentabelle!AL79 -> 6.184327553 | AP79: =AP78 -> 1.750959461e-05
A80: 0.004874999635 | B80: 6.249999569e-05 | C80: 0.09328008076 | D80: 38.26875305 | E80: 7850001.5 | G80: 7850.0015 | I80: =C80 -> 0.09328008076 | J80: =AL78 -> 0.09326443012 | K80: =I80-J80 -> 1.565063797e-05 | L80: =L78+KP_LR*(1+2*TA_SIM/TN_LR)*K80-KP_LR*K78 -> 0.2609174373 | M80: - | N80: =L80 -> 0.2609174373 | O80: 38.5282689 | P80: 38.26875305 | Q80: 0.00140158436 | R80: -0.004075113283 | S80: - | T80: -0.004075113283 | U80: 5.397436746 | V80: 5.393361632 | W80: 5.393361632 | X80: 5.392725412 | Y80: 0.0006362202407 | Z80: 15.6847526 | AA80: 15.6847526 | AB80: 15.6847526 | AC80: - | AD80: 5.393135877 | AE80: 5.393135877 | AF80: 5.393135877 | AG80: - | AH80: 3.775195114 | AI80: 7843.746341 | AJ80: 39.01850305 | AK80: 372.599258 | AL80: 0.09811110337 | AM80: -0.0002908882087 | AN80: 0.0002908882087 | AO80: =FI_T-Rechentabelle!AL80 -> 6.181888897 | AP80: =K80 -> 1.565063797e-05
A81: 0.004937499762 | B81: 6.249999569e-05 | C81: 0.09568720974 | D81: 38.75938034 | E81: 7850001.5 | G81: 7850.0015 | M81: - | N81: =N80+(L82-L80)/2 -> 0.2604829629 | O81: 39.01850305 | P81: 38.75938034 | Q81: 0.00136025248 | R81: -0.003839219616 | S81: - | T81: -0.003839219616 | U81: 5.397436746 | V81: 5.393597526 | W81: 5.393597526 | X81: 5.393135877 | Y81: 0.0004616492362 | Z81: 15.67336257 | AA81: 15.67336257 | AB81: 15.67336257 | AC81: - | AD81: 5.393433715 | AE81: 5.393433715 | AF81: 5.393433715 | AG81: - | AH81: 3.775403601 | AI81: 7844.179515 | AJ81: 39.50876427 | AK81: 377.2809077 | AL81: 0.1005804011 | AM81: -0.0002908882087 | AN81: 0.0002908882087 | AO81: =FI_T-Rechentabelle!AL81 -> 6.179419599 | AP81: =AP80 -> 1.565063797e-05
A82: 0.004999999888 | B82: 6.249999569e-05 | C82: 0.09812500277 | D82: 39.25000381 | E82: 7850001.5 | G82: 7850.0015 | I82: =C82 -> 0.09812500277 | J82: =AL80 -> 0.09811110337 | K82: =I82-J82 -> 1.389940271e-05 | L82: =L80+KP_LR*(1+2*TA_SIM/TN_LR)*K82-KP_LR*K80 -> 0.2600484885 | M82: - | N82: =L82 -> 0.2600484885 | O82: 39.50876427 | P82: 39.25000381 | Q82: 0.001288032515 | R82: -0.003692470381 | S82: - | T82: -0.003692470381 | U82: 5.397436746 | V82: 5.393744275 | W82: 5.393744275 | X82: 5.393433715 | Y82: 0.0003105602541 | Z82: 15.66333815 | AA82: 15.66333815 | AB82: 15.66333815 | AC82: - | AD82: 5.393634076 | AE82: 5.393634076 | AF82: 5.393634076 | AG82: - | AH82: 3.775543854 | AI82: 7844.470919 | AJ82: 39.9990437 | AK82: 381.9627315 | AL82: 0.1030803414 | AM82: -0.0002908882087 | AN82: 0.0002908882087 | AO82: =FI_T-Rechentabelle!AL82 -> 6.176919659 | AP82: =K82 -> 1.389940271e-05
A83: 0.005062499549 | B83: 6.249999569e-05 | C83: 0.1005934599 | D83: 39.74062729 | E83: 7850001.5 | G83: 7850.0015 | M83: - | N83: =N82+(L84-L82)/2 -> 0.259599255 | O83: 39.9990437 | P83: 39.74062729 | Q83: 0.001182840714 | R83: -0.003647729898 | S83: - | T83: -0.003647729898 | U83: 5.397436746 | V83: 5.393789016 | W83: 5.393789016 | X83: 5.393634076 | Y83: 0.0001549392836 | Z83: 15.65270445 | AA83: 15.65270445 | AB83: 15.65270445 | AC83: - | AD83: 5.393734037 | AE83: 5.393734037 | AF83: 5.393734037 | AG83: - | AH83: 3.775613826 | AI83: 7844.616302 | AJ83: 40.48933222 | AK83: 386.6446419 | AL83: 0.1056109246 | AM83: -0.0002908882087 | AN83: 0.0002908882087 | AO83: =FI_T-Rechentabelle!AL83 -> 6.174389075 | AP83: =AP82 -> 1.389940271e-05
A84: 0.005124999676 | B84: 6.249999569e-05 | C84: 0.103092581 | D84: 40.23125458 | E84: 7850001.5 | G84: 7850.0015 | I84: =C84 -> 0.103092581 | J84: =AL82 -> 0.1030803414 | K84: =I84-J84 -> 1.223966979e-05 | L84: =L82+KP_LR*(1+2*TA_SIM/TN_LR)*K84-KP_LR*K82 -> 0.2591500216 | M84: - | N84: =L84 -> 0.2591500216 | O84: 40.48933222 | P84: 40.23125458 | Q84: 0.001072377205 | R84: -0.003642129035 | S84: - | T84: -0.003642129035 | U84: 5.397436746 | V84: 5.393794617 | W84: 5.393794617 | X84: 5.393734037 | Y84: 6.057931769e-05 | Z84: 15.64619433 | AA84: 15.64619433 | AB84: 15.64619433 | AC84: - | AD84: 5.393773121 | AE84: 5.393773121 | AF84: 5.393773121 | AG84: - | AH84: 3.775641185 | AI84: 7844.673145 | AJ84: 40.97962429 | AK84: 391.3265863 | AL84: 0.1081721512 | AM84: -0.0002908882087 | AN84: 0.0002908882087 | AO84: =FI_T-Rechentabelle!AL84 -> 6.171827849 | AP84: =K84 -> 1.223966979e-05
A85: 0.005187499803 | B85: 6.249999569e-05 | C85: 0.1056223663 | D85: 40.72187805 | E85: 7850001.5 | G85: 7850.0015 | M85: - | N85: =N84+(L86-L84)/2 -> 0.258685434 | O85: 40.97962429 | P85: 40.72187805 | Q85: 0.0009391922586 | R85: -0.003721621218 | S85: - | T85: -0.003721621218 | U85: 5.397436746 | V85: 5.393715124 | W85: 5.393715124 | X85: 5.393773121 | Y85: -5.79962956e-05 | Z85: 15.63776258 | AA85: 15.63776258 | AB85: 15.63776258 | AC85: - | AD85: 5.393735704 | AE85: 5.393735704 | AF85: 5.393735704 | AG85: - | AH85: 3.775614993 | AI85: 7844.618726 | AJ85: 41.46991296 | AK85: 396.0084983 | AL85: 0.1107640207 | AM85: -0.0002908882087 | AN85: 0.0002908882087 | AO85: =FI_T-Rechentabelle!AL85 -> 6.169235979 | AP85: =AP84 -> 1.223966979e-05
A86: 0.005249999464 | B86: 6.249999569e-05 | C86: 0.1081828156 | D86: 41.21250534 | E86: 7850001.5 | G86: 7850.0015 | I86: =C86 -> 0.1081828156 | J86: =AL84 -> 0.1081721512 | K86: =I86-J86 -> 1.066440648e-05 | L86: =L84+KP_LR*(1+2*TA_SIM/TN_LR)*K86-KP_LR*K84 -> 0.2582208465 | M86: - | N86: =L86 -> 0.2582208465 | O86: 41.46991296 | P86: 41.21250534 | Q86: 0.000813223198 | R86: -0.003815111521 | S86: - | T86: -0.003815111521 | U86: 5.397436746 | V86: 5.393621634 | W86: 5.393621634 | X86: 5.393735704 | Y86: -0.0001140696336 | Z86: 15.63361317 | AA86: 15.63361317 | AB86: 15.63361317 | AC86: - | AD86: 5.39366211 | AE86: 5.39366211 | AF86: 5.39366211 | AG86: - | AH86: 3.775563477 | AI86: 7844.511692 | AJ86: 41.96019494 | AK86: 400.6903463 | AL86: 0.1133865329 | AM86: -0.0002908882087 | AN86: 0.0002908882087 | AO86: =FI_T-Rechentabelle!AL86 -> 6.166613467 | AP86: =K86 -> 1.066440648e-05
A87: 0.00531249959 | B87: 6.249999569e-05 | C87: 0.1107739289 | D87: 41.70312881 | E87: 7850001.5 | G87: 7850.0015 | M87: - | N87: =N86+(L88-L86)/2 -> 0.2577441865 | O87: 41.96019494 | P87: 41.70312881 | Q87: 0.000678056582 | R87: -0.003962856265 | S87: - | T87: -0.003962856265 | U87: 5.397436746 | V87: 5.393473889 | W87: 5.393473889 | X87: 5.39366211 | Y87: -0.0001882210655 | Z87: 15.62805606 | AA87: 15.62805606 | AB87: 15.62805606 | AC87: - | AD87: 5.393540677 | AE87: 5.393540677 | AF87: 5.393540677 | AG87: - | AH87: 3.775478474 | AI87: 7844.335081 | AJ87: 42.45046589 | AK87: 405.3720889 | AL87: 0.116039687 | AM87: -0.0002908882087 | AN87: 0.0002908882087 | AO87: =FI_T-Rechentabelle!AL87 -> 6.163960313 | AP87: =AP86 -> 1.066440648e-05
A88: 0.005374999717 | B88: 6.249999569e-05 | C88: 0.1133957063 | D88: 42.19375229 | E88: 7850001.5 | G88: 7850.0015 | I88: =C88 -> 0.1133957063 | J88: =AL86 -> 0.1133865329 | K88: =I88-J88 -> 9.173434578e-06 | L88: =L86+KP_LR*(1+2*TA_SIM/TN_LR)*K88-KP_LR*K86 -> 0.2572675265 | M88: - | N88: =L88 -> 0.2572675265 | O88: 42.45046589 | P88: 42.19375229 | Q88: 0.0005539281779 | R88: -0.004115297769 | S88: - | T88: -0.004115297769 | U88: 5.397436746 | V88: 5.393321448 | W88: 5.393321448 | X88: 5.393540677 | Y88: -0.0002192296246 | Z88: 15.62546929 | AA88: 15.62546929 | AB88: 15.62546929 | AC88: - | AD88: 5.393399239 | AE88: 5.393399239 | AF88: 5.393399239 | AG88: - | AH88: 3.775379467 | AI88: 7844.129373 | AJ88: 42.94072397 | AK88: 410.0537088 | AL88: 0.1187234823 | AM88: -0.0002908882087 | AN88: 0.0002908882087 | AO88: =FI_T-Rechentabelle!AL88 -> 6.161276518 | AP88: =K88 -> 9.173434578e-06
A89: 0.005437499844 | B89: 6.249999569e-05 | C89: 0.1160481478 | D89: 42.68437958 | E89: 7850001.5 | G89: 7850.0015 | M89: - | N89: =N88+(L90-L88)/2 -> 0.2567848099 | O89: 42.94072397 | P89: 42.68437958 | Q89: 0.0004404145512 | R89: -0.004270828917 | S89: - | T89: -0.004270828917 | U89: 5.397436746 | V89: 5.393165917 | W89: 5.393165917 | X89: 5.393399239 | Y89: -0.0002333223045 | Z89: 15.62404353 | AA89: 15.62404353 | AB89: 15.62404353 | AC89: - | AD89: 5.393248709 | AE89: 5.393248709 | AF89: 5.393248709 | AG89: - | AH89: 3.775274096 | AI89: 7843.910442 | AJ89: 43.43096838 | AK89: 414.735198 | AL89: 0.1214379178 | AM89: -0.0002908882087 | AN89: 0.0002908882087 | AO89: =FI_T-Rechentabelle!AL89 -> 6.158562082 | AP89: =AP88 -> 9.173434578e-06
A90: 0.005499999505 | B90: 6.249999569e-05 | C90: 0.1187312534 | D90: 43.17500305 | E90: 7850001.5 | G90: 7850.0015 | I90: =C90 -> 0.1187312534 | J90: =AL88 -> 0.1187234823 | K90: =I90-J90 -> 7.771094164e-06 | L90: =L88+KP_LR*(1+2*TA_SIM/TN_LR)*K90-KP_LR*K88 -> 0.2563020933 | M90: - | N90: =L90 -> 0.2563020933 | O90: 43.43096838 | P90: 43.17500305 | Q90: 0.0003367693983 | R90: -0.004428772308 | S90: - | T90: -0.004428772308 | U90: 5.397436746 | V90: 5.393007973 | W90: 5.393007973 | X90: 5.393248709 | Y90: -0.0002407351763 | Z90: 15.62307279 | AA90: 15.62307279 | AB90: 15.62307279 | AC90: - | AD90: 5.393093395 | AE90: 5.393093395 | AF90: 5.393093395 | AG90: - | AH90: 3.775165377 | AI90: 7843.684556 | AJ90: 43.92119866 | AK90: 419.4165524 | AL90: 0.1241829927 | AM90: -0.0002908882087 | AN90: 0.0002908882087 | AO90: =FI_T-Rechentabelle!AL90 -> 6.155817007 | AP90: =K90 -> 7.771094164e-06
A91: 0.005562499631 | B91: 6.249999569e-05 | C91: 0.121445023 | D91: 43.66563034 | E91: 7850001.5 | G91: 7850.0015 | M91: - | N91: =N90+(L92-L90)/2 -> 0.2558208499 | O91: 43.92119866 | P91: 43.66563034 | Q91: 0.0002525301208 | R91: -0.004562308023 | S91: - | T91: -0.004562308023 | U91: 5.397436746 | V91: 5.392874438 | W91: 5.392874438 | X91: 5.393093395 | Y91: -0.0002189578748 | Z91: 15.62419175 | AA91: 15.62419175 | AB91: 15.62419175 | AC91: - | AD91: 5.392952132 | AE91: 5.392952132 | AF91: 5.392952132 | AG91: - | AH91: 3.775066493 | AI91: 7843.479104 | AJ91: 44.4114161 | AK91: 424.0977842 | AL91: 0.1269587062 | AM91: -0.0002908882087 | AN91: 0.0002908882087 | AO91: =FI_T-Rechentabelle!AL91 -> 6.153041294 | AP91: =AP90 -> 7.771094164e-06
A92: 0.005624999758 | B92: 6.249999569e-05 | C92: 0.1241894566 | D92: 44.15625381 | E92: 7850001.5 | G92: 7850.0015 | I92: =C92 -> 0.1241894566 | J92: =AL90 -> 0.1241829927 | K92: =I92-J92 -> 6.463933726e-06 | L92: =L90+KP_LR*(1+2*TA_SIM/TN_LR)*K92-KP_LR*K90 -> 0.2553396066 | M92: - | N92: =L92 -> 0.2553396066 | O92: 44.4114161 | P92: 44.15625381 | Q92: 0.000177316916 | R92: -0.004693275508 | S92: - | T92: -0.004693275508 | U92: 5.397436746 | V92: 5.39274347 | W92: 5.39274347 | X92: 5.392952132 | Y92: -0.0002086622151 | Z92: 15.62452404 | AA92: 15.62452404 | AB92: 15.62452404 | AC92: - | AD92: 5.392817512 | AE92: 5.392817512 | AF92: 5.392817512 | AG92: - | AH92: 3.774972258 | AI92: 7843.283312 | AJ92: 44.90162131 | AK92: 428.7788991 | AL92: 0.1297650575 | AM92: -0.0002908882087 | AN92: 0.0002908882087 | AO92: =FI_T-Rechentabelle!AL92 -> 6.150234942 | AP92: =K92 -> 6.463933726e-06
A93: 0.005687499419 | B93: 6.249999569e-05 | C93: 0.1269645544 | D93: 44.6468811 | E93: 7850001.5 | G93: 7850.0015 | M93: - | N93: =N92+(L94-L92)/2 -> 0.2548677058 | O93: 44.90162131 | P93: 44.6468811 | Q93: 0.0001274979796 | R93: -0.004777574595 | S93: - | T93: -0.004777574595 | U93: 5.397436746 | V93: 5.392659171 | W93: 5.392659171 | X93: 5.392817512 | Y93: -0.0001583405173 | Z93: 15.62776005 | AA93: 15.62776005 | AB93: 15.62776005 | AC93: - | AD93: 5.392715356 | AE93: 5.392715356 | AF93: 5.392715356 | AG93: - | AH93: 3.774900749 | AI93: 7843.134738 | AJ93: 45.39181723 | AK93: 433.4599253 | AL93: 0.1326020461 | AM93: -0.0002908882087 | AN93: 0.0002908882087 | AO93: =FI_T-Rechentabelle!AL93 -> 6.147397954 | AP93: =AP92 -> 6.463933726e-06
A94: 0.005749999546 | B94: 6.249999569e-05 | C94: 0.1297703162 | D94: 45.13750458 | E94: 7850001.5 | G94: 7850.0015 | I94: =C94 -> 0.1297703162 | J94: =AL92 -> 0.1297650575 | K94: =I94-J94 -> 5.258628022e-06 | L94: =L92+KP_LR*(1+2*TA_SIM/TN_LR)*K94-KP_LR*K92 -> 0.2543958051 | M94: - | N94: =L94 -> 0.2543958051 | O94: 45.39181723 | P94: 45.13750458 | Q94: 8.315021494e-05 | R94: -0.004860013941 | S94: - | T94: -0.004860013941 | U94: 5.397436746 | V94: 5.392576732 | W94: 5.392576732 | X94: 5.392715356 | Y94: -0.0001386246911 | Z94: 15.62888461 | AA94: 15.62888461 | AB94: 15.62888461 | AC94: - | AD94: 5.392625921 | AE94: 5.392625921 | AF94: 5.392625921 | AG94: - | AH94: 3.774838145 | AI94: 7843.004664 | AJ94: 45.88200502 | AK94: 438.1408739 | AL94: 0.1354696714 | AM94: -0.0002908882087 | AN94: 0.0002908882087 | AO94: =FI_T-Rechentabelle!AL94 -> 6.144530329 | AP94: =K94 -> 5.258628022e-06
A95: 0.005812499672 | B95: 6.249999569e-05 | C95: 0.132606742 | D95: 45.62812805 | E95: 7850001.5 | G95: 7850.0015 | M95: - | N95: =N94+(L96-L94)/2 -> 0.253940578 | O95: 45.88200502 | P95: 45.62812805 | Q95: 6.360575341e-05 | R95: -0.004889772887 | S95: - | T95: -0.004889772887 | U95: 5.397436746 | V95: 5.392546973 | W95: 5.392546973 | X95: 5.392625921 | Y95: -7.894835272e-05 | Z95: 15.6329258 | AA95: 15.6329258 | AB95: 15.6329258 | AC95: - | AD95: 5.392574987 | AE95: 5.392574987 | AF95: 5.392574987 | AG95: - | AH95: 3.774802491 | AI95: 7842.930585 | AJ95: 46.37218819 | AK95: 442.8217783 | AL95: 0.1383679332 | AM95: -0.0002908882087 | AN95: 0.0002908882087 | AO95: =FI_T-Rechentabelle!AL95 -> 6.141632067 | AP95: =AP94 -> 5.258628022e-06
A96: 0.005874999799 | B96: 6.249999569e-05 | C96: 0.135473832 | D96: 46.11875534 | E96: 7850001.5 | G96: 7850.0015 | I96: =C96 -> 0.135473832 | J96: =AL94 -> 0.1354696714 | K96: =I96-J96 -> 4.160523237e-06 | L96: =L94+KP_LR*(1+2*TA_SIM/TN_LR)*K96-KP_LR*K94 -> 0.2534853509 | M96: - | N96: =L96 -> 0.2534853509 | O96: 46.37218819 | P96: 46.11875534 | Q96: 5.250591003e-05 | R96: -0.004902679904 | S96: - | T96: -0.004902679904 | U96: 5.397436746 | V96: 5.392534066 | W96: 5.392534066 | X96: 5.392574987 | Y96: -4.09209483e-05 | Z96: 15.63551851 | AA96: 15.63551851 | AB96: 15.63551851 | AC96: - | AD96: 5.392548586 | AE96: 5.392548586 | AF96: 5.392548586 | AG96: - | AH96: 3.77478401 | AI96: 7842.892188 | AJ96: 46.86236895 | AK96: 447.5026598 | AL96: 0.1412968313 | AM96: -0.0002908882087 | AN96: 0.0002908882087 | AO96: =FI_T-Rechentabelle!AL96 -> 6.138703169 | AP96: =K96 -> 4.160523237e-06
A97: 0.00593749946 | B97: 6.249999569e-05 | C97: 0.1383715859 | D97: 46.60937881 | E97: 7850001.5 | G97: 7850.0015 | M97: - | N97: =N96+(L98-L96)/2 -> 0.2530529941 | O97: 46.86236895 | P97: 46.60937881 | Q97: 6.28614486e-05 | R97: -0.004863371006 | S97: - | T97: -0.004863371006 | U97: 5.397436746 | V97: 5.392573375 | W97: 5.392573375 | X97: 5.392548586 | Y97: 2.478856074e-05 | Z97: 15.64017728 | AA97: 15.64017728 | AB97: 15.64017728 | AC97: - | AD97: 5.392564579 | AE97: 5.392564579 | AF97: 5.392564579 | AG97: - | AH97: 3.774795205 | AI97: 7842.915448 | AJ97: 47.35255116 | AK97: 452.1835551 | AL97: 0.1442563657 | AM97: -0.0002908882087 | AN97: 0.0002908882087 | AO97: =FI_T-Rechentabelle!AL97 -> 6.135743634 | AP97: =AP96 -> 4.160523237e-06
A98: 0.005999999586 | B98: 6.249999569e-05 | C98: 0.141300004 | D98: 47.1000061 | E98: 7850001.5 | G98: 7850.0015 | I98: =C98 -> 0.141300004 | J98: =AL96 -> 0.1412968313 | K98: =I98-J98 -> 3.172742143e-06 | L98: =L96+KP_LR*(1+2*TA_SIM/TN_LR)*K98-KP_LR*K96 -> 0.2526206373 | M98: - | N98: =L98 -> 0.2526206373 | O98: 47.35255116 | P98: 47.1000061 | Q98: 7.557796093e-05 | R98: -0.004815493831 | S98: - | T98: -0.004815493831 | U98: 5.397436746 | V98: 5.392621252 | W98: 5.392621252 | X98: 5.392564579 | Y98: 5.667311652e-05 | Z98: 15.6425214 | AA98: 15.6425214 | AB98: 15.6425214 | AC98: - | AD98: 5.392601142 | AE98: 5.392601142 | AF98: 5.392601142 | AG98: - | AH98: 3.774820799 | AI98: 7842.968625 | AJ98: 47.8427367 | AK98: 456.8644822 | AL98: 0.1472465367 | AM98: -0.0002908882087 | AN98: 0.0002908882087 | AO98: =FI_T-Rechentabelle!AL98 -> 6.132753463 | AP98: =K98 -> 3.172742143e-06
A99: 0.006062499713 | B99: 6.249999569e-05 | C99: 0.1442590861 | D99: 47.59062958 | E99: 7850001.5 | G99: 7850.0015 | M99: - | N99: =N98+(L100-L98)/2 -> 0.2522157352 | O99: 47.8427367 | P99: 47.59062958 | Q99: 0.0001086108637 | R99: -0.004712510106 | S99: - | T99: -0.004712510106 | U99: 5.397436746 | V99: 5.392724236 | W99: 5.392724236 | X99: 5.392601142 | Y99: 0.0001230935409 | Z99: 15.64741399 | AA99: 15.64741399 | AB99: 15.64741399 | AC99: - | AD99: 5.392680557 | AE99: 5.392680557 | AF99: 5.392680557 | AG99: - | AH99: 3.77487639 | AI99: 7843.084126 | AJ99: 48.33292946 | AK99: 461.5454783 | AL99: 0.1502673448 | AM99: -0.0002908882087 | AN99: 0.0002908882087 | AO99: =FI_T-Rechentabelle!AL99 -> 6.129732655 | AP99: =AP98 -> 3.172742143e-06
A100: 0.006124999374 | B100: 6.249999569e-05 | C100: 0.1472488323 | D100: 48.08125305 | E100: 7850001.5 | G100: 7850.0015 | I100: =C100 -> 0.1472488323 | J100: =AL98 -> 0.1472465367 | K100: =I100-J100 -> 2.295543777e-06 | L100: =L98+KP_LR*(1+2*TA_SIM/TN_LR)*K100-KP_LR*K98 -> 0.251810833 | M100: - | N100: =L100 -> 0.251810833 | O100: 48.33292946 | P100: 48.08125305 | Q100: 0.0001344249539 | R100: -0.004619952082 | S100: - | T100: -0.004619952082 | U100: 5.397436746 | V100: 5.392816794 | W100: 5.392816794 | X100: 5.392680557 | Y100: 0.0001362363768 | Z100: 15.64859142 | AA100: 15.64859142 | AB100: 15.64859142 | AC100: - | AD100: 5.392768452 | AE100: 5.392768452 | AF100: 5.392768452 | AG100: - | AH100: 3.774937916 | AI100: 7843.21196 | AJ100: 48.82313021 | AK100: 466.2265506 | AL100: 0.1533187905 | AM100: -0.0002908882087 | AN100: 0.0002908882087 | AO100: =FI_T-Rechentabelle!AL100 -> 6.12668121 | AP100: =K100 -> 2.295543777e-06
A101: 0.006187499501 | B101: 6.249999569e-05 | C101: 0.1502692425 | D101: 48.57188034 | E101: 7850001.5 | G101: 7850.0015 | M101: - | N101: =N100+(L102-L100)/2 -> 0.2514362658 | O101: 48.82313021 | P101: 48.57188034 | Q101: 0.0001863990626 | R101: -0.004454135764 | S101: - | T101: -0.004454135764 | U101: 5.397436746 | V101: 5.39298261 | W101: 5.39298261 | X101: 5.392768452 | Y101: 0.0002141582585 | Z101: 15.65446172 | AA101: 15.65446172 | AB101: 15.65446172 | AC101: - | AD101: 5.392906618 | AE101: 5.392906618 | AF101: 5.392906618 | AG101: - | AH101: 3.775034633 | AI101: 7843.412908 | AJ101: 49.31334351 | AK101: 470.9077428 | AL101: 0.1564008744 | AM101: -0.0002908882087 | AN101: 0.0002908882087 | AO101: =FI_T-Rechentabelle!AL101 -> 6.123599126 | AP101: =AP100 -> 2.295543777e-06
A102: 0.006249999627 | B102: 6.249999569e-05 | C102: 0.1533203168 | D102: 49.06250381 | E102: 7850001.5 | G102: 7850.0015 | I102: =C102 -> 0.1533203168 | J102: =AL100 -> 0.1533187905 | K102: =I102-J102 -> 1.526361231e-06 | L102: =L100+KP_LR*(1+2*TA_SIM/TN_LR)*K102-KP_LR*K100 -> 0.2510616986 | M102: - | N102: =L102 -> 0.2510616986 | O102: 49.31334351 | P102: 49.06250381 | Q102: 0.0002219991772 | R102: -0.004317563062 | S102: - | T102: -0.004317563062 | U102: 5.397436746 | V102: 5.393119183 | W102: 5.393119183 | X102: 5.392906618 | Y102: 0.0002125643416 | Z102: 15.65474754 | AA102: 15.65474754 | AB102: 15.65474754 | AC102: - | AD102: 5.393043757 | AE102: 5.393043757 | AF102: 5.393043757 | AG102: - | AH102: 3.77513063 | AI102: 7843.612361 | AJ102: 49.80356929 | AK102: 475.5890541 | AL102: 0.1595135975 | AM102: -0.0002908882087 | AN102: 0.0002908882087 | AO102: =FI_T-Rechentabelle!AL102 -> 6.120486402 | AP102: =K102 -> 1.526361231e-06
A103: 0.006312499754 | B103: 6.249999569e-05 | C103: 0.1564020552 | D103: 49.5531311 | E103: 7850001.5 | G103: 7850.0015 | M103: - | N103: =N102+(L104-L102)/2 -> 0.2507187167 | O103: 49.80356929 | P103: 49.5531311 | Q103: 0.0002805335554 | R103: -0.004113603666 | S103: - | T103: -0.004113603666 | U103: 5.397436746 | V103: 5.393323142 | W103: 5.393323142 | X103: 5.393043757 | Y103: 0.0002793854531 | Z103: 15.65996067 | AA103: 15.65996067 | AB103: 15.65996067 | AC103: - | AD103: 5.393224005 | AE103: 5.393224005 | AF103: 5.393224005 | AG103: - | AH103: 3.775256804 | AI103: 7843.874514 | AJ103: 50.29381144 | AK103: 480.2705219 | AL103: 0.1626569607 | AM103: -0.0002908882087 | AN103: 0.0002908882087 | AO103: =FI_T-Rechentabelle!AL103 -> 6.117343039 | AP103: =AP102 -> 1.526361231e-06
A104: 0.006374999415 | B104: 6.249999569e-05 | C104: 0.1595144576 | D104: 50.04375458 | E104: 7850001.5 | G104: 7850.0015 | I104: =C104 -> 0.1595144576 | J104: =AL102 -> 0.1595135975 | K104: =I104-J104 -> 8.601113023e-07 | L104: =L102+KP_LR*(1+2*TA_SIM/TN_LR)*K104-KP_LR*K102 -> 0.2503757349 | M104: - | N104: =L104 -> 0.2503757349 | O104: 50.29381144 | P104: 50.04375458 | Q104: 0.0003188686951 | R104: -0.003947080488 | S104: - | T104: -0.003947080488 | U104: 5.397436746 | V104: 5.393489665 | W104: 5.393489665 | X104: 5.393224005 | Y104: 0.000265659951 | Z104: 15.65949427 | AA104: 15.65949427 | AB104: 15.65949427 | AC104: - | AD104: 5.393395399 | AE104: 5.393395399 | AF104: 5.393395399 | AG104: - | AH104: 3.775376779 | AI104: 7844.123788 | AJ104: 50.78406918 | AK104: 484.9521384 | AL104: 0.1658309651 | AM104: -0.0002908882087 | AN104: 0.0002908882087 | AO104: =FI_T-Rechentabelle!AL104 -> 6.114169035 | AP104: =K104 -> 8.601113023e-07
A105: 0.006437499542 | B105: 6.249999569e-05 | C105: 0.1626575241 | D105: 50.53437805 | E105: 7850001.5 | G105: 7850.0015 | M105: - | N105: =N104+(L106-L104)/2 -> 0.2500641199 | O105: 50.78406918 | P105: 50.53437805 | Q105: 0.0003729911343 | R105: -0.003730798798 | S105: - | T105: -0.003730798798 | U105: 5.397436746 | V105: 5.393705947 | W105: 5.393705947 | X105: 5.393395399 | Y105: 0.0003105481241 | Z105: 15.66322616 | AA105: 15.66322616 | AB105: 15.66322616 | AC105: - | AD105: 5.393595752 | AE105: 5.393595752 | AF105: 5.393595752 | AG105: - | AH105: 3.775517027 | AI105: 7844.415181 | AJ105: 51.27434513 | AK105: 489.6339289 | AL105: 0.1690356116 | AM105: -0.0002908882087 | AN105: 0.0002908882087 | AO105: =FI_T-Rechentabelle!AL105 -> 6.110964388 | AP105: =AP104 -> 8.601113023e-07
A106: 0.006499999668 | B106: 6.249999569e-05 | C106: 0.1658312547 | D106: 51.02500534 | E106: 7850001.5 | G106: 7850.0015 | I106: =C106 -> 0.1658312547 | J106: =AL104 -> 0.1658309651 | K106: =I106-J106 -> 2.896258668e-07 | L106: =L104+KP_LR*(1+2*TA_SIM/TN_LR)*K106-KP_LR*K104 -> 0.249752505 | M106: - | N106: =L106 -> 0.249752505 | O106: 51.27434513 | P106: 51.02500534 | Q106: 0.0004127161966 | R106: -0.003538177188 | S106: - | T106: -0.003538177188 | U106: 5.397436746 | V106: 5.393898568 | W106: 5.393898568 | X106: 5.393595752 | Y106: 0.0003028161057 | Z106: 15.66324998 | AA106: 15.66324998 | AB106: 15.66324998 | AC106: - | AD106: 5.393791118 | AE106: 5.393791118 | AF106: 5.393791118 | AG106: - | AH106: 3.775653782 | AI106: 7844.699319 | AJ106: 51.76463884 | AK106: 494.3158889 | AL106: 0.1722709016 | AM106: -0.0002908882087 | AN106: 0.0002908882087 | AO106: =FI_T-Rechentabelle!AL106 -> 6.107729098 | AP106: =K106 -> 2.896258668e-07
A107: 0.006562499329 | B107: 6.249999569e-05 | C107: 0.1690356493 | D107: 51.51562881 | E107: 7850001.5 | G107: 7850.0015 | M107: - | N107: =N106+(L108-L106)/2 -> 0.249470961 | O107: 51.76463884 | P107: 51.51562881 | Q107: 0.0004609388888 | R107: -0.003314118475 | S107: - | T107: -0.003314118475 | U107: 5.397436746 | V107: 5.394122627 | W107: 5.394122627 | X107: 5.393791118 | Y107: 0.0003315095901 | Z107: =Z106+KP_SR*(1+TA_SIM/TN_SR)*Y107-KP_SR*Y106 -> 15.66588432 | AA107: 15.66588432 | AB107: 15.66588432 | AC107: - | AD107: 5.394004995 | AE107: 5.394004995 | AF107: 5.394004995 | AG107: - | AH107: 3.775803496 | AI107: 7845.010381 | AJ107: 52.25495199 | AK107: 498.9980346 | AL107: 0.1755368361 | AM107: -0.0002908882087 | AN107: 0.0002908882087 | AO107: =FI_T-Rechentabelle!AL107 -> 6.104463164 | AP107: =AP106 -> 2.896258668e-07
A108: 0.006624999456 | B108: 6.249999569e-05 | C108: 0.172270708 | D108: 52.0062561 | E108: 7850001.5 | G108: 7850.0015 | I108: =C108 -> 0.172270708 | J108: =AL106 -> 0.1722709016 | K108: =I108-J108 -> -1.935649648e-07 | L108: =L106+KP_LR*(1+2*TA_SIM/TN_LR)*K108-KP_LR*K106 -> 0.249189417 | M108: - | N108: =L108 -> 0.249189417 | O108: 52.25495199 | P108: 52.0062561 | Q108: 0.0004935349205 | R108: -0.003118304904 | S108: - | T108: -0.003118304904 | U108: 5.397436746 | V108: 5.394318441 | W108: 5.394318441 | X108: 5.394004995 | Y108: 0.0003134460058 | Z108: 15.66520282 | AA108: 15.66520282 | AB108: 15.66520282 | AC108: - | AD108: 5.394207218 | AE108: 5.394207218 | AF108: 5.394207218 | AG108: - | AH108: 3.775945053 | AI108: 7845.304493 | AJ108: 52.74528352 | AK108: 503.6803558 | AL108: 0.1788334163 | AM108: -0.0002908882087 | AN108: 0.0002908882087 | AO108: =FI_T-Rechentabelle!AL108 -> 6.101166584 | AP108: =K108 -> -1.935649648e-07
A109: 0.006687499583 | B109: 6.249999569e-05 | C109: 0.1755364307 | D109: 52.49687958 | E109: 7850001.5 | G109: 7850.0015 | M109: - | N109: =N108+(L110-L108)/2 -> 0.2489358275 | O109: 52.74528352 | P109: 52.49687958 | Q109: 0.0005318886715 | R109: -0.00289980592 | S109: - | T109: -0.00289980592 | U109: 5.397436746 | V109: 5.39453694 | W109: 5.39453694 | X109: 5.394207218 | Y109: 0.0003297217602 | Z109: 15.66696217 | AA109: 15.66696217 | AB109: 15.66696217 | AC109: - | AD109: 5.394419942 | AE109: 5.394419942 | AF109: 5.394419942 | AG109: - | AH109: 3.776093959 | AI109: 7845.613877 | AJ109: 53.23563438 | AK109: 508.3628616 | AL109: 0.1821606434 | AM109: -0.0002908882087 | AN109: 0.0002908882087 | AO109: =FI_T-Rechentabelle!AL109 -> 6.097839357 | AP109: =AP108 -> -1.935649648e-07
A110: 0.006749999709 | B110: 6.249999569e-05 | C110: 0.1788328176 | D110: 52.98750687 | E110: 7850001.5 | G110: 7850.0015 | I110: =C110 -> 0.1788328176 | J110: =AL108 -> 0.1788334163 | K110: =I110-J110 -> -5.987233212e-07 | L110: =L108+KP_LR*(1+2*TA_SIM/TN_LR)*K110-KP_LR*K108 -> 0.2486822379 | M110: - | N110: =L110 -> 0.2486822379 | O110: 53.23563438 | P110: 52.98750687 | Q110: 0.0005547206091 | R110: -0.002711689664 | S110: - | T110: -0.002711689664 | U110: 5.397436746 | V110: 5.394725056 | W110: 5.394725056 | X110: 5.394419942 | Y110: 0.0003051142995 | Z110: 15.66580575 | AA110: 15.66580575 | AB110: 15.66580575 | AC110: - | AD110: 5.39461679 | AE110: 5.39461679 | AF110: 5.39461679 | AG110: - | AH110: 3.776231753 | AI110: 7845.900172 | AJ110: 53.72600314 | AK110: 513.0455384 | AL110: 0.1855185186 | AM110: -0.0002908882087 | AN110: 0.0002908882087 | AO110: =FI_T-Rechentabelle!AL110 -> 6.094481481 | AP110: =K110 -> -5.987233212e-07
A111: 0.00681249937 | B111: 6.249999569e-05 | C111: 0.1821598684 | D111: 53.47813034 | E111: 7850001.5 | G111: 7850.0015 | M111: - | N111: =N110+(L112-L110)/2 -> 0.2484540275 | O111: 53.72600314 | P111: 53.47813034 | Q111: 0.0005812235953 | R111: -0.002508609917 | S111: - | T111: -0.002508609917 | U111: 5.397436746 | V111: 5.394928136 | W111: 5.394928136 | X111: 5.39461679 | Y111: 0.0003113461121 | Z111: 15.6668257 | AA111: 15.6668257 | AB111: 15.6668257 | AC111: - | AD111: 5.394817658 | AE111: 5.394817658 | AF111: 5.394817658 | AG111: - | AH111: 3.776372361 | AI111: 7846.192314 | AJ111: 54.21639016 | AK111: 517.7283895 | AL111: 0.188907043 | AM111: -0.0002908882087 | AN111: 0.0002908882087 | AO111: =FI_T-Rechentabelle!AL111 -> 6.091092957 | AP111: =AP110 -> -5.987233212e-07
A112: 0.006874999497 | B112: 6.249999569e-05 | C112: 0.1855175834 | D112: 53.96875381 | E112: 7850001.5 | G112: 7850.0015 | I112: =C112 -> 0.1855175834 | J112: =AL110 -> 0.1855185186 | K112: =I112-J112 -> -9.352548497e-07 | L112: =L110+KP_LR*(1+2*TA_SIM/TN_LR)*K112-KP_LR*K110 -> 0.2482258172 | M112: - | N112: =L112 -> 0.2482258172 | O112: 54.21639016 | P112: 53.96875381 | Q112: 0.0005894677096 | R112: -0.002345808411 | S112: - | T112: -0.002345808411 | U112: 5.397436746 | V112: 5.395090937 | W112: 5.395090937 | X112: 5.394817658 | Y112: 0.0002732791581 | Z112: 15.66466494 | AA112: 15.66466494 | AB112: 15.66466494 | AC112: - | AD112: 5.394993967 | AE112: 5.394993967 | AF112: 5.394993967 | AG112: - | AH112: 3.776495777 | AI112: 7846.448737 | AJ112: 54.70679321 | AK112: 522.4113936 | AL112: 0.1923262176 | AM112: -0.0002908882087 | AN112: 0.0002908882087 | AO112: =FI_T-Rechentabelle!AL112 -> 6.087673782 | AP112: =K112 -> -9.352548497e-07
A113: 0.006937499624 | B113: 6.249999569e-05 | C113: 0.1889059624 | D113: 54.4593811 | E113: 7850001.5 | G113: 7850.0015 | M113: - | N113: =N112+(L114-L112)/2 -> 0.2480202861 | O113: 54.70679321 | P113: 54.4593811 | Q113: 0.0006081794616 | R113: -0.002154201755 | S113: - | T113: -0.002154201755 | U113: 5.397436746 | V113: 5.395282544 | W113: 5.395282544 | X113: 5.394993967 | Y113: 0.0002885766805 | Z113: 15.66627864 | AA113: 15.66627864 | AB113: 15.66627864 | AC113: - | AD113: 5.395180146 | AE113: 5.395180146 | AF113: 5.395180146 | AG113: - | AH113: 3.776626102 | AI113: 7846.719514 | AJ113: 55.19721318 | AK113: 527.0945593 | AL113: 0.1957760434 | AM113: -0.0002908882087 | AN113: 0.0002908882087 | AO113: =FI_T-Rechentabelle!AL113 -> 6.084223957 | AP113: =AP112 -> -9.352548497e-07
A114: 0.006999999285 | B114: 6.249999569e-05 | C114: 0.1923250054 | D114: 54.95000458 | E114: 7850001.5 | G114: 7850.0015 | I114: =C114 -> 0.1923250054 | J114: =AL112 -> 0.1923262176 | K114: =I114-J114 -> -1.212148287e-06 | L114: =L112+KP_LR*(1+2*TA_SIM/TN_LR)*K114-KP_LR*K112 -> 0.2478147551 | M114: - | N114: =L114 -> 0.2478147551 | O114: 55.19721318 | P114: 54.95000458 | Q114: 0.0006061529562 | R114: -0.002011119573 | S114: - | T114: -0.002011119573 | U114: 5.397436746 | V114: 5.395425626 | W114: 5.395425626 | X114: 5.395180146 | Y114: 0.0002454803585 | Z114: 15.66371285 | AA114: 15.66371285 | AB114: 15.66371285 | AC114: - | AD114: 5.39533852 | AE114: 5.39533852 | AF114: 5.39533852 | AG114: - | AH114: 3.776736964 | AI114: 7846.949853 | AJ114: 55.68764755 | AK114: 531.7778626 | AL114: 0.1992565214 | AM114: -0.0002908882087 | AN114: 0.0002908882087 | AO114: =FI_T-Rechentabelle!AL114 -> 6.080743479 | AP114: =K114 -> -1.212148287e-06
A115: 0.007062499411 | B115: 6.249999569e-05 | C115: 0.1957747126 | D115: 55.44063187 | E115: 7850001.5 | G115: 7850.0015 | M115: - | N115: =N114+(L116-L114)/2 -> 0.24762931 | O115: 55.68764755 | P115: 55.44063187 | Q115: 0.000613630841 | R115: -0.001844201885 | S115: - | T115: -0.001844201885 | U115: 5.397436746 | V115: 5.395592544 | W115: 5.395592544 | X115: 5.39533852 | Y115: 0.0002540236222 | Z115: 15.6647878 | AA115: 15.6647878 | AB115: 15.6647878 | AC115: - | AD115: 5.395502406 | AE115: 5.395502406 | AF115: 5.395502406 | AG115: - | AH115: 3.776851684 | AI115: 7847.188208 | AJ115: 56.17809681 | AK115: 536.461308 | AL115: 0.2027676524 | AM115: -0.0002908882087 | AN115: 0.0002908882087 | AO115: =FI_T-Rechentabelle!AL115 -> 6.077232348 | AP115: =AP114 -> -1.212148287e-06
A116: 0.007124999538 | B116: 6.249999569e-05 | C116: 0.1992550838 | D116: 55.93125534 | E116: 7850001.5 | G116: 7850.0015 | I116: =C116 -> 0.1992550838 | J116: =AL114 -> 0.1992565214 | K116: =I116-J116 -> -1.437622699e-06 | L116: =L114+KP_LR*(1+2*TA_SIM/TN_LR)*K116-KP_LR*K114 -> 0.2474438648 | M116: - | N116: =L116 -> 0.2474438648 | O116: 56.17809681 | P116: 55.93125534 | Q116: 0.0006023968301 | R116: -0.001723360278 | S116: - | T116: -0.001723360278 | U116: 5.397436746 | V116: 5.395713385 | W116: 5.395713385 | X116: 5.395502406 | Y116: 0.0002109790206 | Z116: 15.66216108 | AA116: 15.66216108 | AB116: 15.66216108 | AC116: - | AD116: 5.395638522 | AE116: 5.395638522 | AF116: 5.395638522 | AG116: - | AH116: 3.776946965 | AI116: 7847.386173 | AJ116: 56.66855844 | AK116: 541.1448717 | AL116: 0.2063094373 | AM116: -0.0002908882087 | AN116: 0.0002908882087 | AO116: =FI_T-Rechentabelle!AL116 -> 6.073690563 | AP116: =K116 -> -1.437622699e-06
A117: 0.007187499665 | B117: 6.249999569e-05 | C117: 0.202766119 | D117: 56.42187881 | E117: 7850001.5 | G117: 7850.0015 | M117: - | N117: =N116+(L118-L116)/2 -> 0.2472761256 | O117: 56.66855844 | P117: 56.42187881 | Q117: 0.0005964958534 | R117: -0.001591605819 | S117: - | T117: -0.001591605819 | U117: 5.397436746 | V117: 5.39584514 | W117: 5.39584514 | X117: 5.395638522 | Y117: 0.0002066179824 | Z117: 15.66224154 | AA117: 15.66224154 | AB117: 15.66224154 | AC117: - | AD117: 5.395771824 | AE117: 5.395771824 | AF117: 5.395771824 | AG117: - | AH117: 3.777040277 | AI117: 7847.580047 | AJ117: 57.1590322 | AK117: 545.828551 | AL117: 0.2098818768 | AM117: -0.0002908882087 | AN117: 0.0002908882087 | AO117: =FI_T-Rechentabelle!AL117 -> 6.070118123 | AP117: =AP116 -> -1.437622699e-06
A118: 0.007249999326 | B118: 6.249999569e-05 | C118: 0.2063078183 | D118: 56.9125061 | E118: 7850001.5 | G118: 7850.0015 | I118: =C118 -> 0.2063078183 | J118: =AL116 -> 0.2063094373 | K118: =I118-J118 -> -1.619001619e-06 | L118: =L116+KP_LR*(1+2*TA_SIM/TN_LR)*K118-KP_LR*K116 -> 0.2471083863 | M118: - | N118: =L118 -> 0.2471083863 | O118: 57.1590322 | P118: 56.9125061 | Q118: 0.0005822924761 | R118: -0.001482542649 | S118: - | T118: -0.001482542649 | U118: 5.397436746 | V118: 5.395954203 | W118: 5.395954203 | X118: 5.395771824 | Y118: 0.000182379229 | Z118: 15.66088136 | AA118: 15.66088136 | AB118: 15.66088136 | AC118: - | AD118: 5.395889488 | AE118: 5.395889488 | AF118: 5.395889488 | AG118: - | AH118: 3.777122641 | AI118: 7847.751177 | AJ118: 57.64951665 | AK118: 550.5123325 | AL118: 0.2134849716 | AM118: -0.0002908882087 | AN118: 0.0002908882087 | AO118: =FI_T-Rechentabelle!AL118 -> 6.066515028 | AP118: =K118 -> -1.619001619e-06
A119: 0.007312499452 | B119: 6.249999569e-05 | C119: 0.2098801817 | D119: 57.40312958 | E119: 7850001.5 | G119: 7850.0015 | M119: - | N119: =N118+(L120-L118)/2 -> 0.246956366 | O119: 57.64951665 | P119: 57.40312958 | Q119: 0.0005692976809 | R119: -0.001373848401 | S119: - | T119: -0.001373848401 | U119: 5.397436746 | V119: 5.396062897 | W119: 5.396062897 | X119: 5.395889488 | Y119: 0.0001734094581 | Z119: 15.66057618 | AA119: 15.66057618 | AB119: 15.66057618 | AC119: - | AD119: 5.396001365 | AE119: 5.396001365 | AF119: 5.396001365 | AG119: - | AH119: 3.777200955 | AI119: 7847.91389 | AJ119: 58.14001126 | AK119: 555.196211 | AL119: 0.2171187223 | AM119: -0.0002908882087 | AN119: 0.0002908882087 | AO119: =FI_T-Rechentabelle!AL119 -> 6.062881278 | AP119: =AP118 -> -1.619001619e-06
A120: 0.007374999579 | B120: 6.249999569e-05 | C120: 0.2134832092 | D120: 57.89375687 | E120: 7850001.5 | G120: 7850.0015 | I120: =C120 -> 0.2134832092 | J120: =AL118 -> 0.2134849716 | K120: =I120-J120 -> -1.762476464e-06 | L120: =L118+KP_LR*(1+2*TA_SIM/TN_LR)*K120-KP_LR*K118 -> 0.2468043456 | M120: - | N120: =L120 -> 0.2468043456 | O120: 58.14001126 | P120: 57.89375687 | Q120: 0.0005499479968 | R120: -0.001284589577 | S120: - | T120: -0.001284589577 | U120: 5.397436746 | V120: 5.396152156 | W120: 5.396152156 | X120: 5.396001365 | Y120: 0.0001507912118 | Z120: 15.65927065 | AA120: 15.65927065 | AB120: 15.65927065 | AC120: - | AD120: 5.39609865 | AE120: 5.39609865 | AF120: 5.39609865 | AG120: - | AH120: 3.777269055 | AI120: 7848.055381 | AJ120: 58.63051473 | AK120: 559.8801741 | AL120: 0.2207831295 | AM120: -0.0002908882087 | AN120: 0.0002908882087 | AO120: =FI_T-Rechentabelle!AL120 -> 6.05921687 | AP120: =K120 -> -1.762476464e-06
A121: 0.007437499706 | B121: 6.249999569e-05 | C121: 0.2171169007 | D121: 58.38438034 | E121: 7850001.5 | G121: 7850.0015 | M121: - | N121: =N120+(L122-L120)/2 -> 0.2466663967 | O121: 58.63051473 | P121: 58.38438034 | Q121: 0.0005320119539 | R121: -0.001196429394 | S121: - | T121: -0.001196429394 | U121: 5.397436746 | V121: 5.396240316 | W121: 5.396240316 | X121: 5.39609865 | Y121: 0.0001416667426 | Z121: 15.65889523 | AA121: 15.65889523 | AB121: 15.65889523 | AC121: - | AD121: 5.396190047 | AE121: 5.396190047 | AF121: 5.396190047 | AG121: - | AH121: 3.777333033 | AI121: 7848.188309 | AJ121: 59.12102649 | AK121: 564.5642164 | AL121: 0.2244781937 | AM121: -0.0002908882087 | AN121: 0.0002908882087 | AO121: =FI_T-Rechentabelle!AL121 -> 6.055521806 | AP121: =AP120 -> -1.762476464e-06
A122: 0.007499999367 | B122: 6.249999569e-05 | C122: 0.2207812562 | D122: 58.87500763 | E122: 7850001.5 | G122: 7850.0015 | I122: =C122 -> 0.2207812562 | J122: =AL120 -> 0.2207831295 | K122: =I122-J122 -> -1.873269474e-06 | L122: =L120+KP_LR*(1+2*TA_SIM/TN_LR)*K122-KP_LR*K120 -> 0.2465284479 | M122: - | N122: =L122 -> 0.2465284479 | O122: 59.12102649 | P122: 58.87500763 | Q122: 0.0005095825715 | R122: -0.001124144038 | S122: - | T122: -0.001124144038 | U122: 5.397436746 | V122: 5.396312602 | W122: 5.396312602 | X122: 5.396190047 | Y122: 0.0001225542002 | Z122: 15.65778295 | AA122: 15.65778295 | AB122: 15.65778295 | AC122: - | AD122: 5.396269115 | AE122: 5.396269115 | AF122: 5.396269115 | AG122: - | AH122: 3.77738838 | AI122: 7848.303304 | AJ122: 59.61154545 | AK122: 569.2483274 | AL122: 0.2282039153 | AM122: -0.0002908882087 | AN122: 0.0002908882087 | AO122: =FI_T-Rechentabelle!AL122 -> 6.051796085 | AP122: =K122 -> -1.873269474e-06
A123: 0.007562499493 | B123: 6.249999569e-05 | C123: 0.2244762759 | D123: 59.3656311 | E123: 7850001.5 | G123: 7850.0015 | M123: - | N123: =N122+(L124-L122)/2 -> 0.2464032726 | O123: 59.61154545 | P123: 59.3656311 | Q123: 0.0004889249644 | R123: -0.00105279137 | S123: - | T123: -0.00105279137 | U123: 5.397436746 | V123: 5.396383954 | W123: 5.396383954 | X123: 5.396269115 | Y123: 0.0001148396424 | Z123: 15.6574563 | AA123: 15.6574563 | AB123: 15.6574563 | AC123: - | AD123: 5.396343205 | AE123: 5.396343205 | AF123: 5.396343205 | AG123: - | AH123: 3.777440243 | AI123: 7848.41106 | AJ123: 60.10207114 | AK123: 573.9325027 | AL123: 0.2319602947 | AM123: -0.0002908882087 | AN123: 0.0002908882087 | AO123: =FI_T-Rechentabelle!AL123 -> 6.048039705 | AP123: =AP122 -> -1.873269474e-06
A124: 0.00762499962 | B124: 6.249999569e-05 | C124: 0.2282019596 | D124: 59.85625458 | E124: 7850001.5 | G124: 7850.0015 | I124: =C124 -> 0.2282019596 | J124: =AL122 -> 0.2282039153 | K124: =I124-J124 -> -1.955681293e-06 | L124: =L122+KP_LR*(1+2*TA_SIM/TN_LR)*K124-KP_LR*K122 -> 0.2462780974 | M124: - | N124: =L124 -> 0.2462780974 | O124: 60.10207114 | P124: 59.85625458 | Q124: 0.0004615325941 | R124: -0.001003714674 | S124: - | T124: -0.001003714674 | U124: 5.397436746 | V124: 5.396433031 | W124: 5.396433031 | X124: 5.396343205 | Y124: 8.982624634e-05 | Z124: 15.65586858 | AA124: 15.65586858 | AB124: 15.65586858 | AC124: - | AD124: 5.396401157 | AE124: 5.396401157 | AF124: 5.396401157 | AG124: - | AH124: 3.77748081 | AI124: 7848.495346 | AJ124: 60.5926021 | AK124: 578.6167284 | AL124: 0.2357473323 | AM124: -0.0002908882087 | AN124: 0.0002908882087 | AO124: =FI_T-Rechentabelle!AL124 -> 6.044252668 | AP124: =K124 -> -1.955681293e-06
A125: 0.007687499281 | B125: 6.249999569e-05 | C125: 0.2319583073 | D125: 60.34688187 | E125: 7850001.5 | G125: 7850.0015 | M125: - | N125: =N124+(L126-L124)/2 -> 0.2461647362 | O125: 60.5926021 | P125: 60.34688187 | Q125: 0.0004445010526 | R125: -0.000934794151 | S125: - | T125: -0.000934794151 | U125: 5.397436746 | V125: 5.396501951 | W125: 5.396501951 | X125: 5.396401157 | Y125: 0.0001007943521 | Z125: 15.65682705 | AA125: 15.65682705 | AB125: 15.65682705 | AC125: - | AD125: 5.396466186 | AE125: 5.396466186 | AF125: 5.396466186 | AG125: - | AH125: 3.77752633 | AI125: 7848.589923 | AJ125: 61.08313897 | AK125: 583.3010104 | AL125: 0.2395650285 | AM125: -0.0002908882087 | AN125: 0.0002908882087 | AO125: =FI_T-Rechentabelle!AL125 -> 6.040434971 | AP125: =AP124 -> -1.955681293e-06
A126: 0.007749999408 | B126: 6.249999569e-05 | C126: 0.2357453192 | D126: 60.83750534 | E126: 7850001.5 | G126: 7850.0015 | I126: =C126 -> 0.2357453192 | J126: =AL124 -> 0.2357473323 | K126: =I126-J126 -> -2.013170779e-06 | L126: =L124+KP_LR*(1+2*TA_SIM/TN_LR)*K126-KP_LR*K124 -> 0.2460513749 | M126: - | N126: =L126 -> 0.2460513749 | O126: 61.08313897 | P126: 60.83750534 | Q126: 0.0004177437359 | R126: -0.0008949220533 | S126: - | T126: -0.0008949220533 | U126: 5.397436746 | V126: 5.396541824 | W126: 5.396541824 | X126: 5.396466186 | Y126: 7.563783554e-05 | Z126: 15.65520274 | AA126: 15.65520274 | AB126: 15.65520274 | AC126: - | AD126: 5.396514984 | AE126: 5.396514984 | AF126: 5.396514984 | AG126: - | AH126: 3.777560489 | AI126: 7848.660896 | AJ126: 61.57368028 | AK126: 587.9853348 | AL126: 0.2434133835 | AM126: -0.0002908882087 | AN126: 0.0002908882087 | AO126: =FI_T-Rechentabelle!AL126 -> 6.036586616 | AP126: =K126 -> -2.013170779e-06
A127: 0.007812499534 | B127: 6.249999569e-05 | C127: 0.2395629951 | D127: 61.32813263 | E127: 7850001.5 | G127: 7850.0015 | M127: - | N127: =N126+(L128-L126)/2 -> 0.2459491325 | O127: 61.57368028 | P127: 61.32813263 | Q127: 0.0004014841175 | R127: -0.0008347009458 | S127: - | T127: -0.0008347009458 | U127: 5.397436746 | V127: 5.396602045 | W127: 5.396602045 | X127: 5.396514984 | Y127: 8.706033948e-05 | Z127: 15.65616742 | AA127: 15.65616742 | AB127: 15.65616742 | AC127: - | AD127: 5.396571152 | AE127: 5.396571152 | AF127: 5.396571152 | AG127: - | AH127: 3.777599807 | AI127: 7848.742586 | AJ127: 62.06422669 | AK127: 592.669708 | AL127: 0.2472923977 | AM127: -0.0002908882087 | AN127: 0.0002908882087 | AO127: =FI_T-Rechentabelle!AL127 -> 6.032707602 | AP127: =AP126 -> -2.013170779e-06
A128: 0.007874999195 | B128: 6.249999569e-05 | C128: 0.243411335 | D128: 61.8187561 | E128: 7850001.5 | G128: 7850.0015 | I128: =C128 -> 0.243411335 | J128: =AL126 -> 0.2434133835 | K128: =I128-J128 -> -2.04853214e-06 | L128: =L126+KP_LR*(1+2*TA_SIM/TN_LR)*K128-KP_LR*K126 -> 0.24584689 | M128: - | N128: =L128 -> 0.24584689 | O128: 62.06422669 | P128: 61.8187561 | Q128: 0.000376304154 | R128: -0.0008012783155 | S128: - | T128: -0.0008012783155 | U128: 5.397436746 | V128: 5.396635467 | W128: 5.396635467 | X128: 5.396571152 | Y128: 6.431500882e-05 | Z128: 15.65469117 | AA128: 15.65469117 | AB128: 15.65469117 | AC128: - | AD128: 5.396612646 | AE128: 5.396612646 | AF128: 5.396612646 | AG128: - | AH128: 3.777628852 | AI128: 7848.802934 | AJ128: 62.55477687 | AK128: 597.3541172 | AL128: 0.2512020713 | AM128: -0.0002908882087 | AN128: 0.0002908882087 | AO128: =FI_T-Rechentabelle!AL128 -> 6.028797929 | AP128: =K128 -> -2.04853214e-06
A129: 0.007937499322 | B129: 6.249999569e-05 | C129: 0.247290339 | D129: 62.30937958 | E129: 7850001.5 | G129: 7850.0015 | M129: - | N129: =N128+(L130-L128)/2 -> 0.2457552017 | O129: 62.55477687 | P129: 62.30937958 | Q129: 0.00035790658 | R129: -0.0007566326604 | S129: - | T129: -0.0007566326604 | U129: 5.397436746 | V129: 5.396680113 | W129: 5.396680113 | X129: 5.396612646 | Y129: 6.746710979e-05 | Z129: 15.65503866 | AA129: 15.65503866 | AB129: 15.65503866 | AC129: - | AD129: 5.396656173 | AE129: 5.396656173 | AF129: 5.396656173 | AG129: - | AH129: 3.777659321 | AI129: 7848.86624 | AJ129: 63.04533101 | AK129: 602.0385642 | AL129: 0.2551424044 | AM129: -0.0002908882087 | AN129: 0.0002908882087 | AO129: =FI_T-Rechentabelle!AL129 -> 6.024857596 | AP129: =AP128 -> -2.04853214e-06
A130: 0.007999999449 | B130: 6.249999569e-05 | C130: 0.2512000071 | D130: 62.80000687 | E130: 7850001.5 | G130: 7850.0015 | I130: =C130 -> 0.2512000071 | J130: =AL128 -> 0.2512020713 | K130: =I130-J130 -> -2.064159571e-06 | L130: =L128+KP_LR*(1+2*TA_SIM/TN_LR)*K130-KP_LR*K128 -> 0.2456635134 | M130: - | N130: =L130 -> 0.2456635134 | O130: 63.04533101 | P130: 62.80000687 | Q130: 0.0003393670991 | R130: -0.000716835455 | S130: - | T130: -0.000716835455 | U130: =G130*(JM_EMS+JL_EMS)/KT_M*KP_VSR -> 5.397436746 | V130: 5.39671991 | W130: =IF(V130<-IM_R,-IM_R,IF(V130>IM_R,IM_R,V130)) -> 5.39671991 | X130: 5.396656173 | Y130: 6.37371476e-05 | Z130: 15.65489609 | AA130: =IF(Z130<-U_ZWK,-U_ZWK,IF(Z130>U_ZWK,U_ZWK,Z130)) -> 15.65489609 | AB130: 15.65489609 | AC130: - | AD130: 5.396697294 | AE130: 5.396697294 | AF130: 5.396697294 | AG130: - | AH130: =AF130*KT_M -> 3.777688106 | AI130: =AH130/(JM_EMS+JL_EMS) -> 7848.926045 | AJ130: 63.53588889 | AK130: =AJ130/(2*PI())*60 -> 606.7230468 | AL130: 0.2591133975 | AM130: =-DF_LR -> -0.0002908882087 | AN130: =DF_LR -> 0.0002908882087 | AO130: =FI_T-Rechentabelle!AL130 -> 6.020886602 | AP130: =K130 -> -2.064159571e-06
A131: 0.008062499575 | B131: 6.249999569e-05 | C131: 0.2551403392 | D131: 63.29063034 | E131: 7850001.5 | G131: =E131/1000 -> 7850.0015 | M131: - | N131: =N130+(L132-L130)/2 -> 0.2455819565 | O131: 63.53588889 | P131: 63.29063034 | Q131: 0.0003234065688 | R131: =R130+KP_DR*(1+TA_SIM/TN_DR)*Q131-KP_DR*Q130 -> -0.0006749563822 | S131: - | T131: =R131 -> -0.0006749563822 | U131: 5.397436746 | V131: =T131+U131 -> 5.396761789 | W131: 5.396761789 | X131: 5.396697294 | Y131: =W131-X131 -> 6.449548006e-05 | Z131: 15.65506999 | AA131: 15.65506999 | AB131: =AA131 -> 15.65506999 | AC131: - | AD131: =(1/R_M*AB131+AD130*T_M/TA_SIM)/(1+T_M/TA_SIM) -> 5.396738904 | AE131: =AD131 -> 5.396738904 | AF131: =AE131 -> 5.396738904 | AG131: - | AH131: 3.777717233 | AI131: 7848.986563 | AJ131: =AJ130+AI131*TA_SIM -> 64.02645055 | AK131: 611.4075656 | AL131: =AL130+AJ131*TA_SIM -> 0.2631150507 | AM131: -0.0002908882087 | AN131: 0.0002908882087 | AO131: =FI_T-Rechentabelle!AL131 -> 6.016884949 | AP131: =AP130 -> -2.064159571e-06
A132: 0.008124999702 | B132: 6.249999569e-05 | C132: 0.2591113355 | D132: 63.78125763 | E132: 7850001.5 | G132: 7850.0015 | I132: =C132 -> 0.2591113355 | J132: =AL130 -> 0.2591133975 | K132: =I132-J132 -> -2.062054857e-06 | L132: =L130+KP_LR*(1+2*TA_SIM/TN_LR)*K132-KP_LR*K130 -> 0.2455003997 | M132: - | N132: =L132 -> 0.2455003997 | O132: =AJ131 -> 64.02645055 | P132: =D132*KP_VDR -> 63.78125763 | Q132: =N132-O132+P132 -> 0.0003074784026 | R132: -0.0006368855227 | S132: - | T132: -0.0006368855227 | U132: 5.397436746 | V132: 5.39679986 | W132: 5.39679986 | X132: =AF131 -> 5.396738904 | Y132: 6.095635237e-05 | Z132: 15.65493561 | AA132: 15.65493561 | AB132: 15.65493561 | AC132: - | AD132: 5.39677823 | AE132: 5.39677823 | AF132: 5.39677823 | AG132: - | AH132: 3.777744761 | AI132: 7849.043759 | AJ132: 64.51701579 | AK132: 616.0921185 | AL132: 0.2671473642 | AM132: -0.0002908882087 | AN132: 0.0002908882087 | AO132: =FI_T-Rechentabelle!AL132 -> 6.012852636 | AP132: =K132 -> -2.062054857e-06
A133: 0.008187499829 | B133: 6.249999569e-05 | C133: 0.2631129957 | D133: 64.2718811 | E133: 7850001.5 | G133: 7850.0015 | M133: - | N133: =N132+(L134-L132)/2 -> 0.2454285449 | O133: 64.51701579 | P133: 64.2718811 | Q133: 0.0002938627429 | R133: -0.0005967782263 | S133: - | T133: -0.0005967782263 | U133: 5.397436746 | V133: 5.396839967 | W133: 5.396839967 | X133: 5.39677823 | Y133: 6.173696983e-05 | Z133: 15.65510591 | AA133: 15.65510591 | AB133: 15.65510591 | AC133: - | AD133: 5.396818061 | AE133: 5.396818061 | AF133: 5.396818061 | AG133: - | AH133: 3.777772643 | AI133: 7849.101688 | AJ133: 65.00758464 | AK133: 620.776706 | AL133: 0.2712103382 | AM133: -0.0002908882087 | AN133: 0.0002908882087 | AO133: =FI_T-Rechentabelle!AL133 -> 6.008789662 | AP133: =AP132 -> -2.062054857e-06
A134: 0.008249999024 | B134: 6.249999569e-05 | C134: 0.2671453201 | D134: 64.76250458 | E134: 7850001.5 | G134: 7850.0015 | I134: =C134 -> 0.2671453201 | J134: =AL132 -> 0.2671473642 | K134: =I134-J134 -> -2.044098746e-06 | L134: =L132+KP_LR*(1+2*TA_SIM/TN_LR)*K134-KP_LR*K132 -> 0.2453566901 | M134: - | N134: =L134 -> 0.2453566901 | O134: 65.00758464 | P134: 64.76250458 | Q134: 0.0002766265227 | R134: -0.0005692583205 | S134: - | T134: -0.0005692583205 | U134: 5.397436746 | V134: 5.396867487 | W134: 5.396867487 | X134: 5.396818061 | Y134: 4.94265725e-05 | Z134: 15.65433428 | AA134: 15.65433428 | AB134: 15.65433428 | AC134: - | AD134: 5.396849949 | AE134: 5.396849949 | AF134: 5.396849949 | AG134: - | AH134: 3.777794964 | AI134: 7849.148066 | AJ134: 65.4981564 | AK134: 625.4613212 | AL134: 0.275303973 | AM134: -0.0002908882087 | AN134: 0.0002908882087 | AO134: =FI_T-Rechentabelle!AL134 -> 6.004696027 | AP134: =K134 -> -2.044098746e-06
A135: 0.008312499151 | B135: 6.249999569e-05 | C135: 0.2712083084 | D135: 65.25312805 | E135: 7850001.5 | G135: 7850.0015 | M135: - | N135: =N134+(L136-L134)/2 -> 0.2452941014 | O135: 65.4981564 | P135: 65.25312805 | Q135: 0.0002657578769 | R135: -0.0005296406168 | S135: - | T135: -0.0005296406168 | U135: 5.397436746 | V135: 5.396907105 | W135: 5.396907105 | X135: 5.396849949 | Y135: 5.715616494e-05 | Z135: 15.65498378 | AA135: 15.65498378 | AB135: 15.65498378 | AC135: - | AD135: 5.396886824 | AE135: 5.396886824 | AF135: 5.396886824 | AG135: - | AH135: 3.777820777 | AI135: 7849.201697 | AJ135: 65.9887315 | AK135: 630.1459684 | AL135: 0.2794282687 | AM135: -0.0002908882087 | AN135: 0.0002908882087 | AO135: =FI_T-Rechentabelle!AL135 -> 6.000571731 | AP135: =AP134 -> -2.044098746e-06
A136: 0.008374999277 | B136: 6.249999569e-05 | C136: 0.2753019609 | D136: 65.74375916 | E136: 7850001.5 | G136: 7850.0015 | I136: =C136 -> 0.2753019609 | J136: =AL134 -> 0.275303973 | K136: =I136-J136 -> -2.012057923e-06 | L136: =L134+KP_LR*(1+2*TA_SIM/TN_LR)*K136-KP_LR*K134 -> 0.2452315128 | M136: - | N136: =L136 -> 0.2452315128 | O136: 65.9887315 | P136: 65.74375916 | Q136: 0.0002591667062 | R136: -0.0004817230311 | S136: - | T136: -0.0004817230311 | U136: 5.397436746 | V136: 5.396955023 | W136: 5.396955023 | X136: 5.396886824 | Y136: 6.819880547e-05 | Z136: 15.6558865 | AA136: 15.6558865 | AB136: 15.6558865 | AC136: - | AD136: 5.396930823 | AE136: 5.396930823 | AF136: 5.396930823 | AG136: - | AH136: 3.777851576 | AI136: 7849.265689 | AJ136: 66.47931061 | AK136: 634.8306538 | AL136: 0.2835832256 | AM136: -0.0002908882087 | AN136: 0.0002908882087 | AO136: =FI_T-Rechentabelle!AL136 -> 5.996416774 | AP136: =K136 -> -2.012057923e-06
A137: 0.008437499404 | B137: 6.249999569e-05 | C137: 0.2794262774 | D137: 66.23438263 | E137: 7850001.5 | G137: 7850.0015 | M137: - | N137: =N136+(L138-L136)/2 -> 0.2451777555 | O137: 66.47931061 | P137: 66.23438263 | Q137: 0.0002497780007 | R137: -0.0004425735172 | S137: - | T137: -0.0004425735172 | U137: 5.397436746 | V137: 5.396994172 | W137: 5.396994172 | X137: 5.396930823 | Y137: 6.33490901e-05 | Z137: 15.65566461 | AA137: 15.65566461 | AB137: 15.65566461 | AC137: - | AD137: 5.396971693 | AE137: 5.396971693 | AF137: 5.396971693 | AG137: - | AH137: 3.777880185 | AI137: 7849.325131 | AJ137: 66.96989343 | AK137: 639.5153746 | AL137: 0.2877688439 | AM137: -0.0002908882087 | AN137: 0.0002908882087 | AO137: =FI_T-Rechentabelle!AL137 -> 5.992231156 | AP137: =AP136 -> -2.012057923e-06
A138: 0.008499999531 | B138: 6.249999569e-05 | C138: 0.283581258 | D138: 66.7250061 | E138: 7850001.5 | G138: 7850.0015 | I138: =C138 -> 0.283581258 | J138: =AL136 -> 0.2835832256 | K138: =I138-J138 -> -1.96758062e-06 | L138: =L136+KP_LR*(1+2*TA_SIM/TN_LR)*K138-KP_LR*K136 -> 0.2451239983 | M138: - | N138: =L138 -> 0.2451239983 | O138: 66.96989343 | P138: 66.7250061 | Q138: 0.0002366741922 | R138: -0.000415222906 | S138: - | T138: -0.000415222906 | U138: 5.397436746 | V138: 5.397021523 | W138: 5.397021523 | X138: 5.396971693 | Y138: 4.982932061e-05 | Z138: 15.65480884 | AA138: 15.65480884 | AB138: 15.65480884 | AC138: - | AD138: 5.397003841 | AE138: 5.397003841 | AF138: 5.397003841 | AG138: - | AH138: 3.777902689 | AI138: 7849.371886 | AJ138: 67.46047917 | AK138: 644.2001234 | AL138: 0.2919851239 | AM138: -0.0002908882087 | AN138: 0.0002908882087 | AO138: =FI_T-Rechentabelle!AL138 -> 5.988014876 | AP138: =K138 -> -1.96758062e-06
A139: 0.008562499657 | B139: 6.249999569e-05 | C139: 0.2877669027 | D139: 67.21562958 | E139: 7850001.5 | G139: 7850.0015 | M139: - | N139: =N138+(L140-L138)/2 -> 0.2450784559 | O139: 67.46047917 | P139: 67.21562958 | Q139: 0.0002288630411 | R139: -0.0003775186419 | S139: - | T139: -0.0003775186419 | U139: 5.397436746 | V139: 5.397059227 | W139: 5.397059227 | X139: 5.397003841 | Y139: 5.538563588e-05 | Z139: 15.65530248 | AA139: 15.65530248 | AB139: 15.65530248 | AC139: - | AD139: 5.397039574 | AE139: 5.397039574 | AF139: 5.397039574 | AG139: - | AH139: 3.777927702 | AI139: 7849.423856 | AJ139: 67.95106816 | AK139: 648.8849032 | AL139: 0.2962320656 | AM139: -0.0002908882087 | AN139: 0.0002908882087 | AO139: =FI_T-Rechentabelle!AL139 -> 5.983767934 | AP139: =AP138 -> -1.96758062e-06
A140: 0.008624999784 | B140: 6.249999569e-05 | C140: 0.2919832114 | D140: 67.70625305 | E140: 7850001.5 | G140: 7850.0015 | I140: =C140 -> 0.2919832114 | J140: =AL138 -> 0.2919851239 | K140: =I140-J140 -> -1.912505461e-06 | L140: =L138+KP_LR*(1+2*TA_SIM/TN_LR)*K140-KP_LR*K138 -> 0.2450329135 | M140: - | N140: =L140 -> 0.2450329135 | O140: 67.95106816 | P140: 67.70625305 | Q140: 0.0002178038031 | R140: -0.0003500332057 | S140: - | T140: -0.0003500332057 | U140: 5.397436746 | V140: 5.397086712 | W140: 5.397086712 | X140: 5.397039574 | Y140: 4.713840378e-05 | Z140: 15.65481177 | AA140: 15.65481177 | AB140: 15.65481177 | AC140: - | AD140: 5.397069986 | AE140: 5.397069986 | AF140: 5.397069986 | AG140: - | AH140: 3.77794899 | AI140: 7849.468087 | AJ140: 68.44165992 | AK140: 653.5697094 | AL140: 0.3005096694 | AM140: -0.0002908882087 | AN140: 0.0002908882087 | AO140: =FI_T-Rechentabelle!AL140 -> 5.979490331 | AP140: =K140 -> -1.912505461e-06
A141: 0.008687498979 | B141: 6.249999569e-05 | C141: 0.2962301842 | D141: 68.19688416 | E141: 7850001.5 | G141: 7850.0015 | M141: - | N141: =N140+(L142-L140)/2 -> 0.2449950637 | O141: 68.44165992 | P141: 68.19688416 | Q141: 0.000219302057 | R141: -0.0002930989773 | S141: - | T141: -0.0002930989773 | U141: 5.397436746 | V141: 5.397143647 | W141: 5.397143647 | X141: 5.397069986 | Y141: 7.366075877e-05 | Z141: 15.65681129 | AA141: 15.65681129 | AB141: 15.65681129 | AC141: - | AD141: 5.397117509 | AE141: 5.397117509 | AF141: 5.397117509 | AG141: - | AH141: 3.777982256 | AI141: 7849.537204 | AJ141: 68.93225599 | AK141: 658.2545568 | AL141: 0.3048179354 | AM141: -0.0002908882087 | AN141: 0.0002908882087 | AO141: =FI_T-Rechentabelle!AL141 -> 5.975182065 | AP141: =AP140 -> -1.912505461e-06
A142: 0.008749999106 | B142: 6.249999569e-05 | C142: 0.300507821 | D142: 68.68750763 | E142: 7850001.5 | G142: 7850.0015 | I142: =C142 -> 0.300507821 | J142: =AL140 -> 0.3005096694 | K142: =I142-J142 -> -1.848394355e-06 | L142: =L140+KP_LR*(1+2*TA_SIM/TN_LR)*K142-KP_LR*K140 -> 0.2449572138 | M142: - | N142: =L142 -> 0.2449572138 | O142: 68.93225599 | P142: 68.68750763 | Q142: 0.000208851086 | R142: -0.0002663873828 | S142: - | T142: -0.0002663873828 | U142: 5.397436746 | V142: 5.397170358 | W142: 5.397170358 | X142: 5.397117509 | Y142: 5.284928309e-05 | Z142: 15.65544933 | AA142: 15.65544933 | AB142: 15.65544933 | AC142: - | AD142: 5.397151605 | AE142: 5.397151605 | AF142: 5.397151605 | AG142: - | AH142: 3.778006124 | AI142: 7849.586793 | AJ142: 69.42285517 | AK142: 662.9394338 | AL142: 0.3091568638 | AM142: -0.0002908882087 | AN142: 0.0002908882087 | AO142: =FI_T-Rechentabelle!AL142 -> 5.970843136 | AP142: =K142 -> -1.848394355e-06
A143: 0.008812499233 | B143: 6.249999569e-05 | C143: 0.3048161219 | D143: 69.1781311 | E143: 7850001.5 | G143: 7850.0015 | M143: - | N143: =N142+(L144-L142)/2 -> 0.2449263725 | O143: 69.42285517 | P143: 69.1781311 | Q143: 0.0002023092893 | R143: -0.0002322168651 | S143: - | T143: -0.0002322168651 | U143: 5.397436746 | V143: 5.397204529 | W143: 5.397204529 | X143: 5.397151605 | Y143: 5.292348913e-05 | Z143: 15.65555356 | AA143: 15.65555356 | AB143: 15.65555356 | AC143: - | AD143: 5.397185749 | AE143: 5.397185749 | AF143: 5.397185749 | AG143: - | AH143: 3.778030025 | AI143: 7849.636453 | AJ143: 69.91345745 | AK143: 667.6243405 | AL143: 0.3135264549 | AM143: -0.0002908882087 | AN143: 0.0002908882087 | AO143: =FI_T-Rechentabelle!AL143 -> 5.966473545 | AP143: =AP142 -> -1.848394355e-06
A144: 0.008874999359 | B144: 6.249999569e-05 | C144: 0.3091550869 | D144: 69.66875458 | E144: 7850001.5 | G144: 7850.0015 | I144: =C144 -> 0.3091550869 | J144: =AL142 -> 0.3091568638 | K144: =I144-J144 -> -1.776972312e-06 | L144: =L142+KP_LR*(1+2*TA_SIM/TN_LR)*K144-KP_LR*K142 -> 0.2448955312 | M144: - | N144: =L144 -> 0.2448955312 | O144: 69.91345745 | P144: 69.66875458 | Q144: 0.0001926637981 | R144: -0.0002075860969 | S144: - | T144: -0.0002075860969 | U144: 5.397436746 | V144: 5.39722916 | W144: 5.39722916 | X144: 5.397185749 | Y144: 4.341007079e-05 | Z144: 15.654967 | AA144: 15.654967 | AB144: 15.654967 | AC144: - | AD144: 5.397213756 | AE144: 5.397213756 | AF144: 5.397213756 | AG144: - | AH144: 3.778049629 | AI144: 7849.677185 | AJ144: 70.40406227 | AK144: 672.3092714 | AL144: 0.3179267088 | AM144: -0.0002908882087 | AN144: 0.0002908882087 | AO144: =FI_T-Rechentabelle!AL144 -> 5.962073291 | AP144: =K144 -> -1.776972312e-06
A145: 0.008937499486 | B145: 6.249999569e-05 | C145: 0.3135247159 | D145: 70.15937805 | E145: 7850001.5 | G145: 7850.0015 | M145: - | N145: =N144+(L146-L144)/2 -> 0.2448710258 | O145: 70.40406227 | P145: 70.15937805 | Q145: 0.0001868084097 | R145: -0.0001756048373 | S145: - | T145: -0.0001756048373 | U145: 5.397436746 | V145: 5.397261141 | W145: 5.397261141 | X145: 5.397213756 | Y145: 4.738483309e-05 | Z145: 15.65533466 | AA145: 15.65533466 | AB145: 15.65533466 | AC145: - | AD145: 5.397244327 | AE145: 5.397244327 | AF145: 5.397244327 | AG145: - | AH145: 3.778071029 | AI145: 7849.721647 | AJ145: 70.89466987 | AK145: 676.9942289 | AL145: 0.3223576257 | AM145: -0.0002908882087 | AN145: 0.0002908882087 | AO145: =FI_T-Rechentabelle!AL145 -> 5.957642374 | AP145: =AP144 -> -1.776972312e-06
A146: 0.008999999613 | B146: 6.249999569e-05 | C146: 0.317925009 | D146: 70.65000916 | E146: 7850001.5 | G146: 7850.0015 | I146: =C146 -> 0.317925009 | J146: =AL144 -> 0.3179267088 | K146: =I146-J146 -> -1.699831503e-06 | L146: =L144+KP_LR*(1+2*TA_SIM/TN_LR)*K146-KP_LR*K144 -> 0.2448465203 | M146: - | N146: =L146 -> 0.2448465203 | O146: 70.89466987 | P146: 70.65000916 | Q146: 0.0001858035354 | R146: -0.000132634622 | S146: - | T146: -0.000132634622 | U146: 5.397436746 | V146: 5.397304111 | W146: 5.397304111 | X146: 5.397244327 | Y146: 5.978418835e-05 | Z146: 15.65631687 | AA146: 15.65631687 | AB146: 15.65631687 | AC146: - | AD146: 5.397282897 | AE146: 5.397282897 | AF146: 5.397282897 | AG146: - | AH146: 3.778098028 | AI146: 7849.777744 | AJ146: 71.38528098 | AK146: 681.6792199 | AL146: 0.3268192057 | AM146: -0.0002908882087 | AN146: 0.0002908882087 | AO146: =FI_T-Rechentabelle!AL146 -> 5.953180794 | AP146: =K146 -> -1.699831503e-06
A147: 0.009062499739 | B147: 6.249999569e-05 | C147: 0.3223559661 | D147: 71.14063263 | E147: 7850001.5 | G147: 7850.0015 | M147: - | N147: =N146+(L148-L146)/2 -> 0.2448277239 | O147: 71.38528098 | P147: 71.14063263 | Q147: 0.0001793722127 | R147: -0.0001038001336 | S147: - | T147: -0.0001038001336 | U147: 5.397436746 | V147: 5.397332946 | W147: 5.397332946 | X147: 5.397282897 | Y147: 5.004823268e-05 | Z147: 15.6557271 | AA147: 15.6557271 | AB147: 15.6557271 | AC147: - | AD147: 5.397315186 | AE147: 5.397315186 | AF147: 5.397315186 | AG147: - | AH147: 3.778120631 | AI147: 7849.824705 | AJ147: 71.87589503 | AK147: 686.3642389 | AL147: 0.3313114492 | AM147: -0.0002908882087 | AN147: 0.0002908882087 | AO147: =FI_T-Rechentabelle!AL147 -> 5.948688551 | AP147: =AP146 -> -1.699831503e-06
A148: 0.009124998935 | B148: 6.249999569e-05 | C148: 0.3268175874 | D148: 71.6312561 | E148: 7850001.5 | G148: 7850.0015 | I148: =C148 -> 0.3268175874 | J148: =AL146 -> 0.3268192057 | K148: =I148-J148 -> -1.618383412e-06 | L148: =L146+KP_LR*(1+2*TA_SIM/TN_LR)*K148-KP_LR*K146 -> 0.2448089274 | M148: - | N148: =L148 -> 0.2448089274 | O148: 71.87589503 | P148: 71.6312561 | Q148: 0.0001700058148 | R148: -8.404682665e-05 | S148: - | T148: -8.404682665e-05 | U148: 5.397436746 | V148: 5.397352699 | W148: 5.397352699 | X148: 5.397315186 | Y148: 3.751235725e-05 | Z148: 15.65491735 | AA148: 15.65491735 | AB148: 15.65491735 | AC148: - | AD148: 5.397339388 | AE148: 5.397339388 | AF148: 5.397339388 | AG148: - | AH148: 3.778137572 | AI148: 7849.859904 | AJ148: 72.36651127 | AK148: 691.049279 | AL148: 0.3358343561 | AM148: -0.0002908882087 | AN148: 0.0002908882087 | AO148: =FI_T-Rechentabelle!AL148 -> 5.944165644 | AP148: =K148 -> -1.618383412e-06
A149: 0.009187499061 | B149: 6.249999569e-05 | C149: 0.3313098726 | D149: 72.12187958 | E149: 7850001.5 | G149: 7850.0015 | M149: - | N149: =N148+(L150-L148)/2 -> 0.2447950912 | O149: 72.36651127 | P149: 72.12187958 | Q149: 0.0001633997897 | R149: -5.951091332e-05 | S149: - | T149: -5.951091332e-05 | U149: 5.397436746 | V149: 5.397377235 | W149: 5.397377235 | X149: 5.397339388 | Y149: 3.784674977e-05 | Z149: 15.65501163 | AA149: 15.65501163 | AB149: 15.65501163 | AC149: - | AD149: 5.397363805 | AE149: 5.397363805 | AF149: 5.397363805 | AG149: - | AH149: 3.778154664 | AI149: 7849.895416 | AJ149: 72.85712973 | AK149: 695.7343402 | AL149: 0.3403879267 | AM149: -0.0002908882087 | AN149: 0.0002908882087 | AO149: =FI_T-Rechentabelle!AL149 -> 5.939612073 | AP149: =AP148 -> -1.618383412e-06
A150: 0.009249999188 | B150: 6.249999569e-05 | C150: 0.335832822 | D150: 72.61251068 | E150: 7850001.5 | G150: 7850.0015 | I150: =C150 -> 0.335832822 | J150: =AL148 -> 0.3358343561 | K150: =I150-J150 -> -1.53414692e-06 | L150: =L148+KP_LR*(1+2*TA_SIM/TN_LR)*K150-KP_LR*K148 -> 0.2447812551 | M150: - | N150: =L150 -> 0.2447812551 | O150: 72.85712973 | P150: 72.61251068 | Q150: 0.0001622036391 | R150: -2.273718085e-05 | S150: - | T150: -2.273718085e-05 | U150: 5.397436746 | V150: 5.397414008 | W150: 5.397414008 | X150: 5.397363805 | Y150: 5.020322432e-05 | Z150: 15.65597291 | AA150: 15.65597291 | AB150: 15.65597291 | AC150: - | AD150: 5.397396194 | AE150: 5.397396194 | AF150: 5.397396194 | AG150: - | AH150: 3.778177336 | AI150: 7849.942523 | AJ150: 73.34775114 | AK150: 700.4194295 | AL150: 0.3449721612 | AM150: -0.0002908882087 | AN150: 0.0002908882087 | AO150: =FI_T-Rechentabelle!AL150 -> 5.935027839 | AP150: =K150 -> -1.53414692e-06
A151: 0.009312499315 | B151: 6.249999569e-05 | C151: 0.3403864354 | D151: 73.10313416 | E151: 7850001.5 | G151: 7850.0015 | M151: - | N151: =N150+(L152-L150)/2 -> 0.2447717654 | O151: 73.34775114 | P151: 73.10313416 | Q151: 0.0001547804015 | R151: -2.195299705e-06 | S151: - | T151: -2.195299705e-06 | U151: 5.397436746 | V151: 5.39743455 | W151: 5.39743455 | X151: 5.397396194 | Y151: 3.835592848e-05 | Z151: 15.65521307 | AA151: 15.65521307 | AB151: 15.65521307 | AC151: - | AD151: 5.39742094 | AE151: 5.39742094 | AF151: 5.39742094 | AG151: - | AH151: 3.778194658 | AI151: 7849.978513 | AJ151: 73.8383748 | AK151: 705.1045403 | AL151: 0.3495870596 | AM151: -0.0002908882087 | AN151: 0.0002908882087 | AO151: =FI_T-Rechentabelle!AL151 -> 5.93041294 | AP151: =AP150 -> -1.53414692e-06
A152: 0.009374999441 | B152: 6.249999569e-05 | C152: 0.3449707129 | D152: 73.59375763 | E152: 7850001.5 | G152: 7850.0015 | I152: =C152 -> 0.3449707129 | J152: =AL150 -> 0.3449721612 | K152: =I152-J152 -> -1.448318125e-06 | L152: =L150+KP_LR*(1+2*TA_SIM/TN_LR)*K152-KP_LR*K150 -> 0.2447622757 | M152: - | N152: =L152 -> 0.2447622757 | O152: 73.8383748 | P152: 73.59375763 | Q152: 0.0001451077831 | R152: 1.077883455e-05 | S152: - | T152: 1.077883455e-05 | U152: 5.397436746 | V152: 5.397447524 | W152: 5.397447524 | X152: 5.39742094 | Y152: 2.658430243e-05 | Z152: 15.65443651 | AA152: 15.65443651 | AB152: 15.65443651 | AC152: - | AD152: 5.397438091 | AE152: 5.397438091 | AF152: 5.397438091 | AG152: - | AH152: 3.778206664 | AI152: 7850.003457 | AJ152: 74.32900001 | AK152: 709.789666 | AL152: 0.3542326221 | AM152: -0.0002908882087 | AN152: 0.0002908882087 | AO152: =FI_T-Rechentabelle!AL152 -> 5.925767378 | AP152: =K152 -> -1.448318125e-06
A153: 0.009437499568 | B153: 6.249999569e-05 | C153: 0.3495856544 | D153: 74.0843811 | E153: 7850001.5 | G153: 7850.0015 | M153: - | N153: =N152+(L154-L152)/2 -> 0.2447564622 | O153: 74.32900001 | P153: 74.0843811 | Q153: 0.0001375523876 | R153: 2.681457113e-05 | S153: - | T153: 2.681457113e-05 | U153: 5.397436746 | V153: 5.39746356 | W153: 5.39746356 | X153: 5.397438091 | Y153: 2.546887615e-05 | Z153: 15.65440587 | AA153: 15.65440587 | AB153: 15.65440587 | AC153: - | AD153: 5.397454523 | AE153: 5.397454523 | AF153: 5.397454523 | AG153: - | AH153: 3.778218166 | AI153: 7850.027355 | AJ153: 74.81962672 | AK153: 714.474806 | AL153: 0.3589088488 | AM153: -0.0002908882087 | AN153: 0.0002908882087 | AO153: =FI_T-Rechentabelle!AL153 -> 5.921091151 | AP153: =AP152 -> -1.448318125e-06
A154: 0.009499999695 | B154: 6.249999569e-05 | C154: 0.35423126 | D154: 74.57500458 | E154: 7850001.5 | G154: 7850.0015 | I154: =C154 -> 0.35423126 | J154: =AL152 -> 0.3542326221 | K154: =I154-J154 -> -1.362106975e-06 | L154: =L152+KP_LR*(1+2*TA_SIM/TN_LR)*K154-KP_LR*K152 -> 0.2447506488 | M154: - | N154: =L154 -> 0.2447506488 | O154: 74.81962672 | P154: 74.57500458 | Q154: 0.0001285033717 | R154: 3.718495415e-05 | S154: - | T154: 3.718495415e-05 | U154: 5.397436746 | V154: 5.397473931 | W154: 5.397473931 | X154: 5.397454523 | Y154: 1.940772617e-05 | Z154: 15.65401672 | AA154: 15.65401672 | AB154: 15.65401672 | AC154: - | AD154: 5.397467044 | AE154: 5.397467044 | AF154: 5.397467044 | AG154: - | AH154: 3.778226931 | AI154: 7850.045566 | AJ154: 75.31025457 | AK154: =AJ154/(2*PI())*60 -> 719.1599568 | AL154: 0.3636157397 | AM154: -0.0002908882087 | AN154: 0.0002908882087 | AO154: =FI_T-Rechentabelle!AL154 -> 5.91638426 | AP154: =K154 -> -1.362106975e-06
A155: 0.00956249889 | B155: 6.249999569e-05 | C155: 0.3589075297 | D155: 75.06563568 | E155: 7850001.5 | G155: 7850.0015 | M155: - | N155: =N154+(L156-L154)/2 -> 0.2447480512 | O155: 75.31025457 | P155: 75.06563568 | Q155: 0.000129161453 | R155: 7.019770189e-05 | S155: - | T155: 7.019770189e-05 | U155: 5.397436746 | V155: 5.397506943 | W155: 5.397506943 | X155: 5.397467044 | Y155: 3.989936026e-05 | Z155: 15.65552976 | AA155: 15.65552976 | AB155: 15.65552976 | AC155: - | AD155: 5.397492786 | AE155: 5.397492786 | AF155: 5.397492786 | AG155: - | AH155: 3.77824495 | AI155: 7850.083004 | AJ155: 75.80088476 | AK155: 723.84513 | AL155: 0.368353295 | AM155: -0.0002908882087 | AN155: 0.0002908882087 | AO155: =FI_T-Rechentabelle!AL155 -> 5.911646705 | AP155: =AP154 -> -1.362106975e-06
A156: 0.009624999017 | B156: 6.249999569e-05 | C156: 0.3636144634 | D156: 75.55625916 | E156: 7850001.5 | G156: 7850.0015 | I156: =C156 -> 0.3636144634 | J156: =AL154 -> 0.3636157397 | K156: =I156-J156 -> -1.276297564e-06 | L156: =L154+KP_LR*(1+2*TA_SIM/TN_LR)*K156-KP_LR*K154 -> 0.2447454536 | M156: - | N156: =L156 -> 0.2447454536 | O156: 75.80088476 | P156: 75.55625916 | Q156: 0.0001198502445 | R156: 7.785127039e-05 | S156: - | T156: 7.785127039e-05 | U156: 5.397436746 | V156: 5.397514597 | W156: 5.397514597 | X156: 5.397492786 | Y156: 2.1811406e-05 | Z156: 15.65430091 | AA156: 15.65430091 | AB156: 15.65430091 | AC156: - | AD156: 5.397506857 | AE156: 5.397506857 | AF156: 5.397506857 | AG156: - | AH156: 3.7782548 | AI156: 7850.10347 | AJ156: 76.29151623 | AK156: 728.5303154 | AL156: 0.3731215148 | AM156: -0.0002908882087 | AN156: 0.0002908882087 | AO156: =FI_T-Rechentabelle!AL156 -> 5.906878485 | AP156: =K156 -> -1.276297564e-06
A157: 0.009687499143 | B157: 6.249999569e-05 | C157: 0.3683520612 | D157: 76.04688263 | E157: 7850001.5 | G157: 7850.0015 | M157: - | N157: =N156+(L158-L156)/2 -> 0.244745555 | O157: 76.29151623 | P157: 76.04688263 | Q157: 0.0001119588382 | R157: 8.686927664e-05 | S157: - | T157: 8.686927664e-05 | U157: 5.397436746 | V157: 5.397523615 | W157: 5.397523615 | X157: 5.397506857 | Y157: 1.675753741e-05 | Z157: 15.65397751 | AA157: 15.65397751 | AB157: 15.65397751 | AC157: - | AD157: 5.397517669 | AE157: 5.397517669 | AF157: 5.397517669 | AG157: - | AH157: 3.778262368 | AI157: 7850.119194 | AJ157: 76.78214868 | AK157: 733.2155102 | AL157: 0.3779203991 | AM157: -0.0002908882087 | AN157: 0.0002908882087 | AO157: =FI_T-Rechentabelle!AL157 -> 5.902079601 | AP157: =AP156 -> -1.276297564e-06
A158: 0.00974999927 | B158: 6.249999569e-05 | C158: 0.373120323 | D158: 76.5375061 | E158: 7850001.5 | G158: 7850.0015 | I158: =C158 -> 0.373120323 | J158: =AL156 -> 0.3731215148 | K158: =I158-J158 -> -1.191715326e-06 | L158: =L156+KP_LR*(1+2*TA_SIM/TN_LR)*K158-KP_LR*K156 -> 0.2447456563 | M158: - | N158: =L158 -> 0.2447456563 | O158: 76.78214868 | P158: 76.5375061 | Q158: 0.0001030846872 | R158: 9.144776398e-05 | S158: - | T158: 9.144776398e-05 | U158: 5.397436746 | V158: 5.397528193 | W158: 5.397528193 | X158: 5.397517669 | Y158: 1.05247103e-05 | Z158: 15.6535597 | AA158: 15.6535597 | AB158: 15.6535597 | AC158: - | AD158: 5.397524459 | AE158: 5.397524459 | AF158: 5.397524459 | AG158: - | AH158: 3.778267121 | AI158: 7850.12907 | AJ158: 77.27278174 | AK158: 737.9007108 | AL158: 0.3827499479 | AM158: -0.0002908882087 | AN158: 0.0002908882087 | AO158: =FI_T-Rechentabelle!AL158 -> 5.897250052 | AP158: =K158 -> -1.191715326e-06
A159: 0.009812499397 | B159: 6.249999569e-05 | C159: 0.377919249 | D159: 77.02812958 | E159: 7850001.5 | G159: 7850.0015 | M159: - | N159: =N158+(L160-L158)/2 -> 0.2447480379 | O159: 77.27278174 | P159: 77.02812958 | Q159: 9.58735491e-05 | R159: 9.811981697e-05 | S159: - | T159: 9.811981697e-05 | U159: 5.397436746 | V159: 5.397534865 | W159: 5.397534865 | X159: 5.397524459 | Y159: 1.04066276e-05 | Z159: 15.65357088 | AA159: 15.65357088 | AB159: 15.65357088 | AC159: - | AD159: 5.397531173 | AE159: 5.397531173 | AF159: 5.397531173 | AG159: - | AH159: 3.778271821 | AI159: 7850.138834 | AJ159: 77.76341542 | AK159: 742.5859173 | AL159: 0.3876101614 | AM159: -0.0002908882087 | AN159: 0.0002908882087 | AO159: =FI_T-Rechentabelle!AL159 -> 5.892389839 | AP159: =AP158 -> -1.191715326e-06
A160: 0.009874999523 | B160: 6.249999569e-05 | C160: 0.3827488389 | D160: 77.51876068 | E160: 7850001.5 | G160: 7850.0015 | I160: =C160 -> 0.3827488389 | J160: =AL158 -> 0.3827499479 | K160: =I160-J160 -> -1.108969182e-06 | L160: =L158+KP_LR*(1+2*TA_SIM/TN_LR)*K160-KP_LR*K158 -> 0.2447504195 | M160: - | N160: =L160 -> 0.2447504195 | O160: 77.76341542 | P160: 77.51876068 | Q160: 9.568150959e-05 | R160: 0.0001210014955 | S160: - | T160: 0.0001210014955 | U160: 5.397436746 | V160: 5.397557747 | W160: 5.397557747 | X160: 5.397531173 | Y160: 2.657435281e-05 | Z160: 15.65475547 | AA160: 15.65475547 | AB160: 15.65475547 | AC160: - | AD160: 5.397548318 | AE160: 5.397548318 | AF160: 5.397548318 | AG160: - | AH160: 3.778283822 | AI160: 7850.16377 | AJ160: 78.25405065 | AK160: 747.2711387 | AL160: 0.3925010395 | AM160: -0.0002908882087 | AN160: 0.0002908882087 | AO160: =FI_T-Rechentabelle!AL160 -> 5.88749896 | AP160: =K160 -> -1.108969182e-06
A161: 0.00993749965 | B161: 6.249999569e-05 | C161: 0.387609093 | D161: 78.00938416 | E161: 7850001.5 | G161: 7850.0015 | M161: - | N161: =N160+(L162-L160)/2 -> 0.2447547716 | O161: 78.25405065 | P161: 78.00938416 | Q161: 8.82721681e-05 | R161: 0.0001253613426 | S161: - | T161: 0.0001253613426 | U161: 5.397436746 | V161: 5.397562107 | W161: 5.397562107 | X161: 5.397548318 | Y161: 1.378945618e-05 | Z161: 15.65388385 | AA161: 15.65388385 | AB161: 15.65388385 | AC161: - | AD161: 5.397557214 | AE161: 5.397557214 | AF161: 5.397557214 | AG161: - | AH161: 3.77829005 | AI161: 7850.176708 | AJ161: 78.7446867 | AK161: 751.9563678 | AL161: 0.3974225825 | AM161: -0.0002908882087 | AN161: 0.0002908882087 | AO161: =FI_T-Rechentabelle!AL161 -> 5.882577418 | AP161: =AP160 -> -1.108969182e-06
A162: 0.009999999776 | B162: 6.249999569e-05 | C162: 0.3925000111 | D162: 78.50000763 | E162: 7850001.5 | G162: 7850.0015 | I162: =C162 -> 0.3925000111 | J162: =AL160 -> 0.3925010395 | K162: =I162-J162 -> -1.028448116e-06 | L162: =L160+KP_LR*(1+2*TA_SIM/TN_LR)*K162-KP_LR*K160 -> 0.2447591238 | M162: - | N162: =L162 -> 0.2447591238 | O162: 78.7446867 | P162: 78.50000763 | Q162: 8.005414486e-05 | R162: 0.0001258447649 | S162: - | T162: 0.0001258447649 | U162: 5.397436746 | V162: 5.39756259 | W162: 5.39756259 | X162: 5.397557214 | Y162: 5.376455134e-06 | Z162: 15.65330337 | AA162: 15.65330337 | AB162: 15.65330337 | AC162: - | AD162: 5.397560683 | AE162: 5.397560683 | AF162: 5.397560683 | AG162: - | AH162: 3.778292478 | AI162: 7850.181753 | AJ162: 79.23532306 | AK162: 756.6415999 | AL162: 0.4023747902 | AM162: -0.0002908882087 | AN162: 0.0002908882087 | AO162: =FI_T-Rechentabelle!AL162 -> 5.87762521 | AP162: =K162 -> -1.028448116e-06
A163: 0.01006249897 | B163: 6.249999569e-05 | C163: 0.3974215933 | D163: 78.9906311 | E163: 7850001.5 | G163: 7850.0015 | M163: - | N163: =N162+(L164-L162)/2 -> 0.2447650528 | O163: 79.23532306 | P163: 78.9906311 | Q163: 7.309768326e-05 | R163: 0.0001275540677 | S163: - | T163: 0.0001275540677 | U163: 5.397436746 | V163: 5.3975643 | W163: 5.3975643 | X163: 5.397560683 | Y163: 3.617077252e-06 | Z163: 15.65318664 | AA163: 15.65318664 | AB163: 15.65318664 | AC163: - | AD163: 5.397563016 | AE163: 5.397563016 | AF163: 5.397563016 | AG163: - | AH163: 3.778294111 | AI163: 7850.185147 | AJ163: 79.72595963 | AK163: 761.3268341 | AL163: 0.4073576626 | AM163: -0.0002908882087 | AN163: 0.0002908882087 | AO163: =FI_T-Rechentabelle!AL163 -> 5.872642337 | AP163: =AP162 -> -1.028448116e-06
A164: 0.0101249991 | B164: 6.249999569e-05 | C164: 0.4023738395 | D164: 79.48125458 | E164: 7850001.5 | G164: 7850.0015 | I164: =C164 -> 0.4023738395 | J164: =AL162 -> 0.4023747902 | K164: =I164-J164 -> -9.506538156e-07 | L164: =L162+KP_LR*(1+2*TA_SIM/TN_LR)*K164-KP_LR*K162 -> 0.2447709818 | M164: - | N164: =L164 -> 0.2447709818 | O164: 79.72595963 | P164: 79.48125458 | Q164: 6.59290984e-05 | R164: 0.0001270244385 | S164: - | T164: 0.0001270244385 | U164: 5.397436746 | V164: 5.39756377 | W164: 5.39756377 | X164: 5.397563016 | Y164: 7.538498155e-07 | Z164: 15.65298707 | AA164: 15.65298707 | AB164: 15.65298707 | AC164: - | AD164: 5.397563503 | AE164: 5.397563503 | AF164: 5.397563503 | AG164: - | AH164: 3.778294452 | AI164: 7850.185855 | AJ164: 80.21659625 | AK164: 766.0120686 | AL164: 0.4123711999 | AM164: -0.0002908882087 | AN164: 0.0002908882087 | AO164: =FI_T-Rechentabelle!AL164 -> 5.8676288 | AP164: =K164 -> -9.506538156e-07
A165: 0.01018749923 | B165: 6.249999569e-05 | C165: 0.4073567498 | D165: 79.97188568 | E165: 7850001.5 | G165: 7850.0015 | M165: - | N165: =N164+(L166-L164)/2 -> 0.2447782859 | O165: 80.21659625 | P165: 79.97188568 | Q165: 6.772079507e-05 | R165: 0.0001476838933 | S165: - | T165: 0.0001476838933 | U165: 5.397436746 | V165: 5.39758443 | W165: 5.39758443 | X165: 5.397563503 | Y165: 2.092694986e-05 | Z165: 15.65444225 | AA165: 15.65444225 | AB165: 15.65444225 | AC165: - | AD165: 5.397577004 | AE165: 5.397577004 | AF165: 5.397577004 | AG165: - | AH165: 3.778303903 | AI165: 7850.205491 | AJ165: 80.70723409 | AK165: 770.6973149 | AL165: 0.417415402 | AM165: -0.0002908882087 | AN165: 0.0002908882087 | AO165: =FI_T-Rechentabelle!AL165 -> 5.862584598 | AP165: =AP164 -> -9.506538156e-07
A166: 0.01024999935 | B166: 6.249999569e-05 | C166: 0.4123703242 | D166: 80.46250916 | E166: 7850001.5 | G166: 7850.0015 | I166: =C166 -> 0.4123703242 | J166: =AL164 -> 0.4123711999 | K166: =I166-J166 -> -8.75738478e-07 | L166: =L164+KP_LR*(1+2*TA_SIM/TN_LR)*K166-KP_LR*K164 -> 0.2447855899 | M166: - | N166: =L166 -> 0.2447855899 | O166: 80.70723409 | P166: 80.46250916 | Q166: 6.065583764e-05 | R166: 0.0001461086862 | S166: - | T166: 0.0001461086862 | U166: 5.397436746 | V166: 5.397582854 | W166: 5.397582854 | X166: 5.397577004 | Y166: 5.850484758e-06 | Z166: 15.65339492 | AA166: 15.65339492 | AB166: 15.65339492 | AC166: - | AD166: 5.397580778 | AE166: 5.397580778 | AF166: 5.397580778 | AG166: - | AH166: 3.778306545 | AI166: 7850.21098 | AJ166: 81.19787228 | AK166: 775.3825645 | AL166: 0.422490269 | AM166: -0.0002908882087 | AN166: 0.0002908882087 | AO166: =FI_T-Rechentabelle!AL166 -> 5.857509731 | AP166: =K166 -> -8.75738478e-07
A167: 0.01031249948 | B167: 6.249999569e-05 | C167: 0.4174145626 | D167: 80.95313263 | E167: 7850001.5 | G167: 7850.0015 | M167: - | N167: =N166+(L168-L166)/2 -> 0.2447939879 | O167: 81.19787228 | P167: 80.95313263 | Q167: 5.434164468e-05 | R167: 0.0001447329184 | S167: - | T167: 0.0001447329184 | U167: 5.397436746 | V167: 5.397581479 | W167: 5.397581479 | X167: 5.397580778 | Y167: 7.002106628e-07 | Z167: 15.65303472 | AA167: 15.65303472 | AB167: 15.65303472 | AC167: - | AD167: 5.39758123 | AE167: 5.39758123 | AF167: 5.39758123 | AG167: - | AH167: 3.778306861 | AI167: 7850.211637 | AJ167: 81.6885105 | AK167: 780.0678144 | AL167: 0.427595801 | AM167: -0.0002908882087 | AN167: 0.0002908882087 | AO167: =FI_T-Rechentabelle!AL167 -> 5.852404199 | AP167: =AP166 -> -8.75738478e-07
A168: 0.01037499961 | B168: 6.249999569e-05 | C168: 0.4224894651 | D168: 81.4437561 | E168: 7850001.5 | G168: 7850.0015 | I168: =C168 -> 0.4224894651 | J168: =AL166 -> 0.422490269 | K168: =I168-J168 -> -8.039752055e-07 | L168: =L166+KP_LR*(1+2*TA_SIM/TN_LR)*K168-KP_LR*K166 -> 0.2448023859 | M168: - | N168: =L168 -> 0.2448023859 | O168: 81.6885105 | P168: 81.4437561 | Q168: 4.798638793e-05 | R168: 0.0001417126807 | S168: - | T168: 0.0001417126807 | U168: 5.397436746 | V168: 5.397578458 | W168: 5.397578458 | X168: 5.39758123 | Y168: -2.771775768e-06 | Z168: 15.65278582 | AA168: 15.65278582 | AB168: 15.65278582 | AC168: - | AD168: 5.397579442 | AE168: 5.397579442 | AF168: 5.397579442 | AG168: - | AH168: 3.778305609 | AI168: 7850.209037 | AJ168: 82.17914857 | AK168: 784.7530628 | AL168: 0.4327319977 | AM168: -0.0002908882087 | AN168: 0.0002908882087 | AO168: =FI_T-Rechentabelle!AL168 -> 5.847268002 | AP168: =K168 -> -8.039752055e-07
A169: 0.01043749973 | B169: 6.249999569e-05 | C169: 0.4275950316 | D169: 81.93437958 | E169: 7850001.5 | G169: 7850.0015 | M169: - | N169: =N168+(L170-L168)/2 -> 0.2448116671 | O169: 82.17914857 | P169: 81.93437958 | Q169: 4.267697867e-05 | R169: 0.0001398202625 | S169: - | T169: 0.0001398202625 | U169: 5.397436746 | V169: 5.397576566 | W169: 5.397576566 | X169: 5.397579442 | Y169: -2.875951592e-06 | Z169: 15.65277313 | AA169: 15.65277313 | AB169: 15.65277313 | AC169: - | AD169: 5.397577586 | AE169: 5.397577586 | AF169: 5.397577586 | AG169: - | AH169: 3.77830431 | AI169: 7850.206338 | AJ169: 82.66978646 | AK169: 789.4383096 | AL169: 0.4378988594 | AM169: -0.0002908882087 | AN169: 0.0002908882087 | AO169: =FI_T-Rechentabelle!AL169 -> 5.842101141 | AP169: =AP168 -> -8.039752055e-07
A170: 0.01049999893 | B170: 6.249999569e-05 | C170: 0.4327312622 | D170: 82.42501068 | E170: 7850001.5 | G170: 7850.0015 | I170: =C170 -> 0.4327312622 | J170: =AL168 -> 0.4327319977 | K170: =I170-J170 -> -7.355025735e-07 | L170: =L168+KP_LR*(1+2*TA_SIM/TN_LR)*K170-KP_LR*K168 -> 0.2448209484 | M170: - | N170: =L170 -> 0.2448209484 | O170: 82.66978646 | P170: 82.42501068 | Q170: 4.516562394e-05 | R170: 0.0001565950865 | S170: - | T170: 0.0001565950865 | U170: 5.397436746 | V170: 5.397593341 | W170: 5.397593341 | X170: 5.397577586 | Y170: 1.575432504e-05 | Z170: 15.65411033 | AA170: 15.65411033 | AB170: 15.65411033 | AC170: - | AD170: 5.39758775 | AE170: 5.39758775 | AF170: 5.39758775 | AG170: - | AH170: 3.778311425 | AI170: 7850.221121 | AJ170: 83.16042528 | AK170: 794.1235652 | AL170: 0.443096386 | AM170: -0.0002908882087 | AN170: 0.0002908882087 | AO170: =FI_T-Rechentabelle!AL170 -> 5.836903614 | AP170: =K170 -> -7.355025735e-07
A171: 0.01056249905 | B171: 6.249999569e-05 | C171: 0.4378981569 | D171: 82.91563416 | E171: 7850001.5 | G171: 7850.0015 | M171: - | N171: =N170+(L172-L170)/2 -> 0.244830982 | O171: 83.16042528 | P171: 82.91563416 | Q171: 3.985329506e-05 | R171: 0.000154007513 | S171: - | T171: 0.000154007513 | U171: 5.397436746 | V171: 5.397590753 | W171: 5.397590753 | X171: 5.39758775 | Y171: 3.002670907e-06 | Z171: =Z170+KP_SR*(1+TA_SIM/TN_SR)*Y171-KP_SR*Y170 -> 15.65322086 | AA171: 15.65322086 | AB171: 15.65322086 | AC171: - | AD171: 5.397589688 | AE171: 5.397589688 | AF171: 5.397589688 | AG171: - | AH171: 3.778312781 | AI171: 7850.223938 | AJ171: 83.65106428 | AK171: 798.8088225 | AL171: 0.4483245775 | AM171: -0.0002908882087 | AN171: 0.0002908882087 | AO171: =FI_T-Rechentabelle!AL171 -> 5.831675423 | AP171: =AP170 -> -7.355025735e-07
A172: 0.01062499918 | B172: 6.249999569e-05 | C172: 0.4430957157 | D172: 83.40625763 | E172: 7850001.5 | G172: 7850.0015 | I172: =C172 -> 0.4430957157 | J172: =AL170 -> 0.443096386 | K172: =I172-J172 -> -6.703187906e-07 | L172: =L170+KP_LR*(1+2*TA_SIM/TN_LR)*K172-KP_LR*K170 -> 0.2448410155 | M172: - | N172: =L172 -> 0.2448410155 | O172: 83.65106428 | P172: 83.40625763 | Q172: 3.436487476e-05 | R172: 0.0001496740701 | S172: - | T172: 0.0001496740701 | U172: 5.397436746 | V172: 5.39758642 | W172: 5.39758642 | X172: 5.397589688 | Y172: -3.267979085e-06 | Z172: 15.65277459 | AA172: 15.65277459 | AB172: 15.65277459 | AC172: - | AD172: 5.397587579 | AE172: 5.397587579 | AF172: 5.397587579 | AG172: - | AH172: 3.778311306 | AI172: 7850.220872 | AJ172: 84.14170308 | AK172: 803.494078 | AL172: 0.4535834339 | AM172: -0.0002908882087 | AN172: 0.0002908882087 | AO172: =FI_T-Rechentabelle!AL172 -> 5.826416566 | AP172: =K172 -> -6.703187906e-07
A173: 0.01068749931 | B173: 6.249999569e-05 | C173: 0.4483239385 | D173: 83.8968811 | E173: 7850001.5 | G173: 7850.0015 | M173: - | N173: =N172+(L174-L172)/2 -> 0.244851558 | O173: 84.14170308 | P173: 83.8968811 | Q173: 2.957698118e-05 | R173: 0.0001457958148 | S173: - | T173: 0.0001457958148 | U173: 5.397436746 | V173: 5.397582541 | W173: 5.397582541 | X173: 5.397587579 | Y173: -5.037860717e-06 | Z173: 15.65264093 | AA173: 15.65264093 | AB173: 15.65264093 | AC173: - | AD173: 5.397584329 | AE173: 5.397584329 | AF173: 5.397584329 | AG173: - | AH173: 3.77830903 | AI173: 7850.216145 | AJ173: 84.63234159 | AK173: 808.1793306 | AL173: 0.4588729553 | AM173: -0.0002908882087 | AN173: 0.0002908882087 | AO173: =FI_T-Rechentabelle!AL173 -> 5.821127045 | AP173: =AP172 -> -6.703187906e-07
A174: 0.01074999943 | B174: 6.249999569e-05 | C174: 0.4535828253 | D174: 84.38750458 | E174: 7850001.5 | G174: 7850.0015 | I174: =C174 -> 0.4535828253 | J174: =AL172 -> 0.4535834339 | K174: =I174-J174 -> -6.086075884e-07 | L174: =L172+KP_LR*(1+2*TA_SIM/TN_LR)*K174-KP_LR*K172 -> 0.2448621005 | M174: - | N174: =L174 -> 0.2448621005 | O174: 84.63234159 | P174: 84.38750458 | Q174: 2.50845326e-05 | R174: 0.0001415065932 | S174: - | T174: 0.0001415065932 | U174: 5.397436746 | V174: 5.397578252 | W174: 5.397578252 | X174: 5.397584329 | Y174: -6.076849611e-06 | Z174: 15.65255663 | AA174: 15.65255663 | AB174: 15.65255663 | AC174: - | AD174: 5.397580409 | AE174: 5.397580409 | AF174: 5.397580409 | AG174: - | AH174: 3.778306286 | AI174: 7850.210443 | AJ174: 85.12297975 | AK174: 812.8645798 | AL174: 0.4641931415 | AM174: -0.0002908882087 | AN174: 0.0002908882087 | AO174: =FI_T-Rechentabelle!AL174 -> 5.815806858 | AP174: =K174 -> -6.086075884e-07
A175: 0.01081249956 | B175: 6.249999569e-05 | C175: 0.4588723763 | D175: 84.87813568 | E175: 7850001.5 | G175: 7850.0015 | M175: - | N175: =N174+(L176-L174)/2 -> 0.2448730747 | O175: 85.12297975 | P175: 84.87813568 | Q175: 2.900962765e-05 | R175: 0.0001576695651 | S175: - | T175: 0.0001576695651 | U175: 5.397436746 | V175: 5.397594415 | W175: 5.397594415 | X175: 5.397580409 | Y175: 1.400667042e-05 | Z175: 15.65399257 | AA175: 15.65399257 | AB175: 15.65399257 | AC175: - | AD175: 5.397589445 | AE175: 5.397589445 | AF175: 5.397589445 | AG175: - | AH175: 3.778312612 | AI175: 7850.223585 | AJ175: 85.61361872 | AK175: 817.5498369 | AL175: 0.4695439927 | AM175: -0.0002908882087 | AN175: 0.0002908882087 | AO175: =FI_T-Rechentabelle!AL175 -> 5.810456007 | AP175: =AP174 -> -6.086075884e-07
A176: 0.01087499969 | B176: 6.249999569e-05 | C176: 0.4641925912 | D176: 85.36875916 | E176: 7850001.5 | G176: 7850.0015 | I176: =C176 -> 0.4641925912 | J176: =AL174 -> 0.4641931415 | K176: =I176-J176 -> -5.502663684e-07 | L176: =L174+KP_LR*(1+2*TA_SIM/TN_LR)*K176-KP_LR*K174 -> 0.2448840489 | M176: - | N176: =L176 -> 0.2448840489 | O176: 85.61361872 | P176: 85.36875916 | Q176: 2.448390792e-05 | R176: 0.0001531568586 | S176: - | T176: 0.0001531568586 | U176: 5.397436746 | V176: 5.397589903 | W176: 5.397589903 | X176: 5.397589445 | Y176: 4.57402388e-07 | Z176: 15.65304235 | AA176: 15.65304235 | AB176: 15.65304235 | AC176: - | AD176: 5.39758974 | AE176: 5.39758974 | AF176: 5.39758974 | AG176: - | AH176: 3.778312818 | AI176: 7850.224014 | AJ176: 86.10425772 | AK176: 822.2350943 | AL176: 0.4749255088 | AM176: -0.0002908882087 | AN176: 0.0002908882087 | AO176: =FI_T-Rechentabelle!AL176 -> 5.805074491 | AP176: =K176 -> -5.502663684e-07
A177: 0.01093749888 | B177: 6.249999569e-05 | C177: 0.4695434703 | D177: 85.85938263 | E177: 7850001.5 | G177: 7850.0015 | M177: - | N177: =N176+(L178-L176)/2 -> 0.244895277 | O177: 86.10425772 | P177: 85.85938263 | Q177: 2.018518266e-05 | R177: 0.0001481218806 | S177: - | T177: 0.0001481218806 | U177: 5.397436746 | V177: 5.397584868 | W177: 5.397584868 | X177: 5.39758974 | Y177: -4.87267395e-06 | Z177: 15.6526591 | AA177: 15.6526591 | AB177: 15.6526591 | AC177: - | AD177: 5.397586597 | AE177: 5.397586597 | AF177: 5.397586597 | AG177: - | AH177: 3.778310618 | AI177: 7850.219442 | AJ177: 86.59489644 | AK177: 826.9203489 | AL177: 0.4803376898 | AM177: -0.0002908882087 | AN177: 0.0002908882087 | AO177: =FI_T-Rechentabelle!AL177 -> 5.79966231 | AP177: =AP176 -> -5.502663684e-07
A178: 0.01099999901 | B178: 6.249999569e-05 | C178: 0.4749250134 | D178: 86.3500061 | E178: 7850001.5 | G178: 7850.0015 | I178: =C178 -> 0.4749250134 | J178: =AL176 -> 0.4749255088 | K178: =I178-J178 -> -4.953655376e-07 | L178: =L176+KP_LR*(1+2*TA_SIM/TN_LR)*K178-KP_LR*K176 -> 0.2449065051 | M178: - | N178: =L178 -> 0.2449065051 | O178: 86.59489644 | P178: 86.3500061 | Q178: 1.617221504e-05 | R178: 0.0001427703939 | S178: - | T178: 0.0001427703939 | U178: 5.397436746 | V178: 5.397579516 | W178: 5.397579516 | X178: 5.397586597 | Y178: -7.080500049e-06 | Z178: 15.65249088 | AA178: 15.65249088 | AB178: 15.65249088 | AC178: - | AD178: 5.397582028 | AE178: 5.397582028 | AF178: 5.397582028 | AG178: - | AH178: 3.77830742 | AI178: 7850.212799 | AJ178: 87.08553474 | AK178: 831.6055995 | AL178: 0.4857805357 | AM178: -0.0002908882087 | AN178: 0.0002908882087 | AO178: =FI_T-Rechentabelle!AL178 -> 5.794219464 | AP178: =K178 -> -4.953655376e-07
A179: 0.01106249914 | B179: 6.249999569e-05 | C179: 0.4803372206 | D179: 86.84063721 | E179: 7850001.5 | G179: 7850.0015 | M179: - | N179: =N178+(L180-L178)/2 -> 0.2449178629 | O179: 87.08553474 | P179: 86.84063721 | Q179: 2.033368884e-05 | R179: 0.000157365696 | S179: - | T179: 0.000157365696 | U179: 5.397436746 | V179: 5.397594111 | W179: 5.397594111 | X179: 5.397582028 | Y179: 1.208286664e-05 | Z179: 15.65385863 | AA179: 15.65385863 | AB179: 15.65385863 | AC179: - | AD179: 5.397589824 | AE179: 5.397589824 | AF179: 5.397589824 | AG179: - | AH179: 3.778312877 | AI179: 7850.224136 | AJ179: 87.57617374 | AK179: 836.2908569 | AL179: 0.4912540466 | AM179: -0.0002908882087 | AN179: 0.0002908882087 | AO179: =FI_T-Rechentabelle!AL179 -> 5.788745953 | AP179: =AP178 -> -4.953655376e-07
A180: 0.01112499926 | B180: 6.249999569e-05 | C180: 0.4857800919 | D180: 87.33126068 | E180: 7850001.5 | G180: 7850.0015 | I180: =C180 -> 0.4857800919 | J180: =AL178 -> 0.4857805357 | K180: =I180-J180 -> -4.438819325e-07 | L180: =L178+KP_LR*(1+2*TA_SIM/TN_LR)*K180-KP_LR*K178 -> 0.2449292208 | M180: - | N180: =L180 -> 0.2449292208 | O180: 87.57617374 | P180: 87.33126068 | Q180: 1.615716918e-05 | R180: 0.0001516317498 | S180: - | T180: 0.0001516317498 | U180: 5.397436746 | V180: 5.397588377 | W180: 5.397588377 | X180: 5.397589824 | Y180: -1.446477396e-06 | Z180: 15.65290625 | AA180: 15.65290625 | AB180: 15.65290625 | AC180: - | AD180: 5.397588891 | AE180: 5.397588891 | AF180: 5.397588891 | AG180: - | AH180: 3.778312223 | AI180: 7850.222779 | AJ180: 88.06681267 | AK180: 840.9761135 | AL180: 0.4967582224 | AM180: -0.0002908882087 | AN180: 0.0002908882087 | AO180: =FI_T-Rechentabelle!AL180 -> 5.783241778 | AP180: =K180 -> -4.438819325e-07
A181: 0.01118749939 | B181: 6.249999569e-05 | C181: 0.4912536272 | D181: 87.82188416 | E181: 7850001.5 | G181: 7850.0015 | M181: - | N181: =N180+(L182-L180)/2 -> 0.244940552 | O181: 88.06681267 | P181: 87.82188416 | Q181: 1.203883703e-05 | R181: 0.0001450285486 | S181: - | T181: 0.0001450285486 | U181: 5.397436746 | V181: 5.397581774 | W181: 5.397581774 | X181: 5.397588891 | Y181: -7.116467454e-06 | Z181: 15.65249494 | AA181: 15.65249494 | AB181: 15.65249494 | AC181: - | AD181: 5.397584299 | AE181: 5.397584299 | AF181: 5.397584299 | AG181: - | AH181: 3.77830901 | AI181: 7850.216101 | AJ181: 88.55745117 | AK181: 845.6613661 | AL181: 0.5022930631 | AM181: -0.0002908882087 | AN181: 0.0002908882087 | AO181: =FI_T-Rechentabelle!AL181 -> 5.777706937 | AP181: =AP180 -> -4.438819325e-07
A182: 0.01124999952 | B182: 6.249999569e-05 | C182: 0.4967578265 | D182: 88.31250763 | E182: 7850001.5 | G182: 7850.0015 | I182: =C182 -> 0.4967578265 | J182: =AL180 -> 0.4967582224 | K182: =I182-J182 -> -3.958473973e-07 | L182: =L180+KP_LR*(1+2*TA_SIM/TN_LR)*K182-KP_LR*K180 -> 0.2449518832 | M182: - | N182: =L182 -> 0.2449518832 | O182: 88.55745117 | P182: 88.31250763 | Q182: 8.337849636e-06 | R182: 0.0001384896568 | S182: - | T182: 0.0001384896568 | U182: 5.397436746 | V182: 5.397575235 | W182: 5.397575235 | X182: 5.397584299 | Y182: -9.064089866e-06 | Z182: 15.65234127 | AA182: 15.65234127 | AB182: 15.65234127 | AC182: - | AD182: 5.397578452 | AE182: 5.397578452 | AF182: 5.397578452 | AG182: - | AH182: 3.778304916 | AI182: 7850.207596 | AJ182: 89.04808915 | AK182: 850.3466137 | AL182: 0.5078585687 | AM182: -0.0002908882087 | AN182: 0.0002908882087 | AO182: =FI_T-Rechentabelle!AL182 -> 5.772141431 | AP182: =K182 -> -3.958473973e-07
A183: 0.01131249964 | B183: 6.249999569e-05 | C183: 0.50229269 | D183: 88.8031311 | E183: 7850001.5 | G183: 7850.0015 | M183: - | N183: =N182+(L184-L182)/2 -> 0.2449630998 | O183: 89.04808915 | P183: 88.8031311 | Q183: 5.053789451e-06 | R183: 0.0001321157513 | S183: - | T183: 0.0001321157513 | U183: 5.397436746 | V183: 5.397568861 | W183: 5.397568861 | X183: 5.397578452 | Y183: -9.590195439e-06 | Z183: 15.6522864 | AA183: 15.6522864 | AB183: 15.6522864 | AC183: - | AD183: 5.397572264 | AE183: 5.397572264 | AF183: 5.397572264 | AG183: - | AH183: 3.778300585 | AI183: 7850.198598 | AJ183: 89.53872656 | AK183: 855.0318558 | AL183: 0.5134547391 | AM183: -0.0002908882087 | AN183: 0.0002908882087 | AO183: =FI_T-Rechentabelle!AL183 -> 5.766545261 | AP183: =AP182 -> -3.958473973e-07
A184: 0.01137499884 | B184: 6.249999569e-05 | C184: 0.5078582175 | D184: 89.29376221 | E184: 7850001.5 | G184: 7850.0015 | I184: =C184 -> 0.5078582175 | J184: =AL182 -> 0.5078585687 | K184: =I184-J184 -> -3.51178839e-07 | L184: =L182+KP_LR*(1+2*TA_SIM/TN_LR)*K184-KP_LR*K182 -> 0.2449743164 | M184: - | N184: =L184 -> 0.2449743164 | O184: 89.53872656 | P184: 89.29376221 | Q184: 9.961540172e-06 | R184: 0.0001459107998 | S184: - | T184: 0.0001459107998 | U184: 5.397436746 | V184: 5.397582656 | W184: 5.397582656 | X184: 5.397572264 | Y184: 1.039207587e-05 | Z184: 15.65370847 | AA184: 15.65370847 | AB184: 15.65370847 | AC184: - | AD184: 5.397578969 | AE184: 5.397578969 | AF184: 5.397578969 | AG184: - | AH184: 3.778305278 | AI184: 7850.208349 | AJ184: 90.02936458 | AK184: 859.7171038 | AL184: 0.5190815744 | AM184: -0.0002908882087 | AN184: 0.0002908882087 | AO184: =FI_T-Rechentabelle!AL184 -> 5.760918426 | AP184: =K184 -> -3.51178839e-07
A185: 0.01143749896 | B185: 6.249999569e-05 | C185: 0.513454409 | D185: 89.78438568 | E185: 7850001.5 | G185: 7850.0015 | M185: - | N185: =N184+(L186-L184)/2 -> 0.2449854005 | O185: 90.02936458 | P185: 89.78438568 | Q185: 6.497911485e-06 | R185: 0.0001394730746 | S185: - | T185: 0.0001394730746 | U185: 5.397436746 | V185: 5.397576219 | W185: 5.397576219 | X185: 5.397578969 | Y185: -2.750214423e-06 | Z185: 15.65278082 | AA185: 15.65278082 | AB185: 15.65278082 | AC185: - | AD185: 5.397577195 | AE185: 5.397577195 | AF185: 5.397577195 | AG185: - | AH185: 3.778304036 | AI185: 7850.205768 | AJ185: 90.52000244 | AK185: 864.4023503 | AL185: 0.5247390745 | AM185: -0.0002908882087 | AN185: 0.0002908882087 | AO185: =FI_T-Rechentabelle!AL185 -> 5.755260925 | AP185: =AP184 -> -3.51178839e-07
A186: 0.01149999909 | B186: 6.249999569e-05 | C186: 0.5190812647 | D186: 90.27500916 | E186: 7850001.5 | G186: 7850.0015 | I186: =C186 -> 0.5190812647 | J186: =AL184 -> 0.5190815744 | K186: =I186-J186 -> -3.096831428e-07 | L186: =L184+KP_LR*(1+2*TA_SIM/TN_LR)*K186-KP_LR*K184 -> 0.2449964845 | M186: - | N186: =L186 -> 0.2449964845 | O186: 90.52000244 | P186: 90.27500916 | Q186: 3.195568937e-06 | R186: 0.0001326038061 | S186: - | T186: 0.0001326038061 | U186: 5.397436746 | V186: 5.397569349 | W186: 5.397569349 | X186: 5.397577195 | Y186: -7.845151013e-06 | Z186: 15.65240851 | AA186: 15.65240851 | AB186: 15.65240851 | AC186: - | AD186: 5.397572133 | AE186: 5.397572133 | AF186: 5.397572133 | AG186: - | AH186: 3.778300493 | AI186: 7850.198407 | AJ186: 91.01063984 | AK186: 869.0875923 | AL186: 0.5304272395 | AM186: -0.0002908882087 | AN186: 0.0002908882087 | AO186: =FI_T-Rechentabelle!AL186 -> 5.74957276 | AP186: =K186 -> -3.096831428e-07
A187: 0.01156249922 | B187: 6.249999569e-05 | C187: 0.5247387844 | D187: 90.76563263 | E187: 7850001.5 | G187: 7850.0015 | M187: - | N187: =N186+(L188-L186)/2 -> 0.2450072965 | O187: 91.01063984 | P187: 90.76563263 | Q187: 8.122763973e-08 | R187: 0.0001254107007 | S187: - | T187: 0.0001254107007 | U187: 5.397436746 | V187: 5.397562156 | W187: 5.397562156 | X187: 5.397572133 | Y187: -9.97686867e-06 | Z187: 15.65224021 | AA187: 15.65224021 | AB187: 15.65224021 | AC187: - | AD187: 5.397565697 | AE187: 5.397565697 | AF187: 5.397565697 | AG187: - | AH187: 3.778295988 | AI187: 7850.189045 | AJ187: 91.50127666 | AK187: 873.7728288 | AL187: 0.5361460693 | AM187: -0.0002908882087 | AN187: 0.0002908882087 | AO187: =FI_T-Rechentabelle!AL187 -> 5.743853931 | AP187: =AP186 -> -3.096831428e-07
A188: 0.01162499934 | B188: 6.249999569e-05 | C188: 0.5304269681 | D188: 91.2562561 | E188: 7850001.5 | G188: 7850.0015 | I188: =C188 -> 0.5304269681 | J188: =AL186 -> 0.5304272395 | K188: =I188-J188 -> -2.713804318e-07 | L188: =L186+KP_LR*(1+2*TA_SIM/TN_LR)*K188-KP_LR*K186 -> 0.2450181084 | M188: - | N188: =L188 -> 0.2450181084 | O188: 91.50127666 | P188: 91.2562561 | Q188: -2.448020865e-06 | R188: 0.0001189560756 | S188: - | T188: 0.0001189560756 | U188: 5.397436746 | V188: 5.397555702 | W188: 5.397555702 | X188: 5.397565697 | Y188: -9.994804279e-06 | Z188: 15.65222025 | AA188: 15.65222025 | AB188: 15.65222025 | AC188: - | AD188: 5.397559248 | AE188: 5.397559248 | AF188: 5.397559248 | AG188: - | AH188: 3.778291474 | AI188: 7850.179667 | AJ188: 91.99191289 | AK188: 878.4580596 | AL188: 0.5418955638 | AM188: -0.0002908882087 | AN188: 0.0002908882087 | AO188: =FI_T-Rechentabelle!AL188 -> 5.738104436 | AP188: =K188 -> -2.713804318e-07
A189: 0.01168749947 | B189: 6.249999569e-05 | C189: 0.5361458159 | D189: 91.74688721 | E189: 7850001.5 | G189: 7850.0015 | M189: - | N189: =N188+(L190-L188)/2 -> 0.2450286674 | O189: 91.99191289 | P189: 91.74688721 | Q189: 2.985303183e-06 | R189: 0.0001322676125 | S189: - | T189: 0.0001322676125 | U189: 5.397436746 | V189: 5.397569013 | W189: 5.397569013 | X189: 5.397559248 | Y189: 9.764993393e-06 | Z189: 15.65362553 | AA189: 15.65362553 | AB189: 15.65362553 | AC189: - | AD189: 5.397565548 | AE189: 5.397565548 | AF189: 5.397565548 | AG189: - | AH189: 3.778295884 | AI189: 7850.18883 | AJ189: 92.48254969 | AK189: 883.143296 | AL189: 0.5476757232 | AM189: -0.0002908882087 | AN189: 0.0002908882087 | AO189: =FI_T-Rechentabelle!AL189 -> 5.732324277 | AP189: =AP188 -> -2.713804318e-07
A190: 0.0117499996 | B190: 6.249999569e-05 | C190: 0.5418953278 | D190: 92.23751068 | E190: 7850001.5 | G190: 7850.0015 | I190: =C190 -> 0.5418953278 | J190: =AL188 -> 0.5418955638 | K190: =I190-J190 -> -2.360280222e-07 | L190: =L188+KP_LR*(1+2*TA_SIM/TN_LR)*K190-KP_LR*K188 -> 0.2450392265 | M190: - | N190: =L190 -> 0.2450392265 | O190: 92.48254969 | P190: 92.23751068 | Q190: 2.165653115e-07 | R190: 0.0001259079293 | S190: - | T190: 0.0001259079293 | U190: 5.397436746 | V190: 5.397562654 | W190: 5.397562654 | X190: 5.397565548 | Y190: -2.894685497e-06 | Z190: 15.65273149 | AA190: 15.65273149 | AB190: 15.65273149 | AC190: - | AD190: 5.397563681 | AE190: 5.397563681 | AF190: 5.397563681 | AG190: - | AH190: 3.778294577 | AI190: 7850.186114 | AJ190: 92.97318632 | AK190: 887.8285307 | AL190: 0.5534865473 | AM190: -0.0002908882087 | AN190: 0.0002908882087 | AO190: =FI_T-Rechentabelle!AL190 -> 5.726513453 | AP190: =K190 -> -2.360280222e-07
A191: 0.01181249879 | B191: 6.249999569e-05 | C191: 0.5476755038 | D191: 92.72813416 | E191: 7850001.5 | G191: 7850.0015 | M191: - | N191: =N190+(L192-L190)/2 -> 0.2450494443 | O191: 92.97318632 | P191: 92.72813416 | Q191: -2.7236172e-06 | R191: 0.0001184343804 | S191: - | T191: 0.0001184343804 | U191: 5.397436746 | V191: 5.39755518 | W191: 5.39755518 | X191: 5.397563681 | Y191: -8.500695416e-06 | Z191: 15.65232208 | AA191: 15.65232208 | AB191: 15.65232208 | AC191: - | AD191: 5.397558196 | AE191: 5.397558196 | AF191: 5.397558196 | AG191: - | AH191: 3.778290737 | AI191: 7850.178137 | AJ191: 93.46382246 | AK191: 892.5137607 | AL191: 0.5593280363 | AM191: -0.0002908882087 | AN191: 0.0002908882087 | AO191: =FI_T-Rechentabelle!AL191 -> 5.720671964 | AP191: =AP190 -> -2.360280222e-07
A192: 0.01187499892 | B192: 6.249999569e-05 | C192: 0.5534863438 | D192: 93.21875763 | E192: 7850001.5 | G192: 7850.0015 | I192: =C192 -> 0.5534863438 | J192: =AL190 -> 0.5534865473 | K192: =I192-J192 -> -2.03576209e-07 | L192: =L190+KP_LR*(1+2*TA_SIM/TN_LR)*K192-KP_LR*K190 -> 0.2450596621 | M192: - | N192: =L192 -> 0.2450596621 | O192: 93.46382246 | P192: 93.21875763 | Q192: -5.165277003e-06 | R192: 0.0001115201663 | S192: - | T192: 0.0001115201663 | U192: 5.397436746 | V192: 5.397548266 | W192: 5.397548266 | X192: 5.397558196 | Y192: -9.930589844e-06 | Z192: 15.65220313 | AA192: 15.65220313 | AB192: 15.65220313 | AC192: - | AD192: 5.39755179 | AE192: 5.39755179 | AF192: 5.39755179 | AG192: - | AH192: 3.778286253 | AI192: 7850.168819 | AJ192: 93.95445801 | AK192: 897.198985 | AL192: 0.5652001899 | AM192: -0.0002908882087 | AN192: 0.0002908882087 | AO192: =FI_T-Rechentabelle!AL192 -> 5.71479981 | AP192: =K192 -> -2.03576209e-07
A193: 0.01193749905 | B193: 6.249999569e-05 | C193: 0.5593278478 | D193: 93.7093811 | E193: 7850001.5 | G193: 7850.0015 | M193: - | N193: =N192+(L194-L192)/2 -> 0.2450694986 | O193: 93.95445801 | P193: 93.7093811 | Q193: -7.405767633e-06 | R193: 0.000104525651 | S193: - | T193: 0.000104525651 | U193: 5.397436746 | V193: 5.397541271 | W193: 5.397541271 | X193: 5.39755179 | Y193: -1.051827301e-05 | Z193: 15.6521422 | AA193: 15.6521422 | AB193: 15.6521422 | AC193: - | AD193: 5.397545004 | AE193: 5.397545004 | AF193: 5.397545004 | AG193: - | AH193: 3.778281503 | AI193: 7850.15895 | AJ193: 94.44509294 | AK193: 901.8842036 | AL193: 0.5711030082 | AM193: -0.0002908882087 | AN193: 0.0002908882087 | AO193: =FI_T-Rechentabelle!AL193 -> 5.708896992 | AP193: =AP192 -> -2.03576209e-07
A194: 0.01199999917 | B194: 6.249999569e-05 | C194: 0.565200016 | D194: 94.20001221 | E194: 7850001.5 | F194: -2.943750707e+12 | G194: 7850.0015 | I194: =C194 -> 0.565200016 | J194: =AL192 -> 0.5652001899 | K194: =I194-J194 -> -1.738990822e-07 | L194: =L192+KP_LR*(1+2*TA_SIM/TN_LR)*K194-KP_LR*K192 -> 0.2450793352 | M194: - | N194: =L194 -> 0.2450793352 | O194: 94.44509294 | P194: 94.20001221 | Q194: -1.400020309e-06 | R194: 0.0001180938278 | S194: - | T194: 0.0001180938278 | U194: =G194*(JM_EMS+JL_EMS)/KT_M*KP_VSR -> 5.397436746 | V194: 5.397554839 | W194: =IF(V194<-IM_R,-IM_R,IF(V194>IM_R,IM_R,V194)) -> 5.397554839 | X194: 5.397545004 | Y194: 9.835886356e-06 | Z194: 15.65358933 | AA194: =IF(Z194<-U_ZWK,-U_ZWK,IF(Z194>U_ZWK,U_ZWK,Z194)) -> 15.65358933 | AB194: 15.65358933 | AC194: - | AD194: 5.397551349 | AE194: 5.397551349 | AF194: 5.397551349 | AG194: - | AH194: =AF194*KT_M -> 3.778285945 | AI194: =AH194/(JM_EMS+JL_EMS) -> 7850.168179 | AJ194: 94.93572845 | AK194: 906.5694276 | AL194: 0.5770364912 | AM194: =-DF_LR -> -0.0002908882087 | AN194: =DF_LR -> 0.0002908882087 | AO194: =FI_T-Rechentabelle!AL194 -> 5.702963509 | AP194: =K194 -> -1.738990822e-07
A195: 0.0120624993 | B195: 6.249999569e-05 | C195: 0.5711028482 | D195: 94.69063568 | E195: 7850001.5 | F195: -2.920752655e+12 | G195: =E195/1000 -> 7850.0015 | M195: - | N195: =N194+(L196-L194)/2 -> 0.2450888127 | O195: 94.93572845 | P195: 94.69063568 | Q195: -3.95959232e-06 | R195: =R194+KP_DR*(1+TA_SIM/TN_DR)*Q195-KP_DR*Q194 -> 0.0001112004625 | S195: - | T195: =R195 -> 0.0001112004625 | U195: 5.397436746 | V195: =T195+U195 -> 5.397547946 | W195: 5.397547946 | X195: 5.397551349 | Y195: =W195-X195 -> -3.403211995e-06 | Z195: 15.65265366 | AA195: 15.65265366 | AB195: =AA195 -> 15.65265366 | AC195: - | AD195: =(1/R_M*AB195+AD194*T_M/TA_SIM)/(1+T_M/TA_SIM) -> 5.397549154 | AE195: =AD195 -> 5.397549154 | AF195: =AE195 -> 5.397549154 | AG195: - | AH195: 3.778284408 | AI195: 7850.164986 | AJ195: =AJ194+AI195*TA_SIM -> 95.42636377 | AK195: 911.2546497 | AL195: =AL194+AJ195*TA_SIM -> 0.583000639 | AM195: -0.0002908882087 | AN195: 0.0002908882087 | AO195: =FI_T-Rechentabelle!AL195 -> 5.696999361 | AP195: =AP194 -> -1.738990822e-07
A196: 0.01212499943 | B196: 6.249999569e-05 | C196: 0.5770363444 | D196: 95.18125916 | E196: 7850001.5 | F196: -2.897754602e+12 | G196: 7850.0015 | I196: =C196 -> 0.5770363444 | J196: =AL194 -> 0.5770364912 | K196: =I196-J196 -> -1.467766816e-07 | L196: =L194+KP_LR*(1+2*TA_SIM/TN_LR)*K196-KP_LR*K194 -> 0.2450982902 | M196: - | N196: =L196 -> 0.2450982902 | O196: =AJ195 -> 95.42636377 | P196: =D196*KP_VDR -> 95.18125916 | Q196: =N196-O196+P196 -> -6.319583179e-06 | R196: 0.0001041939849 | S196: - | T196: 0.0001041939849 | U196: 5.397436746 | V196: 5.39754094 | W196: 5.39754094 | X196: =AF195 -> 5.397549154 | Y196: -8.214069023e-06 | Z196: 15.6523006 | AA196: 15.6523006 | AB196: 15.6523006 | AC196: - | AD196: 5.397543854 | AE196: 5.397543854 | AF196: 5.397543854 | AG196: - | AH196: 3.778280698 | AI196: 7850.157278 | AJ196: 95.91699859 | AK196: 915.9398672 | AL196: 0.5889954514 | AM196: -0.0002908882087 | AN196: 0.0002908882087 | AO196: =FI_T-Rechentabelle!AL196 -> 5.691004549 | AP196: =K196 -> -1.467766816e-07
A197: 0.01218749955 | B197: 6.249999569e-05 | C197: 0.5830005048 | D197: 95.67188263 | E197: 7850001.5 | F197: -2.87475655e+12 | G197: 7850.0015 | M197: - | N197: =N196+(L198-L196)/2 -> 0.2451073048 | O197: 95.91699859 | P197: 95.67188263 | Q197: -8.660738615e-06 | R197: 9.666037414e-05 | S197: - | T197: 9.666037414e-05 | U197: 5.397436746 | V197: 5.397533406 | W197: 5.397533406 | X197: 5.397543854 | Y197: -1.044828038e-05 | Z197: 15.65212423 | AA197: 15.65212423 | AB197: 15.65212423 | AC197: - | AD197: 5.397537113 | AE197: 5.397537113 | AF197: 5.397537113 | AG197: - | AH197: 3.778275979 | AI197: 7850.147474 | AJ197: 96.40763281 | AK197: 920.6250788 | AL197: 0.5950209284 | AM197: -0.0002908882087 | AN197: 0.0002908882087 | AO197: =FI_T-Rechentabelle!AL197 -> 5.684979072 | AP197: =AP196 -> -1.467766816e-07
A198: 0.01224999875 | B198: 6.249999569e-05 | C198: 0.5889953292 | D198: 96.1625061 | E198: 7850001.5 | F198: -2.851758497e+12 | G198: 7850.0015 | I198: =C198 -> 0.5889953292 | J198: =AL196 -> 0.5889954514 | K198: =I198-J198 -> -1.222110807e-07 | L198: =L196+KP_LR*(1+2*TA_SIM/TN_LR)*K198-KP_LR*K196 -> 0.2451163194 | M198: - | N198: =L198 -> 0.2451163194 | O198: 96.40763281 | P198: 96.1625061 | Q198: -1.038915534e-05 | R198: 9.012450944e-05 | S198: - | T198: 9.012450944e-05 | U198: 5.397436746 | V198: 5.39752687 | W198: 5.39752687 | X198: 5.397537113 | Y198: -1.024331904e-05 | Z198: 15.65211945 | AA198: 15.65211945 | AB198: 15.65211945 | AC198: - | AD198: 5.397530505 | AE198: 5.397530505 | AF198: 5.397530505 | AG198: - | AH198: 3.778271353 | AI198: 7850.137863 | AJ198: 96.89826643 | AK198: 925.3102847 | AL198: 0.6010770701 | AM198: -0.0002908882087 | AN198: 0.0002908882087 | AO198: =FI_T-Rechentabelle!AL198 -> 5.67892293 | AP198: =K198 -> -1.222110807e-07
A199: 0.01231249887 | B199: 6.249999569e-05 | C199: 0.5950208176 | D199: 96.65313721 | E199: 7850001.5 | F199: -2.828760445e+12 | G199: 7850.0015 | M199: - | N199: =N198+(L200-L198)/2 -> 0.2451249234 | O199: 96.89826643 | P199: 96.65313721 | Q199: -4.298085017e-06 | R199: 0.00010318377 | S199: - | T199: 0.00010318377 | U199: 5.397436746 | V199: 5.397539929 | W199: 5.397539929 | X199: 5.397530505 | Y199: 9.424534447e-06 | Z199: 15.65351764 | AA199: 15.65351764 | AB199: 15.65351764 | AC199: - | AD199: 5.397536585 | AE199: 5.397536585 | AF199: 5.397536585 | AG199: - | AH199: 3.77827561 | AI199: 7850.146706 | AJ199: 97.3889006 | AK199: 929.9954959 | AL199: 0.6071638764 | AM199: -0.0002908882087 | AN199: 0.0002908882087 | AO199: =FI_T-Rechentabelle!AL199 -> 5.672836124 | AP199: =AP198 -> -1.222110807e-07
A200: 0.012374999 | B200: 6.249999569e-05 | C200: 0.6010769701 | D200: 97.14376068 | E200: 7850001.5 | F200: -2.805762393e+12 | G200: 7850.0015 | I200: =C200 -> 0.6010769701 | J200: =AL198 -> 0.6010770701 | K200: =I200-J200 -> -9.994705075e-08 | L200: =L198+KP_LR*(1+2*TA_SIM/TN_LR)*K200-KP_LR*K198 -> 0.2451335274 | M200: - | N200: =L200 -> 0.2451335274 | O200: 97.3889006 | P200: 97.14376068 | Q200: -6.389110439e-06 | R200: 9.678327413e-05 | S200: - | T200: 9.678327413e-05 | U200: 5.397436746 | V200: 5.397533529 | W200: 5.397533529 | X200: 5.397536585 | Y200: -3.056306221e-06 | Z200: 15.65263585 | AA200: 15.65263585 | AB200: 15.65263585 | AC200: - | AD200: 5.397534613 | AE200: 5.397534613 | AF200: 5.397534613 | AG200: - | AH200: 3.778274229 | AI200: 7850.143838 | AJ200: 97.87953459 | AK200: 934.6807054 | AL200: 0.6132813473 | AM200: -0.0002908882087 | AN200: 0.0002908882087 | AO200: =FI_T-Rechentabelle!AL200 -> 5.666718653 | AP200: =K200 -> -9.994705075e-08
... 1402 more rows
